{"text_format":"1","workbook":"xlsx","n_sheets":18,"sheets":["Español-Ingles","#1","#2","#3","#4","#5","Hidrografía","Regularidad","Servicios Públicos","Vía","Ubicación","Uso de Suelo","Ingles-Español","Datos","Provincias-Muni","Municipalidades y Concejos de D","Nivel","Pendiente"],"not_rendered":{"charts":0,"images":42,"macros":1,"external_links":0,"defined_names":6,"comments":0,"pivot_tables":0},"unopened":[],"bounds":{"document_bytes":16777216,"sheet_cells":100000,"rows_first":2000,"rows_last":500,"rows_between":2000,"halvings":0,"cell_chars":16384,"cell_head_chars":4096},"cells_cut":0,"cells_raw":0,"read":"whole","date_system":"1900"}

{"sheet":"Español-Ingles","index":0,"n_rows":101,"n_cols":16318,"rows_kept":101,"cut":false,"hidden":false,"merged":[[100,16021,101,16057],[100,16058,101,16094],[100,16095,101,16131],[100,16132,101,16168],[100,16169,101,16205],[100,16206,101,16242],[100,16243,101,16279],[100,16280,101,16316],[100,16317,101,16353],[100,15688,101,15724],[100,15725,101,15761],[100,15762,101,15798],[100,15799,101,15835],[100,15836,101,15872],[100,15873,101,15909],[100,15910,101,15946],[100,15947,101,15983],[100,15984,101,16020],[100,15355,101,15391],[100,15392,101,15428],[100,15429,101,15465],[100,15466,101,15502],[100,15503,101,15539],[100,15540,101,15576],[100,15577,101,15613],[100,15614,101,15650],[100,15651,101,15687],[100,15022,101,15058],[100,15059,101,15095],[100,15096,101,15132],[100,15133,101,15169],[100,15170,101,15206],[100,15207,101,15243],[100,15244,101,15280],[100,15281,101,15317],[100,15318,101,15354],[100,14689,101,14725],[100,14726,101,14762],[100,14763,101,14799],[100,14800,101,14836],[100,14837,101,14873],[100,14874,101,14910],[100,14911,101,14947],[100,14948,101,14984],[100,14985,101,15021],[100,14356,101,14392],[100,14393,101,14429],[100,14430,101,14466],[100,14467,101,14503],[100,14504,101,14540],[100,14541,101,14577],[100,14578,101,14614],[100,14615,101,14651],[100,14652,101,14688],[100,14023,101,14059],[100,14060,101,14096],[100,14097,101,14133],[100,14134,101,14170],[100,14171,101,14207],[100,14208,101,14244],[100,14245,101,14281],[100,14282,101,14318],[100,14319,101,14355],[100,13690,101,13726],[100,13727,101,13763],[100,13764,101,13800],[100,13801,101,13837],[100,13838,101,13874],[100,13875,101,13911],[100,13912,101,13948],[100,13949,101,13985],[100,13986,101,14022],[100,13357,101,13393],[100,13394,101,13430],[100,13431,101,13467],[100,13468,101,13504],[100,13505,101,13541],[100,13542,101,13578],[100,13579,101,13615],[100,13616,101,13652],[100,13653,101,13689],[100,13024,101,13060],[100,13061,101,13097],[100,13098,101,13134],[100,13135,101,13171],[100,13172,101,13208],[100,13209,101,13245],[100,13246,101,13282],[100,13283,101,13319],[100,13320,101,13356],[100,12691,101,12727],[100,12728,101,12764],[100,12765,101,12801],[100,12802,101,12838],[100,12839,101,12875],[100,12876,101,12912],[100,12913,101,12949],[100,12950,101,12986],[100,12987,101,13023],[100,12358,101,12394],[100,12395,101,12431],[100,12432,101,12468],[100,12469,101,12505],[100,12506,101,12542],[100,12543,101,12579],[100,12580,101,12616],[100,12617,101,12653],[100,12654,101,12690],[100,12025,101,12061],[100,12062,101,12098],[100,12099,101,12135],[100,12136,101,12172],[100,12173,101,12209],[100,12210,101,12246],[100,12247,101,12283],[100,12284,101,12320],[100,12321,101,12357],[100,11692,101,11728],[100,11729,101,11765],[100,11766,101,11802],[100,11803,101,11839],[100,11840,101,11876],[100,11877,101,11913],[100,11914,101,11950],[100,11951,101,11987],[100,11988,101,12024],[100,11359,101,11395],[100,11396,101,11432],[100,11433,101,11469],[100,11470,101,11506],[100,11507,101,11543],[100,11544,101,11580],[100,11581,101,11617],[100,11618,101,11654],[100,11655,101,11691],[100,11026,101,11062],[100,11063,101,11099],[100,11100,101,11136],[100,11137,101,11173],[100,11174,101,11210],[100,11211,101,11247],[100,11248,101,11284],[100,11285,101,11321],[100,11322,101,11358],[100,10693,101,10729],[100,10730,101,10766],[100,10767,101,10803],[100,10804,101,10840],[100,10841,101,10877],[100,10878,101,10914],[100,10915,101,10951],[100,10952,101,10988],[100,10989,101,11025],[100,10360,101,10396],[100,10397,101,10433],[100,10434,101,10470],[100,10471,101,10507],[100,10508,101,10544],[100,10545,101,10581],[100,10582,101,10618],[100,10619,101,10655],[100,10656,101,10692],[100,10027,101,10063],[100,10064,101,10100],[100,10101,101,10137],[100,10138,101,10174],[100,10175,101,10211],[100,10212,101,10248],[100,10249,101,10285],[100,10286,101,10322],[100,10323,101,10359],[100,9694,101,9730],[100,9731,101,9767],[100,9768,101,9804],[100,9805,101,9841],[100,9842,101,9878],[100,9879,101,9915],[100,9916,101,9952],[100,9953,101,9989],[100,9990,101,10026],[100,9361,101,9397],[100,9398,101,9434],[100,9435,101,9471],[100,9472,101,9508],[100,9509,101,9545],[100,9546,101,9582],[100,9583,101,9619],[100,9620,101,9656],[100,9657,101,9693],[100,9028,101,9064],[100,9065,101,9101],[100,9102,101,9138],[100,9139,101,9175],[100,9176,101,9212],[100,9213,101,9249],[100,9250,101,9286],[100,9287,101,9323],[100,9324,101,9360],[100,8695,101,8731],[100,8732,101,8768],[100,8769,101,8805],[100,8806,101,8842],[100,8843,101,8879],[100,8880,101,8916],[100,8917,101,8953],[100,8954,101,8990],[100,8991,101,9027],[100,8362,101,8398],[100,8399,101,8435],[100,8436,101,8472],[100,8473,101,8509],[100,8510,101,8546],[100,8547,101,8583],[100,8584,101,8620],[100,8621,101,8657],[100,8658,101,8694],[100,8029,101,8065],[100,8066,101,8102],[100,8103,101,8139],[100,8140,101,8176],[100,8177,101,8213],[100,8214,101,8250],[100,8251,101,8287],[100,8288,101,8324],[100,8325,101,8361],[100,7696,101,7732],[100,7733,101,7769],[100,7770,101,7806],[100,7807,101,7843],[100,7844,101,7880],[100,7881,101,7917],[100,7918,101,7954],[100,7955,101,7991],[100,7992,101,8028],[100,7363,101,7399],[100,7400,101,7436],[100,7437,101,7473],[100,7474,101,7510],[100,7511,101,7547],[100,7548,101,7584],[100,7585,101,7621],[100,7622,101,7658],[100,7659,101,7695],[100,7030,101,7066],[100,7067,101,7103],[100,7104,101,7140],[100,7141,101,7177],[100,7178,101,7214],[100,7215,101,7251],[100,7252,101,7288],[100,7289,101,7325],[100,7326,101,7362],[100,6697,101,6733],[100,6734,101,6770],[100,6771,101,6807],[100,6808,101,6844],[100,6845,101,6881],[100,6882,101,6918],[100,6919,101,6955],[100,6956,101,6992],[100,6993,101,7029],[100,6364,101,6400],[100,6401,101,6437],[100,6438,101,6474],[100,6475,101,6511],[100,6512,101,6548],[100,6549,101,6585],[100,6586,101,6622],[100,6623,101,6659],[100,6660,101,6696],[100,6031,101,6067],[100,6068,101,6104],[100,6105,101,6141],[100,6142,101,6178],[100,6179,101,6215],[100,6216,101,6252],[100,6253,101,6289],[100,6290,101,6326],[100,6327,101,6363],[100,5698,101,5734],[100,5735,101,5771],[100,5772,101,5808],[100,5809,101,5845],[100,5846,101,5882],[100,5883,101,5919],[100,5920,101,5956],[100,5957,101,5993],[100,5994,101,6030],[100,5365,101,5401],[100,5402,101,5438],[100,5439,101,5475],[100,5476,101,5512],[100,5513,101,5549],[100,5550,101,5586],[100,5587,101,5623],[100,5624,101,5660],[100,5661,101,5697],[100,5032,101,5068],[100,5069,101,5105],[100,5106,101,5142],[100,5143,101,5179],[100,5180,101,5216],[100,5217,101,5253],[100,5254,101,5290],[100,5291,101,5327],[100,5328,101,5364],[100,4699,101,4735],[100,4736,101,4772],[100,4773,101,4809],[100,4810,101,4846],[100,4847,101,4883],[100,4884,101,4920],[100,4921,101,4957],[100,4958,101,4994],[100,4995,101,5031],[100,4366,101,4402],[100,4403,101,4439],[100,4440,101,4476],[100,4477,101,4513],[100,4514,101,4550],[100,4551,101,4587],[100,4588,101,4624],[100,4625,101,4661],[100,4662,101,4698],[100,4033,101,4069],[100,4070,101,4106],[100,4107,101,4143],[100,4144,101,4180],[100,4181,101,4217],[100,4218,101,4254],[100,4255,101,4291],[100,4292,101,4328],[100,4329,101,4365],[100,3700,101,3736],[100,3737,101,3773],[100,3774,101,3810],[100,3811,101,3847],[100,3848,101,3884],[100,3885,101,3921],[100,3922,101,3958],[100,3959,101,3995],[100,3996,101,4032],[100,3367,101,3403],[100,3404,101,3440],[100,3441,101,3477],[100,3478,101,3514],[100,3515,101,3551],[100,3552,101,3588],[100,3589,101,3625],[100,3626,101,3662],[100,3663,101,3699],[100,3034,101,3070],[100,3071,101,3107],[100,3108,101,3144],[100,3145,101,3181],[100,3182,101,3218],[100,3219,101,3255],[100,3256,101,3292],[100,3293,101,3329],[100,3330,101,3366],[100,2701,101,2737],[100,2738,101,2774],[100,2775,101,2811],[100,2812,101,2848],[100,2849,101,2885],[100,2886,101,2922],[100,2923,101,2959],[100,2960,101,2996],[100,2997,101,3033],[100,2368,101,2404],[100,2405,101,2441],[100,2442,101,2478],[100,2479,101,2515],[100,2516,101,2552],[100,2553,101,2589],[100,2590,101,2626],[100,2627,101,2663],[100,2664,101,2700],[100,2035,101,2071],[100,2072,101,2108],[100,2109,101,2145],[100,2146,101,2182],[100,2183,101,2219],[100,2220,101,2256],[100,2257,101,2293],[100,2294,101,2330],[100,2331,101,2367],[100,1702,101,1738],[100,1739,101,1775],[100,1776,101,1812],[100,1813,101,1849],[100,1850,101,1886],[100,1887,101,1923],[100,1924,101,1960],[100,1961,101,1997],[100,1998,101,2034],[100,1369,101,1405],[100,1406,101,1442],[100,1443,101,1479],[100,1480,101,1516],[100,1517,101,1553],[100,1554,101,1590],[100,1591,101,1627],[100,1628,101,1664],[100,1665,101,1701],[100,1036,101,1072],[100,1073,101,1109],[100,1110,101,1146],[100,1147,101,1183],[100,1184,101,1220],[100,1221,101,1257],[100,1258,101,1294],[100,1295,101,1331],[100,1332,101,1368],[100,703,101,739],[100,740,101,776],[100,777,101,813],[100,814,101,850],[100,851,101,887],[100,888,101,924],[100,925,101,961],[100,962,101,998],[100,999,101,1035],[100,370,101,406],[100,407,101,443],[100,444,101,480],[100,481,101,517],[100,518,101,554],[100,555,101,591],[100,592,101,628],[100,629,101,665],[100,666,101,702],[100,37,101,73],[100,74,101,110],[100,111,101,147],[100,148,101,184],[100,185,101,221],[100,222,101,258],[100,259,101,295],[100,296,101,332],[100,333,101,369],[0,5,0,23],[9,7,9,12],[11,7,11,12],[29,1,30,4],[29,5,30,6],[29,7,30,10],[29,11,30,14],[29,15,30,17],[29,18,30,19],[29,20,30,21],[29,22,30,23],[18,9,18,10],[27,23,27,28],[26,15,26,36],[21,21,21,27],[21,12,21,17],[18,33,18,36],[29,26,30,28],[29,30,30,33],[16,31,16,36],[2,24,2,30],[2,31,2,36],[16,25,16,29],[16,0,16,4],[24,29,24,36],[24,1,24,14],[29,24,30,25],[18,12,18,19],[25,12,25,21],[25,23,25,36],[21,18,21,20],[20,29,20,35],[19,27,19,28],[20,21,20,27],[27,31,27,36],[27,0,27,22],[31,20,31,21],[29,29,30,29],[29,34,40,35],[38,24,38,25],[35,11,35,14],[36,11,36,14],[32,15,32,17],[36,15,36,17],[35,26,35,28],[36,20,36,21],[36,26,36,28],[32,26,32,28],[38,30,38,33],[39,30,39,33],[39,24,39,25],[37,18,37,19],[33,24,33,25],[37,24,37,25],[33,18,33,19],[34,18,34,19],[33,30,33,33],[34,30,34,33],[35,30,35,33],[39,26,39,28],[35,20,35,21],[54,6,54,17],[33,15,33,17],[34,15,34,17],[37,30,37,33],[48,30,48,36],[40,1,40,4],[39,11,39,14],[40,11,40,14],[33,20,33,21],[33,1,33,4],[34,1,34,4],[35,1,35,4],[36,1,36,4],[37,1,37,4],[38,1,38,4],[39,1,39,4],[38,18,38,19],[37,20,37,21],[37,26,37,28],[38,20,38,21],[38,26,38,28],[53,25,53,27],[40,24,40,25],[34,24,34,25],[67,11,67,12],[65,11,65,12],[66,11,66,12],[15,0,15,4],[18,0,18,8],[38,5,38,6],[36,5,36,6],[36,7,36,10],[29,0,30,0],[48,0,48,11],[49,0,49,11],[38,7,38,10],[34,5,34,6],[34,7,34,10],[31,7,31,10],[33,5,33,6],[33,7,33,10],[32,5,32,6],[43,0,43,7],[45,0,45,36],[39,5,39,6],[53,6,53,17],[52,0,52,7],[32,24,32,25],[48,17,48,29],[50,0,50,36],[52,8,52,16],[52,26,52,30],[52,17,52,25],[36,30,36,33],[39,7,39,10],[38,11,38,14],[37,5,37,6],[37,7,37,10],[39,20,39,21],[49,17,49,28],[46,28,46,36],[46,17,46,27],[36,18,36,19],[47,30,47,35],[40,26,40,28],[40,20,40,21],[37,15,37,17],[38,15,38,17],[39,15,39,17],[40,15,40,17],[47,0,47,11],[42,25,42,29],[42,0,42,24],[35,24,35,25],[49,12,49,16],[46,12,46,16],[49,29,49,36],[32,20,32,21],[33,26,33,28],[47,17,47,29],[35,15,35,17],[37,11,37,14],[47,12,47,16],[48,12,48,16],[46,0,46,11],[40,7,40,10],[41,0,41,17],[41,18,41,36],[42,31,42,36],[40,30,40,33],[36,24,36,25],[35,7,35,10],[35,5,35,6],[35,18,35,19],[32,1,32,4],[33,11,33,14],[100,0,101,36],[0,0,5,4],[2,6,2,22],[1,6,1,22],[7,0,7,13],[7,14,7,36],[1,24,1,30],[17,3,17,11],[9,24,9,27],[9,28,9,36],[34,20,34,21],[34,26,34,28],[39,18,39,19],[40,18,40,19],[54,0,54,5],[53,0,53,5],[53,28,53,30],[54,28,54,30],[55,28,55,30],[40,5,40,6],[20,13,20,18],[40,22,40,23],[32,7,32,10],[32,18,32,19],[13,0,13,9],[13,10,13,36],[15,10,15,13],[11,0,11,6],[31,11,31,14],[32,11,32,14],[17,34,17,35],[31,30,31,33],[32,30,32,33],[31,24,31,25],[28,0,28,36],[31,26,31,28],[11,13,11,21],[17,12,17,17],[17,19,17,25],[19,5,19,8],[21,9,21,10],[20,0,20,5],[19,0,19,4],[16,8,16,17],[17,0,17,2],[16,5,16,7],[18,24,18,32],[26,0,26,14],[0,34,0,36],[0,24,0,33],[31,22,31,23],[20,6,20,12],[23,19,23,20],[22,7,22,16],[22,24,22,28],[24,15,24,28],[17,27,17,33],[6,0,6,36],[21,29,21,35],[9,0,9,6],[16,19,16,21],[19,34,19,36],[23,21,23,28],[23,15,23,18],[23,7,23,14],[22,29,22,35],[31,1,31,4],[31,5,31,6],[27,29,27,30],[31,18,31,19],[31,15,31,17],[18,20,18,22],[55,25,55,27],[43,8,43,36],[44,0,44,36],[53,18,53,23],[54,18,54,23],[21,0,21,8],[19,29,19,33],[51,0,51,30],[51,31,55,36],[54,25,54,27],[19,17,19,20],[19,21,19,26],[19,13,19,16],[20,19,20,20],[55,0,55,8],[55,9,55,24],[19,10,19,12],[23,29,23,35],[22,0,22,6],[22,17,22,23],[23,0,23,6],[37,22,37,23],[38,22,38,23],[39,22,39,23],[34,11,34,14],[32,22,32,23],[33,22,33,23],[34,22,34,23],[35,22,35,23],[36,22,36,23],[1,31,1,36],[15,27,15,36],[14,0,14,13],[14,14,14,36],[8,11,8,36],[15,14,15,22],[15,23,15,26],[16,22,16,23],[5,5,5,31],[8,0,8,10],[9,13,9,21],[9,22,9,23],[12,0,12,36],[11,22,11,36],[15,5,15,9],[10,0,10,11],[10,12,10,36],[25,0,25,11]]}
[null,null,null,null,null,{"$f":"IF(Q1=\"Cóbano\",\"Concejo Municipal de\",IF(Q1=\"Lepanto\",\"Concejo Municipal de\",IF(Q1=\"Paquera\", \"Concejo Municipal de\",IF(Q1=\"Monteverde\",\"Concejo Municipal de\",IF( Q1=\"Colorado\",\"Concejo Municipal de\",IF(Q1=\"Cervantes\", \"Concejo Municipal de\",IF(Q1=\"Tucurrique\",\"Concejo Municipal de\",IF( Q1=\"Peñas Blancas\",\"Concejo Municipal de\",\"Municipalidad de Montes de Oro\"))))))))","v":"Municipalidad de Montes de Oro"},null,null,null,null,null,null,null,null,null,null,null,null,null,null,null,null,null,null,"Próx Declaración Máx",null,null,null,null,null,null,null,null,null,{"$f":"YEAR(TODAY())+5","v":2024}]
[null,null,null,null,null,null,"Declaración de Bienes Inmuebles ",null,null,null,null,null,null,null,null,null,null,null,null,null,null,null,null,null,"N° Declaración"]
[null,null,null,null,null,null,"Ley 7509 y sus Reformas",null,null,null,null,null,null,null,null,null,null,null,null,null,null,null,null,null,"# de GIS"]
[]
[]
[null,null,null,null,null,"Campos Obligatorios (•) /Utilice un formulario por derecho"]
["#1-Datos del Propietario"]
["•Nombre o Razón Social:"]
["•Domicilio Fiscal o Social:"]
["•Cédula de Identidad:",null,null,null,null,null,null,"ID",null,null,null,null,null,"•Teléfono-Correo Eléctronico:",null,null,null,null,null,null,null,null,506]
["•Representante Legal:"]
["•Cédula de Identidad:",null,null,null,null,null,null,"ID",null,null,null,null,null,"•Dirección Completa:"]
["#2-Datos del Inmueble"]
["•Dirección Completa:"]
["•Medio para oír notificaciones:"]
["•Provincia:",null,null,null,null,null,null,null,null,null,"•Cantón:",null,null,null,null,null,null,null,null,null,null,null,null,"•Distrito:"]
["•#Finca:",null,null,null,null,null,null,null,"N° Plano Catastro:",null,null,null,null,null,null,null,null,null,"SJ",null,null,null,null,null,null," Inscrito:",null,null,null,null,null,"Sin Inscribir"]
["•Área:",null,null,null,null,null,null,null,null,null,null,null,"•Duplicado:",null,null,null,null,null,null,"•Horizontal:",null,null,null,null,null,null,null,"#Derecho:"]
["# Copropietarios:",null,null,null,null,null,null,null,null,null,null,null,"% Posesión:",null,null,null,null,null,null,null,100,null,null,null,"%Condo:"]
["•Nivel:",null,null,null,null,"A Nivel/Even ",null,null,null,{"$f":"IF(F20=\"Sobre/Above \",\"+\",IF(F20=\"A Nivel/Even \",\"=\",\"-\"))","v":"="},null,null,null,"•Frente",null,null,null,null,null,null,null,"•Serv Públicos (1)",null,null,null,null,null,{"$f":"IF(AND(AC21=FALSE,AC22=FALSE),1,IF(AND(AC21=TRUE,AC22=FALSE),2,IF(AND(AC21=FALSE,AC22=TRUE),3,4)))","v":1},null,"•Serv Públicos (2) ",null,null,null,null,{"$f":"IF(AND(AK21=FALSE,AK22=FALSE,AK23=FALSE,AK24=FALSE),1,IF(AND(AK21=TRUE,AK22=FALSE,AK23=FALSE,AK24=FALSE),2,IF(AND(AK21=FALSE,AK22=TRUE,AK23=FALSE,AK24=FALSE),3,IF(AND(AK21=FALSE,AK22=FALSE,AK23=TRUE,AK24=FALSE),4,IF(AND(AK21=FALSE,AK22=FALSE,AK23=FALSE,AK24=TRUE),5,IF(AND(AK21=TRUE,AK22=TRUE,AK23=FALSE,AK24=FALSE),6,IF(AND(AK21=TRUE,AK22=FALSE,AK23=TRUE,AK24=FALSE),7,IF(AND(AK21=TRUE,AK22=FALSE,AK23=FALSE,AK24=TRUE),8,IF(AND(AK21=FALSE,AK22=TRUE,AK23=TRUE,AK24=FALSE),9,IF(AND(AK21=FALSE,AK22=TRUE,AK23=FALSE,AK24=TRUE),10,IF(AND(AK21=FALSE,AK22=FALSE,AK23=TRUE,AK24=TRUE),11,IF(AND(AK21=TRUE,AK22=TRUE,AK23=TRUE,AK24=FALSE),12,IF(AND(AK21=TRUE,AK22=TRUE,AK23=FALSE,AK24=TRUE),13,IF(AND(AK21=TRUE,AK22=FALSE,AK23=TRUE,AK24=TRUE),14,IF(AND(AK21=FALSE,AK22=TRUE,AK23=TRUE,AK24=TRUE),15,16)))))))))))))))","v":1}]
["•Ubicación:",null,null,null,null,null,null,null,null,null,null,null,null,"•Pendiente",null,null,null,null,null,null,null,"•Cordón y Caño",null,null,null,null,null,null,false,"•Alumbrado",null,null,null,null,null,null,false]
["•Avance Obra:",null,null,null,null,null,null,null,null,null,null,null,"Regularidad",null,null,null,null,null,null,null,null,"•Acera",null,null,null,null,null,null,false,"•Teléfono",null,null,null,null,null,null,false]
["•Uso de la Tierra: ",null,null,null,null,null,null,null,null,null,null,null,null,null,null,null,null,"•Hidrografía",null,null,null,null,null,null,null,null,null,null,null,"•Electricidad",null,null,null,null,null,null,false]
["•Uso Actual:",null,null,null,null,null,null,null,null,null,null,null,null,null,null,"•Vía ",null,null,null,null,null,null,null,null,null,null,null,null,null,"•Cañería",null,null,null,null,null,null,false]
["¤",null,null,null,null,null,null,null,null,null,null,null,null,null,null,"*Área de la actividad Agropecuaria"]
["*Tipo Actividad Agropecuaria:",null,null,null,null,null,null,null,null,null,null,null,null,null,null,null,null,null,null,null,null,null,"**"]
["•Valor del Terreno Privado"]
["•Valor Total Terreno Común en Condominio ",null,null,null,null,null,null,null,null,null,null,null,null,null,null,null,null,null,null,null,null,null,null,null,null,null,null,null,null,"V%",null,{"$f":"X28*(AH19/100)","v":0}]
["#3-Detalles de Construcción e Instalaciones Complementarias "]
["#","Descripción",null,null,null,"Edad ",null,"Pared ",null,null,null,"Piso ",null,null,null,"Cieloraso ",null,null,"Baños ",null,"Techo ",null,"#Nivel ",null,"Estado",null,"Área ",null,null,"Rem","Valor",null,null,null,"Marcar \"X\" si es construcción común condo  \nMark \"X\" if it is common condo construction"]
[]
[1,null,null,null,null,null,null,null,null,null,null,null,null,null,null,null,null,null,null,null,null,null,null,null,null,null,null,null,null,null,0]
[2,null,null,null,null,null,null,null,null,null,null,null,null,null,null,null,null,null,null,null,null,null,null,null,null,null,null,null,null,null,0]
[3,null,null,null,null,null,null,null,null,null,null,null,null,null,null,null,null,null,null,null,null,null,null,null,null,null,null,null,null,null,0]
[4,null,null,null,null,null,null,null,null,null,null,null,null,null,null,null,null,null,null,null,null,null,null,null,null,null,null,null,null,null,0]
[5,null,null,null,null,null,null,null,null,null,null,null,null,null,null,null,null,null,null,null,null,null,null,null,null,null,null,null,null,null,0]
[6,null,null,null,null,null,null,null,null,null,null,null,null,null,null,null,null,null,null,null,null,null,null,null,null,null,null,null,null,null,0]
[7,null,null,null,null,null,null,null,null,null,null,null,null,null,null,null,null,null,null,null,null,null,null,null,null,null,null,null,null,null,0]
[8,null,null,null,null,null,null,null,null,null,null,null,null,null,null,null,null,null,null,null,null,null,null,null,null,null,null,null,null,null,0]
[9,null,null,null,null,null,null,null,null,null,null,null,null,null,null,null,null,null,null,null,null,null,null,null,null,null,null,null,null,null,0]
[10,null,null,null,null,null,null,null,null,null,null,null,null,null,null,null,null,null,null,null,null,null,null,null,null,null,null,null,null,null,0]
["•Valor de la Construcción Privada ",null,null,null,null,null,null,null,null,null,null,null,null,null,null,null,null,null,{"$f":"SUMIF(AK32:AK41,\"\",AE32:AH41)","v":0}]
["•Valor Total Construcción Común en Condominio  ",null,null,null,null,null,null,null,null,null,null,null,null,null,null,null,null,null,null,null,null,null,null,null,null,{"$f":"SUMIF(AK32:AK41,\"=X\",AE32:AH41)","v":0},null,null,null,null,"V%",{"$f":"Z43*(AH19/100)","v":0}]
["•Observaciones \n"]
[]
["#4-Declaración del Propietario "]
["•Valor Total Terreno",null,null,null,null,null,null,null,null,null,null,null,{"$f":"P27+AF28","v":0},null,null,null,null,"•Firmo en la ciudad de:",null,null,null,null,null,null,null,null,null,null,{"$f":"Q1","v":0}]
["•Valor Total Construcción ",null,null,null,null,null,null,null,null,null,null,null,{"$f":"S42+AF43","v":0},null,null,null,null,"•Fecha-Hora ",null,null,null,null,null,null,null,null,null,null,null,null,{"$f":"NOW()","v":"2019-10-28T13:45:26.270"},null,null,null,null,null,false]
["•Valor Total del Inmueble ",null,null,null,null,null,null,null,null,null,null,null,{"$f":"M47+M48","v":0},null,null,null,null,"•Firma "]
["•Valor del Derecho ",null,null,null,null,null,null,null,null,null,null,null,{"$f":"M49*(U19/100)","v":0},null,null,null,null,"Impuesto Anual/Annual Property Tax",null,null,null,null,null,null,null,null,null,null,null,{"$f":"IF(R50=\"Impuesto Anual/Annual Property Tax\",M50*0.0025,IF(R50=\"Impuesto Trimestral/Quarterly Property Tax\",(M50*0.0025)/4,(M50*0.0025)/12))","v":0}]
["La Municipalidad tiene la facultad de aceptar u objetar el valor declarado "]
["#5- Uso Municipal",null,null,null,null,null,null,null,null,null,null,null,null,null,null,null,null,null,null,null,null,null,null,null,null,null,null,null,null,null,null,"Sello y firma"]
["•Fecha-Hora Valor Anterior ",null,null,null,null,null,null,null,0,null,null,null,null,null,null,null,null,"•Fecha-Hora Zona Homogénea "]
["•Fecha-Hora Recibe",null,null,null,null,null,null,null,null,null,null,null,null,null,null,null,null,null,"•Fecha-Hora Fiscalizar ",null,null,null,null,null,null,"Fecha"]
["•Fecha-Hora Fiscalizó ",null,null,null,null,null,null,null,null,null,null,null,null,null,null,null,null,null,"•Fecha-Hora Rectificar ",null,null,null,null,null,null,"Fecha "]
["•Fecha-Hora Incluyó",null,null,null,null,null,null,null,null,null,null,null,null,null,null,null,null,null,null,null,null,null,null,null,null,"Fecha "]
[]
[]
[]
[]
[]
[]
[]
[]
[]
[]
[]
[]
[]
[]
[]
[]
[]
[]
[]
[]
[]
[]
[]
[]
[]
[]
[]
[]
[]
[]
[]
[]
[]
[]
[]
[]
[]
[]
[]
[]
[]
[]
[]
[]
["\"-Ministerio de Hacienda, Órgano de Normalización Técnica, Edificio Mira, Zapote. 300 Oeste de Casa Presidencial-Autoria Ing. Nathalie Venegas Delgado-\"",null,null,null,null,null,null,null,null,null,null,null,null,null,null,null,null,null,null,null,null,null,null,null,null,null,null,null,null,null,null,null,null,null,null,null,null,"\"-Ministerio de Hacienda, Órgano de Normalización Técnica, Edificio Mira, Zapote. 300 Oeste de Casa Presidencial-Autoria Ing. Nathalie Venegas Delgado-\"",null,null,null,null,null,null,null,null,null,null,null,null,null,null,null,null,null,null,null,null,null,null,null,null,null,null,null,null,null,null,null,null,null,null,null,null,"\"-Ministerio de Hacienda, Órgano de Normalización Técnica, Edificio Mira, Zapote. 300 Oeste de Casa Presidencial-Autoria Ing. Nathalie Venegas Delgado-\"",null,null,null,null,null,null,null,null,null,null,null,null,null,null,null,null,null,null,null,null,null,null,null,null,null,null,null,null,null,null,null,null,null,null,null,null,"\"-Ministerio de Hacienda, Órgano de Normalización Técnica, Edificio Mira, Zapote. 300 Oeste de Casa Presidencial-Autoria Ing. Nathalie Venegas Delgado-\"",null,null,null,null,null,null,null,null,null,null,null,null,null,null,null,null,null,null,null,null,null,null,null,null,null,null,null,null,null,null,null,null,null,null,null,null,"\"-Ministerio de Hacienda, Órgano de Normalización Técnica, Edificio Mira, Zapote. 300 Oeste de Casa Presidencial-Autoria Ing. Nathalie Venegas Delgado-\"",null,null,null,null,null,null,null,null,null,null,null,null,null,null,null,null,null,null,null,null,null,null,null,null,null,null,null,null,null,null,null,null,null,null,null,null,"\"-Ministerio de Hacienda, Órgano de Normalización Técnica, Edificio Mira, Zapote. 300 Oeste de Casa Presidencial-Autoria Ing. Nathalie Venegas Delgado-\"",null,null,null,null,null,null,null,null,null,null,null,null,null,null,null,null,null,null,null,null,null,null,null,null,null,null,null,null,null,null,null,null,null,null,null,null,"\"-Ministerio de Hacienda, Órgano de Normalización Técnica, Edificio Mira, Zapote. 300 Oeste de Casa Presidencial-Autoria Ing. Nathalie Venegas Delgado-\"",null,null,null,null,null,null,null,null,null,null,null,null,null,null,null,null,null,null,null,null,null,null,null,null,null,null,null,null,null,null,null,null,null,null,null,null,"\"-Ministerio de Hacienda, Órgano de Normalización Técnica, Edificio Mira, Zapote. 300 Oeste de Casa Presidencial-Autoria Ing. Nathalie Venegas Delgado-\"",null,null,null,null,null,null,null,null,null,null,null,null,null,null,null,null,null,null,null,null,null,null,null,null,null,null,null,null,null,null,null,null,null,null,null,null,"\"-Ministerio de Hacienda, Órgano de Normalización Técnica, Edificio Mira, Zapote. 300 Oeste de Casa Presidencial-Autoria Ing. Nathalie Venegas Delgado-\"",null,null,null,null,null,null,null,null,null,null,null,null,null,null,null,null,null,null,null,null,null,null,null,null,null,null,null,null,null,null,null,null,null,null,null,null,"\"-Ministerio de Hacienda, Órgano de Normalización Técnica, Edificio Mira, Zapote. 300 Oeste de Casa Presidencial-Autoria Ing. Nathalie Venegas Delgado-\"",null,null,null,null,null,null,null,null,null,null,null,null,null,null,null,null,null,null,null,null,null,null,null,null,null,null,null,null,null,null,null,null,null,null,null,null,"\"-Ministerio de Hacienda, Órgano de Normalización Técnica, Edificio Mira, Zapote. 300 Oeste de Casa Presidencial-Autoria Ing. Nathalie Venegas Delgado-\"",null,null,null,null,null,null,null,null,null,null,null,null,null,null,null,null,null,null,null,null,null,null,null,null,null,null,null,null,null,null,null,null,null,null,null,null,"\"-Ministerio de Hacienda, Órgano de Normalización Técnica, Edificio Mira, Zapote. 300 Oeste de Casa Presidencial-Autoria Ing. Nathalie Venegas Delgado-\"",null,null,null,null,null,null,null,null,null,null,null,null,null,null,null,null,null,null,null,null,null,null,null,null,null,null,null,null,null,null,null,null,null,null,null,null,"\"-Ministerio de Hacienda, Órgano de Normalización Técnica, Edificio Mira, Zapote. 300 Oeste de Casa Presidencial-Autoria Ing. Nathalie Venegas Delgado-\"",null,null,null,null,null,null,null,null,null,null,null,null,null,null,null,null,null,null,null,null,null,null,null,null,null,null,null,null,null,null,null,null,null,null,null,null,"\"-Ministerio de Hacienda, Órgano de Normalización Técnica, Edificio Mira, Zapote. 300 Oeste de Casa Presidencial-Autoria Ing. Nathalie Venegas Delgado-\"",null,null,null,null,null,null,null,null,null,null,null,null,null,null,null,null,null,null,null,null,null,null,null,null,null,null,null,null,null,null,null,null,null,null,null,null,"\"-Ministerio de Hacienda, Órgano de Normalización Técnica, Edificio Mira, Zapote. 300 Oeste de Casa Presidencial-Autoria Ing. Nathalie Venegas Delgado-\"",null,null,null,null,null,null,null,null,null,null,null,null,null,null,null,null,null,null,null,null,null,null,null,null,null,null,null,null,null,null,null,null,null,null,null,null,"\"-Ministerio de Hacienda, Órgano de Normalización Técnica, Edificio Mira, Zapote. 300 Oeste de Casa Presidencial-Autoria Ing. Nathalie Venegas Delgado-\"",null,null,null,null,null,null,null,null,null,null,null,null,null,null,null,null,null,null,null,null,null,null,null,null,null,null,null,null,null,null,null,null,null,null,null,null,"\"-Ministerio de Hacienda, Órgano de Normalización Técnica, Edificio Mira, Zapote. 300 Oeste de Casa Presidencial-Autoria Ing. Nathalie Venegas Delgado-\"",null,null,null,null,null,null,null,null,null,null,null,null,null,null,null,null,null,null,null,null,null,null,null,null,null,null,null,null,null,null,null,null,null,null,null,null,"\"-Ministerio de Hacienda, Órgano de Normalización Técnica, Edificio Mira, Zapote. 300 Oeste de Casa Presidencial-Autoria Ing. Nathalie Venegas Delgado-\"",null,null,null,null,null,null,null,null,null,null,null,null,null,null,null,null,null,null,null,null,null,null,null,null,null,null,null,null,null,null,null,null,null,null,null,null,"\"-Ministerio de Hacienda, Órgano de Normalización Técnica, Edificio Mira, Zapote. 300 Oeste de Casa Presidencial-Autoria Ing. Nathalie Venegas Delgado-\"",null,null,null,null,null,null,null,null,null,null,null,null,null,null,null,null,null,null,null,null,null,null,null,null,null,null,null,null,null,null,null,null,null,null,null,null,"\"-Ministerio de Hacienda, Órgano de Normalización Técnica, Edificio Mira, Zapote. 300 Oeste de Casa Presidencial-Autoria Ing. Nathalie Venegas Delgado-\"",null,null,null,null,null,null,null,null,null,null,null,null,null,null,null,null,null,null,null,null,null,null,null,null,null,null,null,null,null,null,null,null,null,null,null,null,"\"-Ministerio de Hacienda, Órgano de Normalización Técnica, Edificio Mira, Zapote. 300 Oeste de Casa Presidencial-Autoria Ing. Nathalie Venegas Delgado-\"",null,null,null,null,null,null,null,null,null,null,null,null,null,null,null,null,null,null,null,null,null,null,null,null,null,null,null,null,null,null,null,null,null,null,null,null,"\"-Ministerio de Hacienda, Órgano de Normalización Técnica, Edificio Mira, Zapote. 300 Oeste de Casa Presidencial-Autoria Ing. Nathalie Venegas Delgado-\"",null,null,null,null,null,null,null,null,null,null,null,null,null,null,null,null,null,null,null,null,null,null,null,null,null,null,null,null,null,null,null,null,null,null,null,null,"\"-Ministerio de Hacienda, Órgano de Normalización Técnica, Edificio Mira, Zapote. 300 Oeste de Casa Presidencial-Autoria Ing. Nathalie Venegas Delgado-\"",null,null,null,null,null,null,null,null,null,null,null,null,null,null,null,null,null,null,null,null,null,null,null,null,null,null,null,null,null,null,null,null,null,null,null,null,"\"-Ministerio de Hacienda, Órgano de Normalización Técnica, Edificio Mira, Zapote. 300 Oeste de Casa Presidencial-Autoria Ing. Nathalie Venegas Delgado-\"",null,null,null,null,null,null,null,null,null,null,null,null,null,null,null,null,null,null,null,null,null,null,null,null,null,null,null,null,null,null,null,null,null,null,null,null,"\"-Ministerio de Hacienda, Órgano de Normalización Técnica, Edificio Mira, Zapote. 300 Oeste de Casa Presidencial-Autoria Ing. Nathalie Venegas Delgado-\"",null,null,null,null,null,null,null,null,null,null,null,null,null,null,null,null,null,null,null,null,null,null,null,null,null,null,null,null,null,null,null,null,null,null,null,null,"\"-Ministerio de Hacienda, Órgano de Normalización Técnica, Edificio Mira, Zapote. 300 Oeste de Casa Presidencial-Autoria Ing. Nathalie Venegas Delgado-\"",null,null,null,null,null,null,null,null,null,null,null,null,null,null,null,null,null,null,null,null,null,null,null,null,null,null,null,null,null,null,null,null,null,null,null,null,"\"-Ministerio de Hacienda, Órgano de Normalización Técnica, Edificio Mira, Zapote. 300 Oeste de Casa Presidencial-Autoria Ing. Nathalie Venegas Delgado-\"",null,null,null,null,null,null,null,null,null,null,null,null,null,null,null,null,null,null,null,null,null,null,null,null,null,null,null,null,null,null,null,null,null,null,null,null,"\"-Ministerio de Hacienda, Órgano de Normalización Técnica, Edificio Mira, Zapote. 300 Oeste de Casa Presidencial-Autoria Ing. Nathalie Venegas Delgado-\"",null,null,null,null,null,null,null,null,null,null,null,null,null,null,null,null,null,null,null,null,null,null,null,null,null,null,null,null,null,null,null,null,null,null,null,null,"\"-Ministerio de Hacienda, Órgano de Normalización Técnica, Edificio Mira, Zapote. 300 Oeste de Casa Presidencial-Autoria Ing. Nathalie Venegas Delgado-\"",null,null,null,null,null,null,null,null,null,null,null,null,null,null,null,null,null,null,null,null,null,null,null,null,null,null,null,null,null,null,null,null,null,null,null,null,"\"-Ministerio de Hacienda, Órgano de Normalización Técnica, Edificio Mira, Zapote. 300 Oeste de Casa Presidencial-Autoria Ing. Nathalie Venegas Delgado-\"",null,null,null,null,null,null,null,null,null,null,null,null,null,null,null,null,null,null,null,null,null,null,null,null,null,null,null,null,null,null,null,null,null,null,null,null,"\"-Ministerio de Hacienda, Órgano de Normalización Técnica, Edificio Mira, Zapote. 300 Oeste de Casa Presidencial-Autoria Ing. Nathalie Venegas Delgado-\"",null,null,null,null,null,null,null,null,null,null,null,null,null,null,null,null,null,null,null,null,null,null,null,null,null,null,null,null,null,null,null,null,null,null,null,null,"\"-Ministerio de Hacienda, Órgano de Normalización Técnica, Edificio Mira, Zapote. 300 Oeste de Casa Presidencial-Autoria Ing. Nathalie Venegas Delgado-\"",null,null,null,null,null,null,null,null,null,null,null,null,null,null,null,null,null,null,null,null,null,null,null,null,null,null,null,null,null,null,null,null,null,null,null,null,"\"-Ministerio de Hacienda, Órgano de Normalización Técnica, Edificio Mira, Zapote. 300 Oeste de Casa Presidencial-Autoria Ing. Nathalie Venegas Delgado-\"",null,null,null,null,null,null,null,null,null,null,null,null,null,null,null,null,null,null,null,null,null,null,null,null,null,null,null,null,null,null,null,null,null,null,null,null,"\"-Ministerio de Hacienda, Órgano de Normalización Técnica, Edificio Mira, Zapote. 300 Oeste de Casa Presidencial-Autoria Ing. Nathalie Venegas Delgado-\"",null,null,null,null,null,null,null,null,null,null,null,null,null,null,null,null,null,null,null,null,null,null,null,null,null,null,null,null,null,null,null,null,null,null,null,null,"\"-Ministerio de Hacienda, Órgano de Normalización Técnica, Edificio Mira, Zapote. 300 Oeste de Casa Presidencial-Autoria Ing. Nathalie Venegas Delgado-\"",null,null,null,null,null,null,null,null,null,null,null,null,null,null,null,null,null,null,null,null,null,null,null,null,null,null,null,null,null,null,null,null,null,null,null,null,"\"-Ministerio de Hacienda, Órgano de Normalización Técnica, Edificio Mira, Zapote. 300 Oeste de Casa Presidencial-Autoria Ing. Nathalie Venegas Delgado-\"",null,null,null,null,null,null,null,null,null,null,null,null,null,null,null,null,null,null,null,null,null,null,null,null,null,null,null,null,null,null,null,null,null,null,null,null,"\"-Ministerio de Hacienda, Órgano de Normalización Técnica, Edificio Mira, Zapote. 300 Oeste de Casa Presidencial-Autoria Ing. Nathalie Venegas Delgado-\"",null,null,null,null,null,null,null,null,null,null,null,null,null,null,null,null,null,null,null,null,null,null,null,null,null,null,null,null,null,null,null,null,null,null,null,null,"\"-Ministerio de Hacienda, Órgano de Normalización Técnica, Edificio Mira, Zapote. 300 Oeste de Casa Presidencial-Autoria Ing. Nathalie Venegas Delgado-\"",null,null,null,null,null,null,null,null,null,null,null,null,null,null,null,null,null,null,null,null,null,null,null,null,null,null,null,null,null,null,null,null,null,null,null,null,"\"-Ministerio de Hacienda, Órgano de Normalización Técnica, Edificio Mira, Zapote. 300 Oeste de Casa Presidencial-Autoria Ing. Nathalie Venegas Delgado-\"",null,null,null,null,null,null,null,null,null,null,null,null,null,null,null,null,null,null,null,null,null,null,null,null,null,null,null,null,null,null,null,null,null,null,null,null,"\"-Ministerio de Hacienda, Órgano de Normalización Técnica, Edificio Mira, Zapote. 300 Oeste de Casa Presidencial-Autoria Ing. Nathalie Venegas Delgado-\"",null,null,null,null,null,null,null,null,null,null,null,null,null,null,null,null,null,null,null,null,null,null,null,null,null,null,null,null,null,null,null,null,null,null,null,null,"\"-Ministerio de Hacienda, Órgano de Normalización Técnica, Edificio Mira, Zapote. 300 Oeste de Casa Presidencial-Autoria Ing. Nathalie Venegas Delgado-\"",null,null,null,null,null,null,null,null,null,null,null,null,null,null,null,null,null,null,null,null,null,null,null,null,null,null,null,null,null,null,null,null,null,null,null,null,"\"-Ministerio de Hacienda, Órgano de Normalización Técnica, Edificio Mira, Zapote. 300 Oeste de Casa Presidencial-Autoria Ing. Nathalie Venegas Delgado-\"",null,null,null,null,null,null,null,null,null,null,null,null,null,null,null,null,null,null,null,null,null,null,null,null,null,null,null,null,null,null,null,null,null,null,null,null,"\"-Ministerio de Hacienda, Órgano de Normalización Técnica, Edificio Mira, Zapote. 300 Oeste de Casa Presidencial-Autoria Ing. Nathalie Venegas Delgado-\"",null,null,null,null,null,null,null,null,null,null,null,null,null,null,null,null,null,null,null,null,null,null,null,null,null,null,null,null,null,null,null,null,null,null,null,null,"\"-Ministerio de Hacienda, Órgano de Normalización Técnica, Edificio Mira, Zapote. 300 Oeste de Casa Presidencial-Autoria Ing. Nathalie Venegas Delgado-\"",null,null,null,null,null,null,null,null,null,null,null,null,null,null,null,null,null,null,null,null,null,null,null,null,null,null,null,null,null,null,null,null,null,null,null,null,"\"-Ministerio de Hacienda, Órgano de Normalización Técnica, Edificio Mira, Zapote. 300 Oeste de Casa Presidencial-Autoria Ing. Nathalie Venegas Delgado-\"",null,null,null,null,null,null,null,null,null,null,null,null,null,null,null,null,null,null,null,null,null,null,null,null,null,null,null,null,null,null,null,null,null,null,null,null,"\"-Ministerio de Hacienda, Órgano de Normalización Técnica, Edificio Mira, Zapote. 300 Oeste de Casa Presidencial-Autoria Ing. Nathalie Venegas Delgado-\"",null,null,null,null,null,null,null,null,null,null,null,null,null,null,null,null,null,null,null,null,null,null,null,null,null,null,null,null,null,null,null,null,null,null,null,null,"\"-Ministerio de Hacienda, Órgano de Normalización Técnica, Edificio Mira, Zapote. 300 Oeste de Casa Presidencial-Autoria Ing. Nathalie Venegas Delgado-\"",null,null,null,null,null,null,null,null,null,null,null,null,null,null,null,null,null,null,null,null,null,null,null,null,null,null,null,null,null,null,null,null,null,null,null,null,"\"-Ministerio de Hacienda, Órgano de Normalización Técnica, Edificio Mira, Zapote. 300 Oeste de Casa Presidencial-Autoria Ing. Nathalie Venegas Delgado-\"",null,null,null,null,null,null,null,null,null,null,null,null,null,null,null,null,null,null,null,null,null,null,null,null,null,null,null,null,null,null,null,null,null,null,null,null,"\"-Ministerio de Hacienda, Órgano de Normalización Técnica, Edificio Mira, Zapote. 300 Oeste de Casa Presidencial-Autoria Ing. Nathalie Venegas Delgado-\"",null,null,null,null,null,null,null,null,null,null,null,null,null,null,null,null,null,null,null,null,null,null,null,null,null,null,null,null,null,null,null,null,null,null,null,null,"\"-Ministerio de Hacienda, Órgano de Normalización Técnica, Edificio Mira, Zapote. 300 Oeste de Casa Presidencial-Autoria Ing. Nathalie Venegas Delgado-\"",null,null,null,null,null,null,null,null,null,null,null,null,null,null,null,null,null,null,null,null,null,null,null,null,null,null,null,null,null,null,null,null,null,null,null,null,"\"-Ministerio de Hacienda, Órgano de Normalización Técnica, Edificio Mira, Zapote. 300 Oeste de Casa Presidencial-Autoria Ing. Nathalie Venegas Delgado-\"",null,null,null,null,null,null,null,null,null,null,null,null,null,null,null,null,null,null,null,null,null,null,null,null,null,null,null,null,null,null,null,null,null,null,null,null,"\"-Ministerio de Hacienda, Órgano de Normalización Técnica, Edificio Mira, Zapote. 300 Oeste de Casa Presidencial-Autoria Ing. Nathalie Venegas Delgado-\"",null,null,null,null,null,null,null,null,null,null,null,null,null,null,null,null,null,null,null,null,null,null,null,null,null,null,null,null,null,null,null,null,null,null,null,null,"\"-Ministerio de Hacienda, Órgano de Normalización Técnica, Edificio Mira, Zapote. 300 Oeste de Casa Presidencial-Autoria Ing. Nathalie Venegas Delgado-\"",null,null,null,null,null,null,null,null,null,null,null,null,null,null,null,null,null,null,null,null,null,null,null,null,null,null,null,null,null,null,null,null,null,null,null,null,"\"-Ministerio de Hacienda, Órgano de Normalización Técnica, Edificio Mira, Zapote. 300 Oeste de Casa Presidencial-Autoria Ing. Nathalie Venegas Delgado-\"",null,null,null,null,null,null,null,null,null,null,null,null,null,null,null,null,null,null,null,null,null,null,null,null,null,null,null,null,null,null,null,null,null,null,null,null,"\"-Ministerio de Hacienda, Órgano de Normalización Técnica, Edificio Mira, Zapote. 300 Oeste de Casa Presidencial-Autoria Ing. Nathalie Venegas Delgado-\"",null,null,null,null,null,null,null,null,null,null,null,null,null,null,null,null,null,null,null,null,null,null,null,null,null,null,null,null,null,null,null,null,null,null,null,null,"\"-Ministerio de Hacienda, Órgano de Normalización Técnica, Edificio Mira, Zapote. 300 Oeste de Casa Presidencial-Autoria Ing. Nathalie Venegas Delgado-\"",null,null,null,null,null,null,null,null,null,null,null,null,null,null,null,null,null,null,null,null,null,null,null,null,null,null,null,null,null,null,null,null,null,null,null,null,"\"-Ministerio de Hacienda, Órgano de Normalización Técnica, Edificio Mira, Zapote. 300 Oeste de Casa Presidencial-Autoria Ing. Nathalie Venegas Delgado-\"",null,null,null,null,null,null,null,null,null,null,null,null,null,null,null,null,null,null,null,null,null,null,null,null,null,null,null,null,null,null,null,null,null,null,null,null,"\"-Ministerio de Hacienda, Órgano de Normalización Técnica, Edificio Mira, Zapote. 300 Oeste de Casa Presidencial-Autoria Ing. Nathalie Venegas Delgado-\"",null,null,null,null,null,null,null,null,null,null,null,null,null,null,null,null,null,null,null,null,null,null,null,null,null,null,null,null,null,null,null,null,null,null,null,null,"\"-Ministerio de Hacienda, Órgano de Normalización Técnica, Edificio Mira, Zapote. 300 Oeste de Casa Presidencial-Autoria Ing. Nathalie Venegas Delgado-\"",null,null,null,null,null,null,null,null,null,null,null,null,null,null,null,null,null,null,null,null,null,null,null,null,null,null,null,null,null,null,null,null,null,null,null,null,"\"-Ministerio de Hacienda, Órgano de Normalización Técnica, Edificio Mira, Zapote. 300 Oeste de Casa Presidencial-Autoria Ing. Nathalie Venegas Delgado-\"",null,null,null,null,null,null,null,null,null,null,null,null,null,null,null,null,null,null,null,null,null,null,null,null,null,null,null,null,null,null,null,null,null,null,null,null,"\"-Ministerio de Hacienda, Órgano de Normalización Técnica, Edificio Mira, Zapote. 300 Oeste de Casa Presidencial-Autoria Ing. Nathalie Venegas Delgado-\"",null,null,null,null,null,null,null,null,null,null,null,null,null,null,null,null,null,null,null,null,null,null,null,null,null,null,null,null,null,null,null,null,null,null,null,null,"\"-Ministerio de Hacienda, Órgano de Normalización Técnica, Edificio Mira, Zapote. 300 Oeste de Casa Presidencial-Autoria Ing. Nathalie Venegas Delgado-\"",null,null,null,null,null,null,null,null,null,null,null,null,null,null,null,null,null,null,null,null,null,null,null,null,null,null,null,null,null,null,null,null,null,null,null,null,"\"-Ministerio de Hacienda, Órgano de Normalización Técnica, Edificio Mira, Zapote. 300 Oeste de Casa Presidencial-Autoria Ing. Nathalie Venegas Delgado-\"",null,null,null,null,null,null,null,null,null,null,null,null,null,null,null,null,null,null,null,null,null,null,null,null,null,null,null,null,null,null,null,null,null,null,null,null,"\"-Ministerio de Hacienda, Órgano de Normalización Técnica, Edificio Mira, Zapote. 300 Oeste de Casa Presidencial-Autoria Ing. Nathalie Venegas Delgado-\"",null,null,null,null,null,null,null,null,null,null,null,null,null,null,null,null,null,null,null,null,null,null,null,null,null,null,null,null,null,null,null,null,null,null,null,null,"\"-Ministerio de Hacienda, Órgano de Normalización Técnica, Edificio Mira, Zapote. 300 Oeste de Casa Presidencial-Autoria Ing. Nathalie Venegas Delgado-\"",null,null,null,null,null,null,null,null,null,null,null,null,null,null,null,null,null,null,null,null,null,null,null,null,null,null,null,null,null,null,null,null,null,null,null,null,"\"-Ministerio de Hacienda, Órgano de Normalización Técnica, Edificio Mira, Zapote. 300 Oeste de Casa Presidencial-Autoria Ing. Nathalie Venegas Delgado-\"",null,null,null,null,null,null,null,null,null,null,null,null,null,null,null,null,null,null,null,null,null,null,null,null,null,null,null,null,null,null,null,null,null,null,null,null,"\"-Ministerio de Hacienda, Órgano de Normalización Técnica, Edificio Mira, Zapote. 300 Oeste de Casa Presidencial-Autoria Ing. Nathalie Venegas Delgado-\"",null,null,null,null,null,null,null,null,null,null,null,null,null,null,null,null,null,null,null,null,null,null,null,null,null,null,null,null,null,null,null,null,null,null,null,null,"\"-Ministerio de Hacienda, Órgano de Normalización Técnica, Edificio Mira, Zapote. 300 Oeste de Casa Presidencial-Autoria Ing. Nathalie Venegas Delgado-\"",null,null,null,null,null,null,null,null,null,null,null,null,null,null,null,null,null,null,null,null,null,null,null,null,null,null,null,null,null,null,null,null,null,null,null,null,"\"-Ministerio de Hacienda, Órgano de Normalización Técnica, Edificio Mira, Zapote. 300 Oeste de Casa Presidencial-Autoria Ing. Nathalie Venegas Delgado-\"",null,null,null,null,null,null,null,null,null,null,null,null,null,null,null,null,null,null,null,null,null,null,null,null,null,null,null,null,null,null,null,null,null,null,null,null,"\"-Ministerio de Hacienda, Órgano de Normalización Técnica, Edificio Mira, Zapote. 300 Oeste de Casa Presidencial-Autoria Ing. Nathalie Venegas Delgado-\"",null,null,null,null,null,null,null,null,null,null,null,null,null,null,null,null,null,null,null,null,null,null,null,null,null,null,null,null,null,null,null,null,null,null,null,null,"\"-Ministerio de Hacienda, Órgano de Normalización Técnica, Edificio Mira, Zapote. 300 Oeste de Casa Presidencial-Autoria Ing. Nathalie Venegas Delgado-\"",null,null,null,null,null,null,null,null,null,null,null,null,null,null,null,null,null,null,null,null,null,null,null,null,null,null,null,null,null,null,null,null,null,null,null,null,"\"-Ministerio de Hacienda, Órgano de Normalización Técnica, Edificio Mira, Zapote. 300 Oeste de Casa Presidencial-Autoria Ing. Nathalie Venegas Delgado-\"",null,null,null,null,null,null,null,null,null,null,null,null,null,null,null,null,null,null,null,null,null,null,null,null,null,null,null,null,null,null,null,null,null,null,null,null,"\"-Ministerio de Hacienda, Órgano de Normalización Técnica, Edificio Mira, Zapote. 300 Oeste de Casa Presidencial-Autoria Ing. Nathalie Venegas Delgado-\"",null,null,null,null,null,null,null,null,null,null,null,null,null,null,null,null,null,null,null,null,null,null,null,null,null,null,null,null,null,null,null,null,null,null,null,null,"\"-Ministerio de Hacienda, Órgano de Normalización Técnica, Edificio Mira, Zapote. 300 Oeste de Casa Presidencial-Autoria Ing. Nathalie Venegas Delgado-\"",null,null,null,null,null,null,null,null,null,null,null,null,null,null,null,null,null,null,null,null,null,null,null,null,null,null,null,null,null,null,null,null,null,null,null,null,"\"-Ministerio de Hacienda, Órgano de Normalización Técnica, Edificio Mira, Zapote. 300 Oeste de Casa Presidencial-Autoria Ing. Nathalie Venegas Delgado-\"",null,null,null,null,null,null,null,null,null,null,null,null,null,null,null,null,null,null,null,null,null,null,null,null,null,null,null,null,null,null,null,null,null,null,null,null,"\"-Ministerio de Hacienda, Órgano de Normalización Técnica, Edificio Mira, Zapote. 300 Oeste de Casa Presidencial-Autoria Ing. Nathalie Venegas Delgado-\"",null,null,null,null,null,null,null,null,null,null,null,null,null,null,null,null,null,null,null,null,null,null,null,null,null,null,null,null,null,null,null,null,null,null,null,null,"\"-Ministerio de Hacienda, Órgano de Normalización Técnica, Edificio Mira, Zapote. 300 Oeste de Casa Presidencial-Autoria Ing. Nathalie Venegas Delgado-\"",null,null,null,null,null,null,null,null,null,null,null,null,null,null,null,null,null,null,null,null,null,null,null,null,null,null,null,null,null,null,null,null,null,null,null,null,"\"-Ministerio de Hacienda, Órgano de Normalización Técnica, Edificio Mira, Zapote. 300 Oeste de Casa Presidencial-Autoria Ing. Nathalie Venegas Delgado-\"",null,null,null,null,null,null,null,null,null,null,null,null,null,null,null,null,null,null,null,null,null,null,null,null,null,null,null,null,null,null,null,null,null,null,null,null,"\"-Ministerio de Hacienda, Órgano de Normalización Técnica, Edificio Mira, Zapote. 300 Oeste de Casa Presidencial-Autoria Ing. Nathalie Venegas Delgado-\"",null,null,null,null,null,null,null,null,null,null,null,null,null,null,null,null,null,null,null,null,null,null,null,null,null,null,null,null,null,null,null,null,null,null,null,null,"\"-Ministerio de Hacienda, Órgano de Normalización Técnica, Edificio Mira, Zapote. 300 Oeste de Casa Presidencial-Autoria Ing. Nathalie Venegas Delgado-\"",null,null,null,null,null,null,null,null,null,null,null,null,null,null,null,null,null,null,null,null,null,null,null,null,null,null,null,null,null,null,null,null,null,null,null,null,"\"-Ministerio de Hacienda, Órgano de Normalización Técnica, Edificio Mira, Zapote. 300 Oeste de Casa Presidencial-Autoria Ing. Nathalie Venegas Delgado-\"",null,null,null,null,null,null,null,null,null,null,null,null,null,null,null,null,null,null,null,null,null,null,null,null,null,null,null,null,null,null,null,null,null,null,null,null,"\"-Ministerio de Hacienda, Órgano de Normalización Técnica, Edificio Mira, Zapote. 300 Oeste de Casa Presidencial-Autoria Ing. Nathalie Venegas Delgado-\"",null,null,null,null,null,null,null,null,null,null,null,null,null,null,null,null,null,null,null,null,null,null,null,null,null,null,null,null,null,null,null,null,null,null,null,null,"\"-Ministerio de Hacienda, Órgano de Normalización Técnica, Edificio Mira, Zapote. 300 Oeste de Casa Presidencial-Autoria Ing. Nathalie Venegas Delgado-\"",null,null,null,null,null,null,null,null,null,null,null,null,null,null,null,null,null,null,null,null,null,null,null,null,null,null,null,null,null,null,null,null,null,null,null,null,"\"-Ministerio de Hacienda, Órgano de Normalización Técnica, Edificio Mira, Zapote. 300 Oeste de Casa Presidencial-Autoria Ing. Nathalie Venegas Delgado-\"",null,null,null,null,null,null,null,null,null,null,null,null,null,null,null,null,null,null,null,null,null,null,null,null,null,null,null,null,null,null,null,null,null,null,null,null,"\"-Ministerio de Hacienda, Órgano de Normalización Técnica, Edificio Mira, Zapote. 300 Oeste de Casa Presidencial-Autoria Ing. Nathalie Venegas Delgado-\"",null,null,null,null,null,null,null,null,null,null,null,null,null,null,null,null,null,null,null,null,null,null,null,null,null,null,null,null,null,null,null,null,null,null,null,null,"\"-Ministerio de Hacienda, Órgano de Normalización Técnica, Edificio Mira, Zapote. 300 Oeste de Casa Presidencial-Autoria Ing. Nathalie Venegas Delgado-\"",null,null,null,null,null,null,null,null,null,null,null,null,null,null,null,null,null,null,null,null,null,null,null,null,null,null,null,null,null,null,null,null,null,null,null,null,"\"-Ministerio de Hacienda, Órgano de Normalización Técnica, Edificio Mira, Zapote. 300 Oeste de Casa Presidencial-Autoria Ing. Nathalie Venegas Delgado-\"",null,null,null,null,null,null,null,null,null,null,null,null,null,null,null,null,null,null,null,null,null,null,null,null,null,null,null,null,null,null,null,null,null,null,null,null,"\"-Ministerio de Hacienda, Órgano de Normalización Técnica, Edificio Mira, Zapote. 300 Oeste de Casa Presidencial-Autoria Ing. Nathalie Venegas Delgado-\"",null,null,null,null,null,null,null,null,null,null,null,null,null,null,null,null,null,null,null,null,null,null,null,null,null,null,null,null,null,null,null,null,null,null,null,null,"\"-Ministerio de Hacienda, Órgano de Normalización Técnica, Edificio Mira, Zapote. 300 Oeste de Casa Presidencial-Autoria Ing. Nathalie Venegas Delgado-\"",null,null,null,null,null,null,null,null,null,null,null,null,null,null,null,null,null,null,null,null,null,null,null,null,null,null,null,null,null,null,null,null,null,null,null,null,"\"-Ministerio de Hacienda, Órgano de Normalización Técnica, Edificio Mira, Zapote. 300 Oeste de Casa Presidencial-Autoria Ing. Nathalie Venegas Delgado-\"",null,null,null,null,null,null,null,null,null,null,null,null,null,null,null,null,null,null,null,null,null,null,null,null,null,null,null,null,null,null,null,null,null,null,null,null,"\"-Ministerio de Hacienda, Órgano de Normalización Técnica, Edificio Mira, Zapote. 300 Oeste de Casa Presidencial-Autoria Ing. Nathalie Venegas Delgado-\"",null,null,null,null,null,null,null,null,null,null,null,null,null,null,null,null,null,null,null,null,null,null,null,null,null,null,null,null,null,null,null,null,null,null,null,null,"\"-Ministerio de Hacienda, Órgano de Normalización Técnica, Edificio Mira, Zapote. 300 Oeste de Casa Presidencial-Autoria Ing. Nathalie Venegas Delgado-\"",null,null,null,null,null,null,null,null,null,null,null,null,null,null,null,null,null,null,null,null,null,null,null,null,null,null,null,null,null,null,null,null,null,null,null,null,"\"-Ministerio de Hacienda, Órgano de Normalización Técnica, Edificio Mira, Zapote. 300 Oeste de Casa Presidencial-Autoria Ing. Nathalie Venegas Delgado-\"",null,null,null,null,null,null,null,null,null,null,null,null,null,null,null,null,null,null,null,null,null,null,null,null,null,null,null,null,null,null,null,null,null,null,null,null,"\"-Ministerio de Hacienda, Órgano de Normalización Técnica, Edificio Mira, Zapote. 300 Oeste de Casa Presidencial-Autoria Ing. Nathalie Venegas Delgado-\"",null,null,null,null,null,null,null,null,null,null,null,null,null,null,null,null,null,null,null,null,null,null,null,null,null,null,null,null,null,null,null,null,null,null,null,null,"\"-Ministerio de Hacienda, Órgano de Normalización Técnica, Edificio Mira, Zapote. 300 Oeste de Casa Presidencial-Autoria Ing. Nathalie Venegas Delgado-\"",null,null,null,null,null,null,null,null,null,null,null,null,null,null,null,null,null,null,null,null,null,null,null,null,null,null,null,null,null,null,null,null,null,null,null,null,"\"-Ministerio de Hacienda, Órgano de Normalización Técnica, Edificio Mira, Zapote. 300 Oeste de Casa Presidencial-Autoria Ing. Nathalie Venegas Delgado-\"",null,null,null,null,null,null,null,null,null,null,null,null,null,null,null,null,null,null,null,null,null,null,null,null,null,null,null,null,null,null,null,null,null,null,null,null,"\"-Ministerio de Hacienda, Órgano de Normalización Técnica, Edificio Mira, Zapote. 300 Oeste de Casa Presidencial-Autoria Ing. Nathalie Venegas Delgado-\"",null,null,null,null,null,null,null,null,null,null,null,null,null,null,null,null,null,null,null,null,null,null,null,null,null,null,null,null,null,null,null,null,null,null,null,null,"\"-Ministerio de Hacienda, Órgano de Normalización Técnica, Edificio Mira, Zapote. 300 Oeste de Casa Presidencial-Autoria Ing. Nathalie Venegas Delgado-\"",null,null,null,null,null,null,null,null,null,null,null,null,null,null,null,null,null,null,null,null,null,null,null,null,null,null,null,null,null,null,null,null,null,null,null,null,"\"-Ministerio de Hacienda, Órgano de Normalización Técnica, Edificio Mira, Zapote. 300 Oeste de Casa Presidencial-Autoria Ing. Nathalie Venegas Delgado-\"",null,null,null,null,null,null,null,null,null,null,null,null,null,null,null,null,null,null,null,null,null,null,null,null,null,null,null,null,null,null,null,null,null,null,null,null,"\"-Ministerio de Hacienda, Órgano de Normalización Técnica, Edificio Mira, Zapote. 300 Oeste de Casa Presidencial-Autoria Ing. Nathalie Venegas Delgado-\"",null,null,null,null,null,null,null,null,null,null,null,null,null,null,null,null,null,null,null,null,null,null,null,null,null,null,null,null,null,null,null,null,null,null,null,null,"\"-Ministerio de Hacienda, Órgano de Normalización Técnica, Edificio Mira, Zapote. 300 Oeste de Casa Presidencial-Autoria Ing. Nathalie Venegas Delgado-\"",null,null,null,null,null,null,null,null,null,null,null,null,null,null,null,null,null,null,null,null,null,null,null,null,null,null,null,null,null,null,null,null,null,null,null,null,"\"-Ministerio de Hacienda, Órgano de Normalización Técnica, Edificio Mira, Zapote. 300 Oeste de Casa Presidencial-Autoria Ing. Nathalie Venegas Delgado-\"",null,null,null,null,null,null,null,null,null,null,null,null,null,null,null,null,null,null,null,null,null,null,null,null,null,null,null,null,null,null,null,null,null,null,null,null,"\"-Ministerio de Hacienda, Órgano de Normalización Técnica, Edificio Mira, Zapote. 300 Oeste de Casa Presidencial-Autoria Ing. Nathalie Venegas Delgado-\"",null,null,null,null,null,null,null,null,null,null,null,null,null,null,null,null,null,null,null,null,null,null,null,null,null,null,null,null,null,null,null,null,null,null,null,null,"\"-Ministerio de Hacienda, Órgano de Normalización Técnica, Edificio Mira, Zapote. 300 Oeste de Casa Presidencial-Autoria Ing. Nathalie Venegas Delgado-\"",null,null,null,null,null,null,null,null,null,null,null,null,null,null,null,null,null,null,null,null,null,null,null,null,null,null,null,null,null,null,null,null,null,null,null,null,"\"-Ministerio de Hacienda, Órgano de Normalización Técnica, Edificio Mira, Zapote. 300 Oeste de Casa Presidencial-Autoria Ing. Nathalie Venegas Delgado-\"",null,null,null,null,null,null,null,null,null,null,null,null,null,null,null,null,null,null,null,null,null,null,null,null,null,null,null,null,null,null,null,null,null,null,null,null,"\"-Ministerio de Hacienda, Órgano de Normalización Técnica, Edificio Mira, Zapote. 300 Oeste de Casa Presidencial-Autoria Ing. Nathalie Venegas Delgado-\"",null,null,null,null,null,null,null,null,null,null,null,null,null,null,null,null,null,null,null,null,null,null,null,null,null,null,null,null,null,null,null,null,null,null,null,null,"\"-Ministerio de Hacienda, Órgano de Normalización Técnica, Edificio Mira, Zapote. 300 Oeste de Casa Presidencial-Autoria Ing. Nathalie Venegas Delgado-\"",null,null,null,null,null,null,null,null,null,null,null,null,null,null,null,null,null,null,null,null,null,null,null,null,null,null,null,null,null,null,null,null,null,null,null,null,"\"-Ministerio de Hacienda, Órgano de Normalización Técnica, Edificio Mira, Zapote. 300 Oeste de Casa Presidencial-Autoria Ing. Nathalie Venegas Delgado-\"",null,null,null,null,null,null,null,null,null,null,null,null,null,null,null,null,null,null,null,null,null,null,null,null,null,null,null,null,null,null,null,null,null,null,null,null,"\"-Ministerio de Hacienda, Órgano de Normalización Técnica, Edificio Mira, Zapote. 300 Oeste de Casa Presidencial-Autoria Ing. Nathalie Venegas Delgado-\"",null,null,null,null,null,null,null,null,null,null,null,null,null,null,null,null,null,null,null,null,null,null,null,null,null,null,null,null,null,null,null,null,null,null,null,null,"\"-Ministerio de Hacienda, Órgano de Normalización Técnica, Edificio Mira, Zapote. 300 Oeste de Casa Presidencial-Autoria Ing. Nathalie Venegas Delgado-\"",null,null,null,null,null,null,null,null,null,null,null,null,null,null,null,null,null,null,null,null,null,null,null,null,null,null,null,null,null,null,null,null,null,null,null,null,"\"-Ministerio de Hacienda, Órgano de Normalización Técnica, Edificio Mira, Zapote. 300 Oeste de Casa Presidencial-Autoria Ing. Nathalie Venegas Delgado-\"",null,null,null,null,null,null,null,null,null,null,null,null,null,null,null,null,null,null,null,null,null,null,null,null,null,null,null,null,null,null,null,null,null,null,null,null,"\"-Ministerio de Hacienda, Órgano de Normalización Técnica, Edificio Mira, Zapote. 300 Oeste de Casa Presidencial-Autoria Ing. Nathalie Venegas Delgado-\"",null,null,null,null,null,null,null,null,null,null,null,null,null,null,null,null,null,null,null,null,null,null,null,null,null,null,null,null,null,null,null,null,null,null,null,null,"\"-Ministerio de Hacienda, Órgano de Normalización Técnica, Edificio Mira, Zapote. 300 Oeste de Casa Presidencial-Autoria Ing. Nathalie Venegas Delgado-\"",null,null,null,null,null,null,null,null,null,null,null,null,null,null,null,null,null,null,null,null,null,null,null,null,null,null,null,null,null,null,null,null,null,null,null,null,"\"-Ministerio de Hacienda, Órgano de Normalización Técnica, Edificio Mira, Zapote. 300 Oeste de Casa Presidencial-Autoria Ing. Nathalie Venegas Delgado-\"",null,null,null,null,null,null,null,null,null,null,null,null,null,null,null,null,null,null,null,null,null,null,null,null,null,null,null,null,null,null,null,null,null,null,null,null,"\"-Ministerio de Hacienda, Órgano de Normalización Técnica, Edificio Mira, Zapote. 300 Oeste de Casa Presidencial-Autoria Ing. Nathalie Venegas Delgado-\"",null,null,null,null,null,null,null,null,null,null,null,null,null,null,null,null,null,null,null,null,null,null,null,null,null,null,null,null,null,null,null,null,null,null,null,null,"\"-Ministerio de Hacienda, Órgano de Normalización Técnica, Edificio Mira, Zapote. 300 Oeste de Casa Presidencial-Autoria Ing. Nathalie Venegas Delgado-\"",null,null,null,null,null,null,null,null,null,null,null,null,null,null,null,null,null,null,null,null,null,null,null,null,null,null,null,null,null,null,null,null,null,null,null,null,"\"-Ministerio de Hacienda, Órgano de Normalización Técnica, Edificio Mira, Zapote. 300 Oeste de Casa Presidencial-Autoria Ing. Nathalie Venegas Delgado-\"",null,null,null,null,null,null,null,null,null,null,null,null,null,null,null,null,null,null,null,null,null,null,null,null,null,null,null,null,null,null,null,null,null,null,null,null,"\"-Ministerio de Hacienda, Órgano de Normalización Técnica, Edificio Mira, Zapote. 300 Oeste de Casa Presidencial-Autoria Ing. Nathalie Venegas Delgado-\"",null,null,null,null,null,null,null,null,null,null,null,null,null,null,null,null,null,null,null,null,null,null,null,null,null,null,null,null,null,null,null,null,null,null,null,null,"\"-Ministerio de Hacienda, Órgano de Normalización Técnica, Edificio Mira, Zapote. 300 Oeste de Casa Presidencial-Autoria Ing. Nathalie Venegas Delgado-\"",null,null,null,null,null,null,null,null,null,null,null,null,null,null,null,null,null,null,null,null,null,null,null,null,null,null,null,null,null,null,null,null,null,null,null,null,"\"-Ministerio de Hacienda, Órgano de Normalización Técnica, Edificio Mira, Zapote. 300 Oeste de Casa Presidencial-Autoria Ing. Nathalie Venegas Delgado-\"",null,null,null,null,null,null,null,null,null,null,null,null,null,null,null,null,null,null,null,null,null,null,null,null,null,null,null,null,null,null,null,null,null,null,null,null,"\"-Ministerio de Hacienda, Órgano de Normalización Técnica, Edificio Mira, Zapote. 300 Oeste de Casa Presidencial-Autoria Ing. Nathalie Venegas Delgado-\"",null,null,null,null,null,null,null,null,null,null,null,null,null,null,null,null,null,null,null,null,null,null,null,null,null,null,null,null,null,null,null,null,null,null,null,null,"\"-Ministerio de Hacienda, Órgano de Normalización Técnica, Edificio Mira, Zapote. 300 Oeste de Casa Presidencial-Autoria Ing. Nathalie Venegas Delgado-\"",null,null,null,null,null,null,null,null,null,null,null,null,null,null,null,null,null,null,null,null,null,null,null,null,null,null,null,null,null,null,null,null,null,null,null,null,"\"-Ministerio de Hacienda, Órgano de Normalización Técnica, Edificio Mira, Zapote. 300 Oeste de Casa Presidencial-Autoria Ing. Nathalie Venegas Delgado-\"",null,null,null,null,null,null,null,null,null,null,null,null,null,null,null,null,null,null,null,null,null,null,null,null,null,null,null,null,null,null,null,null,null,null,null,null,"\"-Ministerio de Hacienda, Órgano de Normalización Técnica, Edificio Mira, Zapote. 300 Oeste de Casa Presidencial-Autoria Ing. Nathalie Venegas Delgado-\"",null,null,null,null,null,null,null,null,null,null,null,null,null,null,null,null,null,null,null,null,null,null,null,null,null,null,null,null,null,null,null,null,null,null,null,null,"\"-Ministerio de Hacienda, Órgano de Normalización Técnica, Edificio Mira, Zapote. 300 Oeste de Casa Presidencial-Autoria Ing. Nathalie Venegas Delgado-\"",null,null,null,null,null,null,null,null,null,null,null,null,null,null,null,null,null,null,null,null,null,null,null,null,null,null,null,null,null,null,null,null,null,null,null,null,"\"-Ministerio de Hacienda, Órgano de Normalización Técnica, Edificio Mira, Zapote. 300 Oeste de Casa Presidencial-Autoria Ing. Nathalie Venegas Delgado-\"",null,null,null,null,null,null,null,null,null,null,null,null,null,null,null,null,null,null,null,null,null,null,null,null,null,null,null,null,null,null,null,null,null,null,null,null,"\"-Ministerio de Hacienda, Órgano de Normalización Técnica, Edificio Mira, Zapote. 300 Oeste de Casa Presidencial-Autoria Ing. Nathalie Venegas Delgado-\"",null,null,null,null,null,null,null,null,null,null,null,null,null,null,null,null,null,null,null,null,null,null,null,null,null,null,null,null,null,null,null,null,null,null,null,null,"\"-Ministerio de Hacienda, Órgano de Normalización Técnica, Edificio Mira, Zapote. 300 Oeste de Casa Presidencial-Autoria Ing. Nathalie Venegas Delgado-\"",null,null,null,null,null,null,null,null,null,null,null,null,null,null,null,null,null,null,null,null,null,null,null,null,null,null,null,null,null,null,null,null,null,null,null,null,"\"-Ministerio de Hacienda, Órgano de Normalización Técnica, Edificio Mira, Zapote. 300 Oeste de Casa Presidencial-Autoria Ing. Nathalie Venegas Delgado-\"",null,null,null,null,null,null,null,null,null,null,null,null,null,null,null,null,null,null,null,null,null,null,null,null,null,null,null,null,null,null,null,null,null,null,null,null,"\"-Ministerio de Hacienda, Órgano de Normalización Técnica, Edificio Mira, Zapote. 300 Oeste de Casa Presidencial-Autoria Ing. Nathalie Venegas Delgado-\"",null,null,null,null,null,null,null,null,null,null,null,null,null,null,null,null,null,null,null,null,null,null,null,null,null,null,null,null,null,null,null,null,null,null,null,null,"\"-Ministerio de Hacienda, Órgano de Normalización Técnica, Edificio Mira, Zapote. 300 Oeste de Casa Presidencial-Autoria Ing. Nathalie Venegas Delgado-\"",null,null,null,null,null,null,null,null,null,null,null,null,null,null,null,null,null,null,null,null,null,null,null,null,null,null,null,null,null,null,null,null,null,null,null,null,"\"-Ministerio de Hacienda, Órgano de Normalización Técnica, Edificio Mira, Zapote. 300 Oeste de Casa Presidencial-Autoria Ing. Nathalie Venegas Delgado-\"",null,null,null,null,null,null,null,null,null,null,null,null,null,null,null,null,null,null,null,null,null,null,null,null,null,null,null,null,null,null,null,null,null,null,null,null,"\"-Ministerio de Hacienda, Órgano de Normalización Técnica, Edificio Mira, Zapote. 300 Oeste de Casa Presidencial-Autoria Ing. Nathalie Venegas Delgado-\"",null,null,null,null,null,null,null,null,null,null,null,null,null,null,null,null,null,null,null,null,null,null,null,null,null,null,null,null,null,null,null,null,null,null,null,null,"\"-Ministerio de Hacienda, Órgano de Normalización Técnica, Edificio Mira, Zapote. 300 Oeste de Casa Presidencial-Autoria Ing. Nathalie Venegas Delgado-\"",null,null,null,null,null,null,null,null,null,null,null,null,null,null,null,null,null,null,null,null,null,null,null,null,null,null,null,null,null,null,null,null,null,null,null,null,"\"-Ministerio de Hacienda, Órgano de Normalización Técnica, Edificio Mira, Zapote. 300 Oeste de Casa Presidencial-Autoria Ing. Nathalie Venegas Delgado-\"",null,null,null,null,null,null,null,null,null,null,null,null,null,null,null,null,null,null,null,null,null,null,null,null,null,null,null,null,null,null,null,null,null,null,null,null,"\"-Ministerio de Hacienda, Órgano de Normalización Técnica, Edificio Mira, Zapote. 300 Oeste de Casa Presidencial-Autoria Ing. Nathalie Venegas Delgado-\"",null,null,null,null,null,null,null,null,null,null,null,null,null,null,null,null,null,null,null,null,null,null,null,null,null,null,null,null,null,null,null,null,null,null,null,null,"\"-Ministerio de Hacienda, Órgano de Normalización Técnica, Edificio Mira, Zapote. 300 Oeste de Casa Presidencial-Autoria Ing. Nathalie Venegas Delgado-\"",null,null,null,null,null,null,null,null,null,null,null,null,null,null,null,null,null,null,null,null,null,null,null,null,null,null,null,null,null,null,null,null,null,null,null,null,"\"-Ministerio de Hacienda, Órgano de Normalización Técnica, Edificio Mira, Zapote. 300 Oeste de Casa Presidencial-Autoria Ing. Nathalie Venegas Delgado-\"",null,null,null,null,null,null,null,null,null,null,null,null,null,null,null,null,null,null,null,null,null,null,null,null,null,null,null,null,null,null,null,null,null,null,null,null,"\"-Ministerio de Hacienda, Órgano de Normalización Técnica, Edificio Mira, Zapote. 300 Oeste de Casa Presidencial-Autoria Ing. Nathalie Venegas Delgado-\"",null,null,null,null,null,null,null,null,null,null,null,null,null,null,null,null,null,null,null,null,null,null,null,null,null,null,null,null,null,null,null,null,null,null,null,null,"\"-Ministerio de Hacienda, Órgano de Normalización Técnica, Edificio Mira, Zapote. 300 Oeste de Casa Presidencial-Autoria Ing. Nathalie Venegas Delgado-\"",null,null,null,null,null,null,null,null,null,null,null,null,null,null,null,null,null,null,null,null,null,null,null,null,null,null,null,null,null,null,null,null,null,null,null,null,"\"-Ministerio de Hacienda, Órgano de Normalización Técnica, Edificio Mira, Zapote. 300 Oeste de Casa Presidencial-Autoria Ing. Nathalie Venegas Delgado-\"",null,null,null,null,null,null,null,null,null,null,null,null,null,null,null,null,null,null,null,null,null,null,null,null,null,null,null,null,null,null,null,null,null,null,null,null,"\"-Ministerio de Hacienda, Órgano de Normalización Técnica, Edificio Mira, Zapote. 300 Oeste de Casa Presidencial-Autoria Ing. Nathalie Venegas Delgado-\"",null,null,null,null,null,null,null,null,null,null,null,null,null,null,null,null,null,null,null,null,null,null,null,null,null,null,null,null,null,null,null,null,null,null,null,null,"\"-Ministerio de Hacienda, Órgano de Normalización Técnica, Edificio Mira, Zapote. 300 Oeste de Casa Presidencial-Autoria Ing. Nathalie Venegas Delgado-\"",null,null,null,null,null,null,null,null,null,null,null,null,null,null,null,null,null,null,null,null,null,null,null,null,null,null,null,null,null,null,null,null,null,null,null,null,"\"-Ministerio de Hacienda, Órgano de Normalización Técnica, Edificio Mira, Zapote. 300 Oeste de Casa Presidencial-Autoria Ing. Nathalie Venegas Delgado-\"",null,null,null,null,null,null,null,null,null,null,null,null,null,null,null,null,null,null,null,null,null,null,null,null,null,null,null,null,null,null,null,null,null,null,null,null,"\"-Ministerio de Hacienda, Órgano de Normalización Técnica, Edificio Mira, Zapote. 300 Oeste de Casa Presidencial-Autoria Ing. Nathalie Venegas Delgado-\"",null,null,null,null,null,null,null,null,null,null,null,null,null,null,null,null,null,null,null,null,null,null,null,null,null,null,null,null,null,null,null,null,null,null,null,null,"\"-Ministerio de Hacienda, Órgano de Normalización Técnica, Edificio Mira, Zapote. 300 Oeste de Casa Presidencial-Autoria Ing. Nathalie Venegas Delgado-\"",null,null,null,null,null,null,null,null,null,null,null,null,null,null,null,null,null,null,null,null,null,null,null,null,null,null,null,null,null,null,null,null,null,null,null,null,"\"-Ministerio de Hacienda, Órgano de Normalización Técnica, Edificio Mira, Zapote. 300 Oeste de Casa Presidencial-Autoria Ing. Nathalie Venegas Delgado-\"",null,null,null,null,null,null,null,null,null,null,null,null,null,null,null,null,null,null,null,null,null,null,null,null,null,null,null,null,null,null,null,null,null,null,null,null,"\"-Ministerio de Hacienda, Órgano de Normalización Técnica, Edificio Mira, Zapote. 300 Oeste de Casa Presidencial-Autoria Ing. Nathalie Venegas Delgado-\"",null,null,null,null,null,null,null,null,null,null,null,null,null,null,null,null,null,null,null,null,null,null,null,null,null,null,null,null,null,null,null,null,null,null,null,null,"\"-Ministerio de Hacienda, Órgano de Normalización Técnica, Edificio Mira, Zapote. 300 Oeste de Casa Presidencial-Autoria Ing. Nathalie Venegas Delgado-\"",null,null,null,null,null,null,null,null,null,null,null,null,null,null,null,null,null,null,null,null,null,null,null,null,null,null,null,null,null,null,null,null,null,null,null,null,"\"-Ministerio de Hacienda, Órgano de Normalización Técnica, Edificio Mira, Zapote. 300 Oeste de Casa Presidencial-Autoria Ing. Nathalie Venegas Delgado-\"",null,null,null,null,null,null,null,null,null,null,null,null,null,null,null,null,null,null,null,null,null,null,null,null,null,null,null,null,null,null,null,null,null,null,null,null,"\"-Ministerio de Hacienda, Órgano de Normalización Técnica, Edificio Mira, Zapote. 300 Oeste de Casa Presidencial-Autoria Ing. Nathalie Venegas Delgado-\"",null,null,null,null,null,null,null,null,null,null,null,null,null,null,null,null,null,null,null,null,null,null,null,null,null,null,null,null,null,null,null,null,null,null,null,null,"\"-Ministerio de Hacienda, Órgano de Normalización Técnica, Edificio Mira, Zapote. 300 Oeste de Casa Presidencial-Autoria Ing. Nathalie Venegas Delgado-\"",null,null,null,null,null,null,null,null,null,null,null,null,null,null,null,null,null,null,null,null,null,null,null,null,null,null,null,null,null,null,null,null,null,null,null,null,"\"-Ministerio de Hacienda, Órgano de Normalización Técnica, Edificio Mira, Zapote. 300 Oeste de Casa Presidencial-Autoria Ing. Nathalie Venegas Delgado-\"",null,null,null,null,null,null,null,null,null,null,null,null,null,null,null,null,null,null,null,null,null,null,null,null,null,null,null,null,null,null,null,null,null,null,null,null,"\"-Ministerio de Hacienda, Órgano de Normalización Técnica, Edificio Mira, Zapote. 300 Oeste de Casa Presidencial-Autoria Ing. Nathalie Venegas Delgado-\"",null,null,null,null,null,null,null,null,null,null,null,null,null,null,null,null,null,null,null,null,null,null,null,null,null,null,null,null,null,null,null,null,null,null,null,null,"\"-Ministerio de Hacienda, Órgano de Normalización Técnica, Edificio Mira, Zapote. 300 Oeste de Casa Presidencial-Autoria Ing. Nathalie Venegas Delgado-\"",null,null,null,null,null,null,null,null,null,null,null,null,null,null,null,null,null,null,null,null,null,null,null,null,null,null,null,null,null,null,null,null,null,null,null,null,"\"-Ministerio de Hacienda, Órgano de Normalización Técnica, Edificio Mira, Zapote. 300 Oeste de Casa Presidencial-Autoria Ing. Nathalie Venegas Delgado-\"",null,null,null,null,null,null,null,null,null,null,null,null,null,null,null,null,null,null,null,null,null,null,null,null,null,null,null,null,null,null,null,null,null,null,null,null,"\"-Ministerio de Hacienda, Órgano de Normalización Técnica, Edificio Mira, Zapote. 300 Oeste de Casa Presidencial-Autoria Ing. Nathalie Venegas Delgado-\"",null,null,null,null,null,null,null,null,null,null,null,null,null,null,null,null,null,null,null,null,null,null,null,null,null,null,null,null,null,null,null,null,null,null,null,null,"\"-Ministerio de Hacienda, Órgano de Normalización Técnica, Edificio Mira, Zapote. 300 Oeste de Casa Presidencial-Autoria Ing. Nathalie Venegas Delgado-\"",null,null,null,null,null,null,null,null,null,null,null,null,null,null,null,null,null,null,null,null,null,null,null,null,null,null,null,null,null,null,null,null,null,null,null,null,"\"-Ministerio de Hacienda, Órgano de Normalización Técnica, Edificio Mira, Zapote. 300 Oeste de Casa Presidencial-Autoria Ing. Nathalie Venegas Delgado-\"",null,null,null,null,null,null,null,null,null,null,null,null,null,null,null,null,null,null,null,null,null,null,null,null,null,null,null,null,null,null,null,null,null,null,null,null,"\"-Ministerio de Hacienda, Órgano de Normalización Técnica, Edificio Mira, Zapote. 300 Oeste de Casa Presidencial-Autoria Ing. Nathalie Venegas Delgado-\"",null,null,null,null,null,null,null,null,null,null,null,null,null,null,null,null,null,null,null,null,null,null,null,null,null,null,null,null,null,null,null,null,null,null,null,null,"\"-Ministerio de Hacienda, Órgano de Normalización Técnica, Edificio Mira, Zapote. 300 Oeste de Casa Presidencial-Autoria Ing. Nathalie Venegas Delgado-\"",null,null,null,null,null,null,null,null,null,null,null,null,null,null,null,null,null,null,null,null,null,null,null,null,null,null,null,null,null,null,null,null,null,null,null,null,"\"-Ministerio de Hacienda, Órgano de Normalización Técnica, Edificio Mira, Zapote. 300 Oeste de Casa Presidencial-Autoria Ing. Nathalie Venegas Delgado-\"",null,null,null,null,null,null,null,null,null,null,null,null,null,null,null,null,null,null,null,null,null,null,null,null,null,null,null,null,null,null,null,null,null,null,null,null,"\"-Ministerio de Hacienda, Órgano de Normalización Técnica, Edificio Mira, Zapote. 300 Oeste de Casa Presidencial-Autoria Ing. Nathalie Venegas Delgado-\"",null,null,null,null,null,null,null,null,null,null,null,null,null,null,null,null,null,null,null,null,null,null,null,null,null,null,null,null,null,null,null,null,null,null,null,null,"\"-Ministerio de Hacienda, Órgano de Normalización Técnica, Edificio Mira, Zapote. 300 Oeste de Casa Presidencial-Autoria Ing. Nathalie Venegas Delgado-\"",null,null,null,null,null,null,null,null,null,null,null,null,null,null,null,null,null,null,null,null,null,null,null,null,null,null,null,null,null,null,null,null,null,null,null,null,"\"-Ministerio de Hacienda, Órgano de Normalización Técnica, Edificio Mira, Zapote. 300 Oeste de Casa Presidencial-Autoria Ing. Nathalie Venegas Delgado-\"",null,null,null,null,null,null,null,null,null,null,null,null,null,null,null,null,null,null,null,null,null,null,null,null,null,null,null,null,null,null,null,null,null,null,null,null,"\"-Ministerio de Hacienda, Órgano de Normalización Técnica, Edificio Mira, Zapote. 300 Oeste de Casa Presidencial-Autoria Ing. Nathalie Venegas Delgado-\"",null,null,null,null,null,null,null,null,null,null,null,null,null,null,null,null,null,null,null,null,null,null,null,null,null,null,null,null,null,null,null,null,null,null,null,null,"\"-Ministerio de Hacienda, Órgano de Normalización Técnica, Edificio Mira, Zapote. 300 Oeste de Casa Presidencial-Autoria Ing. Nathalie Venegas Delgado-\"",null,null,null,null,null,null,null,null,null,null,null,null,null,null,null,null,null,null,null,null,null,null,null,null,null,null,null,null,null,null,null,null,null,null,null,null,"\"-Ministerio de Hacienda, Órgano de Normalización Técnica, Edificio Mira, Zapote. 300 Oeste de Casa Presidencial-Autoria Ing. Nathalie Venegas Delgado-\"",null,null,null,null,null,null,null,null,null,null,null,null,null,null,null,null,null,null,null,null,null,null,null,null,null,null,null,null,null,null,null,null,null,null,null,null,"\"-Ministerio de Hacienda, Órgano de Normalización Técnica, Edificio Mira, Zapote. 300 Oeste de Casa Presidencial-Autoria Ing. Nathalie Venegas Delgado-\"",null,null,null,null,null,null,null,null,null,null,null,null,null,null,null,null,null,null,null,null,null,null,null,null,null,null,null,null,null,null,null,null,null,null,null,null,"\"-Ministerio de Hacienda, Órgano de Normalización Técnica, Edificio Mira, Zapote. 300 Oeste de Casa Presidencial-Autoria Ing. Nathalie Venegas Delgado-\"",null,null,null,null,null,null,null,null,null,null,null,null,null,null,null,null,null,null,null,null,null,null,null,null,null,null,null,null,null,null,null,null,null,null,null,null,"\"-Ministerio de Hacienda, Órgano de Normalización Técnica, Edificio Mira, Zapote. 300 Oeste de Casa Presidencial-Autoria Ing. Nathalie Venegas Delgado-\"",null,null,null,null,null,null,null,null,null,null,null,null,null,null,null,null,null,null,null,null,null,null,null,null,null,null,null,null,null,null,null,null,null,null,null,null,"\"-Ministerio de Hacienda, Órgano de Normalización Técnica, Edificio Mira, Zapote. 300 Oeste de Casa Presidencial-Autoria Ing. Nathalie Venegas Delgado-\"",null,null,null,null,null,null,null,null,null,null,null,null,null,null,null,null,null,null,null,null,null,null,null,null,null,null,null,null,null,null,null,null,null,null,null,null,"\"-Ministerio de Hacienda, Órgano de Normalización Técnica, Edificio Mira, Zapote. 300 Oeste de Casa Presidencial-Autoria Ing. Nathalie Venegas Delgado-\"",null,null,null,null,null,null,null,null,null,null,null,null,null,null,null,null,null,null,null,null,null,null,null,null,null,null,null,null,null,null,null,null,null,null,null,null,"\"-Ministerio de Hacienda, Órgano de Normalización Técnica, Edificio Mira, Zapote. 300 Oeste de Casa Presidencial-Autoria Ing. Nathalie Venegas Delgado-\"",null,null,null,null,null,null,null,null,null,null,null,null,null,null,null,null,null,null,null,null,null,null,null,null,null,null,null,null,null,null,null,null,null,null,null,null,"\"-Ministerio de Hacienda, Órgano de Normalización Técnica, Edificio Mira, Zapote. 300 Oeste de Casa Presidencial-Autoria Ing. Nathalie Venegas Delgado-\"",null,null,null,null,null,null,null,null,null,null,null,null,null,null,null,null,null,null,null,null,null,null,null,null,null,null,null,null,null,null,null,null,null,null,null,null,"\"-Ministerio de Hacienda, Órgano de Normalización Técnica, Edificio Mira, Zapote. 300 Oeste de Casa Presidencial-Autoria Ing. Nathalie Venegas Delgado-\"",null,null,null,null,null,null,null,null,null,null,null,null,null,null,null,null,null,null,null,null,null,null,null,null,null,null,null,null,null,null,null,null,null,null,null,null,"\"-Ministerio de Hacienda, Órgano de Normalización Técnica, Edificio Mira, Zapote. 300 Oeste de Casa Presidencial-Autoria Ing. Nathalie Venegas Delgado-\"",null,null,null,null,null,null,null,null,null,null,null,null,null,null,null,null,null,null,null,null,null,null,null,null,null,null,null,null,null,null,null,null,null,null,null,null,"\"-Ministerio de Hacienda, Órgano de Normalización Técnica, Edificio Mira, Zapote. 300 Oeste de Casa Presidencial-Autoria Ing. Nathalie Venegas Delgado-\"",null,null,null,null,null,null,null,null,null,null,null,null,null,null,null,null,null,null,null,null,null,null,null,null,null,null,null,null,null,null,null,null,null,null,null,null,"\"-Ministerio de Hacienda, Órgano de Normalización Técnica, Edificio Mira, Zapote. 300 Oeste de Casa Presidencial-Autoria Ing. Nathalie Venegas Delgado-\"",null,null,null,null,null,null,null,null,null,null,null,null,null,null,null,null,null,null,null,null,null,null,null,null,null,null,null,null,null,null,null,null,null,null,null,null,"\"-Ministerio de Hacienda, Órgano de Normalización Técnica, Edificio Mira, Zapote. 300 Oeste de Casa Presidencial-Autoria Ing. Nathalie Venegas Delgado-\"",null,null,null,null,null,null,null,null,null,null,null,null,null,null,null,null,null,null,null,null,null,null,null,null,null,null,null,null,null,null,null,null,null,null,null,null,"\"-Ministerio de Hacienda, Órgano de Normalización Técnica, Edificio Mira, Zapote. 300 Oeste de Casa Presidencial-Autoria Ing. Nathalie Venegas Delgado-\"",null,null,null,null,null,null,null,null,null,null,null,null,null,null,null,null,null,null,null,null,null,null,null,null,null,null,null,null,null,null,null,null,null,null,null,null,"\"-Ministerio de Hacienda, Órgano de Normalización Técnica, Edificio Mira, Zapote. 300 Oeste de Casa Presidencial-Autoria Ing. Nathalie Venegas Delgado-\"",null,null,null,null,null,null,null,null,null,null,null,null,null,null,null,null,null,null,null,null,null,null,null,null,null,null,null,null,null,null,null,null,null,null,null,null,"\"-Ministerio de Hacienda, Órgano de Normalización Técnica, Edificio Mira, Zapote. 300 Oeste de Casa Presidencial-Autoria Ing. Nathalie Venegas Delgado-\"",null,null,null,null,null,null,null,null,null,null,null,null,null,null,null,null,null,null,null,null,null,null,null,null,null,null,null,null,null,null,null,null,null,null,null,null,"\"-Ministerio de Hacienda, Órgano de Normalización Técnica, Edificio Mira, Zapote. 300 Oeste de Casa Presidencial-Autoria Ing. Nathalie Venegas Delgado-\"",null,null,null,null,null,null,null,null,null,null,null,null,null,null,null,null,null,null,null,null,null,null,null,null,null,null,null,null,null,null,null,null,null,null,null,null,"\"-Ministerio de Hacienda, Órgano de Normalización Técnica, Edificio Mira, Zapote. 300 Oeste de Casa Presidencial-Autoria Ing. Nathalie Venegas Delgado-\"",null,null,null,null,null,null,null,null,null,null,null,null,null,null,null,null,null,null,null,null,null,null,null,null,null,null,null,null,null,null,null,null,null,null,null,null,"\"-Ministerio de Hacienda, Órgano de Normalización Técnica, Edificio Mira, Zapote. 300 Oeste de Casa Presidencial-Autoria Ing. Nathalie Venegas Delgado-\"",null,null,null,null,null,null,null,null,null,null,null,null,null,null,null,null,null,null,null,null,null,null,null,null,null,null,null,null,null,null,null,null,null,null,null,null,"\"-Ministerio de Hacienda, Órgano de Normalización Técnica, Edificio Mira, Zapote. 300 Oeste de Casa Presidencial-Autoria Ing. Nathalie Venegas Delgado-\"",null,null,null,null,null,null,null,null,null,null,null,null,null,null,null,null,null,null,null,null,null,null,null,null,null,null,null,null,null,null,null,null,null,null,null,null,"\"-Ministerio de Hacienda, Órgano de Normalización Técnica, Edificio Mira, Zapote. 300 Oeste de Casa Presidencial-Autoria Ing. Nathalie Venegas Delgado-\"",null,null,null,null,null,null,null,null,null,null,null,null,null,null,null,null,null,null,null,null,null,null,null,null,null,null,null,null,null,null,null,null,null,null,null,null,"\"-Ministerio de Hacienda, Órgano de Normalización Técnica, Edificio Mira, Zapote. 300 Oeste de Casa Presidencial-Autoria Ing. Nathalie Venegas Delgado-\"",null,null,null,null,null,null,null,null,null,null,null,null,null,null,null,null,null,null,null,null,null,null,null,null,null,null,null,null,null,null,null,null,null,null,null,null,"\"-Ministerio de Hacienda, Órgano de Normalización Técnica, Edificio Mira, Zapote. 300 Oeste de Casa Presidencial-Autoria Ing. Nathalie Venegas Delgado-\"",null,null,null,null,null,null,null,null,null,null,null,null,null,null,null,null,null,null,null,null,null,null,null,null,null,null,null,null,null,null,null,null,null,null,null,null,"\"-Ministerio de Hacienda, Órgano de Normalización Técnica, Edificio Mira, Zapote. 300 Oeste de Casa Presidencial-Autoria Ing. Nathalie Venegas Delgado-\"",null,null,null,null,null,null,null,null,null,null,null,null,null,null,null,null,null,null,null,null,null,null,null,null,null,null,null,null,null,null,null,null,null,null,null,null,"\"-Ministerio de Hacienda, Órgano de Normalización Técnica, Edificio Mira, Zapote. 300 Oeste de Casa Presidencial-Autoria Ing. Nathalie Venegas Delgado-\"",null,null,null,null,null,null,null,null,null,null,null,null,null,null,null,null,null,null,null,null,null,null,null,null,null,null,null,null,null,null,null,null,null,null,null,null,"\"-Ministerio de Hacienda, Órgano de Normalización Técnica, Edificio Mira, Zapote. 300 Oeste de Casa Presidencial-Autoria Ing. Nathalie Venegas Delgado-\"",null,null,null,null,null,null,null,null,null,null,null,null,null,null,null,null,null,null,null,null,null,null,null,null,null,null,null,null,null,null,null,null,null,null,null,null,"\"-Ministerio de Hacienda, Órgano de Normalización Técnica, Edificio Mira, Zapote. 300 Oeste de Casa Presidencial-Autoria Ing. Nathalie Venegas Delgado-\"",null,null,null,null,null,null,null,null,null,null,null,null,null,null,null,null,null,null,null,null,null,null,null,null,null,null,null,null,null,null,null,null,null,null,null,null,"\"-Ministerio de Hacienda, Órgano de Normalización Técnica, Edificio Mira, Zapote. 300 Oeste de Casa Presidencial-Autoria Ing. Nathalie Venegas Delgado-\"",null,null,null,null,null,null,null,null,null,null,null,null,null,null,null,null,null,null,null,null,null,null,null,null,null,null,null,null,null,null,null,null,null,null,null,null,"\"-Ministerio de Hacienda, Órgano de Normalización Técnica, Edificio Mira, Zapote. 300 Oeste de Casa Presidencial-Autoria Ing. Nathalie Venegas Delgado-\"",null,null,null,null,null,null,null,null,null,null,null,null,null,null,null,null,null,null,null,null,null,null,null,null,null,null,null,null,null,null,null,null,null,null,null,null,"\"-Ministerio de Hacienda, Órgano de Normalización Técnica, Edificio Mira, Zapote. 300 Oeste de Casa Presidencial-Autoria Ing. Nathalie Venegas Delgado-\"",null,null,null,null,null,null,null,null,null,null,null,null,null,null,null,null,null,null,null,null,null,null,null,null,null,null,null,null,null,null,null,null,null,null,null,null,"\"-Ministerio de Hacienda, Órgano de Normalización Técnica, Edificio Mira, Zapote. 300 Oeste de Casa Presidencial-Autoria Ing. Nathalie Venegas Delgado-\"",null,null,null,null,null,null,null,null,null,null,null,null,null,null,null,null,null,null,null,null,null,null,null,null,null,null,null,null,null,null,null,null,null,null,null,null,"\"-Ministerio de Hacienda, Órgano de Normalización Técnica, Edificio Mira, Zapote. 300 Oeste de Casa Presidencial-Autoria Ing. Nathalie Venegas Delgado-\"",null,null,null,null,null,null,null,null,null,null,null,null,null,null,null,null,null,null,null,null,null,null,null,null,null,null,null,null,null,null,null,null,null,null,null,null,"\"-Ministerio de Hacienda, Órgano de Normalización Técnica, Edificio Mira, Zapote. 300 Oeste de Casa Presidencial-Autoria Ing. Nathalie Venegas Delgado-\"",null,null,null,null,null,null,null,null,null,null,null,null,null,null,null,null,null,null,null,null,null,null,null,null,null,null,null,null,null,null,null,null,null,null,null,null,"\"-Ministerio de Hacienda, Órgano de Normalización Técnica, Edificio Mira, Zapote. 300 Oeste de Casa Presidencial-Autoria Ing. Nathalie Venegas Delgado-\"",null,null,null,null,null,null,null,null,null,null,null,null,null,null,null,null,null,null,null,null,null,null,null,null,null,null,null,null,null,null,null,null,null,null,null,null,"\"-Ministerio de Hacienda, Órgano de Normalización Técnica, Edificio Mira, Zapote. 300 Oeste de Casa Presidencial-Autoria Ing. Nathalie Venegas Delgado-\"",null,null,null,null,null,null,null,null,null,null,null,null,null,null,null,null,null,null,null,null,null,null,null,null,null,null,null,null,null,null,null,null,null,null,null,null,"\"-Ministerio de Hacienda, Órgano de Normalización Técnica, Edificio Mira, Zapote. 300 Oeste de Casa Presidencial-Autoria Ing. Nathalie Venegas Delgado-\"",null,null,null,null,null,null,null,null,null,null,null,null,null,null,null,null,null,null,null,null,null,null,null,null,null,null,null,null,null,null,null,null,null,null,null,null,"\"-Ministerio de Hacienda, Órgano de Normalización Técnica, Edificio Mira, Zapote. 300 Oeste de Casa Presidencial-Autoria Ing. Nathalie Venegas Delgado-\"",null,null,null,null,null,null,null,null,null,null,null,null,null,null,null,null,null,null,null,null,null,null,null,null,null,null,null,null,null,null,null,null,null,null,null,null,"\"-Ministerio de Hacienda, Órgano de Normalización Técnica, Edificio Mira, Zapote. 300 Oeste de Casa Presidencial-Autoria Ing. Nathalie Venegas Delgado-\"",null,null,null,null,null,null,null,null,null,null,null,null,null,null,null,null,null,null,null,null,null,null,null,null,null,null,null,null,null,null,null,null,null,null,null,null,"\"-Ministerio de Hacienda, Órgano de Normalización Técnica, Edificio Mira, Zapote. 300 Oeste de Casa Presidencial-Autoria Ing. Nathalie Venegas Delgado-\"",null,null,null,null,null,null,null,null,null,null,null,null,null,null,null,null,null,null,null,null,null,null,null,null,null,null,null,null,null,null,null,null,null,null,null,null,"\"-Ministerio de Hacienda, Órgano de Normalización Técnica, Edificio Mira, Zapote. 300 Oeste de Casa Presidencial-Autoria Ing. Nathalie Venegas Delgado-\"",null,null,null,null,null,null,null,null,null,null,null,null,null,null,null,null,null,null,null,null,null,null,null,null,null,null,null,null,null,null,null,null,null,null,null,null,"\"-Ministerio de Hacienda, Órgano de Normalización Técnica, Edificio Mira, Zapote. 300 Oeste de Casa Presidencial-Autoria Ing. Nathalie Venegas Delgado-\"",null,null,null,null,null,null,null,null,null,null,null,null,null,null,null,null,null,null,null,null,null,null,null,null,null,null,null,null,null,null,null,null,null,null,null,null,"\"-Ministerio de Hacienda, Órgano de Normalización Técnica, Edificio Mira, Zapote. 300 Oeste de Casa Presidencial-Autoria Ing. Nathalie Venegas Delgado-\"",null,null,null,null,null,null,null,null,null,null,null,null,null,null,null,null,null,null,null,null,null,null,null,null,null,null,null,null,null,null,null,null,null,null,null,null,"\"-Ministerio de Hacienda, Órgano de Normalización Técnica, Edificio Mira, Zapote. 300 Oeste de Casa Presidencial-Autoria Ing. Nathalie Venegas Delgado-\"",null,null,null,null,null,null,null,null,null,null,null,null,null,null,null,null,null,null,null,null,null,null,null,null,null,null,null,null,null,null,null,null,null,null,null,null,"\"-Ministerio de Hacienda, Órgano de Normalización Técnica, Edificio Mira, Zapote. 300 Oeste de Casa Presidencial-Autoria Ing. Nathalie Venegas Delgado-\"",null,null,null,null,null,null,null,null,null,null,null,null,null,null,null,null,null,null,null,null,null,null,null,null,null,null,null,null,null,null,null,null,null,null,null,null,"\"-Ministerio de Hacienda, Órgano de Normalización Técnica, Edificio Mira, Zapote. 300 Oeste de Casa Presidencial-Autoria Ing. Nathalie Venegas Delgado-\"",null,null,null,null,null,null,null,null,null,null,null,null,null,null,null,null,null,null,null,null,null,null,null,null,null,null,null,null,null,null,null,null,null,null,null,null,"\"-Ministerio de Hacienda, Órgano de Normalización Técnica, Edificio Mira, Zapote. 300 Oeste de Casa Presidencial-Autoria Ing. Nathalie Venegas Delgado-\"",null,null,null,null,null,null,null,null,null,null,null,null,null,null,null,null,null,null,null,null,null,null,null,null,null,null,null,null,null,null,null,null,null,null,null,null,"\"-Ministerio de Hacienda, Órgano de Normalización Técnica, Edificio Mira, Zapote. 300 Oeste de Casa Presidencial-Autoria Ing. Nathalie Venegas Delgado-\"",null,null,null,null,null,null,null,null,null,null,null,null,null,null,null,null,null,null,null,null,null,null,null,null,null,null,null,null,null,null,null,null,null,null,null,null,"\"-Ministerio de Hacienda, Órgano de Normalización Técnica, Edificio Mira, Zapote. 300 Oeste de Casa Presidencial-Autoria Ing. Nathalie Venegas Delgado-\"",null,null,null,null,null,null,null,null,null,null,null,null,null,null,null,null,null,null,null,null,null,null,null,null,null,null,null,null,null,null,null,null,null,null,null,null,"\"-Ministerio de Hacienda, Órgano de Normalización Técnica, Edificio Mira, Zapote. 300 Oeste de Casa Presidencial-Autoria Ing. Nathalie Venegas Delgado-\"",null,null,null,null,null,null,null,null,null,null,null,null,null,null,null,null,null,null,null,null,null,null,null,null,null,null,null,null,null,null,null,null,null,null,null,null,"\"-Ministerio de Hacienda, Órgano de Normalización Técnica, Edificio Mira, Zapote. 300 Oeste de Casa Presidencial-Autoria Ing. Nathalie Venegas Delgado-\"",null,null,null,null,null,null,null,null,null,null,null,null,null,null,null,null,null,null,null,null,null,null,null,null,null,null,null,null,null,null,null,null,null,null,null,null,"\"-Ministerio de Hacienda, Órgano de Normalización Técnica, Edificio Mira, Zapote. 300 Oeste de Casa Presidencial-Autoria Ing. Nathalie Venegas Delgado-\"",null,null,null,null,null,null,null,null,null,null,null,null,null,null,null,null,null,null,null,null,null,null,null,null,null,null,null,null,null,null,null,null,null,null,null,null,"\"-Ministerio de Hacienda, Órgano de Normalización Técnica, Edificio Mira, Zapote. 300 Oeste de Casa Presidencial-Autoria Ing. Nathalie Venegas Delgado-\"",null,null,null,null,null,null,null,null,null,null,null,null,null,null,null,null,null,null,null,null,null,null,null,null,null,null,null,null,null,null,null,null,null,null,null,null,"\"-Ministerio de Hacienda, Órgano de Normalización Técnica, Edificio Mira, Zapote. 300 Oeste de Casa Presidencial-Autoria Ing. Nathalie Venegas Delgado-\"",null,null,null,null,null,null,null,null,null,null,null,null,null,null,null,null,null,null,null,null,null,null,null,null,null,null,null,null,null,null,null,null,null,null,null,null,"\"-Ministerio de Hacienda, Órgano de Normalización Técnica, Edificio Mira, Zapote. 300 Oeste de Casa Presidencial-Autoria Ing. Nathalie Venegas Delgado-\"",null,null,null,null,null,null,null,null,null,null,null,null,null,null,null,null,null,null,null,null,null,null,null,null,null,null,null,null,null,null,null,null,null,null,null,null,"\"-Ministerio de Hacienda, Órgano de Normalización Técnica, Edificio Mira, Zapote. 300 Oeste de Casa Presidencial-Autoria Ing. Nathalie Venegas Delgado-\"",null,null,null,null,null,null,null,null,null,null,null,null,null,null,null,null,null,null,null,null,null,null,null,null,null,null,null,null,null,null,null,null,null,null,null,null,"\"-Ministerio de Hacienda, Órgano de Normalización Técnica, Edificio Mira, Zapote. 300 Oeste de Casa Presidencial-Autoria Ing. Nathalie Venegas Delgado-\"",null,null,null,null,null,null,null,null,null,null,null,null,null,null,null,null,null,null,null,null,null,null,null,null,null,null,null,null,null,null,null,null,null,null,null,null,"\"-Ministerio de Hacienda, Órgano de Normalización Técnica, Edificio Mira, Zapote. 300 Oeste de Casa Presidencial-Autoria Ing. Nathalie Venegas Delgado-\"",null,null,null,null,null,null,null,null,null,null,null,null,null,null,null,null,null,null,null,null,null,null,null,null,null,null,null,null,null,null,null,null,null,null,null,null,"\"-Ministerio de Hacienda, Órgano de Normalización Técnica, Edificio Mira, Zapote. 300 Oeste de Casa Presidencial-Autoria Ing. Nathalie Venegas Delgado-\"",null,null,null,null,null,null,null,null,null,null,null,null,null,null,null,null,null,null,null,null,null,null,null,null,null,null,null,null,null,null,null,null,null,null,null,null,"\"-Ministerio de Hacienda, Órgano de Normalización Técnica, Edificio Mira, Zapote. 300 Oeste de Casa Presidencial-Autoria Ing. Nathalie Venegas Delgado-\"",null,null,null,null,null,null,null,null,null,null,null,null,null,null,null,null,null,null,null,null,null,null,null,null,null,null,null,null,null,null,null,null,null,null,null,null,"\"-Ministerio de Hacienda, Órgano de Normalización Técnica, Edificio Mira, Zapote. 300 Oeste de Casa Presidencial-Autoria Ing. Nathalie Venegas Delgado-\"",null,null,null,null,null,null,null,null,null,null,null,null,null,null,null,null,null,null,null,null,null,null,null,null,null,null,null,null,null,null,null,null,null,null,null,null,"\"-Ministerio de Hacienda, Órgano de Normalización Técnica, Edificio Mira, Zapote. 300 Oeste de Casa Presidencial-Autoria Ing. Nathalie Venegas Delgado-\"",null,null,null,null,null,null,null,null,null,null,null,null,null,null,null,null,null,null,null,null,null,null,null,null,null,null,null,null,null,null,null,null,null,null,null,null,"\"-Ministerio de Hacienda, Órgano de Normalización Técnica, Edificio Mira, Zapote. 300 Oeste de Casa Presidencial-Autoria Ing. Nathalie Venegas Delgado-\"",null,null,null,null,null,null,null,null,null,null,null,null,null,null,null,null,null,null,null,null,null,null,null,null,null,null,null,null,null,null,null,null,null,null,null,null,"\"-Ministerio de Hacienda, Órgano de Normalización Técnica, Edificio Mira, Zapote. 300 Oeste de Casa Presidencial-Autoria Ing. Nathalie Venegas Delgado-\"",null,null,null,null,null,null,null,null,null,null,null,null,null,null,null,null,null,null,null,null,null,null,null,null,null,null,null,null,null,null,null,null,null,null,null,null,"\"-Ministerio de Hacienda, Órgano de Normalización Técnica, Edificio Mira, Zapote. 300 Oeste de Casa Presidencial-Autoria Ing. Nathalie Venegas Delgado-\"",null,null,null,null,null,null,null,null,null,null,null,null,null,null,null,null,null,null,null,null,null,null,null,null,null,null,null,null,null,null,null,null,null,null,null,null,"\"-Ministerio de Hacienda, Órgano de Normalización Técnica, Edificio Mira, Zapote. 300 Oeste de Casa Presidencial-Autoria Ing. Nathalie Venegas Delgado-\"",null,null,null,null,null,null,null,null,null,null,null,null,null,null,null,null,null,null,null,null,null,null,null,null,null,null,null,null,null,null,null,null,null,null,null,null,"\"-Ministerio de Hacienda, Órgano de Normalización Técnica, Edificio Mira, Zapote. 300 Oeste de Casa Presidencial-Autoria Ing. Nathalie Venegas Delgado-\"",null,null,null,null,null,null,null,null,null,null,null,null,null,null,null,null,null,null,null,null,null,null,null,null,null,null,null,null,null,null,null,null,null,null,null,null,"\"-Ministerio de Hacienda, Órgano de Normalización Técnica, Edificio Mira, Zapote. 300 Oeste de Casa Presidencial-Autoria Ing. Nathalie Venegas Delgado-\"",null,null,null,null,null,null,null,null,null,null,null,null,null,null,null,null,null,null,null,null,null,null,null,null,null,null,null,null,null,null,null,null,null,null,null,null,"\"-Ministerio de Hacienda, Órgano de Normalización Técnica, Edificio Mira, Zapote. 300 Oeste de Casa Presidencial-Autoria Ing. Nathalie Venegas Delgado-\"",null,null,null,null,null,null,null,null,null,null,null,null,null,null,null,null,null,null,null,null,null,null,null,null,null,null,null,null,null,null,null,null,null,null,null,null,"\"-Ministerio de Hacienda, Órgano de Normalización Técnica, Edificio Mira, Zapote. 300 Oeste de Casa Presidencial-Autoria Ing. Nathalie Venegas Delgado-\"",null,null,null,null,null,null,null,null,null,null,null,null,null,null,null,null,null,null,null,null,null,null,null,null,null,null,null,null,null,null,null,null,null,null,null,null,"\"-Ministerio de Hacienda, Órgano de Normalización Técnica, Edificio Mira, Zapote. 300 Oeste de Casa Presidencial-Autoria Ing. Nathalie Venegas Delgado-\"",null,null,null,null,null,null,null,null,null,null,null,null,null,null,null,null,null,null,null,null,null,null,null,null,null,null,null,null,null,null,null,null,null,null,null,null,"\"-Ministerio de Hacienda, Órgano de Normalización Técnica, Edificio Mira, Zapote. 300 Oeste de Casa Presidencial-Autoria Ing. Nathalie Venegas Delgado-\"",null,null,null,null,null,null,null,null,null,null,null,null,null,null,null,null,null,null,null,null,null,null,null,null,null,null,null,null,null,null,null,null,null,null,null,null,"\"-Ministerio de Hacienda, Órgano de Normalización Técnica, Edificio Mira, Zapote. 300 Oeste de Casa Presidencial-Autoria Ing. Nathalie Venegas Delgado-\"",null,null,null,null,null,null,null,null,null,null,null,null,null,null,null,null,null,null,null,null,null,null,null,null,null,null,null,null,null,null,null,null,null,null,null,null,"\"-Ministerio de Hacienda, Órgano de Normalización Técnica, Edificio Mira, Zapote. 300 Oeste de Casa Presidencial-Autoria Ing. Nathalie Venegas Delgado-\"",null,null,null,null,null,null,null,null,null,null,null,null,null,null,null,null,null,null,null,null,null,null,null,null,null,null,null,null,null,null,null,null,null,null,null,null,"\"-Ministerio de Hacienda, Órgano de Normalización Técnica, Edificio Mira, Zapote. 300 Oeste de Casa Presidencial-Autoria Ing. Nathalie Venegas Delgado-\"",null,null,null,null,null,null,null,null,null,null,null,null,null,null,null,null,null,null,null,null,null,null,null,null,null,null,null,null,null,null,null,null,null,null,null,null,"\"-Ministerio de Hacienda, Órgano de Normalización Técnica, Edificio Mira, Zapote. 300 Oeste de Casa Presidencial-Autoria Ing. Nathalie Venegas Delgado-\"",null,null,null,null,null,null,null,null,null,null,null,null,null,null,null,null,null,null,null,null,null,null,null,null,null,null,null,null,null,null,null,null,null,null,null,null,"\"-Ministerio de Hacienda, Órgano de Normalización Técnica, Edificio Mira, Zapote. 300 Oeste de Casa Presidencial-Autoria Ing. Nathalie Venegas Delgado-\"",null,null,null,null,null,null,null,null,null,null,null,null,null,null,null,null,null,null,null,null,null,null,null,null,null,null,null,null,null,null,null,null,null,null,null,null,"\"-Ministerio de Hacienda, Órgano de Normalización Técnica, Edificio Mira, Zapote. 300 Oeste de Casa Presidencial-Autoria Ing. Nathalie Venegas Delgado-\"",null,null,null,null,null,null,null,null,null,null,null,null,null,null,null,null,null,null,null,null,null,null,null,null,null,null,null,null,null,null,null,null,null,null,null,null,"\"-Ministerio de Hacienda, Órgano de Normalización Técnica, Edificio Mira, Zapote. 300 Oeste de Casa Presidencial-Autoria Ing. Nathalie Venegas Delgado-\"",null,null,null,null,null,null,null,null,null,null,null,null,null,null,null,null,null,null,null,null,null,null,null,null,null,null,null,null,null,null,null,null,null,null,null,null,"\"-Ministerio de Hacienda, Órgano de Normalización Técnica, Edificio Mira, Zapote. 300 Oeste de Casa Presidencial-Autoria Ing. Nathalie Venegas Delgado-\"",null,null,null,null,null,null,null,null,null,null,null,null,null,null,null,null,null,null,null,null,null,null,null,null,null,null,null,null,null,null,null,null,null,null,null,null,"\"-Ministerio de Hacienda, Órgano de Normalización Técnica, Edificio Mira, Zapote. 300 Oeste de Casa Presidencial-Autoria Ing. Nathalie Venegas Delgado-\"",null,null,null,null,null,null,null,null,null,null,null,null,null,null,null,null,null,null,null,null,null,null,null,null,null,null,null,null,null,null,null,null,null,null,null,null,"\"-Ministerio de Hacienda, Órgano de Normalización Técnica, Edificio Mira, Zapote. 300 Oeste de Casa Presidencial-Autoria Ing. Nathalie Venegas Delgado-\"",null,null,null,null,null,null,null,null,null,null,null,null,null,null,null,null,null,null,null,null,null,null,null,null,null,null,null,null,null,null,null,null,null,null,null,null,"\"-Ministerio de Hacienda, Órgano de Normalización Técnica, Edificio Mira, Zapote. 300 Oeste de Casa Presidencial-Autoria Ing. Nathalie Venegas Delgado-\"",null,null,null,null,null,null,null,null,null,null,null,null,null,null,null,null,null,null,null,null,null,null,null,null,null,null,null,null,null,null,null,null,null,null,null,null,"\"-Ministerio de Hacienda, Órgano de Normalización Técnica, Edificio Mira, Zapote. 300 Oeste de Casa Presidencial-Autoria Ing. Nathalie Venegas Delgado-\"",null,null,null,null,null,null,null,null,null,null,null,null,null,null,null,null,null,null,null,null,null,null,null,null,null,null,null,null,null,null,null,null,null,null,null,null,"\"-Ministerio de Hacienda, Órgano de Normalización Técnica, Edificio Mira, Zapote. 300 Oeste de Casa Presidencial-Autoria Ing. Nathalie Venegas Delgado-\"",null,null,null,null,null,null,null,null,null,null,null,null,null,null,null,null,null,null,null,null,null,null,null,null,null,null,null,null,null,null,null,null,null,null,null,null,"\"-Ministerio de Hacienda, Órgano de Normalización Técnica, Edificio Mira, Zapote. 300 Oeste de Casa Presidencial-Autoria Ing. Nathalie Venegas Delgado-\"",null,null,null,null,null,null,null,null,null,null,null,null,null,null,null,null,null,null,null,null,null,null,null,null,null,null,null,null,null,null,null,null,null,null,null,null,"\"-Ministerio de Hacienda, Órgano de Normalización Técnica, Edificio Mira, Zapote. 300 Oeste de Casa Presidencial-Autoria Ing. Nathalie Venegas Delgado-\"",null,null,null,null,null,null,null,null,null,null,null,null,null,null,null,null,null,null,null,null,null,null,null,null,null,null,null,null,null,null,null,null,null,null,null,null,"\"-Ministerio de Hacienda, Órgano de Normalización Técnica, Edificio Mira, Zapote. 300 Oeste de Casa Presidencial-Autoria Ing. Nathalie Venegas Delgado-\"",null,null,null,null,null,null,null,null,null,null,null,null,null,null,null,null,null,null,null,null,null,null,null,null,null,null,null,null,null,null,null,null,null,null,null,null,"\"-Ministerio de Hacienda, Órgano de Normalización Técnica, Edificio Mira, Zapote. 300 Oeste de Casa Presidencial-Autoria Ing. Nathalie Venegas Delgado-\"",null,null,null,null,null,null,null,null,null,null,null,null,null,null,null,null,null,null,null,null,null,null,null,null,null,null,null,null,null,null,null,null,null,null,null,null,"\"-Ministerio de Hacienda, Órgano de Normalización Técnica, Edificio Mira, Zapote. 300 Oeste de Casa Presidencial-Autoria Ing. Nathalie Venegas Delgado-\"",null,null,null,null,null,null,null,null,null,null,null,null,null,null,null,null,null,null,null,null,null,null,null,null,null,null,null,null,null,null,null,null,null,null,null,null,"\"-Ministerio de Hacienda, Órgano de Normalización Técnica, Edificio Mira, Zapote. 300 Oeste de Casa Presidencial-Autoria Ing. Nathalie Venegas Delgado-\"",null,null,null,null,null,null,null,null,null,null,null,null,null,null,null,null,null,null,null,null,null,null,null,null,null,null,null,null,null,null,null,null,null,null,null,null,"\"-Ministerio de Hacienda, Órgano de Normalización Técnica, Edificio Mira, Zapote. 300 Oeste de Casa Presidencial-Autoria Ing. Nathalie Venegas Delgado-\"",null,null,null,null,null,null,null,null,null,null,null,null,null,null,null,null,null,null,null,null,null,null,null,null,null,null,null,null,null,null,null,null,null,null,null,null,"\"-Ministerio de Hacienda, Órgano de Normalización Técnica, Edificio Mira, Zapote. 300 Oeste de Casa Presidencial-Autoria Ing. Nathalie Venegas Delgado-\"",null,null,null,null,null,null,null,null,null,null,null,null,null,null,null,null,null,null,null,null,null,null,null,null,null,null,null,null,null,null,null,null,null,null,null,null,"\"-Ministerio de Hacienda, Órgano de Normalización Técnica, Edificio Mira, Zapote. 300 Oeste de Casa Presidencial-Autoria Ing. Nathalie Venegas Delgado-\"",null,null,null,null,null,null,null,null,null,null,null,null,null,null,null,null,null,null,null,null,null,null,null,null,null,null,null,null,null,null,null,null,null,null,null,null,"\"-Ministerio de Hacienda, Órgano de Normalización Técnica, Edificio Mira, Zapote. 300 Oeste de Casa Presidencial-Autoria Ing. Nathalie Venegas Delgado-\"",null,null,null,null,null,null,null,null,null,null,null,null,null,null,null,null,null,null,null,null,null,null,null,null,null,null,null,null,null,null,null,null,null,null,null,null,"\"-Ministerio de Hacienda, Órgano de Normalización Técnica, Edificio Mira, Zapote. 300 Oeste de Casa Presidencial-Autoria Ing. Nathalie Venegas Delgado-\"",null,null,null,null,null,null,null,null,null,null,null,null,null,null,null,null,null,null,null,null,null,null,null,null,null,null,null,null,null,null,null,null,null,null,null,null,"\"-Ministerio de Hacienda, Órgano de Normalización Técnica, Edificio Mira, Zapote. 300 Oeste de Casa Presidencial-Autoria Ing. Nathalie Venegas Delgado-\"",null,null,null,null,null,null,null,null,null,null,null,null,null,null,null,null,null,null,null,null,null,null,null,null,null,null,null,null,null,null,null,null,null,null,null,null,"\"-Ministerio de Hacienda, Órgano de Normalización Técnica, Edificio Mira, Zapote. 300 Oeste de Casa Presidencial-Autoria Ing. Nathalie Venegas Delgado-\"",null,null,null,null,null,null,null,null,null,null,null,null,null,null,null,null,null,null,null,null,null,null,null,null,null,null,null,null,null,null,null,null,null,null,null,null,"\"-Ministerio de Hacienda, Órgano de Normalización Técnica, Edificio Mira, Zapote. 300 Oeste de Casa Presidencial-Autoria Ing. Nathalie Venegas Delgado-\"",null,null,null,null,null,null,null,null,null,null,null,null,null,null,null,null,null,null,null,null,null,null,null,null,null,null,null,null,null,null,null,null,null,null,null,null,"\"-Ministerio de Hacienda, Órgano de Normalización Técnica, Edificio Mira, Zapote. 300 Oeste de Casa Presidencial-Autoria Ing. Nathalie Venegas Delgado-\"",null,null,null,null,null,null,null,null,null,null,null,null,null,null,null,null,null,null,null,null,null,null,null,null,null,null,null,null,null,null,null,null,null,null,null,null,"\"-Ministerio de Hacienda, Órgano de Normalización Técnica, Edificio Mira, Zapote. 300 Oeste de Casa Presidencial-Autoria Ing. Nathalie Venegas Delgado-\"",null,null,null,null,null,null,null,null,null,null,null,null,null,null,null,null,null,null,null,null,null,null,null,null,null,null,null,null,null,null,null,null,null,null,null,null,"\"-Ministerio de Hacienda, Órgano de Normalización Técnica, Edificio Mira, Zapote. 300 Oeste de Casa Presidencial-Autoria Ing. Nathalie Venegas Delgado-\"",null,null,null,null,null,null,null,null,null,null,null,null,null,null,null,null,null,null,null,null,null,null,null,null,null,null,null,null,null,null,null,null,null,null,null,null,"\"-Ministerio de Hacienda, Órgano de Normalización Técnica, Edificio Mira, Zapote. 300 Oeste de Casa Presidencial-Autoria Ing. Nathalie Venegas Delgado-\"",null,null,null,null,null,null,null,null,null,null,null,null,null,null,null,null,null,null,null,null,null,null,null,null,null,null,null,null,null,null,null,null,null,null,null,null,"\"-Ministerio de Hacienda, Órgano de Normalización Técnica, Edificio Mira, Zapote. 300 Oeste de Casa Presidencial-Autoria Ing. Nathalie Venegas Delgado-\"",null,null,null,null,null,null,null,null,null,null,null,null,null,null,null,null,null,null,null,null,null,null,null,null,null,null,null,null,null,null,null,null,null,null,null,null,"\"-Ministerio de Hacienda, Órgano de Normalización Técnica, Edificio Mira, Zapote. 300 Oeste de Casa Presidencial-Autoria Ing. Nathalie Venegas Delgado-\"",null,null,null,null,null,null,null,null,null,null,null,null,null,null,null,null,null,null,null,null,null,null,null,null,null,null,null,null,null,null,null,null,null,null,null,null,"\"-Ministerio de Hacienda, Órgano de Normalización Técnica, Edificio Mira, Zapote. 300 Oeste de Casa Presidencial-Autoria Ing. Nathalie Venegas Delgado-\"",null,null,null,null,null,null,null,null,null,null,null,null,null,null,null,null,null,null,null,null,null,null,null,null,null,null,null,null,null,null,null,null,null,null,null,null,"\"-Ministerio de Hacienda, Órgano de Normalización Técnica, Edificio Mira, Zapote. 300 Oeste de Casa Presidencial-Autoria Ing. Nathalie Venegas Delgado-\"",null,null,null,null,null,null,null,null,null,null,null,null,null,null,null,null,null,null,null,null,null,null,null,null,null,null,null,null,null,null,null,null,null,null,null,null,"\"-Ministerio de Hacienda, Órgano de Normalización Técnica, Edificio Mira, Zapote. 300 Oeste de Casa Presidencial-Autoria Ing. Nathalie Venegas Delgado-\"",null,null,null,null,null,null,null,null,null,null,null,null,null,null,null,null,null,null,null,null,null,null,null,null,null,null,null,null,null,null,null,null,null,null,null,null,"\"-Ministerio de Hacienda, Órgano de Normalización Técnica, Edificio Mira, Zapote. 300 Oeste de Casa Presidencial-Autoria Ing. Nathalie Venegas Delgado-\"",null,null,null,null,null,null,null,null,null,null,null,null,null,null,null,null,null,null,null,null,null,null,null,null,null,null,null,null,null,null,null,null,null,null,null,null,"\"-Ministerio de Hacienda, Órgano de Normalización Técnica, Edificio Mira, Zapote. 300 Oeste de Casa Presidencial-Autoria Ing. Nathalie Venegas Delgado-\"",null,null,null,null,null,null,null,null,null,null,null,null,null,null,null,null,null,null,null,null,null,null,null,null,null,null,null,null,null,null,null,null,null,null,null,null,"\"-Ministerio de Hacienda, Órgano de Normalización Técnica, Edificio Mira, Zapote. 300 Oeste de Casa Presidencial-Autoria Ing. Nathalie Venegas Delgado-\"",null,null,null,null,null,null,null,null,null,null,null,null,null,null,null,null,null,null,null,null,null,null,null,null,null,null,null,null,null,null,null,null,null,null,null,null,"\"-Ministerio de Hacienda, Órgano de Normalización Técnica, Edificio Mira, Zapote. 300 Oeste de Casa Presidencial-Autoria Ing. Nathalie Venegas Delgado-\"",null,null,null,null,null,null,null,null,null,null,null,null,null,null,null,null,null,null,null,null,null,null,null,null,null,null,null,null,null,null,null,null,null,null,null,null,"\"-Ministerio de Hacienda, Órgano de Normalización Técnica, Edificio Mira, Zapote. 300 Oeste de Casa Presidencial-Autoria Ing. Nathalie Venegas Delgado-\"",null,null,null,null,null,null,null,null,null,null,null,null,null,null,null,null,null,null,null,null,null,null,null,null,null,null,null,null,null,null,null,null,null,null,null,null,"\"-Ministerio de Hacienda, Órgano de Normalización Técnica, Edificio Mira, Zapote. 300 Oeste de Casa Presidencial-Autoria Ing. Nathalie Venegas Delgado-\"",null,null,null,null,null,null,null,null,null,null,null,null,null,null,null,null,null,null,null,null,null,null,null,null,null,null,null,null,null,null,null,null,null,null,null,null,"\"-Ministerio de Hacienda, Órgano de Normalización Técnica, Edificio Mira, Zapote. 300 Oeste de Casa Presidencial-Autoria Ing. Nathalie Venegas Delgado-\"",null,null,null,null,null,null,null,null,null,null,null,null,null,null,null,null,null,null,null,null,null,null,null,null,null,null,null,null,null,null,null,null,null,null,null,null,"\"-Ministerio de Hacienda, Órgano de Normalización Técnica, Edificio Mira, Zapote. 300 Oeste de Casa Presidencial-Autoria Ing. Nathalie Venegas Delgado-\"",null,null,null,null,null,null,null,null,null,null,null,null,null,null,null,null,null,null,null,null,null,null,null,null,null,null,null,null,null,null,null,null,null,null,null,null,"\"-Ministerio de Hacienda, Órgano de Normalización Técnica, Edificio Mira, Zapote. 300 Oeste de Casa Presidencial-Autoria Ing. Nathalie Venegas Delgado-\"",null,null,null,null,null,null,null,null,null,null,null,null,null,null,null,null,null,null,null,null,null,null,null,null,null,null,null,null,null,null,null,null,null,null,null,null,"\"-Ministerio de Hacienda, Órgano de Normalización Técnica, Edificio Mira, Zapote. 300 Oeste de Casa Presidencial-Autoria Ing. Nathalie Venegas Delgado-\"",null,null,null,null,null,null,null,null,null,null,null,null,null,null,null,null,null,null,null,null,null,null,null,null,null,null,null,null,null,null,null,null,null,null,null,null,"\"-Ministerio de Hacienda, Órgano de Normalización Técnica, Edificio Mira, Zapote. 300 Oeste de Casa Presidencial-Autoria Ing. Nathalie Venegas Delgado-\"",null,null,null,null,null,null,null,null,null,null,null,null,null,null,null,null,null,null,null,null,null,null,null,null,null,null,null,null,null,null,null,null,null,null,null,null,"\"-Ministerio de Hacienda, Órgano de Normalización Técnica, Edificio Mira, Zapote. 300 Oeste de Casa Presidencial-Autoria Ing. Nathalie Venegas Delgado-\"",null,null,null,null,null,null,null,null,null,null,null,null,null,null,null,null,null,null,null,null,null,null,null,null,null,null,null,null,null,null,null,null,null,null,null,null,"\"-Ministerio de Hacienda, Órgano de Normalización Técnica, Edificio Mira, Zapote. 300 Oeste de Casa Presidencial-Autoria Ing. Nathalie Venegas Delgado-\"",null,null,null,null,null,null,null,null,null,null,null,null,null,null,null,null,null,null,null,null,null,null,null,null,null,null,null,null,null,null,null,null,null,null,null,null,"\"-Ministerio de Hacienda, Órgano de Normalización Técnica, Edificio Mira, Zapote. 300 Oeste de Casa Presidencial-Autoria Ing. Nathalie Venegas Delgado-\"",null,null,null,null,null,null,null,null,null,null,null,null,null,null,null,null,null,null,null,null,null,null,null,null,null,null,null,null,null,null,null,null,null,null,null,null,"\"-Ministerio de Hacienda, Órgano de Normalización Técnica, Edificio Mira, Zapote. 300 Oeste de Casa Presidencial-Autoria Ing. Nathalie Venegas Delgado-\"",null,null,null,null,null,null,null,null,null,null,null,null,null,null,null,null,null,null,null,null,null,null,null,null,null,null,null,null,null,null,null,null,null,null,null,null,"\"-Ministerio de Hacienda, Órgano de Normalización Técnica, Edificio Mira, Zapote. 300 Oeste de Casa Presidencial-Autoria Ing. Nathalie Venegas Delgado-\"",null,null,null,null,null,null,null,null,null,null,null,null,null,null,null,null,null,null,null,null,null,null,null,null,null,null,null,null,null,null,null,null,null,null,null,null,"\"-Ministerio de Hacienda, Órgano de Normalización Técnica, Edificio Mira, Zapote. 300 Oeste de Casa Presidencial-Autoria Ing. Nathalie Venegas Delgado-\"",null,null,null,null,null,null,null,null,null,null,null,null,null,null,null,null,null,null,null,null,null,null,null,null,null,null,null,null,null,null,null,null,null,null,null,null,"\"-Ministerio de Hacienda, Órgano de Normalización Técnica, Edificio Mira, Zapote. 300 Oeste de Casa Presidencial-Autoria Ing. Nathalie Venegas Delgado-\"",null,null,null,null,null,null,null,null,null,null,null,null,null,null,null,null,null,null,null,null,null,null,null,null,null,null,null,null,null,null,null,null,null,null,null,null,"\"-Ministerio de Hacienda, Órgano de Normalización Técnica, Edificio Mira, Zapote. 300 Oeste de Casa Presidencial-Autoria Ing. Nathalie Venegas Delgado-\"",null,null,null,null,null,null,null,null,null,null,null,null,null,null,null,null,null,null,null,null,null,null,null,null,null,null,null,null,null,null,null,null,null,null,null,null,"\"-Ministerio de Hacienda, Órgano de Normalización Técnica, Edificio Mira, Zapote. 300 Oeste de Casa Presidencial-Autoria Ing. Nathalie Venegas Delgado-\"",null,null,null,null,null,null,null,null,null,null,null,null,null,null,null,null,null,null,null,null,null,null,null,null,null,null,null,null,null,null,null,null,null,null,null,null,"\"-Ministerio de Hacienda, Órgano de Normalización Técnica, Edificio Mira, Zapote. 300 Oeste de Casa Presidencial-Autoria Ing. Nathalie Venegas Delgado-\"",null,null,null,null,null,null,null,null,null,null,null,null,null,null,null,null,null,null,null,null,null,null,null,null,null,null,null,null,null,null,null,null,null,null,null,null,"\"-Ministerio de Hacienda, Órgano de Normalización Técnica, Edificio Mira, Zapote. 300 Oeste de Casa Presidencial-Autoria Ing. Nathalie Venegas Delgado-\"",null,null,null,null,null,null,null,null,null,null,null,null,null,null,null,null,null,null,null,null,null,null,null,null,null,null,null,null,null,null,null,null,null,null,null,null,"\"-Ministerio de Hacienda, Órgano de Normalización Técnica, Edificio Mira, Zapote. 300 Oeste de Casa Presidencial-Autoria Ing. Nathalie Venegas Delgado-\"",null,null,null,null,null,null,null,null,null,null,null,null,null,null,null,null,null,null,null,null,null,null,null,null,null,null,null,null,null,null,null,null,null,null,null,null,"\"-Ministerio de Hacienda, Órgano de Normalización Técnica, Edificio Mira, Zapote. 300 Oeste de Casa Presidencial-Autoria Ing. Nathalie Venegas Delgado-\"",null,null,null,null,null,null,null,null,null,null,null,null,null,null,null,null,null,null,null,null,null,null,null,null,null,null,null,null,null,null,null,null,null,null,null,null,"\"-Ministerio de Hacienda, Órgano de Normalización Técnica, Edificio Mira, Zapote. 300 Oeste de Casa Presidencial-Autoria Ing. Nathalie Venegas Delgado-\"",null,null,null,null,null,null,null,null,null,null,null,null,null,null,null,null,null,null,null,null,null,null,null,null,null,null,null,null,null,null,null,null,null,null,null,null,"\"-Ministerio de Hacienda, Órgano de Normalización Técnica, Edificio Mira, Zapote. 300 Oeste de Casa Presidencial-Autoria Ing. Nathalie Venegas Delgado-\"",null,null,null,null,null,null,null,null,null,null,null,null,null,null,null,null,null,null,null,null,null,null,null,null,null,null,null,null,null,null,null,null,null,null,null,null,"\"-Ministerio de Hacienda, Órgano de Normalización Técnica, Edificio Mira, Zapote. 300 Oeste de Casa Presidencial-Autoria Ing. Nathalie Venegas Delgado-\"",null,null,null,null,null,null,null,null,null,null,null,null,null,null,null,null,null,null,null,null,null,null,null,null,null,null,null,null,null,null,null,null,null,null,null,null,"\"-Ministerio de Hacienda, Órgano de Normalización Técnica, Edificio Mira, Zapote. 300 Oeste de Casa Presidencial-Autoria Ing. Nathalie Venegas Delgado-\"",null,null,null,null,null,null,null,null,null,null,null,null,null,null,null,null,null,null,null,null,null,null,null,null,null,null,null,null,null,null,null,null,null,null,null,null,"\"-Ministerio de Hacienda, Órgano de Normalización Técnica, Edificio Mira, Zapote. 300 Oeste de Casa Presidencial-Autoria Ing. Nathalie Venegas Delgado-\"",null,null,null,null,null,null,null,null,null,null,null,null,null,null,null,null,null,null,null,null,null,null,null,null,null,null,null,null,null,null,null,null,null,null,null,null,"\"-Ministerio de Hacienda, Órgano de Normalización Técnica, Edificio Mira, Zapote. 300 Oeste de Casa Presidencial-Autoria Ing. Nathalie Venegas Delgado-\"",null,null,null,null,null,null,null,null,null,null,null,null,null,null,null,null,null,null,null,null,null,null,null,null,null,null,null,null,null,null,null,null,null,null,null,null,"\"-Ministerio de Hacienda, Órgano de Normalización Técnica, Edificio Mira, Zapote. 300 Oeste de Casa Presidencial-Autoria Ing. Nathalie Venegas Delgado-\"",null,null,null,null,null,null,null,null,null,null,null,null,null,null,null,null,null,null,null,null,null,null,null,null,null,null,null,null,null,null,null,null,null,null,null,null,"\"-Ministerio de Hacienda, Órgano de Normalización Técnica, Edificio Mira, Zapote. 300 Oeste de Casa Presidencial-Autoria Ing. Nathalie Venegas Delgado-\"",null,null,null,null,null,null,null,null,null,null,null,null,null,null,null,null,null,null,null,null,null,null,null,null,null,null,null,null,null,null,null,null,null,null,null,null,"\"-Ministerio de Hacienda, Órgano de Normalización Técnica, Edificio Mira, Zapote. 300 Oeste de Casa Presidencial-Autoria Ing. Nathalie Venegas Delgado-\"",null,null,null,null,null,null,null,null,null,null,null,null,null,null,null,null,null,null,null,null,null,null,null,null,null,null,null,null,null,null,null,null,null,null,null,null,"\"-Ministerio de Hacienda, Órgano de Normalización Técnica, Edificio Mira, Zapote. 300 Oeste de Casa Presidencial-Autoria Ing. Nathalie Venegas Delgado-\"",null,null,null,null,null,null,null,null,null,null,null,null,null,null,null,null,null,null,null,null,null,null,null,null,null,null,null,null,null,null,null,null,null,null,null,null,"\"-Ministerio de Hacienda, Órgano de Normalización Técnica, Edificio Mira, Zapote. 300 Oeste de Casa Presidencial-Autoria Ing. Nathalie Venegas Delgado-\"",null,null,null,null,null,null,null,null,null,null,null,null,null,null,null,null,null,null,null,null,null,null,null,null,null,null,null,null,null,null,null,null,null,null,null,null,"\"-Ministerio de Hacienda, Órgano de Normalización Técnica, Edificio Mira, Zapote. 300 Oeste de Casa Presidencial-Autoria Ing. Nathalie Venegas Delgado-\"",null,null,null,null,null,null,null,null,null,null,null,null,null,null,null,null,null,null,null,null,null,null,null,null,null,null,null,null,null,null,null,null,null,null,null,null,"\"-Ministerio de Hacienda, Órgano de Normalización Técnica, Edificio Mira, Zapote. 300 Oeste de Casa Presidencial-Autoria Ing. Nathalie Venegas Delgado-\"",null,null,null,null,null,null,null,null,null,null,null,null,null,null,null,null,null,null,null,null,null,null,null,null,null,null,null,null,null,null,null,null,null,null,null,null,"\"-Ministerio de Hacienda, Órgano de Normalización Técnica, Edificio Mira, Zapote. 300 Oeste de Casa Presidencial-Autoria Ing. Nathalie Venegas Delgado-\"",null,null,null,null,null,null,null,null,null,null,null,null,null,null,null,null,null,null,null,null,null,null,null,null,null,null,null,null,null,null,null,null,null,null,null,null,"\"-Ministerio de Hacienda, Órgano de Normalización Técnica, Edificio Mira, Zapote. 300 Oeste de Casa Presidencial-Autoria Ing. Nathalie Venegas Delgado-\"",null,null,null,null,null,null,null,null,null,null,null,null,null,null,null,null,null,null,null,null,null,null,null,null,null,null,null,null,null,null,null,null,null,null,null,null,"\"-Ministerio de Hacienda, Órgano de Normalización Técnica, Edificio Mira, Zapote. 300 Oeste de Casa Presidencial-Autoria Ing. Nathalie Venegas Delgado-\"",null,null,null,null,null,null,null,null,null,null,null,null,null,null,null,null,null,null,null,null,null,null,null,null,null,null,null,null,null,null,null,null,null,null,null,null,"\"-Ministerio de Hacienda, Órgano de Normalización Técnica, Edificio Mira, Zapote. 300 Oeste de Casa Presidencial-Autoria Ing. Nathalie Venegas Delgado-\"",null,null,null,null,null,null,null,null,null,null,null,null,null,null,null,null,null,null,null,null,null,null,null,null,null,null,null,null,null,null,null,null,null,null,null,null,"\"-Ministerio de Hacienda, Órgano de Normalización Técnica, Edificio Mira, Zapote. 300 Oeste de Casa Presidencial-Autoria Ing. Nathalie Venegas Delgado-\"",null,null,null,null,null,null,null,null,null,null,null,null,null,null,null,null,null,null,null,null,null,null,null,null,null,null,null,null,null,null,null,null,null,null,null,null,"\"-Ministerio de Hacienda, Órgano de Normalización Técnica, Edificio Mira, Zapote. 300 Oeste de Casa Presidencial-Autoria Ing. Nathalie Venegas Delgado-\"",null,null,null,null,null,null,null,null,null,null,null,null,null,null,null,null,null,null,null,null,null,null,null,null,null,null,null,null,null,null,null,null,null,null,null,null,"\"-Ministerio de Hacienda, Órgano de Normalización Técnica, Edificio Mira, Zapote. 300 Oeste de Casa Presidencial-Autoria Ing. Nathalie Venegas Delgado-\"",null,null,null,null,null,null,null,null,null,null,null,null,null,null,null,null,null,null,null,null,null,null,null,null,null,null,null,null,null,null,null,null,null,null,null,null,"\"-Ministerio de Hacienda, Órgano de Normalización Técnica, Edificio Mira, Zapote. 300 Oeste de Casa Presidencial-Autoria Ing. Nathalie Venegas Delgado-\"",null,null,null,null,null,null,null,null,null,null,null,null,null,null,null,null,null,null,null,null,null,null,null,null,null,null,null,null,null,null,null,null,null,null,null,null,"\"-Ministerio de Hacienda, Órgano de Normalización Técnica, Edificio Mira, Zapote. 300 Oeste de Casa Presidencial-Autoria Ing. Nathalie Venegas Delgado-\"",null,null,null,null,null,null,null,null,null,null,null,null,null,null,null,null,null,null,null,null,null,null,null,null,null,null,null,null,null,null,null,null,null,null,null,null,"\"-Ministerio de Hacienda, Órgano de Normalización Técnica, Edificio Mira, Zapote. 300 Oeste de Casa Presidencial-Autoria Ing. Nathalie Venegas Delgado-\"",null,null,null,null,null,null,null,null,null,null,null,null,null,null,null,null,null,null,null,null,null,null,null,null,null,null,null,null,null,null,null,null,null,null,null,null,"\"-Ministerio de Hacienda, Órgano de Normalización Técnica, Edificio Mira, Zapote. 300 Oeste de Casa Presidencial-Autoria Ing. Nathalie Venegas Delgado-\"",null,null,null,null,null,null,null,null,null,null,null,null,null,null,null,null,null,null,null,null,null,null,null,null,null,null,null,null,null,null,null,null,null,null,null,null,"\"-Ministerio de Hacienda, Órgano de Normalización Técnica, Edificio Mira, Zapote. 300 Oeste de Casa Presidencial-Autoria Ing. Nathalie Venegas Delgado-\"",null,null,null,null,null,null,null,null,null,null,null,null,null,null,null,null,null,null,null,null,null,null,null,null,null,null,null,null,null,null,null,null,null,null,null,null,"\"-Ministerio de Hacienda, Órgano de Normalización Técnica, Edificio Mira, Zapote. 300 Oeste de Casa Presidencial-Autoria Ing. Nathalie Venegas Delgado-\"",null,null,null,null,null,null,null,null,null,null,null,null,null,null,null,null,null,null,null,null,null,null,null,null,null,null,null,null,null,null,null,null,null,null,null,null,"\"-Ministerio de Hacienda, Órgano de Normalización Técnica, Edificio Mira, Zapote. 300 Oeste de Casa Presidencial-Autoria Ing. Nathalie Venegas Delgado-\"",null,null,null,null,null,null,null,null,null,null,null,null,null,null,null,null,null,null,null,null,null,null,null,null,null,null,null,null,null,null,null,null,null,null,null,null,"\"-Ministerio de Hacienda, Órgano de Normalización Técnica, Edificio Mira, Zapote. 300 Oeste de Casa Presidencial-Autoria Ing. Nathalie Venegas Delgado-\"",null,null,null,null,null,null,null,null,null,null,null,null,null,null,null,null,null,null,null,null,null,null,null,null,null,null,null,null,null,null,null,null,null,null,null,null,"\"-Ministerio de Hacienda, Órgano de Normalización Técnica, Edificio Mira, Zapote. 300 Oeste de Casa Presidencial-Autoria Ing. Nathalie Venegas Delgado-\"",null,null,null,null,null,null,null,null,null,null,null,null,null,null,null,null,null,null,null,null,null,null,null,null,null,null,null,null,null,null,null,null,null,null,null,null,"\"-Ministerio de Hacienda, Órgano de Normalización Técnica, Edificio Mira, Zapote. 300 Oeste de Casa Presidencial-Autoria Ing. Nathalie Venegas Delgado-\"",null,null,null,null,null,null,null,null,null,null,null,null,null,null,null,null,null,null,null,null,null,null,null,null,null,null,null,null,null,null,null,null,null,null,null,null,"\"-Ministerio de Hacienda, Órgano de Normalización Técnica, Edificio Mira, Zapote. 300 Oeste de Casa Presidencial-Autoria Ing. Nathalie Venegas Delgado-\"",null,null,null,null,null,null,null,null,null,null,null,null,null,null,null,null,null,null,null,null,null,null,null,null,null,null,null,null,null,null,null,null,null,null,null,null,"\"-Ministerio de Hacienda, Órgano de Normalización Técnica, Edificio Mira, Zapote. 300 Oeste de Casa Presidencial-Autoria Ing. Nathalie Venegas Delgado-\"",null,null,null,null,null,null,null,null,null,null,null,null,null,null,null,null,null,null,null,null,null,null,null,null,null,null,null,null,null,null,null,null,null,null,null,null,"\"-Ministerio de Hacienda, Órgano de Normalización Técnica, Edificio Mira, Zapote. 300 Oeste de Casa Presidencial-Autoria Ing. Nathalie Venegas Delgado-\"",null,null,null,null,null,null,null,null,null,null,null,null,null,null,null,null,null,null,null,null,null,null,null,null,null,null,null,null,null,null,null,null,null,null,null,null,"\"-Ministerio de Hacienda, Órgano de Normalización Técnica, Edificio Mira, Zapote. 300 Oeste de Casa Presidencial-Autoria Ing. Nathalie Venegas Delgado-\"",null,null,null,null,null,null,null,null,null,null,null,null,null,null,null,null,null,null,null,null,null,null,null,null,null,null,null,null,null,null,null,null,null,null,null,null,"\"-Ministerio de Hacienda, Órgano de Normalización Técnica, Edificio Mira, Zapote. 300 Oeste de Casa Presidencial-Autoria Ing. Nathalie Venegas Delgado-\"",null,null,null,null,null,null,null,null,null,null,null,null,null,null,null,null,null,null,null,null,null,null,null,null,null,null,null,null,null,null,null,null,null,null,null,null,"\"-Ministerio de Hacienda, Órgano de Normalización Técnica, Edificio Mira, Zapote. 300 Oeste de Casa Presidencial-Autoria Ing. Nathalie Venegas Delgado-\"",null,null,null,null,null,null,null,null,null,null,null,null,null,null,null,null,null,null,null,null,null,null,null,null,null,null,null,null,null,null,null,null,null,null,null,null,"\"-Ministerio de Hacienda, Órgano de Normalización Técnica, Edificio Mira, Zapote. 300 Oeste de Casa Presidencial-Autoria Ing. Nathalie Venegas Delgado-\"",null,null,null,null,null,null,null,null,null,null,null,null,null,null,null,null,null,null,null,null,null,null,null,null,null,null,null,null,null,null,null,null,null,null,null,null,"\"-Ministerio de Hacienda, Órgano de Normalización Técnica, Edificio Mira, Zapote. 300 Oeste de Casa Presidencial-Autoria Ing. Nathalie Venegas Delgado-\"",null,null,null,null,null,null,null,null,null,null,null,null,null,null,null,null,null,null,null,null,null,null,null,null,null,null,null,null,null,null,null,null,null,null,null,null,"\"-Ministerio de Hacienda, Órgano de Normalización Técnica, Edificio Mira, Zapote. 300 Oeste de Casa Presidencial-Autoria Ing. Nathalie Venegas Delgado-\"",null,null,null,null,null,null,null,null,null,null,null,null,null,null,null,null,null,null,null,null,null,null,null,null,null,null,null,null,null,null,null,null,null,null,null,null,"\"-Ministerio de Hacienda, Órgano de Normalización Técnica, Edificio Mira, Zapote. 300 Oeste de Casa Presidencial-Autoria Ing. Nathalie Venegas Delgado-\"",null,null,null,null,null,null,null,null,null,null,null,null,null,null,null,null,null,null,null,null,null,null,null,null,null,null,null,null,null,null,null,null,null,null,null,null,"\"-Ministerio de Hacienda, Órgano de Normalización Técnica, Edificio Mira, Zapote. 300 Oeste de Casa Presidencial-Autoria Ing. Nathalie Venegas Delgado-\"",null,null,null,null,null,null,null,null,null,null,null,null,null,null,null,null,null,null,null,null,null,null,null,null,null,null,null,null,null,null,null,null,null,null,null,null,"\"-Ministerio de Hacienda, Órgano de Normalización Técnica, Edificio Mira, Zapote. 300 Oeste de Casa Presidencial-Autoria Ing. Nathalie Venegas Delgado-\"",null,null,null,null,null,null,null,null,null,null,null,null,null,null,null,null,null,null,null,null,null,null,null,null,null,null,null,null,null,null,null,null,null,null,null,null,"\"-Ministerio de Hacienda, Órgano de Normalización Técnica, Edificio Mira, Zapote. 300 Oeste de Casa Presidencial-Autoria Ing. Nathalie Venegas Delgado-\"",null,null,null,null,null,null,null,null,null,null,null,null,null,null,null,null,null,null,null,null,null,null,null,null,null,null,null,null,null,null,null,null,null,null,null,null,"\"-Ministerio de Hacienda, Órgano de Normalización Técnica, Edificio Mira, Zapote. 300 Oeste de Casa Presidencial-Autoria Ing. Nathalie Venegas Delgado-\"",null,null,null,null,null,null,null,null,null,null,null,null,null,null,null,null,null,null,null,null,null,null,null,null,null,null,null,null,null,null,null,null,null,null,null,null,"\"-Ministerio de Hacienda, Órgano de Normalización Técnica, Edificio Mira, Zapote. 300 Oeste de Casa Presidencial-Autoria Ing. Nathalie Venegas Delgado-\"",null,null,null,null,null,null,null,null,null,null,null,null,null,null,null,null,null,null,null,null,null,null,null,null,null,null,null,null,null,null,null,null,null,null,null,null,"\"-Ministerio de Hacienda, Órgano de Normalización Técnica, Edificio Mira, Zapote. 300 Oeste de Casa Presidencial-Autoria Ing. Nathalie Venegas Delgado-\"",null,null,null,null,null,null,null,null,null,null,null,null,null,null,null,null,null,null,null,null,null,null,null,null,null,null,null,null,null,null,null,null,null,null,null,null,"\"-Ministerio de Hacienda, Órgano de Normalización Técnica, Edificio Mira, Zapote. 300 Oeste de Casa Presidencial-Autoria Ing. Nathalie Venegas Delgado-\"",null,null,null,null,null,null,null,null,null,null,null,null,null,null,null,null,null,null,null,null,null,null,null,null,null,null,null,null,null,null,null,null,null,null,null,null,"\"-Ministerio de Hacienda, Órgano de Normalización Técnica, Edificio Mira, Zapote. 300 Oeste de Casa Presidencial-Autoria Ing. Nathalie Venegas Delgado-\"",null,null,null,null,null,null,null,null,null,null,null,null,null,null,null,null,null,null,null,null,null,null,null,null,null,null,null,null,null,null,null,null,null,null,null,null,"\"-Ministerio de Hacienda, Órgano de Normalización Técnica, Edificio Mira, Zapote. 300 Oeste de Casa Presidencial-Autoria Ing. Nathalie Venegas Delgado-\"",null,null,null,null,null,null,null,null,null,null,null,null,null,null,null,null,null,null,null,null,null,null,null,null,null,null,null,null,null,null,null,null,null,null,null,null,"\"-Ministerio de Hacienda, Órgano de Normalización Técnica, Edificio Mira, Zapote. 300 Oeste de Casa Presidencial-Autoria Ing. Nathalie Venegas Delgado-\"",null,null,null,null,null,null,null,null,null,null,null,null,null,null,null,null,null,null,null,null,null,null,null,null,null,null,null,null,null,null,null,null,null,null,null,null,"\"-Ministerio de Hacienda, Órgano de Normalización Técnica, Edificio Mira, Zapote. 300 Oeste de Casa Presidencial-Autoria Ing. Nathalie Venegas Delgado-\"",null,null,null,null,null,null,null,null,null,null,null,null,null,null,null,null,null,null,null,null,null,null,null,null,null,null,null,null,null,null,null,null,null,null,null,null,"\"-Ministerio de Hacienda, Órgano de Normalización Técnica, Edificio Mira, Zapote. 300 Oeste de Casa Presidencial-Autoria Ing. Nathalie Venegas Delgado-\"",null,null,null,null,null,null,null,null,null,null,null,null,null,null,null,null,null,null,null,null,null,null,null,null,null,null,null,null,null,null,null,null,null,null,null,null,"\"-Ministerio de Hacienda, Órgano de Normalización Técnica, Edificio Mira, Zapote. 300 Oeste de Casa Presidencial-Autoria Ing. Nathalie Venegas Delgado-\"",null,null,null,null,null,null,null,null,null,null,null,null,null,null,null,null,null,null,null,null,null,null,null,null,null,null,null,null,null,null,null,null,null,null,null,null,"\"-Ministerio de Hacienda, Órgano de Normalización Técnica, Edificio Mira, Zapote. 300 Oeste de Casa Presidencial-Autoria Ing. Nathalie Venegas Delgado-\"",null,null,null,null,null,null,null,null,null,null,null,null,null,null,null,null,null,null,null,null,null,null,null,null,null,null,null,null,null,null,null,null,null,null,null,null,"\"-Ministerio de Hacienda, Órgano de Normalización Técnica, Edificio Mira, Zapote. 300 Oeste de Casa Presidencial-Autoria Ing. Nathalie Venegas Delgado-\"",null,null,null,null,null,null,null,null,null,null,null,null,null,null,null,null,null,null,null,null,null,null,null,null,null,null,null,null,null,null,null,null,null,null,null,null,"\"-Ministerio de Hacienda, Órgano de Normalización Técnica, Edificio Mira, Zapote. 300 Oeste de Casa Presidencial-Autoria Ing. Nathalie Venegas Delgado-\"",null,null,null,null,null,null,null,null,null,null,null,null,null,null,null,null,null,null,null,null,null,null,null,null,null,null,null,null,null,null,null,null,null,null,null,null,"\"-Ministerio de Hacienda, Órgano de Normalización Técnica, Edificio Mira, Zapote. 300 Oeste de Casa Presidencial-Autoria Ing. Nathalie Venegas Delgado-\"",null,null,null,null,null,null,null,null,null,null,null,null,null,null,null,null,null,null,null,null,null,null,null,null,null,null,null,null,null,null,null,null,null,null,null,null,"\"-Ministerio de Hacienda, Órgano de Normalización Técnica, Edificio Mira, Zapote. 300 Oeste de Casa Presidencial-Autoria Ing. Nathalie Venegas Delgado-\"",null,null,null,null,null,null,null,null,null,null,null,null,null,null,null,null,null,null,null,null,null,null,null,null,null,null,null,null,null,null,null,null,null,null,null,null,"\"-Ministerio de Hacienda, Órgano de Normalización Técnica, Edificio Mira, Zapote. 300 Oeste de Casa Presidencial-Autoria Ing. Nathalie Venegas Delgado-\"",null,null,null,null,null,null,null,null,null,null,null,null,null,null,null,null,null,null,null,null,null,null,null,null,null,null,null,null,null,null,null,null,null,null,null,null,"\"-Ministerio de Hacienda, Órgano de Normalización Técnica, Edificio Mira, Zapote. 300 Oeste de Casa Presidencial-Autoria Ing. Nathalie Venegas Delgado-\"",null,null,null,null,null,null,null,null,null,null,null,null,null,null,null,null,null,null,null,null,null,null,null,null,null,null,null,null,null,null,null,null,null,null,null,null,"\"-Ministerio de Hacienda, Órgano de Normalización Técnica, Edificio Mira, Zapote. 300 Oeste de Casa Presidencial-Autoria Ing. Nathalie Venegas Delgado-\"",null,null,null,null,null,null,null,null,null,null,null,null,null,null,null,null,null,null,null,null,null,null,null,null,null,null,null,null,null,null,null,null,null,null,null,null,"\"-Ministerio de Hacienda, Órgano de Normalización Técnica, Edificio Mira, Zapote. 300 Oeste de Casa Presidencial-Autoria Ing. Nathalie Venegas Delgado-\"",null,null,null,null,null,null,null,null,null,null,null,null,null,null,null,null,null,null,null,null,null,null,null,null,null,null,null,null,null,null,null,null,null,null,null,null,"\"-Ministerio de Hacienda, Órgano de Normalización Técnica, Edificio Mira, Zapote. 300 Oeste de Casa Presidencial-Autoria Ing. Nathalie Venegas Delgado-\"",null,null,null,null,null,null,null,null,null,null,null,null,null,null,null,null,null,null,null,null,null,null,null,null,null,null,null,null,null,null,null,null,null,null,null,null,"\"-Ministerio de Hacienda, Órgano de Normalización Técnica, Edificio Mira, Zapote. 300 Oeste de Casa Presidencial-Autoria Ing. Nathalie Venegas Delgado-\"",null,null,null,null,null,null,null,null,null,null,null,null,null,null,null,null,null,null,null,null,null,null,null,null,null,null,null,null,null,null,null,null,null,null,null,null,"\"-Ministerio de Hacienda, Órgano de Normalización Técnica, Edificio Mira, Zapote. 300 Oeste de Casa Presidencial-Autoria Ing. Nathalie Venegas Delgado-\"",null,null,null,null,null,null,null,null,null,null,null,null,null,null,null,null,null,null,null,null,null,null,null,null,null,null,null,null,null,null,null,null,null,null,null,null,"\"-Ministerio de Hacienda, Órgano de Normalización Técnica, Edificio Mira, Zapote. 300 Oeste de Casa Presidencial-Autoria Ing. Nathalie Venegas Delgado-\"",null,null,null,null,null,null,null,null,null,null,null,null,null,null,null,null,null,null,null,null,null,null,null,null,null,null,null,null,null,null,null,null,null,null,null,null,"\"-Ministerio de Hacienda, Órgano de Normalización Técnica, Edificio Mira, Zapote. 300 Oeste de Casa Presidencial-Autoria Ing. Nathalie Venegas Delgado-\"",null,null,null,null,null,null,null,null,null,null,null,null,null,null,null,null,null,null,null,null,null,null,null,null,null,null,null,null,null,null,null,null,null,null,null,null,"\"-Ministerio de Hacienda, Órgano de Normalización Técnica, Edificio Mira, Zapote. 300 Oeste de Casa Presidencial-Autoria Ing. Nathalie Venegas Delgado-\"",null,null,null,null,null,null,null,null,null,null,null,null,null,null,null,null,null,null,null,null,null,null,null,null,null,null,null,null,null,null,null,null,null,null,null,null,"\"-Ministerio de Hacienda, Órgano de Normalización Técnica, Edificio Mira, Zapote. 300 Oeste de Casa Presidencial-Autoria Ing. Nathalie Venegas Delgado-\"",null,null,null,null,null,null,null,null,null,null,null,null,null,null,null,null,null,null,null,null,null,null,null,null,null,null,null,null,null,null,null,null,null,null,null,null,"\"-Ministerio de Hacienda, Órgano de Normalización Técnica, Edificio Mira, Zapote. 300 Oeste de Casa Presidencial-Autoria Ing. Nathalie Venegas Delgado-\"",null,null,null,null,null,null,null,null,null,null,null,null,null,null,null,null,null,null,null,null,null,null,null,null,null,null,null,null,null,null,null,null,null,null,null,null,"\"-Ministerio de Hacienda, Órgano de Normalización Técnica, Edificio Mira, Zapote. 300 Oeste de Casa Presidencial-Autoria Ing. Nathalie Venegas Delgado-\"",null,null,null,null,null,null,null,null,null,null,null,null,null,null,null,null,null,null,null,null,null,null,null,null,null,null,null,null,null,null,null,null,null,null,null,null,"\"-Ministerio de Hacienda, Órgano de Normalización Técnica, Edificio Mira, Zapote. 300 Oeste de Casa Presidencial-Autoria Ing. Nathalie Venegas Delgado-\"",null,null,null,null,null,null,null,null,null,null,null,null,null,null,null,null,null,null,null,null,null,null,null,null,null,null,null,null,null,null,null,null,null,null,null,null,"\"-Ministerio de Hacienda, Órgano de Normalización Técnica, Edificio Mira, Zapote. 300 Oeste de Casa Presidencial-Autoria Ing. Nathalie Venegas Delgado-\"",null,null,null,null,null,null,null,null,null,null,null,null,null,null,null,null,null,null,null,null,null,null,null,null,null,null,null,null,null,null,null,null,null,null,null,null,"\"-Ministerio de Hacienda, Órgano de Normalización Técnica, Edificio Mira, Zapote. 300 Oeste de Casa Presidencial-Autoria Ing. Nathalie Venegas Delgado-\"",null,null,null,null,null,null,null,null,null,null,null,null,null,null,null,null,null,null,null,null,null,null,null,null,null,null,null,null,null,null,null,null,null,null,null,null,"\"-Ministerio de Hacienda, Órgano de Normalización Técnica, Edificio Mira, Zapote. 300 Oeste de Casa Presidencial-Autoria Ing. Nathalie Venegas Delgado-\"",null,null,null,null,null,null,null,null,null,null,null,null,null,null,null,null,null,null,null,null,null,null,null,null,null,null,null,null,null,null,null,null,null,null,null,null,"\"-Ministerio de Hacienda, Órgano de Normalización Técnica, Edificio Mira, Zapote. 300 Oeste de Casa Presidencial-Autoria Ing. Nathalie Venegas Delgado-\"",null,null,null,null,null,null,null,null,null,null,null,null,null,null,null,null,null,null,null,null,null,null,null,null,null,null,null,null,null,null,null,null,null,null,null,null,"\"-Ministerio de Hacienda, Órgano de Normalización Técnica, Edificio Mira, Zapote. 300 Oeste de Casa Presidencial-Autoria Ing. Nathalie Venegas Delgado-\"",null,null,null,null,null,null,null,null,null,null,null,null,null,null,null,null,null,null,null,null,null,null,null,null,null,null,null,null,null,null,null,null,null,null,null,null,"\"-Ministerio de Hacienda, Órgano de Normalización Técnica, Edificio Mira, Zapote. 300 Oeste de Casa Presidencial-Autoria Ing. Nathalie Venegas Delgado-\"",null,null,null,null,null,null,null,null,null,null,null,null,null,null,null,null,null,null,null,null,null,null,null,null,null,null,null,null,null,null,null,null,null,null,null,null,"\"-Ministerio de Hacienda, Órgano de Normalización Técnica, Edificio Mira, Zapote. 300 Oeste de Casa Presidencial-Autoria Ing. Nathalie Venegas Delgado-\"",null,null,null,null,null,null,null,null,null,null,null,null,null,null,null,null,null,null,null,null,null,null,null,null,null,null,null,null,null,null,null,null,null,null,null,null,"\"-Ministerio de Hacienda, Órgano de Normalización Técnica, Edificio Mira, Zapote. 300 Oeste de Casa Presidencial-Autoria Ing. Nathalie Venegas Delgado-\"",null,null,null,null,null,null,null,null,null,null,null,null,null,null,null,null,null,null,null,null,null,null,null,null,null,null,null,null,null,null,null,null,null,null,null,null,"\"-Ministerio de Hacienda, Órgano de Normalización Técnica, Edificio Mira, Zapote. 300 Oeste de Casa Presidencial-Autoria Ing. Nathalie Venegas Delgado-\"",null,null,null,null,null,null,null,null,null,null,null,null,null,null,null,null,null,null,null,null,null,null,null,null,null,null,null,null,null,null,null,null,null,null,null,null,"\"-Ministerio de Hacienda, Órgano de Normalización Técnica, Edificio Mira, Zapote. 300 Oeste de Casa Presidencial-Autoria Ing. Nathalie Venegas Delgado-\"",null,null,null,null,null,null,null,null,null,null,null,null,null,null,null,null,null,null,null,null,null,null,null,null,null,null,null,null,null,null,null,null,null,null,null,null,"\"-Ministerio de Hacienda, Órgano de Normalización Técnica, Edificio Mira, Zapote. 300 Oeste de Casa Presidencial-Autoria Ing. Nathalie Venegas Delgado-\"",null,null,null,null,null,null,null,null,null,null,null,null,null,null,null,null,null,null,null,null,null,null,null,null,null,null,null,null,null,null,null,null,null,null,null,null,"\"-Ministerio de Hacienda, Órgano de Normalización Técnica, Edificio Mira, Zapote. 300 Oeste de Casa Presidencial-Autoria Ing. Nathalie Venegas Delgado-\"",null,null,null,null,null,null,null,null,null,null,null,null,null,null,null,null,null,null,null,null,null,null,null,null,null,null,null,null,null,null,null,null,null,null,null,null,"\"-Ministerio de Hacienda, Órgano de Normalización Técnica, Edificio Mira, Zapote. 300 Oeste de Casa Presidencial-Autoria Ing. Nathalie Venegas Delgado-\"",null,null,null,null,null,null,null,null,null,null,null,null,null,null,null,null,null,null,null,null,null,null,null,null,null,null,null,null,null,null,null,null,null,null,null,null,"\"-Ministerio de Hacienda, Órgano de Normalización Técnica, Edificio Mira, Zapote. 300 Oeste de Casa Presidencial-Autoria Ing. Nathalie Venegas Delgado-\"",null,null,null,null,null,null,null,null,null,null,null,null,null,null,null,null,null,null,null,null,null,null,null,null,null,null,null,null,null,null,null,null,null,null,null,null,"\"-Ministerio de Hacienda, Órgano de Normalización Técnica, Edificio Mira, Zapote. 300 Oeste de Casa Presidencial-Autoria Ing. Nathalie Venegas Delgado-\"",null,null,null,null,null,null,null,null,null,null,null,null,null,null,null,null,null,null,null,null,null,null,null,null,null,null,null,null,null,null,null,null,null,null,null,null,"\"-Ministerio de Hacienda, Órgano de Normalización Técnica, Edificio Mira, Zapote. 300 Oeste de Casa Presidencial-Autoria Ing. Nathalie Venegas Delgado-\"",null,null,null,null,null,null,null,null,null,null,null,null,null,null,null,null,null,null,null,null,null,null,null,null,null,null,null,null,null,null,null,null,null,null,null,null,"\"-Ministerio de Hacienda, Órgano de Normalización Técnica, Edificio Mira, Zapote. 300 Oeste de Casa Presidencial-Autoria Ing. Nathalie Venegas Delgado-\"",null,null,null,null,null,null,null,null,null,null,null,null,null,null,null,null,null,null,null,null,null,null,null,null,null,null,null,null,null,null,null,null,null,null,null,null,"\"-Ministerio de Hacienda, Órgano de Normalización Técnica, Edificio Mira, Zapote. 300 Oeste de Casa Presidencial-Autoria Ing. Nathalie Venegas Delgado-\"",null,null,null,null,null,null,null,null,null,null,null,null,null,null,null,null,null,null,null,null,null,null,null,null,null,null,null,null,null,null,null,null,null,null,null,null,"\"-Ministerio de Hacienda, Órgano de Normalización Técnica, Edificio Mira, Zapote. 300 Oeste de Casa Presidencial-Autoria Ing. Nathalie Venegas Delgado-\"",null,null,null,null,null,null,null,null,null,null,null,null,null,null,null,null,null,null,null,null,null,null,null,null,null,null,null,null,null,null,null,null,null,null,null,null,"\"-Ministerio de Hacienda, Órgano de Normalización Técnica, Edificio Mira, Zapote. 300 Oeste de Casa Presidencial-Autoria Ing. Nathalie Venegas Delgado-\"",null,null,null,null,null,null,null,null,null,null,null,null,null,null,null,null,null,null,null,null,null,null,null,null,null,null,null,null,null,null,null,null,null,null,null,null,"\"-Ministerio de Hacienda, Órgano de Normalización Técnica, Edificio Mira, Zapote. 300 Oeste de Casa Presidencial-Autoria Ing. Nathalie Venegas Delgado-\"",null,null,null,null,null,null,null,null,null,null,null,null,null,null,null,null,null,null,null,null,null,null,null,null,null,null,null,null,null,null,null,null,null,null,null,null,"\"-Ministerio de Hacienda, Órgano de Normalización Técnica, Edificio Mira, Zapote. 300 Oeste de Casa Presidencial-Autoria Ing. Nathalie Venegas Delgado-\"",null,null,null,null,null,null,null,null,null,null,null,null,null,null,null,null,null,null,null,null,null,null,null,null,null,null,null,null,null,null,null,null,null,null,null,null,"\"-Ministerio de Hacienda, Órgano de Normalización Técnica, Edificio Mira, Zapote. 300 Oeste de Casa Presidencial-Autoria Ing. Nathalie Venegas Delgado-\"",null,null,null,null,null,null,null,null,null,null,null,null,null,null,null,null,null,null,null,null,null,null,null,null,null,null,null,null,null,null,null,null,null,null,null,null,"\"-Ministerio de Hacienda, Órgano de Normalización Técnica, Edificio Mira, Zapote. 300 Oeste de Casa Presidencial-Autoria Ing. Nathalie Venegas Delgado-\"",null,null,null,null,null,null,null,null,null,null,null,null,null,null,null,null,null,null,null,null,null,null,null,null,null,null,null,null,null,null,null,null,null,null,null,null,"\"-Ministerio de Hacienda, Órgano de Normalización Técnica, Edificio Mira, Zapote. 300 Oeste de Casa Presidencial-Autoria Ing. Nathalie Venegas Delgado-\"",null,null,null,null,null,null,null,null,null,null,null,null,null,null,null,null,null,null,null,null,null,null,null,null,null,null,null,null,null,null,null,null,null,null,null,null,"\"-Ministerio de Hacienda, Órgano de Normalización Técnica, Edificio Mira, Zapote. 300 Oeste de Casa Presidencial-Autoria Ing. Nathalie Venegas Delgado-\"",null,null,null,null,null,null,null,null,null,null,null,null,null,null,null,null,null,null,null,null,null,null,null,null,null,null,null,null,null,null,null,null,null,null,null,null,"\"-Ministerio de Hacienda, Órgano de Normalización Técnica, Edificio Mira, Zapote. 300 Oeste de Casa Presidencial-Autoria Ing. Nathalie Venegas Delgado-\"",null,null,null,null,null,null,null,null,null,null,null,null,null,null,null,null,null,null,null,null,null,null,null,null,null,null,null,null,null,null,null,null,null,null,null,null,"\"-Ministerio de Hacienda, Órgano de Normalización Técnica, Edificio Mira, Zapote. 300 Oeste de Casa Presidencial-Autoria Ing. Nathalie Venegas Delgado-\"",null,null,null,null,null,null,null,null,null,null,null,null,null,null,null,null,null,null,null,null,null,null,null,null,null,null,null,null,null,null,null,null,null,null,null,null,"\"-Ministerio de Hacienda, Órgano de Normalización Técnica, Edificio Mira, Zapote. 300 Oeste de Casa Presidencial-Autoria Ing. Nathalie Venegas Delgado-\"",null,null,null,null,null,null,null,null,null,null,null,null,null,null,null,null,null,null,null,null,null,null,null,null,null,null,null,null,null,null,null,null,null,null,null,null,"\"-Ministerio de Hacienda, Órgano de Normalización Técnica, Edificio Mira, Zapote. 300 Oeste de Casa Presidencial-Autoria Ing. Nathalie Venegas Delgado-\"",null,null,null,null,null,null,null,null,null,null,null,null,null,null,null,null,null,null,null,null,null,null,null,null,null,null,null,null,null,null,null,null,null,null,null,null,"\"-Ministerio de Hacienda, Órgano de Normalización Técnica, Edificio Mira, Zapote. 300 Oeste de Casa Presidencial-Autoria Ing. Nathalie Venegas Delgado-\"",null,null,null,null,null,null,null,null,null,null,null,null,null,null,null,null,null,null,null,null,null,null,null,null,null,null,null,null,null,null,null,null,null,null,null,null,"\"-Ministerio de Hacienda, Órgano de Normalización Técnica, Edificio Mira, Zapote. 300 Oeste de Casa Presidencial-Autoria Ing. Nathalie Venegas Delgado-\"",null,null,null,null,null,null,null,null,null,null,null,null,null,null,null,null,null,null,null,null,null,null,null,null,null,null,null,null,null,null,null,null,null,null,null,null,"\"-Ministerio de Hacienda, Órgano de Normalización Técnica, Edificio Mira, Zapote. 300 Oeste de Casa Presidencial-Autoria Ing. Nathalie Venegas Delgado-\"",null,null,null,null,null,null,null,null,null,null,null,null,null,null,null,null,null,null,null,null,null,null,null,null,null,null,null,null,null,null,null,null,null,null,null,null,"\"-Ministerio de Hacienda, Órgano de Normalización Técnica, Edificio Mira, Zapote. 300 Oeste de Casa Presidencial-Autoria Ing. Nathalie Venegas Delgado-\"",null,null,null,null,null,null,null,null,null,null,null,null,null,null,null,null,null,null,null,null,null,null,null,null,null,null,null,null,null,null,null,null,null,null,null,null,"\"-Ministerio de Hacienda, Órgano de Normalización Técnica, Edificio Mira, Zapote. 300 Oeste de Casa Presidencial-Autoria Ing. Nathalie Venegas Delgado-\"",null,null,null,null,null,null,null,null,null,null,null,null,null,null,null,null,null,null,null,null,null,null,null,null,null,null,null,null,null,null,null,null,null,null,null,null,"\"-Ministerio de Hacienda, Órgano de Normalización Técnica, Edificio Mira, Zapote. 300 Oeste de Casa Presidencial-Autoria Ing. Nathalie Venegas Delgado-\"",null,null,null,null,null,null,null,null,null,null,null,null,null,null,null,null,null,null,null,null,null,null,null,null,null,null,null,null,null,null,null,null,null,null,null,null,"\"-Ministerio de Hacienda, Órgano de Normalización Técnica, Edificio Mira, Zapote. 300 Oeste de Casa Presidencial-Autoria Ing. Nathalie Venegas Delgado-\"",null,null,null,null,null,null,null,null,null,null,null,null,null,null,null,null,null,null,null,null,null,null,null,null,null,null,null,null,null,null,null,null,null,null,null,null,"\"-Ministerio de Hacienda, Órgano de Normalización Técnica, Edificio Mira, Zapote. 300 Oeste de Casa Presidencial-Autoria Ing. Nathalie Venegas Delgado-\"",null,null,null,null,null,null,null,null,null,null,null,null,null,null,null,null,null,null,null,null,null,null,null,null,null,null,null,null,null,null,null,null,null,null,null,null,"\"-Ministerio de Hacienda, Órgano de Normalización Técnica, Edificio Mira, Zapote. 300 Oeste de Casa Presidencial-Autoria Ing. Nathalie Venegas Delgado-\"",null,null,null,null,null,null,null,null,null,null,null,null,null,null,null,null,null,null,null,null,null,null,null,null,null,null,null,null,null,null,null,null,null,null,null,null,"\"-Ministerio de Hacienda, Órgano de Normalización Técnica, Edificio Mira, Zapote. 300 Oeste de Casa Presidencial-Autoria Ing. Nathalie Venegas Delgado-\"",null,null,null,null,null,null,null,null,null,null,null,null,null,null,null,null,null,null,null,null,null,null,null,null,null,null,null,null,null,null,null,null,null,null,null,null,"\"-Ministerio de Hacienda, Órgano de Normalización Técnica, Edificio Mira, Zapote. 300 Oeste de Casa Presidencial-Autoria Ing. Nathalie Venegas Delgado-\"",null,null,null,null,null,null,null,null,null,null,null,null,null,null,null,null,null,null,null,null,null,null,null,null,null,null,null,null,null,null,null,null,null,null,null,null,"\"-Ministerio de Hacienda, Órgano de Normalización Técnica, Edificio Mira, Zapote. 300 Oeste de Casa Presidencial-Autoria Ing. Nathalie Venegas Delgado-\"",null,null,null,null,null,null,null,null,null,null,null,null,null,null,null,null,null,null,null,null,null,null,null,null,null,null,null,null,null,null,null,null,null,null,null,null,"\"-Ministerio de Hacienda, Órgano de Normalización Técnica, Edificio Mira, Zapote. 300 Oeste de Casa Presidencial-Autoria Ing. Nathalie Venegas Delgado-\"",null,null,null,null,null,null,null,null,null,null,null,null,null,null,null,null,null,null,null,null,null,null,null,null,null,null,null,null,null,null,null,null,null,null,null,null,"\"-Ministerio de Hacienda, Órgano de Normalización Técnica, Edificio Mira, Zapote. 300 Oeste de Casa Presidencial-Autoria Ing. Nathalie Venegas Delgado-\"",null,null,null,null,null,null,null,null,null,null,null,null,null,null,null,null,null,null,null,null,null,null,null,null,null,null,null,null,null,null,null,null,null,null,null,null,"\"-Ministerio de Hacienda, Órgano de Normalización Técnica, Edificio Mira, Zapote. 300 Oeste de Casa Presidencial-Autoria Ing. Nathalie Venegas Delgado-\"",null,null,null,null,null,null,null,null,null,null,null,null,null,null,null,null,null,null,null,null,null,null,null,null,null,null,null,null,null,null,null,null,null,null,null,null,"\"-Ministerio de Hacienda, Órgano de Normalización Técnica, Edificio Mira, Zapote. 300 Oeste de Casa Presidencial-Autoria Ing. Nathalie Venegas Delgado-\"",null,null,null,null,null,null,null,null,null,null,null,null,null,null,null,null,null,null,null,null,null,null,null,null,null,null,null,null,null,null,null,null,null,null,null,null,"\"-Ministerio de Hacienda, Órgano de Normalización Técnica, Edificio Mira, Zapote. 300 Oeste de Casa Presidencial-Autoria Ing. Nathalie Venegas Delgado-\"",null,null,null,null,null,null,null,null,null,null,null,null,null,null,null,null,null,null,null,null,null,null,null,null,null,null,null,null,null,null,null,null,null,null,null,null,"\"-Ministerio de Hacienda, Órgano de Normalización Técnica, Edificio Mira, Zapote. 300 Oeste de Casa Presidencial-Autoria Ing. Nathalie Venegas Delgado-\"",null,null,null,null,null,null,null,null,null,null,null,null,null,null,null,null,null,null,null,null,null,null,null,null,null,null,null,null,null,null,null,null,null,null,null,null,"\"-Ministerio de Hacienda, Órgano de Normalización Técnica, Edificio Mira, Zapote. 300 Oeste de Casa Presidencial-Autoria Ing. Nathalie Venegas Delgado-\"",null,null,null,null,null,null,null,null,null,null,null,null,null,null,null,null,null,null,null,null,null,null,null,null,null,null,null,null,null,null,null,null,null,null,null,null,"\"-Ministerio de Hacienda, Órgano de Normalización Técnica, Edificio Mira, Zapote. 300 Oeste de Casa Presidencial-Autoria Ing. Nathalie Venegas Delgado-\"",null,null,null,null,null,null,null,null,null,null,null,null,null,null,null,null,null,null,null,null,null,null,null,null,null,null,null,null,null,null,null,null,null,null,null,null,"\"-Ministerio de Hacienda, Órgano de Normalización Técnica, Edificio Mira, Zapote. 300 Oeste de Casa Presidencial-Autoria Ing. Nathalie Venegas Delgado-\"",null,null,null,null,null,null,null,null,null,null,null,null,null,null,null,null,null,null,null,null,null,null,null,null,null,null,null,null,null,null,null,null,null,null,null,null,"\"-Ministerio de Hacienda, Órgano de Normalización Técnica, Edificio Mira, Zapote. 300 Oeste de Casa Presidencial-Autoria Ing. Nathalie Venegas Delgado-\"",null,null,null,null,null,null,null,null,null,null,null,null,null,null,null,null,null,null,null,null,null,null,null,null,null,null,null,null,null,null,null,null,null,null,null,null,"\"-Ministerio de Hacienda, Órgano de Normalización Técnica, Edificio Mira, Zapote. 300 Oeste de Casa Presidencial-Autoria Ing. Nathalie Venegas Delgado-\"",null,null,null,null,null,null,null,null,null,null,null,null,null,null,null,null,null,null,null,null,null,null,null,null,null,null,null,null,null,null,null,null,null,null,null,null,"\"-Ministerio de Hacienda, Órgano de Normalización Técnica, Edificio Mira, Zapote. 300 Oeste de Casa Presidencial-Autoria Ing. Nathalie Venegas Delgado-\"",null,null,null,null,null,null,null,null,null,null,null,null,null,null,null,null,null,null,null,null,null,null,null,null,null,null,null,null,null,null,null,null,null,null,null,null,"\"-Ministerio de Hacienda, Órgano de Normalización Técnica, Edificio Mira, Zapote. 300 Oeste de Casa Presidencial-Autoria Ing. Nathalie Venegas Delgado-\"",null,null,null,null,null,null,null,null,null,null,null,null,null,null,null,null,null,null,null,null,null,null,null,null,null,null,null,null,null,null,null,null,null,null,null,null,"\"-Ministerio de Hacienda, Órgano de Normalización Técnica, Edificio Mira, Zapote. 300 Oeste de Casa Presidencial-Autoria Ing. Nathalie Venegas Delgado-\"",null,null,null,null,null,null,null,null,null,null,null,null,null,null,null,null,null,null,null,null,null,null,null,null,null,null,null,null,null,null,null,null,null,null,null,null,"\"-Ministerio de Hacienda, Órgano de Normalización Técnica, Edificio Mira, Zapote. 300 Oeste de Casa Presidencial-Autoria Ing. Nathalie Venegas Delgado-\"",null,null,null,null,null,null,null,null,null,null,null,null,null,null,null,null,null,null,null,null,null,null,null,null,null,null,null,null,null,null,null,null,null,null,null,null,"\"-Ministerio de Hacienda, Órgano de Normalización Técnica, Edificio Mira, Zapote. 300 Oeste de Casa Presidencial-Autoria Ing. Nathalie Venegas Delgado-\"",null,null,null,null,null,null,null,null,null,null,null,null,null,null,null,null,null,null,null,null,null,null,null,null,null,null,null,null,null,null,null,null,null,null,null,null,"\"-Ministerio de Hacienda, Órgano de Normalización Técnica, Edificio Mira, Zapote. 300 Oeste de Casa Presidencial-Autoria Ing. Nathalie Venegas Delgado-\"",null,null,null,null,null,null,null,null,null,null,null,null,null,null,null,null,null,null,null,null,null,null,null,null,null,null,null,null,null,null,null,null,null,null,null,null,"\"-Ministerio de Hacienda, Órgano de Normalización Técnica, Edificio Mira, Zapote. 300 Oeste de Casa Presidencial-Autoria Ing. Nathalie Venegas Delgado-\"",null,null,null,null,null,null,null,null,null,null,null,null,null,null,null,null,null,null,null,null,null,null,null,null,null,null,null,null,null,null,null,null,null,null,null,null,"\"-Ministerio de Hacienda, Órgano de Normalización Técnica, Edificio Mira, Zapote. 300 Oeste de Casa Presidencial-Autoria Ing. Nathalie Venegas Delgado-\"",null,null,null,null,null,null,null,null,null,null,null,null,null,null,null,null,null,null,null,null,null,null,null,null,null,null,null,null,null,null,null,null,null,null,null,null,"\"-Ministerio de Hacienda, Órgano de Normalización Técnica, Edificio Mira, Zapote. 300 Oeste de Casa Presidencial-Autoria Ing. Nathalie Venegas Delgado-\"",null,null,null,null,null,null,null,null,null,null,null,null,null,null,null,null,null,null,null,null,null,null,null,null,null,null,null,null,null,null,null,null,null,null,null,null,"\"-Ministerio de Hacienda, Órgano de Normalización Técnica, Edificio Mira, Zapote. 300 Oeste de Casa Presidencial-Autoria Ing. Nathalie Venegas Delgado-\"",null,null,null,null,null,null,null,null,null,null,null,null,null,null,null,null,null,null,null,null,null,null,null,null,null,null,null,null,null,null,null,null,null,null,null,null,"\"-Ministerio de Hacienda, Órgano de Normalización Técnica, Edificio Mira, Zapote. 300 Oeste de Casa Presidencial-Autoria Ing. Nathalie Venegas Delgado-\"",null,null,null,null,null,null,null,null,null,null,null,null,null,null,null,null,null,null,null,null,null,null,null,null,null,null,null,null,null,null,null,null,null,null,null,null,"\"-Ministerio de Hacienda, Órgano de Normalización Técnica, Edificio Mira, Zapote. 300 Oeste de Casa Presidencial-Autoria Ing. Nathalie Venegas Delgado-\"",null,null,null,null,null,null,null,null,null,null,null,null,null,null,null,null,null,null,null,null,null,null,null,null,null,null,null,null,null,null,null,null,null,null,null,null,"\"-Ministerio de Hacienda, Órgano de Normalización Técnica, Edificio Mira, Zapote. 300 Oeste de Casa Presidencial-Autoria Ing. Nathalie Venegas Delgado-\"",null,null,null,null,null,null,null,null,null,null,null,null,null,null,null,null,null,null,null,null,null,null,null,null,null,null,null,null,null,null,null,null,null,null,null,null,"\"-Ministerio de Hacienda, Órgano de Normalización Técnica, Edificio Mira, Zapote. 300 Oeste de Casa Presidencial-Autoria Ing. Nathalie Venegas Delgado-\"",null,null,null,null,null,null,null,null,null,null,null,null,null,null,null,null,null,null,null,null,null,null,null,null,null,null,null,null,null,null,null,null,null,null,null,null,"\"-Ministerio de Hacienda, Órgano de Normalización Técnica, Edificio Mira, Zapote. 300 Oeste de Casa Presidencial-Autoria Ing. Nathalie Venegas Delgado-\"",null,null,null,null,null,null,null,null,null,null,null,null,null,null,null,null,null,null,null,null,null,null,null,null,null,null,null,null,null,null,null,null,null,null,null,null,"\"-Ministerio de Hacienda, Órgano de Normalización Técnica, Edificio Mira, Zapote. 300 Oeste de Casa Presidencial-Autoria Ing. Nathalie Venegas Delgado-\"",null,null,null,null,null,null,null,null,null,null,null,null,null,null,null,null,null,null,null,null,null,null,null,null,null,null,null,null,null,null,null,null,null,null,null,null,"\"-Ministerio de Hacienda, Órgano de Normalización Técnica, Edificio Mira, Zapote. 300 Oeste de Casa Presidencial-Autoria Ing. Nathalie Venegas Delgado-\"",null,null,null,null,null,null,null,null,null,null,null,null,null,null,null,null,null,null,null,null,null,null,null,null,null,null,null,null,null,null,null,null,null,null,null,null,"\"-Ministerio de Hacienda, Órgano de Normalización Técnica, Edificio Mira, Zapote. 300 Oeste de Casa Presidencial-Autoria Ing. Nathalie Venegas Delgado-\"",null,null,null,null,null,null,null,null,null,null,null,null,null,null,null,null,null,null,null,null,null,null,null,null,null,null,null,null,null,null,null,null,null,null,null,null,"\"-Ministerio de Hacienda, Órgano de Normalización Técnica, Edificio Mira, Zapote. 300 Oeste de Casa Presidencial-Autoria Ing. Nathalie Venegas Delgado-\""]

{"sheet":"#1","index":1,"n_rows":1048576,"n_cols":1,"rows_kept":4500,"cut":true,"hidden":true,"merged":[[1048575,0,1048575,15],[28,0,28,15],[5,0,5,15],[8,0,8,15],[11,0,11,15],[26,0,26,15],[27,0,27,15],[16,0,16,15],[9,0,9,15],[10,0,10,15],[12,0,12,15],[13,0,13,15],[15,0,15,15],[14,0,14,15],[18,0,18,15],[19,0,19,15],[0,0,0,15],[1,0,1,15],[2,0,2,15],[25,0,25,15],[17,0,17,15],[3,0,3,15],[4,0,4,15],[6,0,6,15],[7,0,7,15],[20,0,20,15],[21,0,21,15],[22,0,22,15],[23,0,23,15],[24,0,24,15]],"bounds":{"rows_first":2000,"rows_last":500,"rows_between":2000,"halvings":0}}
["Guía del formulario "]
["Form Guide"]
[]
["Instrucciones Generales: La declaración debe ser presentada por el dueño registral de la propiedad o su apoderado, quien debe presentar el documento de identificación al día al empleado municipal. Todos los datos numéricos deben ser en la moneda oficial de Costa Rica Colones (¢) y las medidas con el sistema internacional de unidades métricas el metro (m). La declaración de un co-propietario debe contener el valor total del inmueble y no sólo el de su derecho. En caso de la que finca esté constituida en derechos, para el cálculo del impuesto se utilizará la base imponible proporcional según el porcentaje que ostente cada copropietario."]
["General Instructions: The declaration must be presented by the property owner who must also provide valid ID to the municipal employee. All of the financial information in the declaration must be in Colons (¢), the official Costa Rican currency.  Additionally, all   measurements must done using the metric system (m). If the property has more than one owner, the declaration must contain the total property value and not only his/her individual percentage.In this case, the final tax is going to be calculated with the percentage of each owner"]
[]
["#1- Datos del Propietario "]
["Owner details"]
[]
["Nombre o Razón Social: Se refiere al nombre del propietario en persona física (el dueño del derecho) o la razón social (sociedades de derecho, cooperativas y asociaciones solidaristas) cuando el propietario es una persona jurídica; tal como se indica en el Registro de la Propiedad."]
["Full Name or Business Name: It refers to the owner’s name (or the co-owner) or the corporate name (law societies, cooperatives and solidarist associations) when the legal owner is a legal entity ; as is indicated in the Property Registry."]
[]
["Domicilio Fiscal o Social: Indica la dirección exacta del propietario físico del bien inmueble, en caso de sociedades indique el domicilio fiscal que está registrada en la personería jurídica. Las señas preferiblemente por calles, avenidas y número, o en caso contrario tomando como referencia puntos fijos y estables como: iglesia, escuela colegio, edificios públicos, puentes y otros. "]
["Mailing Address: Indicate the mailing address of property owner, in case of companies, indicate the official registered address of the legal entity. The location preferably by street names, avenues and number, or if not otherwise addressed, using established reference points such as: church, school, public buildings, bridges and others."]
[]
["Identificación: Indica el número de documento de identificación registrado del propietario del inmueble. Escoger la opción de identificación que le corresponde:  cedula física, pasaporte, cédula de residencia, etc. En caso de sociedades indique el número de cédula jurídica."]
["ID Indicate the identification document number registered of the property owner. Choose the ID option:identity card, passport, residence card, etc. In the case of companies, indicate the corporate identification number."]
[]
["Teléfono-Correo: En el primer cuadro agregar el número de teléfono y en el segundo el correo electrónico. En caso de ser un número en el extranjero debe ingresar si es red fija 123+0+Código de País + Código de Ciudad + Número de teléfono si su red es Móvil ingresar 123+0+ Código País + Número de Teléfono."]
["Contact Telephone-Email: List your phone number in the first box and your email address in the second box. Outside of Costa Rica you must enter = Landline 123 + 0 + Country Code + City Code + Telephone Number or Cellphone enter 123 + 0 + Country Code + Telephone Number."]
[]
["Representante Legal: Únicamente cuando el propietario es persona jurídica o si la persona que ostenta de la representación de los propietarios de una finca, representación que debe ser acreditada mediante una certificación ya sea de personería jurídica o del poder otorgado para tal efecto. "]
["Legal Representative: Only when the owner is a society or in case the owner holds a legal representative which must be accredited by a certification either legal entity or the power granted for that purpose."]
[]
["Identificación: Indica el número de documento de identificación indicada en el poder o personería jurídica.  Escoger la opción de identificación que le corresponde:  cedula física, pasaporte, cédula de residencia, etc."]
["ID Indicate the identification document number registered to the legal document or legal entity.Choose the ID option:identity card, passport, residence card, etc"]
[]
["Dirección Completa: Indica la dirección exacta donde reside el representante legal de la sociedad. Las señas preferiblemente por calles, avenidas y número, o en caso contrario tomando como referencia puntos fijos y estables como: iglesia, escuela colegio, edificios públicos, puentes y otros."]
["Full Address: Indicate the mailing address of the Legal Representative. Preferably list by street names, avenues and number, or if not otherwise addressed, using established reference points such as: church, school, public buildings, bridges and others. "]
[]
[]
[]
[]
[]
[]
[]
[]
[]
[]
[]
[]
[]
[]
[]
[]
[]
[]
[]
[]
[]
[]
[]
[]
[]
[]
[]
[]
[]
[]
[]
[]
[]
[]
[]
[]
[]
[]
[]
[]
[]
[]
[]
[]
[]
[]
[]
[]
[]
[]
[]
[]
[]
[]
[]
[]
[]
[]
[]
[]
[]
[]
[]
[]
[]
[]
[]
[]
[]
[]
[]
[]
[]
[]
[]
[]
[]
[]
[]
[]
[]
[]
[]
[]
[]
[]
[]
[]
[]
[]
[]
[]
[]
[]
[]
[]
[]
[]
[]
[]
[]
[]
[]
[]
[]
[]
[]
[]
[]
[]
[]
[]
[]
[]
[]
[]
[]
[]
[]
[]
[]
[]
[]
[]
[]
[]
[]
[]
[]
[]
[]
[]
[]
[]
[]
[]
[]
[]
[]
[]
[]
[]
[]
[]
[]
[]
[]
[]
[]
[]
[]
[]
[]
[]
[]
[]
[]
[]
[]
[]
[]
[]
[]
[]
[]
[]
[]
[]
[]
[]
[]
[]
[]
[]
[]
[]
[]
[]
[]
[]
[]
[]
[]
[]
[]
[]
[]
[]
[]
[]
[]
[]
[]
[]
[]
[]
[]
[]
[]
[]
[]
[]
[]
[]
[]
[]
[]
[]
[]
[]
[]
[]
[]
[]
[]
[]
[]
[]
[]
[]
[]
[]
[]
[]
[]
[]
[]
[]
[]
[]
[]
[]
[]
[]
[]
[]
[]
[]
[]
[]
[]
[]
[]
[]
[]
[]
[]
[]
[]
[]
[]
[]
[]
[]
[]
[]
[]
[]
[]
[]
[]
[]
[]
[]
[]
[]
[]
[]
[]
[]
[]
[]
[]
[]
[]
[]
[]
[]
[]
[]
[]
[]
[]
[]
[]
[]
[]
[]
[]
[]
[]
[]
[]
[]
[]
[]
[]
[]
[]
[]
[]
[]
[]
[]
[]
[]
[]
[]
[]
[]
[]
[]
[]
[]
[]
[]
[]
[]
[]
[]
[]
[]
[]
[]
[]
[]
[]
[]
[]
[]
[]
[]
[]
[]
[]
[]
[]
[]
[]
[]
[]
[]
[]
[]
[]
[]
[]
[]
[]
[]
[]
[]
[]
[]
[]
[]
[]
[]
[]
[]
[]
[]
[]
[]
[]
[]
[]
[]
[]
[]
[]
[]
[]
[]
[]
[]
[]
[]
[]
[]
[]
[]
[]
[]
[]
[]
[]
[]
[]
[]
[]
[]
[]
[]
[]
[]
[]
[]
[]
[]
[]
[]
[]
[]
[]
[]
[]
[]
[]
[]
[]
[]
[]
[]
[]
[]
[]
[]
[]
[]
[]
[]
[]
[]
[]
[]
[]
[]
[]
[]
[]
[]
[]
[]
[]
[]
[]
[]
[]
[]
[]
[]
[]
[]
[]
[]
[]
[]
[]
[]
[]
[]
[]
[]
[]
[]
[]
[]
[]
[]
[]
[]
[]
[]
[]
[]
[]
[]
[]
[]
[]
[]
[]
[]
[]
[]
[]
[]
[]
[]
[]
[]
[]
[]
[]
[]
[]
[]
[]
[]
[]
[]
[]
[]
[]
[]
[]
[]
[]
[]
[]
[]
[]
[]
[]
[]
[]
[]
[]
[]
[]
[]
[]
[]
[]
[]
[]
[]
[]
[]
[]
[]
[]
[]
[]
[]
[]
[]
[]
[]
[]
[]
[]
[]
[]
[]
[]
[]
[]
[]
[]
[]
[]
[]
[]
[]
[]
[]
[]
[]
[]
[]
[]
[]
[]
[]
[]
[]
[]
[]
[]
[]
[]
[]
[]
[]
[]
[]
[]
[]
[]
[]
[]
[]
[]
[]
[]
[]
[]
[]
[]
[]
[]
[]
[]
[]
[]
[]
[]
[]
[]
[]
[]
[]
[]
[]
[]
[]
[]
[]
[]
[]
[]
[]
[]
[]
[]
[]
[]
[]
[]
[]
[]
[]
[]
[]
[]
[]
[]
[]
[]
[]
[]
[]
[]
[]
[]
[]
[]
[]
[]
[]
[]
[]
[]
[]
[]
[]
[]
[]
[]
[]
[]
[]
[]
[]
[]
[]
[]
[]
[]
[]
[]
[]
[]
[]
[]
[]
[]
[]
[]
[]
[]
[]
[]
[]
[]
[]
[]
[]
[]
[]
[]
[]
[]
[]
[]
[]
[]
[]
[]
[]
[]
[]
[]
[]
[]
[]
[]
[]
[]
[]
[]
[]
[]
[]
[]
[]
[]
[]
[]
[]
[]
[]
[]
[]
[]
[]
[]
[]
[]
[]
[]
[]
[]
[]
[]
[]
[]
[]
[]
[]
[]
[]
[]
[]
[]
[]
[]
[]
[]
[]
[]
[]
[]
[]
[]
[]
[]
[]
[]
[]
[]
[]
[]
[]
[]
[]
[]
[]
[]
[]
[]
[]
[]
[]
[]
[]
[]
[]
[]
[]
[]
[]
[]
[]
[]
[]
[]
[]
[]
[]
[]
[]
[]
[]
[]
[]
[]
[]
[]
[]
[]
[]
[]
[]
[]
[]
[]
[]
[]
[]
[]
[]
[]
[]
[]
[]
[]
[]
[]
[]
[]
[]
[]
[]
[]
[]
[]
[]
[]
[]
[]
[]
[]
[]
[]
[]
[]
[]
[]
[]
[]
[]
[]
[]
[]
[]
[]
[]
[]
[]
[]
[]
[]
[]
[]
[]
[]
[]
[]
[]
[]
[]
[]
[]
[]
[]
[]
[]
[]
[]
[]
[]
[]
[]
[]
[]
[]
[]
[]
[]
[]
[]
[]
[]
[]
[]
[]
[]
[]
[]
[]
[]
[]
[]
[]
[]
[]
[]
[]
[]
[]
[]
[]
[]
[]
[]
[]
[]
[]
[]
[]
[]
[]
[]
[]
[]
[]
[]
[]
[]
[]
[]
[]
[]
[]
[]
[]
[]
[]
[]
[]
[]
[]
[]
[]
[]
[]
[]
[]
[]
[]
[]
[]
[]
[]
[]
[]
[]
[]
[]
[]
[]
[]
[]
[]
[]
[]
[]
[]
[]
[]
[]
[]
[]
[]
[]
[]
[]
[]
[]
[]
[]
[]
[]
[]
[]
[]
[]
[]
[]
[]
[]
[]
[]
[]
[]
[]
[]
[]
[]
[]
[]
[]
[]
[]
[]
[]
[]
[]
[]
[]
[]
[]
[]
[]
[]
[]
[]
[]
[]
[]
[]
[]
[]
[]
[]
[]
[]
[]
[]
[]
[]
[]
[]
[]
[]
[]
[]
[]
[]
[]
[]
[]
[]
[]
[]
[]
[]
[]
[]
[]
[]
[]
[]
[]
[]
[]
[]
[]
[]
[]
[]
[]
[]
[]
[]
[]
[]
[]
[]
[]
[]
[]
[]
[]
[]
[]
[]
[]
[]
[]
[]
[]
[]
[]
[]
[]
[]
[]
[]
[]
[]
[]
[]
[]
[]
[]
[]
[]
[]
[]
[]
[]
[]
[]
[]
[]
[]
[]
[]
[]
[]
[]
[]
[]
[]
[]
[]
[]
[]
[]
[]
[]
[]
[]
[]
[]
[]
[]
[]
[]
[]
[]
[]
[]
[]
[]
[]
[]
[]
[]
[]
[]
[]
[]
[]
[]
[]
[]
[]
[]
[]
[]
[]
[]
[]
[]
[]
[]
[]
[]
[]
[]
[]
[]
[]
[]
[]
[]
[]
[]
[]
[]
[]
[]
[]
[]
[]
[]
[]
[]
[]
[]
[]
[]
[]
[]
[]
[]
[]
[]
[]
[]
[]
[]
[]
[]
[]
[]
[]
[]
[]
[]
[]
[]
[]
[]
[]
[]
[]
[]
[]
[]
[]
[]
[]
[]
[]
[]
[]
[]
[]
[]
[]
[]
[]
[]
[]
[]
[]
[]
[]
[]
[]
[]
[]
[]
[]
[]
[]
[]
[]
[]
[]
[]
[]
[]
[]
[]
[]
[]
[]
[]
[]
[]
[]
[]
[]
[]
[]
[]
[]
[]
[]
[]
[]
[]
[]
[]
[]
[]
[]
[]
[]
[]
[]
[]
[]
[]
[]
[]
[]
[]
[]
[]
[]
[]
[]
[]
[]
[]
[]
[]
[]
[]
[]
[]
[]
[]
[]
[]
[]
[]
[]
[]
[]
[]
[]
[]
[]
[]
[]
[]
[]
[]
[]
[]
[]
[]
[]
[]
[]
[]
[]
[]
[]
[]
[]
[]
[]
[]
[]
[]
[]
[]
[]
[]
[]
[]
[]
[]
[]
[]
[]
[]
[]
[]
[]
[]
[]
[]
[]
[]
[]
[]
[]
[]
[]
[]
[]
[]
[]
[]
[]
[]
[]
[]
[]
[]
[]
[]
[]
[]
[]
[]
[]
[]
[]
[]
[]
[]
[]
[]
[]
[]
[]
[]
[]
[]
[]
[]
[]
[]
[]
[]
[]
[]
[]
[]
[]
[]
[]
[]
[]
[]
[]
[]
[]
[]
[]
[]
[]
[]
[]
[]
[]
[]
[]
[]
[]
[]
[]
[]
[]
[]
[]
[]
[]
[]
[]
[]
[]
[]
[]
[]
[]
[]
[]
[]
[]
[]
[]
[]
[]
[]
[]
[]
[]
[]
[]
[]
[]
[]
[]
[]
[]
[]
[]
[]
[]
[]
[]
[]
[]
[]
[]
[]
[]
[]
[]
[]
[]
[]
[]
[]
[]
[]
[]
[]
[]
[]
[]
[]
[]
[]
[]
[]
[]
[]
[]
[]
[]
[]
[]
[]
[]
[]
[]
[]
[]
[]
[]
[]
[]
[]
[]
[]
[]
[]
[]
[]
[]
[]
[]
[]
[]
[]
[]
[]
[]
[]
[]
[]
[]
[]
[]
[]
[]
[]
[]
[]
[]
[]
[]
[]
[]
[]
[]
[]
[]
[]
[]
[]
[]
[]
[]
[]
[]
[]
[]
[]
[]
[]
[]
[]
[]
[]
[]
[]
[]
[]
[]
[]
[]
[]
[]
[]
[]
[]
[]
[]
[]
[]
[]
[]
[]
[]
[]
[]
[]
[]
[]
[]
[]
[]
[]
[]
[]
[]
[]
[]
[]
[]
[]
[]
[]
[]
[]
[]
[]
[]
[]
[]
[]
[]
[]
[]
[]
[]
[]
[]
[]
[]
[]
[]
[]
[]
[]
[]
[]
[]
[]
[]
[]
[]
[]
[]
[]
[]
[]
[]
[]
[]
[]
[]
[]
[]
[]
[]
[]
[]
[]
[]
[]
[]
[]
[]
[]
[]
[]
[]
[]
[]
[]
[]
[]
[]
[]
[]
[]
[]
[]
[]
[]
[]
[]
[]
[]
[]
[]
[]
[]
[]
[]
[]
[]
[]
[]
[]
[]
[]
[]
[]
[]
[]
[]
[]
[]
[]
[]
[]
[]
[]
[]
[]
[]
[]
[]
[]
[]
[]
[]
[]
[]
[]
[]
[]
[]
[]
[]
[]
[]
[]
[]
[]
[]
[]
[]
[]
[]
[]
[]
[]
[]
[]
[]
[]
[]
[]
[]
[]
[]
[]
[]
[]
[]
[]
[]
[]
[]
[]
[]
[]
[]
[]
[]
[]
[]
[]
[]
[]
[]
[]
[]
[]
[]
[]
[]
[]
[]
[]
[]
[]
[]
[]
[]
[]
[]
[]
[]
[]
[]
[]
[]
[]
[]
[]
[]
[]
[]
[]
[]
[]
[]
[]
[]
[]
[]
[]
[]
[]
[]
[]
[]
[]
[]
[]
[]
[]
[]
[]
[]
[]
[]
[]
[]
[]
[]
[]
[]
[]
[]
[]
[]
[]
[]
[]
[]
[]
[]
[]
[]
[]
[]
[]
[]
[]
[]
[]
[]
[]
[]
[]
[]
[]
[]
[]
[]
[]
[]
[]
[]
[]
[]
[]
[]
[]
[]
[]
[]
[]
[]
[]
[]
[]
[]
[]
[]
[]
[]
[]
[]
[]
[]
[]
[]
[]
[]
[]
[]
[]
[]
[]
[]
[]
[]
[]
[]
[]
[]
[]
[]
[]
[]
[]
[]
[]
[]
[]
[]
[]
[]
[]
[]
[]
[]
[]
[]
[]
[]
[]
[]
[]
[]
[]
[]
[]
[]
[]
[]
[]
[]
[]
[]
[]
[]
[]
[]
[]
[]
[]
[]
[]
[]
[]
[]
[]
[]
[]
[]
[]
[]
[]
[]
[]
[]
[]
[]
[]
[]
[]
[]
[]
[]
[]
[]
[]
[]
[]
[]
[]
[]
[]
[]
[]
[]
[]
[]
[]
[]
[]
[]
[]
[]
[]
[]
[]
[]
[]
[]
[]
[]
[]
[]
[]
[]
[]
[]
[]
[]
[]
[]
[]
[]
[]
[]
[]
[]
[]
[]
[]
[]
[]
[]
[]
[]
[]
[]
[]
[]
[]
[]
[]
[]
[]
[]
[]
[]
[]
[]
[]
[]
[]
[]
[]
[]
[]
[]
[]
[]
[]
[]
[]
[]
[]
[]
[]
[]
[]
[]
[]
[]
[]
[]
[]
[]
[]
[]
[]
[]
[]
[]
[]
[]
[]
[]
[]
[]
[]
[]
[]
[]
[]
[]
[]
[]
[]
[]
[]
[]
[]
[]
[]
[]
[]
[]
[]
[]
[]
[]
[]
[]
[]
[]
[]
[]
[]
[]
[]
[]
[]
[]
[]
[]
[]
[]
[]
[]
[]
[]
[]
[]
[]
[]
[]
[]
[]
[]
[]
[]
[]
[]
[]
[]
[]
[]
[]
[]
[]
[]
[]
[]
[]
[]
[]
[]
[]
[]
[]
[]
[]
[]
[]
[]
[]
[]
[]
[]
[]
[]
[]
[]
[]
[]
[]
[]
[]
[]
[]
[]
[]
[]
[]
[]
[]
[]
[]
[]
[]
[]
[]
[]
[]
[]
[]
[]
[]
[]
[]
[]
[]
[]
[]
[]
[]
[]
[]
[]
[]
[]
[]
[]
[]
[]
[]
[]
[]
[]
[]
[]
[]
[]
[]
[]
[]
[]
[]
[]
[]
[]
[]
[]
[]
[]
[]
[]
[]
[]
[]
[]
[]
[]
[]
[]
[]
[]
[]
[]
[]
[]
[]
[]
[]
[]
[]
[]
[]
[]
[]
[]
[]
[]
[]
[]
[]
[]
[]
[]
[]
[]
[]
[]
[]
[]
[]
[]
[]
[]
[]
[]
[]
[]
[]
[]
[]
[]
[]
[]
[]
[]
[]
[]
[]
[]
[]
[]
[]
[]
[]
[]
[]
[]
[]
[]
[]
[]
[]
[]
[]
[]
[]
[]
[]
[]
[]
[]
[]
[]
[]
[]
[]
[]
[]
[]
[]
[]
[]
[]
[]
[]
[]
[]
[]
[]
[]
[]
[]
[]
[]
[]
[]
[]
[]
[]
[]
[]
[]
[]
[]
[]
[]
[]
[]
[]
[]
[]
[]
[]
[]
[]
[]
[]
[]
[]
[]
[]
[]
[]
[]
[]
[]
[]
[]
[]
[]
[]
[]
[]
[]
[]
[]
[]
[]
[]
[]
[]
[]
[]
[]
[]
[]
[]
[]
[]
[]
[]
[]
[]
[]
[]
[]
[]
[]
[]
[]
[]
[]
[]
[]
[]
[]
[]
[]
[]
[]
[]
[]
[]
[]
[]
[]
[]
[]
[]
[]
[]
[]
[]
[]
[]
[]
[]
[]
[]
[]
[]
[]
[]
[]
[]
[]
[]
[]
[]
[]
[]
[]
[]
[]
[]
[]
[]
[]
[]
[]
[]
[]
[]
[]
[]
[]
[]
[]
[]
[]
[]
[]
[]
[]
[]
[]
[]
[]
[]
[]
[]
[]
[]
[]
[]
[]
[]
[]
[]
[]
[]
[]
[]
[]
[]
[]
[]
[]
[]
[]
[]
[]
[]
[]
[]
[]
[]
[]
[]
[]
[]
[]
[]
[]
[]
[]
[]
[]
[]
[]
[]
[]
[]
[]
[]
[]
[]
[]
[]
[]
[]
[]
[]
[]
[]
[]
[]
[]
[]
[]
[]
[]
[]
[]
[]
[]
[]
[]
[]
[]
[]
[]
[]
[]
[]
[]
[]
[]
[]
[]
[]
[]
[]
[]
[]
[]
[]
[]
[]
[]
[]
[]
[]
[]
[]
[]
[]
[]
[]
[]
[]
[]
[]
[]
[]
[]
[]
[]
[]
[]
[]
[]
[]
[]
[]
[]
[]
[]
[]
[]
[]
[]
[]
[]
[]
[]
[]
[]
[]
[]
[]
[]
[]
[]
[]
[]
[]
[]
[]
[]
[]
[]
[]
[]
[]
[]
[]
[]
[]
[]
[]
[]
[]
[]
[]
[]
[]
[]
[]
[]
[]
[]
[]
[]
[]
[]
[]
[]
[]
[]
[]
[]
[]
[]
[]
[]
[]
[]
[]
[]
[]
[]
[]
[]
[]
[]
[]
[]
[]
[]
[]
[]
[]
[]
[]
[]
[]
[]
[]
[]
[]
[]
[]
[]
[]
[]
[]
[]
[]
[]
[]
[]
[]
[]
[]
[]
[]
[]
[]
[]
[]
[]
[]
[]
[]
[]
[]
[]
[]
[]
[]
[]
[]
[]
[]
[]
[]
[]
[]
[]
[]
[]
[]
[]
[]
[]
[]
[]
[]
[]
[]
[]
[]
[]
[]
[]
[]
[]
[]
[]
[]
[]
[]
[]
[]
[]
[]
[]
[]
[]
[]
[]
[]
[]
[]
[]
[]
[]
[]
[]
[]
[]
[]
[]
[]
[]
[]
[]
[]
[]
[]
[]
[]
[]
[]
[]
[]
[]
[]
[]
[]
[]
[]
[]
[]
[]
[]
[]
[]
[]
[]
[]
[]
[]
[]
[]
[]
[]
[]
[]
[]
[]
[]
[]
[]
[]
[]
[]
[]
[]
[]
[]
[]
[]
[]
[]
[]
[]
[]
[]
[]
[]
[]
[]
[]
[]
[]
[]
[]
[]
[]
[]
[]
[]
[]
[]
[]
[]
[]
[]
[]
[]
[]
[]
[]
[]
[]
[]
[]
[]
[]
[]
[]
[]
[]
[]
[]
[]
[]
[]
[]
[]
[]
[]
[]
[]
[]
[]
[]
[]
[]
[]
[]
[]
[]
[]
[]
[]
[]
[]
[]
[]
[]
[]
[]
[]
[]
[]
[]
[]
[]
[]
[]
[]
[]
[]
[]
[]
[]
[]
[]
[]
[]
[]
[]
[]
[]
[]
[]
[]
[]
[]
[]
[]
[]
[]
[]
[]
[]
[]
[]
[]
[]
[]
[]
[]
[]
[]
[]
[]
[]
[]
[]
[]
[]
[]
[]
[]
[]
[]
[]
[]
[]
[]
[]
[]
[]
[]
[]
[]
[]
[]
[]
[]
[]
[]
[]
[]
[]
[]
[]
[]
[]
[]
[]
[]
[]
[]
[]
[]
[]
[]
[]
[]
[]
[]
[]
[]
[]
[]
[]
[]
[]
[]
[]
[]
[]
[]
[]
[]
[]
[]
[]
[]
[]
[]
[]
[]
[]
[]
[]
[]
[]
[]
[]
[]
[]
[]
[]
[]
[]
[]
[]
[]
[]
[]
[]
[]
[]
[]
[]
[]
[]
[]
[]
[]
[]
[]
[]
[]
[]
[]
[]
[]
[]
[]
[]
[]
[]
[]
[]
[]
[]
[]
[]
[]
[]
[]
[]
[]
[]
[]
[]
[]
[]
[]
[]
[]
[]
[]
[]
[]
[]
[]
[]
[]
[]
[]
[]
[]
[]
[]
[]
[]
[]
[]
[]
[]
[]
[]
[]
[]
[]
[]
[]
[]
[]
[]
[]
[]
[]
[]
[]
[]
[]
[]
[]
[]
[]
[]
[]
[]
[]
[]
[]
[]
[]
[]
[]
[]
[]
[]
[]
[]
[]
[]
[]
[]
[]
[]
[]
[]
[]
[]
[]
[]
[]
[]
[]
[]
[]
[]
[]
[]
[]
[]
[]
[]
[]
[]
[]
[]
[]
[]
[]
[]
[]
[]
[]
[]
[]
[]
[]
[]
[]
[]
[]
[]
[]
[]
[]
[]
[]
[]
[]
[]
[]
[]
[]
[]
[]
[]
[]
[]
[]
[]
[]
[]
[]
[]
[]
[]
[]
[]
[]
[]
[]
[]
[]
[]
[]
[]
[]
[]
[]
[]
[]
[]
[]
[]
[]
[]
[]
[]
[]
[]
[]
[]
[]
[]
[]
[]
[]
[]
[]
[]
[]
[]
[]
[]
[]
[]
[]
[]
[]
[]
[]
[]
[]
[]
[]
[]
[]
[]
[]
[]
[]
[]
[]
[]
[]
[]
[]
[]
[]
[]
[]
[]
[]
[]
[]
[]
[]
[]
[]
[]
[]
[]
[]
[]
[]
[]
[]
[]
[]
[]
[]
[]
[]
[]
[]
[]
[]
[]
[]
[]
[]
[]
[]
[]
[]
[]
[]
[]
[]
[]
[]
[]
[]
[]
[]
[]
[]
[]
[]
[]
[]
[]
[]
[]
[]
[]
[]
[]
[]
[]
[]
[]
[]
[]
[]
[]
[]
[]
[]
[]
[]
[]
[]
[]
[]
[]
[]
[]
[]
[]
[]
[]
[]
[]
[]
[]
[]
[]
[]
[]
[]
[]
[]
[]
[]
[]
[]
[]
[]
[]
[]
[]
[]
[]
[]
[]
[]
[]
[]
[]
[]
[]
[]
[]
[]
[]
[]
[]
[]
[]
[]
[]
[]
[]
[]
[]
[]
[]
[]
[]
[]
[]
[]
[]
[]
[]
[]
[]
[]
[]
[]
[]
[]
[]
[]
[]
[]
[]
[]
[]
[]
[]
[]
[]
[]
[]
[]
[]
[]
[]
[]
[]
[]
[]
[]
[]
[]
[]
[]
[]
[]
[]
[]
[]
[]
[]
[]
[]
[]
[]
[]
[]
[]
[]
[]
[]
[]
[]
[]
[]
[]
[]
[]
[]
[]
[]
[]
[]
[]
[]
[]
[]
[]
[]
[]
[]
[]
[]
[]
[]
[]
[]
[]
[]
[]
[]
[]
[]
[]
[]
[]
[]
[]
[]
[]
[]
[]
[]
[]
[]
[]
[]
[]
[]
[]
[]
[]
[]
[]
[]
[]
[]
[]
[]
[]
[]
[]
[]
[]
[]
[]
[]
[]
[]
[]
[]
[]
[]
[]
[]
[]
[]
[]
[]
[]
[]
[]
[]
[]
[]
[]
[]
[]
[]
[]
[]
[]
[]
[]
[]
[]
[]
[]
[]
[]
[]
[]
[]
[]
[]
[]
[]
[]
[]
[]
[]
[]
[]
[]
[]
[]
[]
[]
[]
[]
[]
[]
[]
[]
[]
[]
[]
[]
[]
[]
[]
[]
[]
[]
[]
[]
[]
[]
[]
[]
[]
[]
[]
[]
[]
[]
[]
[]
[]
[]
[]
[]
[]
[]
[]
[]
[]
[]
[]
[]
[]
[]
[]
[]
[]
[]
[]
[]
[]
[]
[]
[]
[]
[]
[]
[]
[]
[]
[]
[]
[]
[]
[]
[]
[]
[]
[]
[]
[]
[]
[]
[]
[]
[]
[]
[]
[]
[]
[]
[]
[]
[]
[]
[]
[]
[]
[]
[]
[]
[]
[]
[]
[]
[]
[]
[]
[]
[]
[]
[]
[]
[]
[]
[]
[]
[]
[]
[]
[]
[]
[]
[]
[]
[]
[]
[]
[]
[]
[]
[]
[]
[]
[]
[]
[]
[]
[]
[]
[]
[]
[]
[]
[]
[]
[]
[]
[]
[]
[]
[]
[]
[]
[]
[]
[]
[]
[]
[]
[]
[]
[]
[]
[]
[]
[]
[]
[]
[]
[]
[]
[]
[]
[]
[]
[]
[]
[]
[]
[]
[]
[]
[]
[]
[]
[]
[]
[]
[]
[]
[]
[]
[]
[]
[]
[]
[]
[]
[]
[]
[]
[]
[]
[]
[]
[]
[]
[]
[]
[]
[]
[]
[]
[]
[]
[]
[]
[]
[]
[]
[]
[]
[]
[]
[]
[]
[]
[]
[]
[]
[]
[]
[]
[]
[]
[]
[]
[]
[]
[]
[]
[]
[]
[]
[]
[]
[]
[]
[]
[]
[]
[]
[]
[]
[]
[]
[]
[]
[]
[]
[]
[]
[]
[]
[]
[]
[]
[]
[]
[]
[]
[]
[]
[]
[]
[]
[]
[]
[]
[]
[]
[]
[]
[]
[]
[]
[]
[]
[]
[]
[]
[]
[]
[]
[]
[]
[]
[]
[]
[]
[]
[]
[]
[]
[]
[]
[]
[]
[]
[]
[]
[]
[]
[]
[]
[]
[]
[]
[]
[]
[]
[]
[]
[]
[]
[]
[]
[]
[]
[]
[]
[]
[]
[]
[]
[]
[]
[]
[]
[]
[]
[]
[]
[]
[]
[]
[]
[]
[]
[]
[]
[]
[]
[]
[]
[]
[]
[]
[]
[]
[]
[]
[]
[]
[]
[]
[]
[]
[]
[]
[]
[]
[]
[]
[]
[]
[]
[]
[]
[]
[]
[]
[]
[]
[]
[]
[]
[]
[]
[]
[]
[]
[]
[]
[]
[]
[]
[]
[]
[]
[]
[]
[]
[]
[]
[]
[]
[]
[]
[]
[]
[]
[]
[]
[]
[]
[]
[]
[]
[]
[]
[]
[]
[]
[]
[]
[]
[]
[]
[]
[]
[]
[]
[]
[]
[]
[]
[]
[]
[]
[]
[]
[]
[]
[]
[]
[]
[]
[]
[]
[]
[]
[]
[]
[]
[]
[]
[]
[]
[]
[]
[]
[]
[]
[]
[]
[]
[]
[]
[]
[]
[]
[]
[]
[]
[]
[]
[]
[]
[]
[]
[]
[]
[]
[]
[]
[]
[]
[]
[]
[]
[]
[]
[]
[]
[]
[]
[]
[]
[]
[]
[]
[]
[]
[]
[]
[]
[]
[]
[]
[]
[]
[]
[]
[]
[]
[]
[]
[]
[]
[]
[]
[]
[]
[]
[]
[]
[]
[]
[]
[]
[]
[]
[]
[]
[]
[]
[]
[]
[]
[]
[]
[]
[]
[]
[]
[]
[]
[]
[]
[]
[]
[]
[]
[]
[]
[]
[]
[]
[]
[]
[]
[]
[]
[]
[]
[]
[]
[]
[]
[]
[]
[]
[]
[]
[]
[]
[]
[]
[]
[]
[]
[]
[]
[]
[]
[]
[]
[]
[]
[]
[]
[]
[]
[]
[]
[]
[]
[]
[]
[]
[]
[]
[]
[]
[]
[]
[]
[]
[]
[]
[]
[]
[]
[]
[]
[]
[]
[]
[]
[]
[]
[]
[]
[]
[]
[]
[]
[]
[]
[]
[]
[]
[]
[]
[]
[]
[]
[]
[]
[]
[]
[]
[]
[]
[]
[]
[]
[]
[]
[]
[]
[]
[]
[]
[]
[]
[]
[]
[]
[]
[]
[]
[]
[]
[]
[]
[]
[]
[]
[]
[]
[]
[]
[]
[]
[]
[]
[]
[]
[]
[]
[]
[]
[]
[]
[]
[]
[]
[]
[]
[]
[]
[]
[]
[]
[]
[]
[]
[]
[]
[]
[]
[]
[]
[]
[]
[]
[]
[]
[]
[]
[]
[]
[]
[]
[]
[]
[]
[]
[]
[]
[]
[]
[]
[]
[]
[]
[]
[]
[]
[]
[]
[]
[]
[]
[]
[]
[]
[]
[]
[]
[]
[]
[]
[]
[]
[]
[]
[]
[]
[]
[]
[]
[]
[]
[]
[]
[]
[]
[]
[]
[]
[]
[]
[]
[]
[]
[]
[]
[]
[]
[]
[]
[]
[]
[]
[]
[]
[]
[]
[]
[]
[]
[]
[]
[]
[]
[]
[]
[]
[]
[]
[]
[]
[]
[]
[]
[]
[]
[]
[]
[]
[]
[]
[]
[]
[]
[]
[]
[]
[]
[]
[]
[]
[]
[]
[]
[]
[]
[]
[]
[]
[]
[]
[]
[]
[]
[]
[]
[]
[]
[]
[]
[]
[]
[]
[]
[]
[]
[]
[]
[]
[]
[]
[]
[]
[]
[]
[]
[]
[]
[]
[]
[]
[]
[]
[]
[]
[]
[]
[]
[]
[]
[]
[]
[]
[]
[]
[]
[]
[]
[]
[]
[]
[]
[]
[]
[]
[]
[]
[]
[]
[]
[]
[]
[]
[]
[]
[]
[]
[]
[]
[]
[]
[]
[]
[]
[]
[]
[]
[]
[]
[]
[]
[]
[]
[]
[]
[]
[]
[]
[]
[]
[]
[]
[]
[]
[]
[]
[]
[]
[]
[]
[]
[]
[]
[]
[]
[]
[]
[]
[]
[]
[]
[]
[]
[]
[]
[]
[]
[]
[]
[]
[]
[]
[]
[]
[]
[]
[]
[]
[]
[]
[]
[]
[]
[]
[]
[]
[]
[]
[]
[]
[]
[]
[]
[]
[]
[]
[]
[]
[]
[]
[]
[]
[]
[]
[]
[]
[]
[]
[]
[]
[]
[]
[]
[]
[]
[]
[]
[]
[]
[]
[]
[]
[]
[]
[]
[]
[]
[]
[]
["\"-Ministerio de Hacienda, Órgano de Normalización Técnica, Edificio Mira, Zapote. 300 Oeste de Casa Presidencial-Autoria Ing. Nathalie Venegas Delgado-\""]

{"sheet":"#2","index":2,"n_rows":101,"n_cols":1,"rows_kept":101,"cut":false,"hidden":true,"merged":[[93,0,93,15],[27,0,27,15],[28,0,28,15],[29,0,29,15],[90,0,90,15],[66,0,66,15],[19,0,19,15],[76,0,76,15],[55,0,55,15],[56,0,56,15],[89,0,89,15],[33,0,33,15],[34,0,34,15],[48,0,48,15],[49,0,49,15],[50,0,50,15],[35,0,35,15],[45,0,45,15],[81,0,81,15],[82,0,82,15],[83,0,83,15],[84,0,84,15],[30,0,30,15],[31,0,31,15],[6,0,6,15],[7,0,7,15],[14,0,14,15],[0,0,0,15],[1,0,1,15],[2,0,2,15],[3,0,3,15],[4,0,4,15],[5,0,5,15],[9,0,9,15],[10,0,10,15],[11,0,11,15],[8,0,8,15],[12,0,12,15],[13,0,13,15],[15,0,15,15],[16,0,16,15],[17,0,17,15],[18,0,18,15],[36,0,36,15],[37,0,37,15],[38,0,38,15],[42,0,42,15],[43,0,43,15],[41,0,41,15],[26,0,26,15],[20,0,20,15],[21,0,21,15],[22,0,22,15],[23,0,23,15],[24,0,24,15],[25,0,25,15],[32,0,32,15],[100,0,100,15],[71,0,71,15],[60,0,60,15],[61,0,61,15],[62,0,62,15],[63,0,63,15],[64,0,64,15],[65,0,65,15],[68,0,68,15],[69,0,69,15],[70,0,70,15],[72,0,72,15],[73,0,73,15],[96,0,96,15],[97,0,97,15],[98,0,98,15],[91,0,91,15],[99,0,99,15],[94,0,94,15],[95,0,95,15],[92,0,92,15],[85,0,85,15],[86,0,86,15],[87,0,87,15],[59,0,59,15],[88,0,88,15],[77,0,77,15],[78,0,78,15],[79,0,79,15],[39,0,39,15],[40,0,40,15],[51,0,51,15],[47,0,47,15],[80,0,80,15],[54,0,54,15],[57,0,57,15],[52,0,52,15],[53,0,53,15],[46,0,46,15],[44,0,44,15],[67,0,67,15],[74,0,74,15],[75,0,75,15],[58,0,58,15]]}
["#2-Datos del Inmueble"]
["Propery details"]
[]
["Dirección Completa: Localización del inmueble con todos los puntos de referencia que permitan situar la finca. Las señas preferiblemente por calles, avenidas y número, o en caso contrario tomando como referencia puntos fijos y estables como: iglesia, escuela colegio, edificios públicos, puentes y otros."]
["Full Property Address: All the reference points that allow locating the property. The location preferably by streets, avenues and number, or if not otherwise addressed, using established reference points such as: church, school, public buildings, bridges and others"]
[]
["Medio de Notificación: Lugar o medio señalado para recibir las notificaciones, ya sea por correo electrónico, por fax, en casilleros, en estrados o por cualquier otra forma tecnológica que permita la seguridad del acto de comunicación."]
["Notification Preference: Place or means indicated to receive notifications, either by electronic mail, fax, in boxes, on podiums or by any other technological means that allows the security of the act of communication."]
[]
["Provincia / Cantón / Distrito: Primer número del número de finca indica la provincial en la cual está situada. Costa Rica está dividido en siete provincias {1=San José, 2=Alajuela, 3=Cartago, 4= Heredia, 5=Guanacaste, 6=Puntarenas, 7=Limón}, que a su vez están divididas en 81 cantones, cada uno de los cuales están dirigidos por un alcalde. Los alcaldes se escogen democráticamente cada 4 años por los residentes de cada cantón. Los cantones están divididos en distritos. Si la información es desconocida consulte al empleado municipal. "]
["Province / City / Districts: The first number in the property number designates the State/Province where the property is located. Costa Rica is composed of seven provinces {1=San José, 2=Alajuela, 3=Cartago, 4= Heredia, 5=Guanacaste, 6=Puntarenas, 7= Limón}, which in turn are divided into 81 Cities (\"cantón\" in Spanish, plural \"cantones\"), each of which is directed by a mayor. Mayors are chosen democratically every four years by the residents of each canton. The cantons are further divided into Districts. If the information is unknown consult the municipal employee. "]
[]
["Número de finca: Indica el número de finca de la cual se va a declarar el valor, empieza con el número de provincia seguido por seis números. Para las fincas inscritas se consigna el número asignado por el Registro Inmobiliario. Para fincas sin inscribir se deja en blanco. Si el número es desconocido consulte al empleado municipal. "]
["Property Number: Indicate the registered property number of which the value is going to be declared, it starts with the province number and is followed by six numbers. For propertys already registered, the number is assigned by the National Registry. If the number is unknown consult the municipal employee."]
[]
["Duplicado: Hay dos casos en que se ingresa el duplicado (A, B, C, D, etc).  En el 99% de los casos, esta letra no existe y debe ser dejado en blanco. 1- Existen casos en que dos números de finca fueron involuntariamente creados. Para solucionar estos casos se añadió una letra después del número de finca para diferenciarlos. 2-Para las concesiones se ingresa una “Z” en el campo de duplicado, siempre es requerido para la concesión."]
["Duplicate: There are two cases where you will need to enter a duplicate (A, B, C, D, etc).  In 99.9% of cases, this letter will not exist and should be left blank. 1-There are rare cases where two identical property numbers were unintentionally created.  In order to remedy these situations, a letter is added after the Property´s Number to differentiate between the two. 2-For all concessions, a “Z” will be entered in the duplicate field, “Z” is required for all concessions. "]
[]
["Horizontal: Con frecuencia una F (filial) o una M (Matriz) se agrega al número de finca. Estos generalmente están asociados con condominios u edificios de oficinas de varios pisos. Esta letra puede o no existir en la finca, si no es así, debe dejarse en blanco. "]
["Affiliate Owners: Oftentimes an F (Affiliate Owners) or an M (Primary Property Numer) is added into the property’s number. These are usually associated with condominiums or office buildings with multiple floors. This letter may or may not exist in the property´s number.  If it does not, it should be left blank. "]
[]
["#Derecho: Representa el derecho de uso entre varios derechos de la propiedad. El 90% del tiempo va a ser -000, esto denota que posee el 100% de la propiedad. Sin embargo, hay casos en que se otorgarán múltiples derechos en la misma propiedad. Por ejemplo, decido comprar un terreno de 100m2 con mis 3 hermanos. Acordamos tomar 200m2 para construir nuestras casas individuales, y dejar los 200m2 restantes para una piscina a la que todos compartiremos acceso.  El número de finca puede verse así: 01-523554-001, 01-523554-002, 01-523554-003, 01-523554-004. De esta manera, cada uno de nuestros intereses está protegido porque tenemos un 25% (este es el porcentaje de propiedad) de toda la propiedad. Puedo vender mi casa en cualquier momento y transferir mi derecho a otra persona/sociedad. DEBE LLENARSE UN FORMULARIO POR CADA DERECHO. "]
["Owner number: Represent a percentage/portion of usage among a number of other percentage/portion of usage on the property.  90% of the time, this number will be -000.  This denotes full ownership of the property in question. However there are cases where multiple percenetages of use will be issued to the same property.  For example, I decide to buy a 1000 m2 tract of land with my 3 brothers.  We agree to take 200m2 to build our individual houses, and leave the remaining 200m2 for a swimming pool to which we all share access.  The property’s number may look like this: 01-523554-001, 01-523554-002, 01-523554-003, 01-523554-004.  In this way, each of our interests are protected because we have a 25% (this is the ownership percentage) of land’s claim as a whole.  I can sell my house at any time and transfer that right to another party. A FORM MUST BE COMPLETED FOR EACH RIGHT "]
[]
["N° Co-propietarios: Indica cuantos co-propietarios hay en total."]
["#Co-ownership: Indicate how many co-owners there are in total."]
[]
["% Posesión: Cuando la finca pertenece a un único propietario, se tiene un 100% de posesión. Si la finca está en derechos, se indicará en términos porcentuales la porción que corresponde a cada uno. En estos casos se llenan hojas diferentes, un para cada copropietario. Cuando la proporción de los derechos se expresa de otra forma, como por ejemplo en fracciones, proporción en colones o proporción en área se transformará a términos porcentuales. Ejm:\n\nFracción=Dueño de 13/54 en la finca Proporción= 24%\nColones=Dueño de 124.73 proporcional a 150.00 colones en la finca\nProporción=Dueño de 100 proporcional a 800 Colones en la finca  Proporción= 12,5%"]
["Property’s Stake: When the property belongs to a single owner, you have 100% possession. If the property has several owners, the portion that corresponds to each one will be indicated in percentage terms. In these cases, use a form for every co-owner. When the proportion is expressed in another way, for example in fractions, proportion in Colons (¢) or proportion in area will be transformed into percentage terms. Example:\n\nFraction = Owner of 13/54 in the property Proportion = 24%\nColons = Owner of 124.73 proportional to 150.00 colons on the property proportion.\nProportion = Owner of 100 proportional to 800 Colons on the property Proportion = 12.5%"]
[]
["%Condominio: Haga esto solo si la propiedad este dentro de un condominio, en este caso indique el porcentaje que reclama las áreas comunes del condominio. "]
["Common area ownership %: Do this only if the real estate is within a condominium, in that case indicate the percentage it claims of the common areas of the condominium "]
[]
["Área: Área en metros cuadrados de la finca, de preferencia se utilizará el área según el registro inmobiliario (siempre es importante analizar la información registrada) pero, sino se dispone de este dato se utilizar la información del plano catastrado. En caso de derechos, indique el área total de la propiedad. "]
["Area: Indicate the registry area of the land to be declared (you can check the information on the Registered Deed # or in the Costa Rica National Register information). In the case of several property owners indicate the total area of the property."]
[]
["N° Plano Catastro: Es el Número de catastro asignado al plano. Si solamente existe un plano sin catastrar, se escribirá “sin catastrar” y si del todo no existe un plano para la finca se escribirá “sin plano”, pero en estas dos últimas condiciones la municipalidad debe prestar especial cuidado par que no se produzca una superposición de planos en relación con otras fincas, identificando a los colindantes y las áreas de sus respectivos inmuebles o por medio del mapa catastral cuando se cuente con él."]
["Registered Deed #: It is the assigned property map number. If there is only one drawing without cadastral register, it will be written \"Unofficial\" and if there is no property drawing it will be written \"No Plan\", but in these last two conditions the municipality must pay special attention to the position of properties in relation to other properties, drawing or checking the Geographical Information System (GIS) in case that exist."]
[]
["Inscrito: Si la propiedad está registrada en el Registro Nacional de Costa Rica, marque “SI”, de lo contrario marque “NO”."]
["Registered: If the property is registered in the Costa Rican National Registry, mark \"YES\". Otherwise mark \"NO\". "]
[]
["Usufructo: Derecho real de disfrute de alguien que tiene en una propiedad que pertenece a otra persona, por un cierto tiempo o de por vida. "]
["Usufruct: The real right of somone to enjoy the property that belongs to another person, for a certain time or for life."]
[]
["Dominio: El uso, disfrute o disposición del patrimonio, unidos en una persona que es el propietario. "]
["Domain: The use, enjoyment or dispostion of the property, united in one person who is the owner."]
[]
["Información Posesoria: El poseedor de bienes raíces que careciere de título inscrito (Ley de información posesoria) o inscribible en el Registro Público"]
["Land possession: A real estate holder who lacks a registered title (Possessory Information Act) or who is registrable in the Public Registry."]
[]
["Parcela del INDER: Pueden ser personas físicas y jurídicas, estas últimas sin fines de lucro, integradas a los procesos de desarrollo rural derivados de la aplicación de la ley 9036"]
["INDER plot: They may be natural or legal persons, the latter being non-profit, integrated into the rural development processes arising from the application of Law 9036."]
[]
["Ocupación en Precario: Permiso de uso del dominio público, y los demás actos que reconozcan a un administrado un derecho expresa y válidamente a título precario."]
["Precarious: Permission to use the public domain, and other acts that recognize an administered a right expressly and validly precarious title."]
[]
["Zona Maritimo:La zona marítimo terrestre constituye parte del patrimonio nacional, pertenece al Estado y es inalienable e imprescriptible. La zona marítimo terrestre se compone de dos secciones: la ZONA PUBLICA, que es la faja de cincuenta metros de ancho a contar de la pleamar ordinaria, y las áreas que quedan al descubierto durante la marea baja; y la ZONA RESTRINGIDA, constituida por la franja de los ciento cincuenta metros restantes, o por los demás terrenos en caso de islas."]
["Marine Area: The terrestrial maritime zone constitutes part of the national patrimony, belongs to the State and is inalienable and imprescriptible. The terrestrial maritime zone is made up of two sections: the PUBLIC ZONE, which is the fifty-metre wide strip from the ordinary high tide, and the areas that are exposed during low tide; and the RESTRICTED ZONE, made up of the one hundred and fifty-metre remaining strip, or the other land in the case of islands."]
[]
["Uso Actual: Indicar si es un inmueble vacante, residencial, comercial, industrial, mixto, turístico, educacional, recreativo, religioso, en proceso de construcción o agropecuario. En caso que la propiedad tenga 2 usos poner el predominante y en las observaciones poner los otros usos que tenga."]
["Current Use: Indicate whether the property is vacant, residential, commercial, industrial, mixed, tourist, educational, recreational, religious, under construction or agricultural. In case the property has 2 uses put the predominant and in the observations put the other uses it has."]
[]
["Área de la actividad: Exclusivamente cuando se indica un uso actual agropecuario, se debe indicar el área utilizada para tal propósito."]
["Agricultural area: Only when it is designated agricultural use, you must indicate the specific area used for such purpose."]
[]
["Tipo de actividad agropecuaria: Exclusivamente cuando se indica un uso actual agropecuario, se debe indicar el tipo de actividad utilizada para tal propósito. Si la opción corresponde a otros debe llenar en el espacio dela actividad \" ** \" ."]
["Farming type: Only when it is desginated agricultural use, you must indicate the farming type for such purpose. If the option corresponds to others, then you must fill in theactivity (**) "]
[]
["Valor del Terreno Privado: Indicar el valor de la propiedad a declarar. "]
["Value of the private Land: Indicate the total value of the land to be declared."]
[]
["Valor Total Terreno Común en Condominio: Se refiere a la parte de terreno que pasa a ser propiedad de todos los condóminos y se destina a uso general y no soportan ninguna construcción. Debe indicar el valor total del terreno común"]
["Total value of common land(condominium): Refers to the part of the land that becomes property of all the condominium owners and is intended for general use and can not be constructed upon. Indicate the total value of the common ground."]
["Nivel: Se refiere a la diferencia de nivel del inmueble en relación con la vía pública a la que tiene frente, en metros lineales. Debe indicar si esta sobre/a nivel/ bajo,  es positivo (+) cuando el inmueble está sobre nivel, negativo (-) cuando es bajo nivel y cero (0) cuando está al nivel de la vía."]
["Access Level (m): It’s the property height difference relative to the road. Indicate if it is above/ even / low, is positive (+) when the property is above level, negative (-) when it is below level and zero (0) when it is even."]
[]
["Pendiente: Indique la pendiente. Se expresa en términos porcentuales. Así, un terreno con una inclinación de 45 grados tiene una pendiente del 100%. Para determinar la pendiente de una finca en particular se puede utilizar un clinómetro o bien en terrenos de mayor extensión, las hojas cartográficas del Instituto Geográfico Nacional o cualquier otro que indique las curvas de nivel. En el espacio porcentual, indique si son planos (0-3%), Ligeramente ondulados (3-8%), Moderadamente ondulados (8-15%), Ondulado (15-30%), Fuertemente Ondulado (30- 60%), Escarpado (60- 75%) y muy empinados (más del 75%)"]
["Land Slope: Indicate the slope. It is expressed in percentage terms. Thus, a terrain with a slope of 45 degrees has a slope of 100%. In order to determine the slope of a particular farm, a clinometer can be used, either on larger lands, the cartographic sheets of the National Geographic Institute or any other that indicates the contour lines. In the percentage space, indicate if they are flat (0-3%), Slightly wavy (3-8%), Moderately wavy (8-15%), Wavy (15-30%), Strongly wavy (30- 60%), Steep (60- 75%) and very steep (more than 75%)."]
[]
["Vía: Según la clasificación dada por el O.N.T Se refiere al tipo de vía que permite el acceso al inmueble, el cual indica la calidad del material e importancia de la vía."]
["Road: According to the classification given by the O. N. T Refers to the type of road that allows access to the property, which indicates the quality of the material and importance of the track."]
[]
["Servicios Públicos 1 (SP1): (Acera, Cordón y Caño) y Servicios Públicos 2 (SP2): (Cañería, electricidad, teléfono y alumbrado) se indicará si el inmueble tiene acceso o no a estos servicios, se marca en el cuadro derecho si tiene acceso de lo contrario no se marca."]
["Public Services 1 (SP1): (Sidewalk, Curb and Street Gutter) and Public Services 2 (SP2): (Water Pipe, electricity, telephone and public street lighting) will indicate whether the property has access to these services or not, is marked in the right box if it has access otherwise it is not marked"]
[]
["Regularidad: Es la forma del lote con respecto a una forma de un cuadrado o rectángulo perfecto. Resulta aconsejable tomarla del plano catastrado, de las hojas catastrales o de la fotografía aérea. Si no se dispone de estas herramientas, el funcionario municipal debe estimarla en el campo. Se define como forma o configuración del menor rectángulo circunscrito, el código va de 0.1 a 1, siendo 1=Regular. Si no sabe cómo calcularlo consulte al empleado municipal."]
["Regularity: It is the property shape in respect to a perfect square or rectangle. It is advisable to take it from the cadastral map, the cadastral sheets or the aerial photograph. If these tools are not available, the municipal employee should estimate them in the field. It is defined as the shape or configuration of the circumscribed rectangle, the code goes from 0.1 to 1, with 1 = Regular. If you do not know how to calculate it, consult a municipal employee. "]
[]
["Uso de Suelo: Según la clasificación del O.N.T se refiere a la capacidad de uso de suelo en actividades agropecuarias y forestales. Esta información es exclusiva para fincas rurales. Se refiere a las condiciones agrológicas del inmueble (fertilidad y laboralidad del suelo. Se clasifica en ocho clases, según su utilidad en la agricultura anual, perenne, ganadería, utilización del bosque y bosque de protección; se toma en cuenta la necesidad de usar prácticas de manejo y conservación de suelos, la topografía, humedad, viendo, pedregosidad y temperatura de la zona, entre otros. Se clasifica como (1) el inmueble que presente las mejores condiciones y como (8), el que contenga la mayor cantidad de limitantes."]
["Land Use: According to the O.N.T classification refers to the capacity of land use in agricultural and forestry activities. This information is exclusive for rural farms. It refers to the agrological conditions of the property (fertility and soil productivity) It is classified into eight classes, according to its usefulness in annual agriculture, perennial, livestock, forest use and protection forest, taking into account the need to use practices of management and conservation of soils, topography, humidity, seeing, stoniness and temperature of the area, among others.It is classified as (1) the property that presents the best conditions and as (8), the one that contains the greatest amount of limitations."]
[]
["Condiciones Hidrológicas: Según la clasificación del O.N.T, estima la disponibilidad de agua para distintos propósitos: agrícola, pecuario, etc. Las fuentes de abastecimiento de agua que posea el inmueble: Agua de lluvia, de ríos, canales o paja de agua, pozo y cañería, además se considera el régimen de lluvias de la zona donde está ubicado el predio. Es importante solamente en inmuebles localizados en zonas rurales. "]
["Hydrological Conditions: According to the O.N.T classification, it estimates the availability of water for different purposes: agricultural, livestock, etc. The sources of water supply that the property possesses: rainwater, rivers, canals or water straw, well and pipe, plus the rainfall regime of the area where the property is located. It is important only in buildings located in rural areas."]
[]
["Frente: Frente principal por donde se accesa a la propiedad, o el acceso principal en caso de que la finca tenga varios frentes, en el caso de lotes vacantes se utilizará el frente a la vía principal, siempre y cuando exista un acceso directo a la misma y se medirá en metros lineales, se puede utilizar lo indicado en el plano catastrado disponible o que se derive de la inspección de campo. "]
["Front: Main front where the property is accessed, or the main access in case the farm has several fronts, in the case of vacant lots the front of the main road will be used, as long as there is direct access to the same and will be measured in linear meters, you can use what is indicated in the available cadastral map or that is derived from the field inspection."]
[]
["Ubicación: Es la ubicación de la finca con relación a la esquinas o cuadras dividido de la siguiente manera: 1. Todo el bloque, 2. Tres frentes juntos a la calle pública, 3. Dos frentes juntos a la calle pública, 4. Dos frentes separados a la calle pública, 5- Un frente a la calle pública, 6- lote ubicado en el callejón lateral, 7 - Callejón en el fondo."]
["Site location: It is the location of a lot with respect to its total number of entrances in the urban quadrant. 1. The whole block, 2. Three fronts together to public Street, 3. Two fronts together to public Street, 4. Two separate fronts to public Street, 5- One front to public Street, 6- lot located in a side alley, 7- Alley in the background."]
["\"-Ministerio de Hacienda, Órgano de Normalización Técnica, Edificio Mira, Zapote. 300 Oeste de Casa Presidencial-Autoria Ing. Nathalie Venegas Delgado-\""]

{"sheet":"#3","index":3,"n_rows":1048568,"n_cols":14,"rows_kept":4500,"cut":true,"hidden":true,"merged":[[23,0,23,15],[62,0,62,15],[1048567,0,1048567,15],[40,0,40,15],[41,0,41,15],[42,0,42,15],[46,0,46,15],[47,0,47,15],[36,13,36,15],[35,13,35,15],[54,0,54,15],[55,0,55,15],[57,0,57,15],[37,0,37,15],[36,1,36,4],[33,13,33,15],[48,0,48,15],[39,0,39,15],[43,0,43,15],[44,0,44,15],[36,5,36,8],[36,9,36,12],[60,0,60,15],[61,0,61,15],[52,0,52,15],[51,0,51,15],[53,0,53,15],[56,0,56,15],[59,0,59,15],[58,0,58,15],[64,0,64,15],[65,0,65,15],[32,1,32,4],[27,5,27,8],[32,5,32,8],[27,9,27,12],[28,9,28,12],[29,9,29,12],[30,9,31,12],[29,5,29,8],[30,5,31,8],[28,5,28,8],[32,9,32,12],[33,5,33,8],[34,5,34,8],[35,5,35,8],[66,0,66,15],[24,0,24,15],[25,0,25,15],[27,1,27,4],[28,1,28,4],[27,13,27,15],[28,13,28,15],[26,0,26,15],[29,1,29,4],[30,1,31,4],[34,1,34,4],[35,1,35,4],[45,0,45,15],[33,1,33,4],[49,0,49,15],[63,0,63,15],[17,0,17,15],[18,0,18,15],[19,0,19,15],[20,0,20,15],[21,0,21,15],[35,9,35,12],[33,9,33,12],[29,13,29,15],[30,13,31,15],[32,13,32,15],[34,13,34,15],[34,9,34,12],[67,0,67,15],[30,0,31,0],[16,0,16,15],[5,0,5,15],[6,0,6,15],[7,0,7,15],[8,0,8,15],[9,0,9,15],[10,0,10,15],[11,0,11,15],[12,0,12,15],[13,0,13,15],[14,0,14,15],[15,0,15,15],[22,0,22,15],[38,0,38,15],[0,0,0,15],[1,0,1,15],[2,0,2,15],[3,0,3,15],[4,0,4,15]],"bounds":{"rows_first":2000,"rows_last":500,"rows_between":2000,"halvings":0}}
["#3- Detalles de Construcción"]
["Construction Details "]
[]
["Edad: Indica la edad en años de cada construcción(es), instalación(es) u obras complementarias. "]
["Age: Indicate the age in years for each structure. "]
[]
["Paredes: Indica el material usado en las paredes de cada construcción. "]
["Walls: Indicate the material used in the walls of each structure."]
[]
["Piso: Indica el material usado para los pisos de cada construcción. "]
["Flooring: Indicate the materials used in the floors of each structure. "]
[]
["Cieloraso: indica los materiales usados para el cielo raso de casa construcción. "]
["Ceiling: Indicate the materials used in the ceilings of each structure."]
[]
["Baños: Indique cuantos baños existen en la estructura, si el baño es solamente inodoro y lavamanos es considerado como “medio baño”."]
["Bathrooms: Indicate how many bathrooms are in the structure, if the bathroom only has a toilet and sink, then it is considered a \"half bath\"."]
[]
["Techo: Indica el material usado para el techo de cada construcción. "]
["Roof: Indicate the materials used in the roof of each structure. "]
[]
["#Nivel: Indica la cantidad de plantas/pisos que existen en la construcción."]
["Floors/Levels: Indicate how many floors/levels are in the structure."]
[]
["Material predominante: En los cuadros anteriores debe indicar el número que corresponde a la mayoría de los materiales de construcción en cada construcción."]
["Predominant Material: In the previous boxes you have to indicate the number that corresponds to the majority of construction materials in every structure."]
[]
["#","Paredes Walls",null,null,null,"Pisos Flooring",null,null,null,"Cielo Raso Ceiling",null,null,null,"Techo Roof"]
[1,"Block",null,null,null,"Madera Wood",null,null,null,"Madera Aglomerada Chipboard",null,null,null,"Lámina de hierro galvanizado (Zinc) Galvanized iron sheet"]
[2,"Ladrillo Brick",null,null,null,"Cascote Rubble",null,null,null,"Madera Laminada Laminated Wood",null,null,null,"Teja de barro cocido Clay tile"]
[3,"Prefabricado Prefabricated",null,null,null,"Mosaico Mosaic",null,null,null,"Fibro-cemento Fibre-cement",null,null,null,"Esmaltada, estructural\n Enameled, structural"]
[]
[4,"Concreto armado Reinforced Concrete",null,null,null,"Terrazo Terrazzo",null,null,null,"Tablilla Clapboard",null,null,null,"Otro (especificar)  Other (specify)"]
[5,"Madera Wood",null,null,null,"Cerámic Ceramic",null,null,null,"Yeso Cast"]
[6,"Hierro Galvanizado Galvanized Iron",null,null,null,"Porcelanato Porcelain",null,null,null,"Artesanado Craft"]
[7,"Fibro-cemento Fibre-cement",null,null,null,"Mármol Marble",null,null,null,"Losa Concreto Concrete Slab"]
[8,"Otro (especificar)  Other (specify)",null,null,null,"Otro (especificar)  Other (specify)",null,null,null,"Otro (especificar)  Other (specify)"]
[]
["Área total: Indica el área total en metros cuadrados de cada construcción."]
["Total area: Indicate the total area, in square meters, of each structure. "]
[]
["Remodelación: En caso que la construcción tenga una remodelación marque la celda, y en las observaciones detalle los cambios realizados asi como los años de la remodelación, ya sea uno o varios."]
["Remodeling: If the building has a remodel mark the cell, and in the observations detail the changes made as well as the years of the remodel, either one or more."]
[]
["Valor ¢: Indica el valor total que será asignado a cada construcción. "]
["Value ¢: Indicate the total value that will be assigned to each structure. "]
[]
["Marcar \"X\" si es constr común condo: En caso de que la propiedad este localizada dentro de un condominio y tenga construcciones de uso general o restringido, según se destinen al uso y aprovechamiento de todas las filiales o sólo a algunas de ellas, Las cosas comunes pertenecen a todos los titulares del condominio, quienes tienen en ellas un derecho proporcional al porcentaje que representa el área fijada para su finca filial dentro del condominio (art.9), incluye terreno, construcciones, instalaciones y obras complementarias. Si desconoce los datos construcciones consulte al empleado municipal. \n"]
["Mark \"X\" if it is common condo constr: In the event that the property is located within a condominium and has constructions of general or restricted use, depending on whether they are intended for the use and exploitation of all the affiliates or only some of them, the common things belong to all the owners of the condominium, who have in them a proportional right to the percentage represented by the area set for their filial property within the condominium (art. 9), including land, constructions, installations and complementary works. If you do not know the construction data, consult the municipal employee."]
[]
[]
["Uso Municipal"]
["Municipal Use Only"]
[]
["Estado: Es el estado de conservación en que se encuentra cada estructura.  Seleccione “OP” óptimo, “MB” muy Bueno, “I” intermedio, “R” regular, “D” deficiente, “M” malo, “MM” muy malo y “DM” demolición."]
["Condition: It is the state of conservation in which each structure is located. Select \"OP\" optimal, \"MB\" very good, \"B\" good, \"I\" intermediate, \"R\" regular, \"D\" deficient, \"M\" bad, \"MM\" very bad and \"DM\" demolition."]
[]
["Tipología Constructiva: La tipología es definida acorde a las características de la construcción. El manual de valores base por tipología constructiva que elabora y publica en la gaceta el Órgano de Normalización Técnica, contiene los códigos asignados a cada una de las construcciones, instalaciones y obras complementarias y la descripción de cada uno de ellos. Para cada construcción se detallan los materiales, para las instalaciones y obras complementarias se hace una descripción general.     "]
["Typology: The typology is defined according to the characteristics of the construction. The manual of basic values by constructive typology elaborates and publishes in the official newspaper of Costa Rica by the Organ of Technical Normalization, contains the codes assigned to each one of the constructions, installations and complementary works and the description of each one of them. For each construction the materials are detailed, for the installations and complementary works a general description is made."]
[]
["Vida útil: Vida útil de la estructura se refiere a la vida total probable que tenga el bien y es acorde al Manual de Valores Base Unitarios por Tipología Constructiva brindado por el Ministerio de Hacienda- Órgano de Normalización Técnica. Los años pueden ser extendidos a criterio pericial."]
["Lifespan: Lifespan of the structure refers to the total probable life according to the Manual of Unit Base Values by Constructive Typology provided by the Ministerio de Hacienda-Órgano de Normalización Técnica. The years can be extended by a valuation expert."]
[]
["Valor de la Construcción Privada: Automáticamente suma el valor de todas las construcciones que se agregaron anteriormente."]
["Value of private construction: Automatically add the value of all the construccions that were added previously."]
[]
["Valor Total Construcción Común en Condominio: Indique en el cuadro a la par del valor una “x” en caso de que la construcción corresponda a las construcciones que quedan en copropiedad, son áreas indivisibles y de uso general y común. De esta forma será sumado en esta casilla y determina el valor que le corresponde por el porcentaje de condominio. "]
["Total Value of Common Condo Construction: Indicate in the space next to the value an “x” if the construction corresponds to the constructions that remain in co-ownership, these are  indivisible areas and have a general and common use. To be added in this box and determine the total value. In this way it will be added in this box and it determines the value that corresponds to the condominium percentage."]
[]
[]
[]
[]
[]
[]
[]
[]
[]
[]
[]
[]
[]
[]
[]
[]
[]
[]
[]
[]
[]
[]
[]
[]
[]
[]
[]
[]
[]
[]
[]
[]
[]
[]
[]
[]
[]
[]
[]
[]
[]
[]
[]
[]
[]
[]
[]
[]
[]
[]
[]
[]
[]
[]
[]
[]
[]
[]
[]
[]
[]
[]
[]
[]
[]
[]
[]
[]
[]
[]
[]
[]
[]
[]
[]
[]
[]
[]
[]
[]
[]
[]
[]
[]
[]
[]
[]
[]
[]
[]
[]
[]
[]
[]
[]
[]
[]
[]
[]
[]
[]
[]
[]
[]
[]
[]
[]
[]
[]
[]
[]
[]
[]
[]
[]
[]
[]
[]
[]
[]
[]
[]
[]
[]
[]
[]
[]
[]
[]
[]
[]
[]
[]
[]
[]
[]
[]
[]
[]
[]
[]
[]
[]
[]
[]
[]
[]
[]
[]
[]
[]
[]
[]
[]
[]
[]
[]
[]
[]
[]
[]
[]
[]
[]
[]
[]
[]
[]
[]
[]
[]
[]
[]
[]
[]
[]
[]
[]
[]
[]
[]
[]
[]
[]
[]
[]
[]
[]
[]
[]
[]
[]
[]
[]
[]
[]
[]
[]
[]
[]
[]
[]
[]
[]
[]
[]
[]
[]
[]
[]
[]
[]
[]
[]
[]
[]
[]
[]
[]
[]
[]
[]
[]
[]
[]
[]
[]
[]
[]
[]
[]
[]
[]
[]
[]
[]
[]
[]
[]
[]
[]
[]
[]
[]
[]
[]
[]
[]
[]
[]
[]
[]
[]
[]
[]
[]
[]
[]
[]
[]
[]
[]
[]
[]
[]
[]
[]
[]
[]
[]
[]
[]
[]
[]
[]
[]
[]
[]
[]
[]
[]
[]
[]
[]
[]
[]
[]
[]
[]
[]
[]
[]
[]
[]
[]
[]
[]
[]
[]
[]
[]
[]
[]
[]
[]
[]
[]
[]
[]
[]
[]
[]
[]
[]
[]
[]
[]
[]
[]
[]
[]
[]
[]
[]
[]
[]
[]
[]
[]
[]
[]
[]
[]
[]
[]
[]
[]
[]
[]
[]
[]
[]
[]
[]
[]
[]
[]
[]
[]
[]
[]
[]
[]
[]
[]
[]
[]
[]
[]
[]
[]
[]
[]
[]
[]
[]
[]
[]
[]
[]
[]
[]
[]
[]
[]
[]
[]
[]
[]
[]
[]
[]
[]
[]
[]
[]
[]
[]
[]
[]
[]
[]
[]
[]
[]
[]
[]
[]
[]
[]
[]
[]
[]
[]
[]
[]
[]
[]
[]
[]
[]
[]
[]
[]
[]
[]
[]
[]
[]
[]
[]
[]
[]
[]
[]
[]
[]
[]
[]
[]
[]
[]
[]
[]
[]
[]
[]
[]
[]
[]
[]
[]
[]
[]
[]
[]
[]
[]
[]
[]
[]
[]
[]
[]
[]
[]
[]
[]
[]
[]
[]
[]
[]
[]
[]
[]
[]
[]
[]
[]
[]
[]
[]
[]
[]
[]
[]
[]
[]
[]
[]
[]
[]
[]
[]
[]
[]
[]
[]
[]
[]
[]
[]
[]
[]
[]
[]
[]
[]
[]
[]
[]
[]
[]
[]
[]
[]
[]
[]
[]
[]
[]
[]
[]
[]
[]
[]
[]
[]
[]
[]
[]
[]
[]
[]
[]
[]
[]
[]
[]
[]
[]
[]
[]
[]
[]
[]
[]
[]
[]
[]
[]
[]
[]
[]
[]
[]
[]
[]
[]
[]
[]
[]
[]
[]
[]
[]
[]
[]
[]
[]
[]
[]
[]
[]
[]
[]
[]
[]
[]
[]
[]
[]
[]
[]
[]
[]
[]
[]
[]
[]
[]
[]
[]
[]
[]
[]
[]
[]
[]
[]
[]
[]
[]
[]
[]
[]
[]
[]
[]
[]
[]
[]
[]
[]
[]
[]
[]
[]
[]
[]
[]
[]
[]
[]
[]
[]
[]
[]
[]
[]
[]
[]
[]
[]
[]
[]
[]
[]
[]
[]
[]
[]
[]
[]
[]
[]
[]
[]
[]
[]
[]
[]
[]
[]
[]
[]
[]
[]
[]
[]
[]
[]
[]
[]
[]
[]
[]
[]
[]
[]
[]
[]
[]
[]
[]
[]
[]
[]
[]
[]
[]
[]
[]
[]
[]
[]
[]
[]
[]
[]
[]
[]
[]
[]
[]
[]
[]
[]
[]
[]
[]
[]
[]
[]
[]
[]
[]
[]
[]
[]
[]
[]
[]
[]
[]
[]
[]
[]
[]
[]
[]
[]
[]
[]
[]
[]
[]
[]
[]
[]
[]
[]
[]
[]
[]
[]
[]
[]
[]
[]
[]
[]
[]
[]
[]
[]
[]
[]
[]
[]
[]
[]
[]
[]
[]
[]
[]
[]
[]
[]
[]
[]
[]
[]
[]
[]
[]
[]
[]
[]
[]
[]
[]
[]
[]
[]
[]
[]
[]
[]
[]
[]
[]
[]
[]
[]
[]
[]
[]
[]
[]
[]
[]
[]
[]
[]
[]
[]
[]
[]
[]
[]
[]
[]
[]
[]
[]
[]
[]
[]
[]
[]
[]
[]
[]
[]
[]
[]
[]
[]
[]
[]
[]
[]
[]
[]
[]
[]
[]
[]
[]
[]
[]
[]
[]
[]
[]
[]
[]
[]
[]
[]
[]
[]
[]
[]
[]
[]
[]
[]
[]
[]
[]
[]
[]
[]
[]
[]
[]
[]
[]
[]
[]
[]
[]
[]
[]
[]
[]
[]
[]
[]
[]
[]
[]
[]
[]
[]
[]
[]
[]
[]
[]
[]
[]
[]
[]
[]
[]
[]
[]
[]
[]
[]
[]
[]
[]
[]
[]
[]
[]
[]
[]
[]
[]
[]
[]
[]
[]
[]
[]
[]
[]
[]
[]
[]
[]
[]
[]
[]
[]
[]
[]
[]
[]
[]
[]
[]
[]
[]
[]
[]
[]
[]
[]
[]
[]
[]
[]
[]
[]
[]
[]
[]
[]
[]
[]
[]
[]
[]
[]
[]
[]
[]
[]
[]
[]
[]
[]
[]
[]
[]
[]
[]
[]
[]
[]
[]
[]
[]
[]
[]
[]
[]
[]
[]
[]
[]
[]
[]
[]
[]
[]
[]
[]
[]
[]
[]
[]
[]
[]
[]
[]
[]
[]
[]
[]
[]
[]
[]
[]
[]
[]
[]
[]
[]
[]
[]
[]
[]
[]
[]
[]
[]
[]
[]
[]
[]
[]
[]
[]
[]
[]
[]
[]
[]
[]
[]
[]
[]
[]
[]
[]
[]
[]
[]
[]
[]
[]
[]
[]
[]
[]
[]
[]
[]
[]
[]
[]
[]
[]
[]
[]
[]
[]
[]
[]
[]
[]
[]
[]
[]
[]
[]
[]
[]
[]
[]
[]
[]
[]
[]
[]
[]
[]
[]
[]
[]
[]
[]
[]
[]
[]
[]
[]
[]
[]
[]
[]
[]
[]
[]
[]
[]
[]
[]
[]
[]
[]
[]
[]
[]
[]
[]
[]
[]
[]
[]
[]
[]
[]
[]
[]
[]
[]
[]
[]
[]
[]
[]
[]
[]
[]
[]
[]
[]
[]
[]
[]
[]
[]
[]
[]
[]
[]
[]
[]
[]
[]
[]
[]
[]
[]
[]
[]
[]
[]
[]
[]
[]
[]
[]
[]
[]
[]
[]
[]
[]
[]
[]
[]
[]
[]
[]
[]
[]
[]
[]
[]
[]
[]
[]
[]
[]
[]
[]
[]
[]
[]
[]
[]
[]
[]
[]
[]
[]
[]
[]
[]
[]
[]
[]
[]
[]
[]
[]
[]
[]
[]
[]
[]
[]
[]
[]
[]
[]
[]
[]
[]
[]
[]
[]
[]
[]
[]
[]
[]
[]
[]
[]
[]
[]
[]
[]
[]
[]
[]
[]
[]
[]
[]
[]
[]
[]
[]
[]
[]
[]
[]
[]
[]
[]
[]
[]
[]
[]
[]
[]
[]
[]
[]
[]
[]
[]
[]
[]
[]
[]
[]
[]
[]
[]
[]
[]
[]
[]
[]
[]
[]
[]
[]
[]
[]
[]
[]
[]
[]
[]
[]
[]
[]
[]
[]
[]
[]
[]
[]
[]
[]
[]
[]
[]
[]
[]
[]
[]
[]
[]
[]
[]
[]
[]
[]
[]
[]
[]
[]
[]
[]
[]
[]
[]
[]
[]
[]
[]
[]
[]
[]
[]
[]
[]
[]
[]
[]
[]
[]
[]
[]
[]
[]
[]
[]
[]
[]
[]
[]
[]
[]
[]
[]
[]
[]
[]
[]
[]
[]
[]
[]
[]
[]
[]
[]
[]
[]
[]
[]
[]
[]
[]
[]
[]
[]
[]
[]
[]
[]
[]
[]
[]
[]
[]
[]
[]
[]
[]
[]
[]
[]
[]
[]
[]
[]
[]
[]
[]
[]
[]
[]
[]
[]
[]
[]
[]
[]
[]
[]
[]
[]
[]
[]
[]
[]
[]
[]
[]
[]
[]
[]
[]
[]
[]
[]
[]
[]
[]
[]
[]
[]
[]
[]
[]
[]
[]
[]
[]
[]
[]
[]
[]
[]
[]
[]
[]
[]
[]
[]
[]
[]
[]
[]
[]
[]
[]
[]
[]
[]
[]
[]
[]
[]
[]
[]
[]
[]
[]
[]
[]
[]
[]
[]
[]
[]
[]
[]
[]
[]
[]
[]
[]
[]
[]
[]
[]
[]
[]
[]
[]
[]
[]
[]
[]
[]
[]
[]
[]
[]
[]
[]
[]
[]
[]
[]
[]
[]
[]
[]
[]
[]
[]
[]
[]
[]
[]
[]
[]
[]
[]
[]
[]
[]
[]
[]
[]
[]
[]
[]
[]
[]
[]
[]
[]
[]
[]
[]
[]
[]
[]
[]
[]
[]
[]
[]
[]
[]
[]
[]
[]
[]
[]
[]
[]
[]
[]
[]
[]
[]
[]
[]
[]
[]
[]
[]
[]
[]
[]
[]
[]
[]
[]
[]
[]
[]
[]
[]
[]
[]
[]
[]
[]
[]
[]
[]
[]
[]
[]
[]
[]
[]
[]
[]
[]
[]
[]
[]
[]
[]
[]
[]
[]
[]
[]
[]
[]
[]
[]
[]
[]
[]
[]
[]
[]
[]
[]
[]
[]
[]
[]
[]
[]
[]
[]
[]
[]
[]
[]
[]
[]
[]
[]
[]
[]
[]
[]
[]
[]
[]
[]
[]
[]
[]
[]
[]
[]
[]
[]
[]
[]
[]
[]
[]
[]
[]
[]
[]
[]
[]
[]
[]
[]
[]
[]
[]
[]
[]
[]
[]
[]
[]
[]
[]
[]
[]
[]
[]
[]
[]
[]
[]
[]
[]
[]
[]
[]
[]
[]
[]
[]
[]
[]
[]
[]
[]
[]
[]
[]
[]
[]
[]
[]
[]
[]
[]
[]
[]
[]
[]
[]
[]
[]
[]
[]
[]
[]
[]
[]
[]
[]
[]
[]
[]
[]
[]
[]
[]
[]
[]
[]
[]
[]
[]
[]
[]
[]
[]
[]
[]
[]
[]
[]
[]
[]
[]
[]
[]
[]
[]
[]
[]
[]
[]
[]
[]
[]
[]
[]
[]
[]
[]
[]
[]
[]
[]
[]
[]
[]
[]
[]
[]
[]
[]
[]
[]
[]
[]
[]
[]
[]
[]
[]
[]
[]
[]
[]
[]
[]
[]
[]
[]
[]
[]
[]
[]
[]
[]
[]
[]
[]
[]
[]
[]
[]
[]
[]
[]
[]
[]
[]
[]
[]
[]
[]
[]
[]
[]
[]
[]
[]
[]
[]
[]
[]
[]
[]
[]
[]
[]
[]
[]
[]
[]
[]
[]
[]
[]
[]
[]
[]
[]
[]
[]
[]
[]
[]
[]
[]
[]
[]
[]
[]
[]
[]
[]
[]
[]
[]
[]
[]
[]
[]
[]
[]
[]
[]
[]
[]
[]
[]
[]
[]
[]
[]
[]
[]
[]
[]
[]
[]
[]
[]
[]
[]
[]
[]
[]
[]
[]
[]
[]
[]
[]
[]
[]
[]
[]
[]
[]
[]
[]
[]
[]
[]
[]
[]
[]
[]
[]
[]
[]
[]
[]
[]
[]
[]
[]
[]
[]
[]
[]
[]
[]
[]
[]
[]
[]
[]
[]
[]
[]
[]
[]
[]
[]
[]
[]
[]
[]
[]
[]
[]
[]
[]
[]
[]
[]
[]
[]
[]
[]
[]
[]
[]
[]
[]
[]
[]
[]
[]
[]
[]
[]
[]
[]
[]
[]
[]
[]
[]
[]
[]
[]
[]
[]
[]
[]
[]
[]
[]
[]
[]
[]
[]
[]
[]
[]
[]
[]
[]
[]
[]
[]
[]
[]
[]
[]
[]
[]
[]
[]
[]
[]
[]
[]
[]
[]
[]
[]
[]
[]
[]
[]
[]
[]
[]
[]
[]
[]
[]
[]
[]
[]
[]
[]
[]
[]
[]
[]
[]
[]
[]
[]
[]
[]
[]
[]
[]
[]
[]
[]
[]
[]
[]
[]
[]
[]
[]
[]
[]
[]
[]
[]
[]
[]
[]
[]
[]
[]
[]
[]
[]
[]
[]
[]
[]
[]
[]
[]
[]
[]
[]
[]
[]
[]
[]
[]
[]
[]
[]
[]
[]
[]
[]
[]
[]
[]
[]
[]
[]
[]
[]
[]
[]
[]
[]
[]
[]
[]
[]
[]
[]
[]
[]
[]
[]
[]
[]
[]
[]
[]
[]
[]
[]
[]
[]
[]
[]
[]
[]
[]
[]
[]
[]
[]
[]
[]
[]
[]
[]
[]
[]
[]
[]
[]
[]
[]
[]
[]
[]
[]
[]
[]
[]
[]
[]
[]
[]
[]
[]
[]
[]
[]
[]
[]
[]
[]
[]
[]
[]
[]
[]
[]
[]
[]
[]
[]
[]
[]
[]
[]
[]
[]
[]
[]
[]
[]
[]
[]
[]
[]
[]
[]
[]
[]
[]
[]
[]
[]
[]
[]
[]
[]
[]
[]
[]
[]
[]
[]
[]
[]
[]
[]
[]
[]
[]
[]
[]
[]
[]
[]
[]
[]
[]
[]
[]
[]
[]
[]
[]
[]
[]
[]
[]
[]
[]
[]
[]
[]
[]
[]
[]
[]
[]
[]
[]
[]
[]
[]
[]
[]
[]
[]
[]
[]
[]
[]
[]
[]
[]
[]
[]
[]
[]
[]
[]
[]
[]
[]
[]
[]
[]
[]
[]
[]
[]
[]
[]
[]
[]
[]
[]
[]
[]
[]
[]
[]
[]
[]
[]
[]
[]
[]
[]
[]
[]
[]
[]
[]
[]
[]
[]
[]
[]
[]
[]
[]
[]
[]
[]
[]
[]
[]
[]
[]
[]
[]
[]
[]
[]
[]
[]
[]
[]
[]
[]
[]
[]
[]
[]
[]
[]
[]
[]
[]
[]
[]
[]
[]
[]
[]
[]
[]
[]
[]
[]
[]
[]
[]
[]
[]
[]
[]
[]
[]
[]
[]
[]
[]
[]
[]
[]
[]
[]
[]
[]
[]
[]
[]
[]
[]
[]
[]
[]
[]
[]
[]
[]
[]
[]
[]
[]
[]
[]
[]
[]
[]
[]
[]
[]
[]
[]
[]
[]
[]
[]
[]
[]
[]
[]
[]
[]
[]
[]
[]
[]
[]
[]
[]
[]
[]
[]
[]
[]
[]
[]
[]
[]
[]
[]
[]
[]
[]
[]
[]
[]
[]
[]
[]
[]
[]
[]
[]
[]
[]
[]
[]
[]
[]
[]
[]
[]
[]
[]
[]
[]
[]
[]
[]
[]
[]
[]
[]
[]
[]
[]
[]
[]
[]
[]
[]
[]
[]
[]
[]
[]
[]
[]
[]
[]
[]
[]
[]
[]
[]
[]
[]
[]
[]
[]
[]
[]
[]
[]
[]
[]
[]
[]
[]
[]
[]
[]
[]
[]
[]
[]
[]
[]
[]
[]
[]
[]
[]
[]
[]
[]
[]
[]
[]
[]
[]
[]
[]
[]
[]
[]
[]
[]
[]
[]
[]
[]
[]
[]
[]
[]
[]
[]
[]
[]
[]
[]
[]
[]
[]
[]
[]
[]
[]
[]
[]
[]
[]
[]
[]
[]
[]
[]
[]
[]
[]
[]
[]
[]
[]
[]
[]
[]
[]
[]
[]
[]
[]
[]
[]
[]
[]
[]
[]
[]
[]
[]
[]
[]
[]
[]
[]
[]
[]
[]
[]
[]
[]
[]
[]
[]
[]
[]
[]
[]
[]
[]
[]
[]
[]
[]
[]
[]
[]
[]
[]
[]
[]
[]
[]
[]
[]
[]
[]
[]
[]
[]
[]
[]
[]
[]
[]
[]
[]
[]
[]
[]
[]
[]
[]
[]
[]
[]
[]
[]
[]
[]
[]
[]
[]
[]
[]
[]
[]
[]
[]
[]
[]
[]
[]
[]
[]
[]
[]
[]
[]
[]
[]
[]
[]
[]
[]
[]
[]
[]
[]
[]
[]
[]
[]
[]
[]
[]
[]
[]
[]
[]
[]
[]
[]
[]
[]
[]
[]
[]
[]
[]
[]
[]
[]
[]
[]
[]
[]
[]
[]
[]
[]
[]
[]
[]
[]
[]
[]
[]
[]
[]
[]
[]
[]
[]
[]
[]
[]
[]
[]
[]
[]
[]
[]
[]
[]
[]
[]
[]
[]
[]
[]
[]
[]
[]
[]
[]
[]
[]
[]
[]
[]
[]
[]
[]
[]
[]
[]
[]
[]
[]
[]
[]
[]
[]
[]
[]
[]
[]
[]
[]
[]
[]
[]
[]
[]
[]
[]
[]
[]
[]
[]
[]
[]
[]
[]
[]
[]
[]
[]
[]
[]
[]
[]
[]
[]
[]
[]
[]
[]
[]
[]
[]
[]
[]
[]
[]
[]
[]
[]
[]
[]
[]
[]
[]
[]
[]
[]
[]
[]
[]
[]
[]
[]
[]
[]
[]
[]
[]
[]
[]
[]
[]
[]
[]
[]
[]
[]
[]
[]
[]
[]
[]
[]
[]
[]
[]
[]
[]
[]
[]
[]
[]
[]
[]
[]
[]
[]
[]
[]
[]
[]
[]
[]
[]
[]
[]
[]
[]
[]
[]
[]
[]
[]
[]
[]
[]
[]
[]
[]
[]
[]
[]
[]
[]
[]
[]
[]
[]
[]
[]
[]
[]
[]
[]
[]
[]
[]
[]
[]
[]
[]
[]
[]
[]
[]
[]
[]
[]
[]
[]
[]
[]
[]
[]
[]
[]
[]
[]
[]
[]
[]
[]
[]
[]
[]
[]
[]
[]
[]
[]
[]
[]
[]
[]
[]
[]
[]
[]
[]
[]
[]
[]
[]
[]
[]
[]
[]
[]
[]
[]
[]
[]
[]
[]
[]
[]
[]
[]
[]
[]
[]
[]
[]
[]
[]
[]
[]
[]
[]
[]
[]
[]
[]
[]
[]
[]
[]
[]
[]
[]
[]
[]
[]
[]
[]
[]
[]
[]
[]
[]
[]
[]
[]
[]
[]
[]
[]
[]
[]
[]
[]
[]
[]
[]
[]
[]
[]
[]
[]
[]
[]
[]
[]
[]
[]
[]
[]
[]
[]
[]
[]
[]
[]
[]
[]
[]
[]
[]
[]
[]
[]
[]
[]
[]
[]
[]
[]
[]
[]
[]
[]
[]
[]
[]
[]
[]
[]
[]
[]
[]
[]
[]
[]
[]
[]
[]
[]
[]
[]
[]
[]
[]
[]
[]
[]
[]
[]
[]
[]
[]
[]
[]
[]
[]
[]
[]
[]
[]
[]
[]
[]
[]
[]
[]
[]
[]
[]
[]
[]
[]
[]
[]
[]
[]
[]
[]
[]
[]
[]
[]
[]
[]
[]
[]
[]
[]
[]
[]
[]
[]
[]
[]
[]
[]
[]
[]
[]
[]
[]
[]
[]
[]
[]
[]
[]
[]
[]
[]
[]
[]
[]
[]
[]
[]
[]
[]
[]
[]
[]
[]
[]
[]
[]
[]
[]
[]
[]
[]
[]
[]
[]
[]
[]
[]
[]
[]
[]
[]
[]
[]
[]
[]
[]
[]
[]
[]
[]
[]
[]
[]
[]
[]
[]
[]
[]
[]
[]
[]
[]
[]
[]
[]
[]
[]
[]
[]
[]
[]
[]
[]
[]
[]
[]
[]
[]
[]
[]
[]
[]
[]
[]
[]
[]
[]
[]
[]
[]
[]
[]
[]
[]
[]
[]
[]
[]
[]
[]
[]
[]
[]
[]
[]
[]
[]
[]
[]
[]
[]
[]
[]
[]
[]
[]
[]
[]
[]
[]
[]
[]
[]
[]
[]
[]
[]
[]
[]
[]
[]
[]
[]
[]
[]
[]
[]
[]
[]
[]
[]
[]
[]
[]
[]
[]
[]
[]
[]
[]
[]
[]
[]
[]
[]
[]
[]
[]
[]
[]
[]
[]
[]
[]
[]
[]
[]
[]
[]
[]
[]
[]
[]
[]
[]
[]
[]
[]
[]
[]
[]
[]
[]
[]
[]
[]
[]
[]
[]
[]
[]
[]
[]
[]
[]
[]
[]
[]
[]
[]
[]
[]
[]
[]
[]
[]
[]
[]
[]
[]
[]
[]
[]
[]
[]
[]
[]
[]
[]
[]
[]
[]
[]
[]
[]
[]
[]
[]
[]
[]
[]
[]
[]
[]
[]
[]
[]
[]
[]
[]
[]
[]
[]
[]
[]
[]
[]
[]
[]
[]
[]
[]
[]
[]
[]
[]
[]
[]
[]
[]
[]
[]
[]
[]
[]
[]
[]
[]
[]
[]
[]
[]
[]
[]
[]
[]
[]
[]
[]
[]
[]
[]
[]
[]
[]
[]
[]
[]
[]
[]
[]
[]
[]
[]
[]
[]
[]
[]
[]
[]
[]
[]
[]
[]
[]
[]
[]
[]
[]
[]
[]
[]
[]
[]
[]
[]
[]
[]
[]
[]
[]
[]
[]
[]
[]
[]
[]
[]
[]
[]
[]
[]
[]
[]
[]
[]
[]
[]
[]
[]
[]
[]
[]
[]
[]
[]
[]
[]
[]
[]
[]
[]
[]
[]
[]
[]
[]
[]
[]
[]
[]
[]
[]
[]
[]
[]
[]
[]
[]
[]
[]
[]
[]
[]
[]
[]
[]
[]
[]
[]
[]
[]
[]
[]
[]
[]
[]
[]
[]
[]
[]
[]
[]
[]
[]
[]
[]
[]
[]
[]
[]
[]
[]
[]
[]
[]
[]
[]
[]
[]
[]
[]
[]
[]
[]
[]
[]
[]
[]
[]
[]
[]
[]
[]
[]
[]
[]
[]
[]
[]
[]
[]
[]
[]
[]
[]
[]
[]
[]
[]
[]
[]
[]
[]
[]
[]
[]
[]
[]
[]
[]
[]
[]
[]
[]
[]
[]
[]
[]
[]
[]
[]
[]
[]
[]
[]
[]
[]
[]
[]
[]
[]
[]
[]
[]
[]
[]
[]
[]
[]
[]
[]
[]
[]
[]
[]
[]
[]
[]
[]
[]
[]
[]
[]
[]
[]
[]
[]
[]
[]
[]
[]
[]
[]
[]
[]
[]
[]
[]
[]
[]
[]
[]
[]
[]
[]
[]
[]
[]
[]
[]
[]
[]
[]
[]
[]
[]
[]
[]
[]
[]
[]
[]
[]
[]
[]
[]
[]
[]
[]
[]
[]
[]
[]
[]
[]
[]
[]
[]
[]
[]
[]
[]
[]
[]
[]
[]
[]
[]
[]
[]
[]
[]
[]
[]
[]
[]
[]
[]
[]
[]
[]
[]
[]
[]
[]
[]
[]
[]
[]
[]
[]
[]
[]
[]
[]
[]
[]
[]
[]
[]
[]
[]
[]
[]
[]
[]
[]
[]
[]
[]
[]
[]
[]
[]
[]
[]
[]
[]
[]
[]
[]
[]
[]
[]
[]
[]
[]
[]
[]
[]
[]
[]
[]
[]
[]
[]
[]
[]
[]
[]
[]
[]
[]
[]
[]
[]
[]
[]
[]
[]
[]
[]
[]
[]
[]
[]
[]
[]
[]
[]
[]
[]
[]
[]
[]
[]
[]
[]
[]
[]
[]
[]
[]
[]
[]
[]
[]
[]
[]
[]
[]
[]
[]
[]
[]
[]
[]
[]
[]
[]
[]
[]
[]
[]
[]
[]
[]
[]
[]
[]
[]
[]
[]
[]
[]
[]
[]
[]
[]
[]
[]
[]
[]
[]
[]
[]
[]
[]
[]
[]
[]
[]
[]
[]
[]
[]
[]
[]
[]
[]
[]
[]
[]
[]
[]
[]
[]
[]
[]
[]
[]
[]
[]
[]
[]
[]
[]
[]
[]
[]
[]
[]
[]
[]
[]
[]
[]
[]
[]
[]
[]
[]
[]
[]
[]
[]
[]
[]
[]
[]
[]
[]
[]
[]
[]
[]
[]
[]
[]
[]
[]
[]
[]
[]
[]
[]
[]
[]
[]
[]
[]
[]
[]
[]
[]
[]
[]
[]
[]
[]
[]
[]
[]
[]
[]
[]
[]
[]
[]
[]
[]
[]
[]
[]
[]
[]
[]
[]
[]
[]
[]
[]
[]
[]
[]
[]
[]
[]
[]
[]
[]
[]
[]
[]
[]
[]
[]
[]
[]
[]
[]
[]
[]
[]
[]
[]
[]
[]
[]
[]
[]
[]
[]
[]
[]
[]
[]
[]
[]
[]
[]
[]
[]
[]
[]
[]
[]
[]
[]
[]
[]
[]
[]
[]
[]
[]
[]
[]
[]
[]
[]
[]
[]
[]
[]
[]
[]
[]
[]
[]
[]
[]
[]
[]
[]
[]
[]
[]
[]
[]
[]
[]
[]
[]
[]
[]
[]
[]
[]
[]
[]
[]
[]
[]
[]
[]
[]
[]
[]
[]
[]
[]
[]
[]
[]
[]
[]
[]
[]
[]
[]
[]
[]
[]
[]
[]
[]
[]
[]
[]
[]
[]
[]
[]
[]
[]
[]
[]
[]
[]
[]
[]
[]
[]
[]
[]
[]
[]
[]
[]
[]
[]
[]
[]
[]
[]
[]
[]
[]
[]
[]
[]
[]
[]
[]
[]
[]
[]
[]
[]
[]
[]
[]
[]
[]
[]
[]
[]
[]
[]
[]
[]
[]
[]
[]
[]
[]
[]
[]
[]
[]
[]
[]
[]
[]
[]
[]
[]
[]
[]
[]
[]
[]
[]
[]
[]
[]
[]
[]
[]
[]
[]
[]
[]
[]
[]
[]
[]
[]
[]
[]
[]
[]
[]
[]
[]
[]
[]
[]
[]
[]
[]
[]
[]
[]
[]
[]
[]
[]
[]
[]
[]
[]
[]
[]
[]
[]
[]
[]
[]
[]
[]
[]
[]
[]
[]
[]
[]
[]
[]
[]
[]
[]
[]
[]
[]
[]
[]
[]
[]
[]
[]
[]
[]
[]
[]
[]
[]
[]
[]
[]
[]
[]
[]
[]
[]
[]
[]
[]
[]
[]
[]
[]
[]
[]
[]
[]
[]
[]
[]
[]
[]
[]
[]
[]
[]
[]
[]
[]
[]
[]
[]
[]
[]
[]
[]
[]
[]
[]
[]
[]
[]
[]
[]
[]
[]
[]
[]
[]
[]
[]
[]
[]
[]
[]
[]
[]
[]
[]
[]
[]
[]
[]
[]
[]
[]
[]
[]
[]
[]
[]
[]
[]
[]
[]
[]
[]
[]
[]
[]
[]
[]
[]
[]
[]
[]
[]
[]
[]
[]
[]
[]
[]
[]
[]
[]
[]
[]
[]
[]
[]
[]
[]
[]
[]
[]
[]
[]
[]
[]
[]
[]
[]
[]
[]
[]
[]
[]
[]
[]
[]
[]
[]
[]
[]
[]
[]
[]
[]
[]
[]
[]
[]
[]
[]
[]
[]
[]
[]
[]
[]
[]
[]
[]
[]
[]
[]
[]
[]
[]
[]
[]
[]
[]
[]
[]
[]
[]
[]
[]
[]
[]
[]
[]
[]
[]
[]
[]
[]
[]
[]
[]
[]
[]
[]
[]
[]
[]
[]
[]
[]
[]
[]
[]
[]
[]
[]
[]
[]
[]
[]
[]
[]
[]
[]
[]
[]
[]
[]
[]
[]
[]
[]
[]
[]
[]
[]
[]
[]
[]
[]
[]
[]
[]
[]
[]
[]
[]
[]
[]
[]
[]
[]
[]
[]
[]
[]
[]
[]
[]
[]
[]
[]
[]
[]
[]
[]
[]
[]
[]
[]
[]
[]
[]
[]
[]
[]
[]
[]
[]
[]
[]
[]
[]
[]
[]
[]
[]
[]
[]
[]
[]
[]
[]
[]
[]
[]
[]
[]
[]
[]
[]
[]
[]
[]
[]
[]
[]
[]
[]
[]
[]
["\"-Ministerio de Hacienda, Órgano de Normalización Técnica, Edificio Mira, Zapote. 300 Oeste de Casa Presidencial-Autoria Ing. Nathalie Venegas Delgado-\""]

{"sheet":"#4","index":4,"n_rows":1048576,"n_cols":1,"rows_kept":4500,"cut":true,"hidden":true,"merged":[[1048575,0,1048575,15],[18,0,18,15],[19,0,19,15],[12,0,12,15],[13,0,13,15],[14,0,14,15],[15,0,15,15],[16,0,16,15],[17,0,17,15],[11,0,11,15],[0,0,0,15],[1,0,1,15],[2,0,2,15],[3,0,3,15],[4,0,4,15],[5,0,5,15],[6,0,6,15],[7,0,7,15],[8,0,8,15],[9,0,9,15],[10,0,10,15]],"bounds":{"rows_first":2000,"rows_last":500,"rows_between":2000,"halvings":0}}
["#4-Declaración del propietario "]
["Property Owner Declaration"]
[]
["Valor total Terreno: Es el valor de la tierra del terreno privado. En caso de ser propiedad en condominio va a ser la suma de los dos valores, terreno privado y terreno común (lo que le corresponde según el porcentaje de condominio)."]
["Total Land Value: It is the property value of the private land. In case of being condominium property, it will be the sum of the two values, private land and common ground (what corresponds to the percentage of condominium). "]
[]
["Valor total Construcción: Es el valor de la construcción privada. En caso de ser propiedad en condominio va a ser la suma de los dos valores, construcción privada y construcción común (lo que le corresponde según el porcentaje de condominio). "]
["Total Construction Value: It is the value of the private construction. In case of being condominium property, it will be the sum of the two values, private construction and common construction (which corresponds to the percentage of condominium). "]
[]
["Valor total del Inmueble: Es la suma de los anteriores."]
["Total Property Value: The sum of the previous two. "]
[]
["Valor del derecho: En el caso de propiedades en derechos, se obtiene del producto del valor total por su correspondiente porcentaje de posesión."]
["Value of % of ownership: In the case of several owners,it is obtained from the product of the total value by its corresponding possession percentage."]
[]
["Puede escoger la opción de cálculo del impuesto entre: Impuesto Anual, Impuesto Trimestral o Impuesto Mensual."]
["Choose an option to calculate the taxes: Annual Property Tax, Quarterly Property Tax or Monthly Property Tax"]
[]
["Firma del propietario: Firme en la línea como declarante o representante legal (en el caso de empresa o tener un poder). La firma debe ser la misma que aparece en la identificación."]
["Property owner’s signature: Sign on the line as the declarant or legal representative (in the case of companies). The signature must be the same as the signature that appears on the ID. "]
[]
[]
[]
[]
[]
[]
[]
[]
[]
[]
[]
[]
[]
[]
[]
[]
[]
[]
[]
[]
[]
[]
[]
[]
[]
[]
[]
[]
[]
[]
[]
[]
[]
[]
[]
[]
[]
[]
[]
[]
[]
[]
[]
[]
[]
[]
[]
[]
[]
[]
[]
[]
[]
[]
[]
[]
[]
[]
[]
[]
[]
[]
[]
[]
[]
[]
[]
[]
[]
[]
[]
[]
[]
[]
[]
[]
[]
[]
[]
[]
[]
[]
[]
[]
[]
[]
[]
[]
[]
[]
[]
[]
[]
[]
[]
[]
[]
[]
[]
[]
[]
[]
[]
[]
[]
[]
[]
[]
[]
[]
[]
[]
[]
[]
[]
[]
[]
[]
[]
[]
[]
[]
[]
[]
[]
[]
[]
[]
[]
[]
[]
[]
[]
[]
[]
[]
[]
[]
[]
[]
[]
[]
[]
[]
[]
[]
[]
[]
[]
[]
[]
[]
[]
[]
[]
[]
[]
[]
[]
[]
[]
[]
[]
[]
[]
[]
[]
[]
[]
[]
[]
[]
[]
[]
[]
[]
[]
[]
[]
[]
[]
[]
[]
[]
[]
[]
[]
[]
[]
[]
[]
[]
[]
[]
[]
[]
[]
[]
[]
[]
[]
[]
[]
[]
[]
[]
[]
[]
[]
[]
[]
[]
[]
[]
[]
[]
[]
[]
[]
[]
[]
[]
[]
[]
[]
[]
[]
[]
[]
[]
[]
[]
[]
[]
[]
[]
[]
[]
[]
[]
[]
[]
[]
[]
[]
[]
[]
[]
[]
[]
[]
[]
[]
[]
[]
[]
[]
[]
[]
[]
[]
[]
[]
[]
[]
[]
[]
[]
[]
[]
[]
[]
[]
[]
[]
[]
[]
[]
[]
[]
[]
[]
[]
[]
[]
[]
[]
[]
[]
[]
[]
[]
[]
[]
[]
[]
[]
[]
[]
[]
[]
[]
[]
[]
[]
[]
[]
[]
[]
[]
[]
[]
[]
[]
[]
[]
[]
[]
[]
[]
[]
[]
[]
[]
[]
[]
[]
[]
[]
[]
[]
[]
[]
[]
[]
[]
[]
[]
[]
[]
[]
[]
[]
[]
[]
[]
[]
[]
[]
[]
[]
[]
[]
[]
[]
[]
[]
[]
[]
[]
[]
[]
[]
[]
[]
[]
[]
[]
[]
[]
[]
[]
[]
[]
[]
[]
[]
[]
[]
[]
[]
[]
[]
[]
[]
[]
[]
[]
[]
[]
[]
[]
[]
[]
[]
[]
[]
[]
[]
[]
[]
[]
[]
[]
[]
[]
[]
[]
[]
[]
[]
[]
[]
[]
[]
[]
[]
[]
[]
[]
[]
[]
[]
[]
[]
[]
[]
[]
[]
[]
[]
[]
[]
[]
[]
[]
[]
[]
[]
[]
[]
[]
[]
[]
[]
[]
[]
[]
[]
[]
[]
[]
[]
[]
[]
[]
[]
[]
[]
[]
[]
[]
[]
[]
[]
[]
[]
[]
[]
[]
[]
[]
[]
[]
[]
[]
[]
[]
[]
[]
[]
[]
[]
[]
[]
[]
[]
[]
[]
[]
[]
[]
[]
[]
[]
[]
[]
[]
[]
[]
[]
[]
[]
[]
[]
[]
[]
[]
[]
[]
[]
[]
[]
[]
[]
[]
[]
[]
[]
[]
[]
[]
[]
[]
[]
[]
[]
[]
[]
[]
[]
[]
[]
[]
[]
[]
[]
[]
[]
[]
[]
[]
[]
[]
[]
[]
[]
[]
[]
[]
[]
[]
[]
[]
[]
[]
[]
[]
[]
[]
[]
[]
[]
[]
[]
[]
[]
[]
[]
[]
[]
[]
[]
[]
[]
[]
[]
[]
[]
[]
[]
[]
[]
[]
[]
[]
[]
[]
[]
[]
[]
[]
[]
[]
[]
[]
[]
[]
[]
[]
[]
[]
[]
[]
[]
[]
[]
[]
[]
[]
[]
[]
[]
[]
[]
[]
[]
[]
[]
[]
[]
[]
[]
[]
[]
[]
[]
[]
[]
[]
[]
[]
[]
[]
[]
[]
[]
[]
[]
[]
[]
[]
[]
[]
[]
[]
[]
[]
[]
[]
[]
[]
[]
[]
[]
[]
[]
[]
[]
[]
[]
[]
[]
[]
[]
[]
[]
[]
[]
[]
[]
[]
[]
[]
[]
[]
[]
[]
[]
[]
[]
[]
[]
[]
[]
[]
[]
[]
[]
[]
[]
[]
[]
[]
[]
[]
[]
[]
[]
[]
[]
[]
[]
[]
[]
[]
[]
[]
[]
[]
[]
[]
[]
[]
[]
[]
[]
[]
[]
[]
[]
[]
[]
[]
[]
[]
[]
[]
[]
[]
[]
[]
[]
[]
[]
[]
[]
[]
[]
[]
[]
[]
[]
[]
[]
[]
[]
[]
[]
[]
[]
[]
[]
[]
[]
[]
[]
[]
[]
[]
[]
[]
[]
[]
[]
[]
[]
[]
[]
[]
[]
[]
[]
[]
[]
[]
[]
[]
[]
[]
[]
[]
[]
[]
[]
[]
[]
[]
[]
[]
[]
[]
[]
[]
[]
[]
[]
[]
[]
[]
[]
[]
[]
[]
[]
[]
[]
[]
[]
[]
[]
[]
[]
[]
[]
[]
[]
[]
[]
[]
[]
[]
[]
[]
[]
[]
[]
[]
[]
[]
[]
[]
[]
[]
[]
[]
[]
[]
[]
[]
[]
[]
[]
[]
[]
[]
[]
[]
[]
[]
[]
[]
[]
[]
[]
[]
[]
[]
[]
[]
[]
[]
[]
[]
[]
[]
[]
[]
[]
[]
[]
[]
[]
[]
[]
[]
[]
[]
[]
[]
[]
[]
[]
[]
[]
[]
[]
[]
[]
[]
[]
[]
[]
[]
[]
[]
[]
[]
[]
[]
[]
[]
[]
[]
[]
[]
[]
[]
[]
[]
[]
[]
[]
[]
[]
[]
[]
[]
[]
[]
[]
[]
[]
[]
[]
[]
[]
[]
[]
[]
[]
[]
[]
[]
[]
[]
[]
[]
[]
[]
[]
[]
[]
[]
[]
[]
[]
[]
[]
[]
[]
[]
[]
[]
[]
[]
[]
[]
[]
[]
[]
[]
[]
[]
[]
[]
[]
[]
[]
[]
[]
[]
[]
[]
[]
[]
[]
[]
[]
[]
[]
[]
[]
[]
[]
[]
[]
[]
[]
[]
[]
[]
[]
[]
[]
[]
[]
[]
[]
[]
[]
[]
[]
[]
[]
[]
[]
[]
[]
[]
[]
[]
[]
[]
[]
[]
[]
[]
[]
[]
[]
[]
[]
[]
[]
[]
[]
[]
[]
[]
[]
[]
[]
[]
[]
[]
[]
[]
[]
[]
[]
[]
[]
[]
[]
[]
[]
[]
[]
[]
[]
[]
[]
[]
[]
[]
[]
[]
[]
[]
[]
[]
[]
[]
[]
[]
[]
[]
[]
[]
[]
[]
[]
[]
[]
[]
[]
[]
[]
[]
[]
[]
[]
[]
[]
[]
[]
[]
[]
[]
[]
[]
[]
[]
[]
[]
[]
[]
[]
[]
[]
[]
[]
[]
[]
[]
[]
[]
[]
[]
[]
[]
[]
[]
[]
[]
[]
[]
[]
[]
[]
[]
[]
[]
[]
[]
[]
[]
[]
[]
[]
[]
[]
[]
[]
[]
[]
[]
[]
[]
[]
[]
[]
[]
[]
[]
[]
[]
[]
[]
[]
[]
[]
[]
[]
[]
[]
[]
[]
[]
[]
[]
[]
[]
[]
[]
[]
[]
[]
[]
[]
[]
[]
[]
[]
[]
[]
[]
[]
[]
[]
[]
[]
[]
[]
[]
[]
[]
[]
[]
[]
[]
[]
[]
[]
[]
[]
[]
[]
[]
[]
[]
[]
[]
[]
[]
[]
[]
[]
[]
[]
[]
[]
[]
[]
[]
[]
[]
[]
[]
[]
[]
[]
[]
[]
[]
[]
[]
[]
[]
[]
[]
[]
[]
[]
[]
[]
[]
[]
[]
[]
[]
[]
[]
[]
[]
[]
[]
[]
[]
[]
[]
[]
[]
[]
[]
[]
[]
[]
[]
[]
[]
[]
[]
[]
[]
[]
[]
[]
[]
[]
[]
[]
[]
[]
[]
[]
[]
[]
[]
[]
[]
[]
[]
[]
[]
[]
[]
[]
[]
[]
[]
[]
[]
[]
[]
[]
[]
[]
[]
[]
[]
[]
[]
[]
[]
[]
[]
[]
[]
[]
[]
[]
[]
[]
[]
[]
[]
[]
[]
[]
[]
[]
[]
[]
[]
[]
[]
[]
[]
[]
[]
[]
[]
[]
[]
[]
[]
[]
[]
[]
[]
[]
[]
[]
[]
[]
[]
[]
[]
[]
[]
[]
[]
[]
[]
[]
[]
[]
[]
[]
[]
[]
[]
[]
[]
[]
[]
[]
[]
[]
[]
[]
[]
[]
[]
[]
[]
[]
[]
[]
[]
[]
[]
[]
[]
[]
[]
[]
[]
[]
[]
[]
[]
[]
[]
[]
[]
[]
[]
[]
[]
[]
[]
[]
[]
[]
[]
[]
[]
[]
[]
[]
[]
[]
[]
[]
[]
[]
[]
[]
[]
[]
[]
[]
[]
[]
[]
[]
[]
[]
[]
[]
[]
[]
[]
[]
[]
[]
[]
[]
[]
[]
[]
[]
[]
[]
[]
[]
[]
[]
[]
[]
[]
[]
[]
[]
[]
[]
[]
[]
[]
[]
[]
[]
[]
[]
[]
[]
[]
[]
[]
[]
[]
[]
[]
[]
[]
[]
[]
[]
[]
[]
[]
[]
[]
[]
[]
[]
[]
[]
[]
[]
[]
[]
[]
[]
[]
[]
[]
[]
[]
[]
[]
[]
[]
[]
[]
[]
[]
[]
[]
[]
[]
[]
[]
[]
[]
[]
[]
[]
[]
[]
[]
[]
[]
[]
[]
[]
[]
[]
[]
[]
[]
[]
[]
[]
[]
[]
[]
[]
[]
[]
[]
[]
[]
[]
[]
[]
[]
[]
[]
[]
[]
[]
[]
[]
[]
[]
[]
[]
[]
[]
[]
[]
[]
[]
[]
[]
[]
[]
[]
[]
[]
[]
[]
[]
[]
[]
[]
[]
[]
[]
[]
[]
[]
[]
[]
[]
[]
[]
[]
[]
[]
[]
[]
[]
[]
[]
[]
[]
[]
[]
[]
[]
[]
[]
[]
[]
[]
[]
[]
[]
[]
[]
[]
[]
[]
[]
[]
[]
[]
[]
[]
[]
[]
[]
[]
[]
[]
[]
[]
[]
[]
[]
[]
[]
[]
[]
[]
[]
[]
[]
[]
[]
[]
[]
[]
[]
[]
[]
[]
[]
[]
[]
[]
[]
[]
[]
[]
[]
[]
[]
[]
[]
[]
[]
[]
[]
[]
[]
[]
[]
[]
[]
[]
[]
[]
[]
[]
[]
[]
[]
[]
[]
[]
[]
[]
[]
[]
[]
[]
[]
[]
[]
[]
[]
[]
[]
[]
[]
[]
[]
[]
[]
[]
[]
[]
[]
[]
[]
[]
[]
[]
[]
[]
[]
[]
[]
[]
[]
[]
[]
[]
[]
[]
[]
[]
[]
[]
[]
[]
[]
[]
[]
[]
[]
[]
[]
[]
[]
[]
[]
[]
[]
[]
[]
[]
[]
[]
[]
[]
[]
[]
[]
[]
[]
[]
[]
[]
[]
[]
[]
[]
[]
[]
[]
[]
[]
[]
[]
[]
[]
[]
[]
[]
[]
[]
[]
[]
[]
[]
[]
[]
[]
[]
[]
[]
[]
[]
[]
[]
[]
[]
[]
[]
[]
[]
[]
[]
[]
[]
[]
[]
[]
[]
[]
[]
[]
[]
[]
[]
[]
[]
[]
[]
[]
[]
[]
[]
[]
[]
[]
[]
[]
[]
[]
[]
[]
[]
[]
[]
[]
[]
[]
[]
[]
[]
[]
[]
[]
[]
[]
[]
[]
[]
[]
[]
[]
[]
[]
[]
[]
[]
[]
[]
[]
[]
[]
[]
[]
[]
[]
[]
[]
[]
[]
[]
[]
[]
[]
[]
[]
[]
[]
[]
[]
[]
[]
[]
[]
[]
[]
[]
[]
[]
[]
[]
[]
[]
[]
[]
[]
[]
[]
[]
[]
[]
[]
[]
[]
[]
[]
[]
[]
[]
[]
[]
[]
[]
[]
[]
[]
[]
[]
[]
[]
[]
[]
[]
[]
[]
[]
[]
[]
[]
[]
[]
[]
[]
[]
[]
[]
[]
[]
[]
[]
[]
[]
[]
[]
[]
[]
[]
[]
[]
[]
[]
[]
[]
[]
[]
[]
[]
[]
[]
[]
[]
[]
[]
[]
[]
[]
[]
[]
[]
[]
[]
[]
[]
[]
[]
[]
[]
[]
[]
[]
[]
[]
[]
[]
[]
[]
[]
[]
[]
[]
[]
[]
[]
[]
[]
[]
[]
[]
[]
[]
[]
[]
[]
[]
[]
[]
[]
[]
[]
[]
[]
[]
[]
[]
[]
[]
[]
[]
[]
[]
[]
[]
[]
[]
[]
[]
[]
[]
[]
[]
[]
[]
[]
[]
[]
[]
[]
[]
[]
[]
[]
[]
[]
[]
[]
[]
[]
[]
[]
[]
[]
[]
[]
[]
[]
[]
[]
[]
[]
[]
[]
[]
[]
[]
[]
[]
[]
[]
[]
[]
[]
[]
[]
[]
[]
[]
[]
[]
[]
[]
[]
[]
[]
[]
[]
[]
[]
[]
[]
[]
[]
[]
[]
[]
[]
[]
[]
[]
[]
[]
[]
[]
[]
[]
[]
[]
[]
[]
[]
[]
[]
[]
[]
[]
[]
[]
[]
[]
[]
[]
[]
[]
[]
[]
[]
[]
[]
[]
[]
[]
[]
[]
[]
[]
[]
[]
[]
[]
[]
[]
[]
[]
[]
[]
[]
[]
[]
[]
[]
[]
[]
[]
[]
[]
[]
[]
[]
[]
[]
[]
[]
[]
[]
[]
[]
[]
[]
[]
[]
[]
[]
[]
[]
[]
[]
[]
[]
[]
[]
[]
[]
[]
[]
[]
[]
[]
[]
[]
[]
[]
[]
[]
[]
[]
[]
[]
[]
[]
[]
[]
[]
[]
[]
[]
[]
[]
[]
[]
[]
[]
[]
[]
[]
[]
[]
[]
[]
[]
[]
[]
[]
[]
[]
[]
[]
[]
[]
[]
[]
[]
[]
[]
[]
[]
[]
[]
[]
[]
[]
[]
[]
[]
[]
[]
[]
[]
[]
[]
[]
[]
[]
[]
[]
[]
[]
[]
[]
[]
[]
[]
[]
[]
[]
[]
[]
[]
[]
[]
[]
[]
[]
[]
[]
[]
[]
[]
[]
[]
[]
[]
[]
[]
[]
[]
[]
[]
[]
[]
[]
[]
[]
[]
[]
[]
[]
[]
[]
[]
[]
[]
[]
[]
[]
[]
[]
[]
[]
[]
[]
[]
[]
[]
[]
[]
[]
[]
[]
[]
[]
[]
[]
[]
[]
[]
[]
[]
[]
[]
[]
[]
[]
[]
[]
[]
[]
[]
[]
[]
[]
[]
[]
[]
[]
[]
[]
[]
[]
[]
[]
[]
[]
[]
[]
[]
[]
[]
[]
[]
[]
[]
[]
[]
[]
[]
[]
[]
[]
[]
[]
[]
[]
[]
[]
[]
[]
[]
[]
[]
[]
[]
[]
[]
[]
[]
[]
[]
[]
[]
[]
[]
[]
[]
[]
[]
[]
[]
[]
[]
[]
[]
[]
[]
[]
[]
[]
[]
[]
[]
[]
[]
[]
[]
[]
[]
[]
[]
[]
[]
[]
[]
[]
[]
[]
[]
[]
[]
[]
[]
[]
[]
[]
[]
[]
[]
[]
[]
[]
[]
[]
[]
[]
[]
[]
[]
[]
[]
[]
[]
[]
[]
[]
[]
[]
[]
[]
[]
[]
[]
[]
[]
[]
[]
[]
[]
[]
[]
[]
[]
[]
[]
[]
[]
[]
[]
[]
[]
[]
[]
[]
[]
[]
[]
[]
[]
[]
[]
[]
[]
[]
[]
[]
[]
[]
[]
[]
[]
[]
[]
[]
[]
[]
[]
[]
[]
[]
[]
[]
[]
[]
[]
[]
[]
[]
[]
[]
[]
[]
[]
[]
[]
[]
[]
[]
[]
[]
[]
[]
[]
[]
[]
[]
[]
[]
[]
[]
[]
[]
[]
[]
[]
[]
[]
[]
[]
[]
[]
[]
[]
[]
[]
[]
[]
[]
[]
[]
[]
[]
[]
[]
[]
[]
[]
[]
[]
[]
[]
[]
[]
[]
[]
[]
[]
[]
[]
[]
[]
[]
[]
[]
[]
[]
[]
[]
[]
[]
[]
[]
[]
[]
[]
[]
[]
[]
[]
[]
[]
[]
[]
[]
[]
[]
[]
[]
[]
[]
[]
[]
[]
[]
[]
[]
[]
[]
[]
[]
[]
[]
[]
[]
[]
[]
[]
[]
[]
[]
[]
[]
[]
[]
[]
[]
[]
[]
[]
[]
[]
[]
[]
[]
[]
[]
[]
[]
[]
[]
[]
[]
[]
[]
[]
[]
[]
[]
[]
[]
[]
[]
[]
[]
[]
[]
[]
[]
[]
[]
[]
[]
[]
[]
[]
[]
[]
[]
[]
[]
[]
[]
[]
[]
[]
[]
[]
[]
[]
[]
[]
[]
[]
[]
[]
[]
[]
[]
[]
[]
[]
[]
[]
[]
[]
[]
[]
[]
[]
[]
[]
[]
[]
[]
[]
[]
[]
[]
[]
[]
[]
[]
[]
[]
[]
[]
[]
[]
[]
[]
[]
[]
[]
[]
[]
[]
[]
[]
[]
[]
[]
[]
[]
[]
[]
[]
[]
[]
[]
[]
[]
[]
[]
[]
[]
[]
[]
[]
[]
[]
[]
[]
[]
[]
[]
[]
[]
[]
[]
[]
[]
[]
[]
[]
[]
[]
[]
[]
[]
[]
[]
[]
[]
[]
[]
[]
[]
[]
[]
[]
[]
[]
[]
[]
[]
[]
[]
[]
[]
[]
[]
[]
[]
[]
[]
[]
[]
[]
[]
[]
[]
[]
[]
[]
[]
[]
[]
[]
[]
[]
[]
[]
[]
[]
[]
[]
[]
[]
[]
[]
[]
[]
[]
[]
[]
[]
[]
[]
[]
[]
[]
[]
[]
[]
[]
[]
[]
[]
[]
[]
[]
[]
[]
[]
[]
[]
[]
[]
[]
[]
[]
[]
[]
[]
[]
[]
[]
[]
[]
[]
[]
[]
[]
[]
[]
[]
[]
[]
[]
[]
[]
[]
[]
[]
[]
[]
[]
[]
[]
[]
[]
[]
[]
[]
[]
[]
[]
[]
[]
[]
[]
[]
[]
[]
[]
[]
[]
[]
[]
[]
[]
[]
[]
[]
[]
[]
[]
[]
[]
[]
[]
[]
[]
[]
[]
[]
[]
[]
[]
[]
[]
[]
[]
[]
[]
[]
[]
[]
[]
[]
[]
[]
[]
[]
[]
[]
[]
[]
[]
[]
[]
[]
[]
[]
[]
[]
[]
[]
[]
[]
[]
[]
[]
[]
[]
[]
[]
[]
[]
[]
[]
[]
[]
[]
[]
[]
[]
[]
[]
[]
[]
[]
[]
[]
[]
[]
[]
[]
[]
[]
[]
[]
[]
[]
[]
[]
[]
[]
[]
[]
[]
[]
[]
[]
[]
[]
[]
[]
[]
[]
[]
[]
[]
[]
[]
[]
[]
[]
[]
[]
[]
[]
[]
[]
[]
[]
[]
[]
[]
[]
[]
[]
[]
[]
[]
[]
[]
[]
[]
[]
[]
[]
[]
[]
[]
[]
[]
[]
[]
[]
[]
[]
[]
[]
[]
[]
[]
[]
[]
[]
[]
[]
[]
[]
[]
[]
[]
[]
[]
[]
[]
[]
[]
[]
[]
[]
[]
[]
[]
[]
[]
[]
[]
[]
[]
[]
[]
[]
[]
[]
[]
[]
[]
[]
[]
[]
[]
[]
[]
[]
[]
[]
[]
[]
[]
[]
[]
[]
[]
[]
[]
[]
[]
[]
[]
[]
[]
[]
[]
[]
[]
[]
[]
[]
[]
[]
[]
[]
[]
[]
[]
[]
[]
[]
[]
[]
[]
[]
[]
[]
[]
[]
[]
[]
[]
[]
[]
[]
[]
[]
[]
[]
[]
[]
[]
[]
[]
[]
[]
[]
[]
[]
[]
[]
[]
[]
[]
[]
[]
[]
[]
[]
[]
[]
[]
[]
[]
[]
[]
[]
[]
[]
[]
[]
[]
[]
[]
[]
[]
[]
[]
[]
[]
[]
[]
[]
[]
[]
[]
[]
[]
[]
[]
[]
[]
[]
[]
[]
[]
[]
[]
[]
[]
[]
[]
[]
[]
[]
[]
[]
[]
[]
[]
[]
[]
[]
[]
[]
[]
[]
[]
[]
[]
[]
[]
[]
[]
[]
[]
[]
[]
[]
[]
[]
[]
[]
[]
[]
[]
[]
[]
[]
[]
[]
[]
[]
[]
[]
[]
[]
[]
[]
[]
[]
[]
[]
[]
[]
[]
[]
[]
[]
[]
[]
[]
[]
[]
[]
[]
[]
[]
[]
[]
[]
[]
[]
[]
[]
[]
[]
[]
[]
[]
[]
[]
[]
[]
[]
[]
[]
[]
[]
[]
[]
[]
[]
[]
[]
[]
[]
[]
[]
[]
[]
[]
[]
[]
[]
[]
[]
[]
[]
[]
[]
[]
[]
[]
[]
[]
[]
[]
[]
[]
[]
[]
[]
[]
[]
[]
[]
[]
[]
[]
[]
[]
[]
[]
[]
[]
[]
[]
[]
[]
[]
[]
[]
[]
[]
[]
[]
[]
[]
[]
[]
[]
[]
[]
[]
[]
[]
[]
[]
[]
[]
[]
[]
[]
[]
[]
[]
[]
[]
[]
[]
[]
[]
[]
[]
[]
[]
[]
[]
[]
[]
[]
[]
[]
[]
[]
[]
[]
[]
[]
[]
[]
[]
[]
[]
[]
[]
[]
[]
[]
[]
[]
[]
[]
[]
[]
[]
[]
[]
[]
[]
[]
[]
[]
[]
[]
[]
[]
[]
[]
[]
[]
[]
[]
[]
[]
[]
[]
[]
[]
[]
[]
[]
[]
[]
[]
[]
[]
[]
[]
[]
[]
[]
[]
[]
[]
[]
[]
[]
[]
[]
[]
[]
[]
[]
[]
[]
[]
[]
[]
[]
[]
[]
[]
[]
[]
[]
[]
[]
[]
[]
[]
[]
[]
[]
[]
[]
[]
[]
[]
[]
[]
[]
[]
[]
[]
[]
[]
[]
[]
[]
[]
[]
[]
[]
[]
[]
[]
[]
[]
[]
[]
[]
[]
[]
[]
[]
[]
[]
[]
[]
[]
[]
[]
[]
[]
[]
[]
[]
[]
[]
[]
[]
[]
[]
[]
[]
[]
[]
[]
[]
[]
[]
[]
[]
[]
[]
[]
[]
[]
[]
[]
[]
[]
[]
[]
[]
[]
[]
[]
[]
[]
[]
[]
[]
[]
[]
[]
[]
[]
[]
[]
[]
[]
[]
[]
[]
[]
[]
[]
[]
[]
[]
[]
[]
[]
[]
[]
[]
[]
[]
[]
[]
[]
[]
[]
[]
[]
[]
[]
[]
[]
[]
[]
[]
[]
[]
[]
[]
[]
[]
[]
[]
[]
[]
[]
[]
[]
[]
[]
[]
[]
[]
[]
[]
[]
[]
[]
[]
[]
[]
[]
[]
[]
[]
[]
[]
[]
[]
[]
[]
[]
[]
[]
[]
[]
[]
[]
[]
[]
[]
[]
[]
[]
[]
[]
[]
[]
[]
[]
[]
[]
[]
[]
[]
[]
[]
[]
[]
[]
[]
[]
[]
[]
[]
[]
[]
[]
[]
[]
[]
[]
[]
[]
[]
[]
[]
[]
[]
[]
[]
[]
[]
[]
[]
[]
[]
[]
[]
[]
[]
[]
[]
[]
[]
[]
[]
[]
[]
[]
[]
[]
[]
[]
[]
[]
[]
[]
[]
[]
[]
[]
[]
[]
[]
[]
[]
[]
[]
[]
[]
[]
[]
[]
[]
[]
[]
[]
[]
[]
[]
[]
[]
[]
[]
[]
[]
[]
[]
[]
[]
[]
[]
[]
[]
[]
[]
[]
[]
[]
[]
[]
[]
[]
[]
[]
[]
[]
[]
[]
[]
[]
[]
[]
[]
[]
[]
[]
[]
[]
[]
[]
[]
[]
[]
[]
[]
[]
[]
[]
[]
[]
[]
[]
[]
[]
[]
[]
[]
[]
[]
[]
[]
[]
[]
[]
[]
[]
[]
[]
[]
[]
[]
[]
[]
[]
[]
[]
[]
[]
[]
[]
[]
[]
[]
[]
[]
[]
[]
[]
[]
[]
[]
[]
[]
[]
[]
[]
[]
[]
[]
[]
[]
[]
[]
[]
[]
[]
[]
[]
[]
[]
[]
[]
[]
[]
[]
[]
[]
[]
[]
[]
[]
[]
[]
[]
[]
[]
[]
[]
[]
[]
[]
[]
[]
[]
[]
[]
[]
[]
[]
[]
[]
[]
[]
[]
[]
[]
[]
[]
[]
[]
[]
[]
[]
[]
[]
[]
[]
[]
[]
[]
[]
[]
[]
[]
[]
[]
[]
[]
[]
[]
[]
[]
[]
[]
[]
[]
[]
[]
[]
[]
[]
[]
[]
[]
[]
[]
[]
[]
[]
[]
[]
[]
[]
[]
[]
[]
[]
[]
[]
[]
[]
[]
[]
[]
[]
[]
[]
[]
[]
[]
[]
[]
[]
[]
[]
[]
[]
[]
[]
[]
[]
[]
[]
[]
[]
[]
[]
[]
[]
[]
[]
[]
[]
[]
[]
[]
[]
[]
[]
[]
[]
[]
[]
[]
[]
[]
[]
[]
[]
[]
[]
[]
[]
[]
[]
[]
[]
[]
[]
[]
[]
[]
[]
[]
[]
[]
[]
[]
[]
[]
[]
[]
[]
[]
[]
[]
[]
[]
[]
[]
[]
[]
[]
[]
[]
[]
[]
[]
[]
[]
[]
[]
[]
[]
[]
[]
[]
[]
[]
[]
[]
[]
[]
[]
[]
[]
[]
[]
[]
[]
[]
[]
[]
[]
[]
[]
[]
[]
[]
[]
[]
[]
[]
[]
[]
[]
[]
[]
[]
[]
[]
[]
[]
[]
[]
[]
[]
[]
[]
[]
[]
[]
[]
[]
[]
[]
[]
[]
[]
[]
[]
[]
[]
[]
[]
[]
[]
[]
[]
[]
[]
[]
[]
[]
[]
[]
[]
[]
[]
[]
[]
[]
[]
[]
[]
[]
[]
[]
[]
[]
[]
[]
[]
[]
[]
[]
[]
[]
[]
[]
[]
[]
[]
[]
[]
[]
[]
[]
[]
[]
[]
[]
[]
[]
[]
[]
[]
[]
[]
[]
[]
[]
[]
[]
[]
[]
[]
[]
[]
[]
[]
[]
[]
[]
[]
[]
[]
[]
[]
[]
[]
[]
[]
[]
[]
[]
[]
[]
[]
[]
[]
[]
[]
[]
[]
[]
[]
[]
[]
[]
[]
[]
[]
[]
[]
[]
[]
[]
[]
[]
[]
[]
[]
[]
[]
[]
[]
[]
[]
[]
[]
[]
[]
[]
[]
[]
[]
[]
[]
[]
[]
[]
[]
[]
[]
[]
[]
[]
[]
[]
[]
[]
[]
[]
[]
[]
[]
[]
[]
[]
[]
[]
[]
[]
[]
[]
[]
[]
[]
[]
[]
[]
[]
[]
[]
[]
[]
[]
[]
[]
[]
[]
[]
[]
[]
[]
[]
[]
[]
[]
[]
[]
[]
[]
[]
[]
[]
[]
[]
[]
[]
[]
[]
[]
[]
[]
[]
[]
[]
[]
[]
[]
[]
[]
[]
[]
[]
[]
[]
[]
[]
[]
[]
[]
[]
[]
[]
[]
[]
[]
[]
[]
[]
[]
[]
[]
[]
[]
[]
[]
[]
[]
[]
[]
[]
[]
[]
[]
[]
[]
[]
[]
[]
[]
[]
[]
[]
[]
[]
[]
[]
[]
[]
[]
[]
[]
[]
[]
[]
[]
[]
[]
[]
[]
[]
[]
[]
[]
[]
[]
[]
[]
[]
[]
[]
[]
[]
[]
[]
[]
[]
[]
[]
[]
[]
[]
[]
[]
[]
[]
[]
[]
[]
[]
[]
[]
[]
[]
[]
[]
[]
[]
[]
[]
[]
[]
[]
[]
[]
[]
[]
[]
[]
[]
[]
[]
[]
[]
[]
[]
[]
[]
[]
[]
[]
[]
[]
[]
[]
[]
[]
[]
[]
[]
[]
[]
[]
[]
[]
[]
[]
[]
[]
[]
[]
[]
[]
[]
[]
[]
[]
[]
[]
[]
[]
[]
[]
[]
[]
[]
[]
[]
[]
[]
[]
[]
[]
[]
[]
[]
[]
[]
[]
[]
[]
[]
[]
[]
[]
[]
[]
[]
[]
[]
[]
[]
[]
[]
[]
[]
[]
[]
["\"-Ministerio de Hacienda, Órgano de Normalización Técnica, Edificio Mira, Zapote. 300 Oeste de Casa Presidencial-Autoria Ing. Nathalie Venegas Delgado-\""]

{"sheet":"#5","index":5,"n_rows":1048524,"n_cols":1,"rows_kept":4500,"cut":true,"hidden":true,"merged":[[3,0,3,15],[0,0,0,15],[1,0,1,15],[2,0,2,15],[1048523,0,1048523,15],[4,0,4,15],[5,0,5,15],[6,0,6,15],[7,0,7,15],[8,0,8,15]],"bounds":{"rows_first":2000,"rows_last":500,"rows_between":2000,"halvings":0}}
["Uso Municipal/Proceso de Valoración "]
["Municipal Use Only / Assessment Process"]
[]
[]
["Zona Homogénea: Se refiere a la  zona homogénea en que se ubica el inmueble, según la plataforma de valores de terrenos por zonas homogéneas que proporciona el Ministerio de Hacienda-Órgano de Normalización Técnica."]
["Legal zoning: Homogeneous zones provided by the Ministerio de Hacienda-Órgano de Normalización Técnica. If the information is unknown consult the municipal employee. ."]
[]
["Observaciones: Aquí se señalan todos aquellos aspectos que se consideren importantes, condiciones especiales del inmueble que no se contemplen en el resto del formulario, por ejemplo: problemas de drenaje, deslizamientos de tierra, afectación por rio, detalles por remodelación etc."]
["Observations: Listed are those aspects that are considered important, special conditions of the property that are not listed in the rest of the form, for example: problems of drainage, landslides, affectation by river, remodeling, etc"]
[]
[]
[]
[]
[]
[]
[]
[]
[]
[]
[]
[]
[]
[]
[]
[]
[]
[]
[]
[]
[]
[]
[]
[]
[]
[]
[]
[]
[]
[]
[]
[]
[]
[]
[]
[]
[]
[]
[]
[]
[]
[]
[]
[]
[]
[]
[]
[]
[]
[]
[]
[]
[]
[]
[]
[]
[]
[]
[]
[]
[]
[]
[]
[]
[]
[]
[]
[]
[]
[]
[]
[]
[]
[]
[]
[]
[]
[]
[]
[]
[]
[]
[]
[]
[]
[]
[]
[]
[]
[]
[]
[]
[]
[]
[]
[]
[]
[]
[]
[]
[]
[]
[]
[]
[]
[]
[]
[]
[]
[]
[]
[]
[]
[]
[]
[]
[]
[]
[]
[]
[]
[]
[]
[]
[]
[]
[]
[]
[]
[]
[]
[]
[]
[]
[]
[]
[]
[]
[]
[]
[]
[]
[]
[]
[]
[]
[]
[]
[]
[]
[]
[]
[]
[]
[]
[]
[]
[]
[]
[]
[]
[]
[]
[]
[]
[]
[]
[]
[]
[]
[]
[]
[]
[]
[]
[]
[]
[]
[]
[]
[]
[]
[]
[]
[]
[]
[]
[]
[]
[]
[]
[]
[]
[]
[]
[]
[]
[]
[]
[]
[]
[]
[]
[]
[]
[]
[]
[]
[]
[]
[]
[]
[]
[]
[]
[]
[]
[]
[]
[]
[]
[]
[]
[]
[]
[]
[]
[]
[]
[]
[]
[]
[]
[]
[]
[]
[]
[]
[]
[]
[]
[]
[]
[]
[]
[]
[]
[]
[]
[]
[]
[]
[]
[]
[]
[]
[]
[]
[]
[]
[]
[]
[]
[]
[]
[]
[]
[]
[]
[]
[]
[]
[]
[]
[]
[]
[]
[]
[]
[]
[]
[]
[]
[]
[]
[]
[]
[]
[]
[]
[]
[]
[]
[]
[]
[]
[]
[]
[]
[]
[]
[]
[]
[]
[]
[]
[]
[]
[]
[]
[]
[]
[]
[]
[]
[]
[]
[]
[]
[]
[]
[]
[]
[]
[]
[]
[]
[]
[]
[]
[]
[]
[]
[]
[]
[]
[]
[]
[]
[]
[]
[]
[]
[]
[]
[]
[]
[]
[]
[]
[]
[]
[]
[]
[]
[]
[]
[]
[]
[]
[]
[]
[]
[]
[]
[]
[]
[]
[]
[]
[]
[]
[]
[]
[]
[]
[]
[]
[]
[]
[]
[]
[]
[]
[]
[]
[]
[]
[]
[]
[]
[]
[]
[]
[]
[]
[]
[]
[]
[]
[]
[]
[]
[]
[]
[]
[]
[]
[]
[]
[]
[]
[]
[]
[]
[]
[]
[]
[]
[]
[]
[]
[]
[]
[]
[]
[]
[]
[]
[]
[]
[]
[]
[]
[]
[]
[]
[]
[]
[]
[]
[]
[]
[]
[]
[]
[]
[]
[]
[]
[]
[]
[]
[]
[]
[]
[]
[]
[]
[]
[]
[]
[]
[]
[]
[]
[]
[]
[]
[]
[]
[]
[]
[]
[]
[]
[]
[]
[]
[]
[]
[]
[]
[]
[]
[]
[]
[]
[]
[]
[]
[]
[]
[]
[]
[]
[]
[]
[]
[]
[]
[]
[]
[]
[]
[]
[]
[]
[]
[]
[]
[]
[]
[]
[]
[]
[]
[]
[]
[]
[]
[]
[]
[]
[]
[]
[]
[]
[]
[]
[]
[]
[]
[]
[]
[]
[]
[]
[]
[]
[]
[]
[]
[]
[]
[]
[]
[]
[]
[]
[]
[]
[]
[]
[]
[]
[]
[]
[]
[]
[]
[]
[]
[]
[]
[]
[]
[]
[]
[]
[]
[]
[]
[]
[]
[]
[]
[]
[]
[]
[]
[]
[]
[]
[]
[]
[]
[]
[]
[]
[]
[]
[]
[]
[]
[]
[]
[]
[]
[]
[]
[]
[]
[]
[]
[]
[]
[]
[]
[]
[]
[]
[]
[]
[]
[]
[]
[]
[]
[]
[]
[]
[]
[]
[]
[]
[]
[]
[]
[]
[]
[]
[]
[]
[]
[]
[]
[]
[]
[]
[]
[]
[]
[]
[]
[]
[]
[]
[]
[]
[]
[]
[]
[]
[]
[]
[]
[]
[]
[]
[]
[]
[]
[]
[]
[]
[]
[]
[]
[]
[]
[]
[]
[]
[]
[]
[]
[]
[]
[]
[]
[]
[]
[]
[]
[]
[]
[]
[]
[]
[]
[]
[]
[]
[]
[]
[]
[]
[]
[]
[]
[]
[]
[]
[]
[]
[]
[]
[]
[]
[]
[]
[]
[]
[]
[]
[]
[]
[]
[]
[]
[]
[]
[]
[]
[]
[]
[]
[]
[]
[]
[]
[]
[]
[]
[]
[]
[]
[]
[]
[]
[]
[]
[]
[]
[]
[]
[]
[]
[]
[]
[]
[]
[]
[]
[]
[]
[]
[]
[]
[]
[]
[]
[]
[]
[]
[]
[]
[]
[]
[]
[]
[]
[]
[]
[]
[]
[]
[]
[]
[]
[]
[]
[]
[]
[]
[]
[]
[]
[]
[]
[]
[]
[]
[]
[]
[]
[]
[]
[]
[]
[]
[]
[]
[]
[]
[]
[]
[]
[]
[]
[]
[]
[]
[]
[]
[]
[]
[]
[]
[]
[]
[]
[]
[]
[]
[]
[]
[]
[]
[]
[]
[]
[]
[]
[]
[]
[]
[]
[]
[]
[]
[]
[]
[]
[]
[]
[]
[]
[]
[]
[]
[]
[]
[]
[]
[]
[]
[]
[]
[]
[]
[]
[]
[]
[]
[]
[]
[]
[]
[]
[]
[]
[]
[]
[]
[]
[]
[]
[]
[]
[]
[]
[]
[]
[]
[]
[]
[]
[]
[]
[]
[]
[]
[]
[]
[]
[]
[]
[]
[]
[]
[]
[]
[]
[]
[]
[]
[]
[]
[]
[]
[]
[]
[]
[]
[]
[]
[]
[]
[]
[]
[]
[]
[]
[]
[]
[]
[]
[]
[]
[]
[]
[]
[]
[]
[]
[]
[]
[]
[]
[]
[]
[]
[]
[]
[]
[]
[]
[]
[]
[]
[]
[]
[]
[]
[]
[]
[]
[]
[]
[]
[]
[]
[]
[]
[]
[]
[]
[]
[]
[]
[]
[]
[]
[]
[]
[]
[]
[]
[]
[]
[]
[]
[]
[]
[]
[]
[]
[]
[]
[]
[]
[]
[]
[]
[]
[]
[]
[]
[]
[]
[]
[]
[]
[]
[]
[]
[]
[]
[]
[]
[]
[]
[]
[]
[]
[]
[]
[]
[]
[]
[]
[]
[]
[]
[]
[]
[]
[]
[]
[]
[]
[]
[]
[]
[]
[]
[]
[]
[]
[]
[]
[]
[]
[]
[]
[]
[]
[]
[]
[]
[]
[]
[]
[]
[]
[]
[]
[]
[]
[]
[]
[]
[]
[]
[]
[]
[]
[]
[]
[]
[]
[]
[]
[]
[]
[]
[]
[]
[]
[]
[]
[]
[]
[]
[]
[]
[]
[]
[]
[]
[]
[]
[]
[]
[]
[]
[]
[]
[]
[]
[]
[]
[]
[]
[]
[]
[]
[]
[]
[]
[]
[]
[]
[]
[]
[]
[]
[]
[]
[]
[]
[]
[]
[]
[]
[]
[]
[]
[]
[]
[]
[]
[]
[]
[]
[]
[]
[]
[]
[]
[]
[]
[]
[]
[]
[]
[]
[]
[]
[]
[]
[]
[]
[]
[]
[]
[]
[]
[]
[]
[]
[]
[]
[]
[]
[]
[]
[]
[]
[]
[]
[]
[]
[]
[]
[]
[]
[]
[]
[]
[]
[]
[]
[]
[]
[]
[]
[]
[]
[]
[]
[]
[]
[]
[]
[]
[]
[]
[]
[]
[]
[]
[]
[]
[]
[]
[]
[]
[]
[]
[]
[]
[]
[]
[]
[]
[]
[]
[]
[]
[]
[]
[]
[]
[]
[]
[]
[]
[]
[]
[]
[]
[]
[]
[]
[]
[]
[]
[]
[]
[]
[]
[]
[]
[]
[]
[]
[]
[]
[]
[]
[]
[]
[]
[]
[]
[]
[]
[]
[]
[]
[]
[]
[]
[]
[]
[]
[]
[]
[]
[]
[]
[]
[]
[]
[]
[]
[]
[]
[]
[]
[]
[]
[]
[]
[]
[]
[]
[]
[]
[]
[]
[]
[]
[]
[]
[]
[]
[]
[]
[]
[]
[]
[]
[]
[]
[]
[]
[]
[]
[]
[]
[]
[]
[]
[]
[]
[]
[]
[]
[]
[]
[]
[]
[]
[]
[]
[]
[]
[]
[]
[]
[]
[]
[]
[]
[]
[]
[]
[]
[]
[]
[]
[]
[]
[]
[]
[]
[]
[]
[]
[]
[]
[]
[]
[]
[]
[]
[]
[]
[]
[]
[]
[]
[]
[]
[]
[]
[]
[]
[]
[]
[]
[]
[]
[]
[]
[]
[]
[]
[]
[]
[]
[]
[]
[]
[]
[]
[]
[]
[]
[]
[]
[]
[]
[]
[]
[]
[]
[]
[]
[]
[]
[]
[]
[]
[]
[]
[]
[]
[]
[]
[]
[]
[]
[]
[]
[]
[]
[]
[]
[]
[]
[]
[]
[]
[]
[]
[]
[]
[]
[]
[]
[]
[]
[]
[]
[]
[]
[]
[]
[]
[]
[]
[]
[]
[]
[]
[]
[]
[]
[]
[]
[]
[]
[]
[]
[]
[]
[]
[]
[]
[]
[]
[]
[]
[]
[]
[]
[]
[]
[]
[]
[]
[]
[]
[]
[]
[]
[]
[]
[]
[]
[]
[]
[]
[]
[]
[]
[]
[]
[]
[]
[]
[]
[]
[]
[]
[]
[]
[]
[]
[]
[]
[]
[]
[]
[]
[]
[]
[]
[]
[]
[]
[]
[]
[]
[]
[]
[]
[]
[]
[]
[]
[]
[]
[]
[]
[]
[]
[]
[]
[]
[]
[]
[]
[]
[]
[]
[]
[]
[]
[]
[]
[]
[]
[]
[]
[]
[]
[]
[]
[]
[]
[]
[]
[]
[]
[]
[]
[]
[]
[]
[]
[]
[]
[]
[]
[]
[]
[]
[]
[]
[]
[]
[]
[]
[]
[]
[]
[]
[]
[]
[]
[]
[]
[]
[]
[]
[]
[]
[]
[]
[]
[]
[]
[]
[]
[]
[]
[]
[]
[]
[]
[]
[]
[]
[]
[]
[]
[]
[]
[]
[]
[]
[]
[]
[]
[]
[]
[]
[]
[]
[]
[]
[]
[]
[]
[]
[]
[]
[]
[]
[]
[]
[]
[]
[]
[]
[]
[]
[]
[]
[]
[]
[]
[]
[]
[]
[]
[]
[]
[]
[]
[]
[]
[]
[]
[]
[]
[]
[]
[]
[]
[]
[]
[]
[]
[]
[]
[]
[]
[]
[]
[]
[]
[]
[]
[]
[]
[]
[]
[]
[]
[]
[]
[]
[]
[]
[]
[]
[]
[]
[]
[]
[]
[]
[]
[]
[]
[]
[]
[]
[]
[]
[]
[]
[]
[]
[]
[]
[]
[]
[]
[]
[]
[]
[]
[]
[]
[]
[]
[]
[]
[]
[]
[]
[]
[]
[]
[]
[]
[]
[]
[]
[]
[]
[]
[]
[]
[]
[]
[]
[]
[]
[]
[]
[]
[]
[]
[]
[]
[]
[]
[]
[]
[]
[]
[]
[]
[]
[]
[]
[]
[]
[]
[]
[]
[]
[]
[]
[]
[]
[]
[]
[]
[]
[]
[]
[]
[]
[]
[]
[]
[]
[]
[]
[]
[]
[]
[]
[]
[]
[]
[]
[]
[]
[]
[]
[]
[]
[]
[]
[]
[]
[]
[]
[]
[]
[]
[]
[]
[]
[]
[]
[]
[]
[]
[]
[]
[]
[]
[]
[]
[]
[]
[]
[]
[]
[]
[]
[]
[]
[]
[]
[]
[]
[]
[]
[]
[]
[]
[]
[]
[]
[]
[]
[]
[]
[]
[]
[]
[]
[]
[]
[]
[]
[]
[]
[]
[]
[]
[]
[]
[]
[]
[]
[]
[]
[]
[]
[]
[]
[]
[]
[]
[]
[]
[]
[]
[]
[]
[]
[]
[]
[]
[]
[]
[]
[]
[]
[]
[]
[]
[]
[]
[]
[]
[]
[]
[]
[]
[]
[]
[]
[]
[]
[]
[]
[]
[]
[]
[]
[]
[]
[]
[]
[]
[]
[]
[]
[]
[]
[]
[]
[]
[]
[]
[]
[]
[]
[]
[]
[]
[]
[]
[]
[]
[]
[]
[]
[]
[]
[]
[]
[]
[]
[]
[]
[]
[]
[]
[]
[]
[]
[]
[]
[]
[]
[]
[]
[]
[]
[]
[]
[]
[]
[]
[]
[]
[]
[]
[]
[]
[]
[]
[]
[]
[]
[]
[]
[]
[]
[]
[]
[]
[]
[]
[]
[]
[]
[]
[]
[]
[]
[]
[]
[]
[]
[]
[]
[]
[]
[]
[]
[]
[]
[]
[]
[]
[]
[]
[]
[]
[]
[]
[]
[]
[]
[]
[]
[]
[]
[]
[]
[]
[]
[]
[]
[]
[]
[]
[]
[]
[]
[]
[]
[]
[]
[]
[]
[]
[]
[]
[]
[]
[]
[]
[]
[]
[]
[]
[]
[]
[]
[]
[]
[]
[]
[]
[]
[]
[]
[]
[]
[]
[]
[]
[]
[]
[]
[]
[]
[]
[]
[]
[]
[]
[]
[]
[]
[]
[]
[]
[]
[]
[]
[]
[]
[]
[]
[]
[]
[]
[]
[]
[]
[]
[]
[]
[]
[]
[]
[]
[]
[]
[]
[]
[]
[]
[]
[]
[]
[]
[]
[]
[]
[]
[]
[]
[]
[]
[]
[]
[]
[]
[]
[]
[]
[]
[]
[]
[]
[]
[]
[]
[]
[]
[]
[]
[]
[]
[]
[]
[]
[]
[]
[]
[]
[]
[]
[]
[]
[]
[]
[]
[]
[]
[]
[]
[]
[]
[]
[]
[]
[]
[]
[]
[]
[]
[]
[]
[]
[]
[]
[]
[]
[]
[]
[]
[]
[]
[]
[]
[]
[]
[]
[]
[]
[]
[]
[]
[]
[]
[]
[]
[]
[]
[]
[]
[]
[]
[]
[]
[]
[]
[]
[]
[]
[]
[]
[]
[]
[]
[]
[]
[]
[]
[]
[]
[]
[]
[]
[]
[]
[]
[]
[]
[]
[]
[]
[]
[]
[]
[]
[]
[]
[]
[]
[]
[]
[]
[]
[]
[]
[]
[]
[]
[]
[]
[]
[]
[]
[]
[]
[]
[]
[]
[]
[]
[]
[]
[]
[]
[]
[]
[]
[]
[]
[]
[]
[]
[]
[]
[]
[]
[]
[]
[]
[]
[]
[]
[]
[]
[]
[]
[]
[]
[]
[]
[]
[]
[]
[]
[]
[]
[]
[]
[]
[]
[]
[]
[]
[]
[]
[]
[]
[]
[]
[]
[]
[]
[]
[]
[]
[]
[]
[]
[]
[]
[]
[]
[]
[]
[]
[]
[]
[]
[]
[]
[]
[]
[]
[]
[]
[]
[]
[]
[]
[]
[]
[]
[]
[]
[]
[]
[]
[]
[]
[]
[]
[]
[]
[]
[]
[]
[]
[]
[]
[]
[]
[]
[]
[]
[]
[]
[]
[]
[]
[]
[]
[]
[]
[]
[]
[]
[]
[]
[]
[]
[]
[]
[]
[]
[]
[]
[]
[]
[]
[]
[]
[]
[]
[]
[]
[]
[]
[]
[]
[]
[]
[]
[]
[]
[]
[]
[]
[]
[]
[]
[]
[]
[]
[]
[]
[]
[]
[]
[]
[]
[]
[]
[]
[]
[]
[]
[]
[]
[]
[]
[]
[]
[]
[]
[]
[]
[]
[]
[]
[]
[]
[]
[]
[]
[]
[]
[]
[]
[]
[]
[]
[]
[]
[]
[]
[]
[]
[]
[]
[]
[]
[]
[]
[]
[]
[]
[]
[]
[]
[]
[]
[]
[]
[]
[]
[]
[]
[]
[]
[]
[]
[]
[]
[]
[]
[]
[]
[]
[]
[]
[]
[]
[]
[]
[]
[]
[]
[]
[]
[]
[]
[]
[]
[]
[]
[]
[]
[]
[]
[]
[]
[]
[]
[]
[]
[]
[]
[]
[]
[]
[]
[]
[]
[]
[]
[]
[]
[]
[]
[]
[]
[]
[]
[]
[]
[]
[]
[]
[]
[]
[]
[]
[]
[]
[]
[]
[]
[]
[]
[]
[]
[]
[]
[]
[]
[]
[]
[]
[]
[]
[]
[]
[]
[]
[]
[]
[]
[]
[]
[]
[]
[]
[]
[]
[]
[]
[]
[]
[]
[]
[]
[]
[]
[]
[]
[]
[]
[]
[]
[]
[]
[]
[]
[]
[]
[]
[]
[]
[]
[]
[]
[]
[]
[]
[]
[]
[]
[]
[]
[]
[]
[]
[]
[]
[]
[]
[]
[]
[]
[]
[]
[]
[]
[]
[]
[]
[]
[]
[]
[]
[]
[]
[]
[]
[]
[]
[]
[]
[]
[]
[]
[]
[]
[]
[]
[]
[]
[]
[]
[]
[]
[]
[]
[]
[]
[]
[]
[]
[]
[]
[]
[]
[]
[]
[]
[]
[]
[]
[]
[]
[]
[]
[]
[]
[]
[]
[]
[]
[]
[]
[]
[]
[]
[]
[]
[]
[]
[]
[]
[]
[]
[]
[]
[]
[]
[]
[]
[]
[]
[]
[]
[]
[]
[]
[]
[]
[]
[]
[]
[]
[]
[]
[]
[]
[]
[]
[]
[]
[]
[]
[]
[]
[]
[]
[]
[]
[]
[]
[]
[]
[]
[]
[]
[]
[]
[]
[]
[]
[]
[]
[]
[]
[]
[]
[]
[]
[]
[]
[]
[]
[]
[]
[]
[]
[]
[]
[]
[]
[]
[]
[]
[]
[]
[]
[]
[]
[]
[]
[]
[]
[]
[]
[]
[]
[]
[]
[]
[]
[]
[]
[]
[]
[]
[]
[]
[]
[]
[]
[]
[]
[]
[]
[]
[]
[]
[]
[]
[]
[]
[]
[]
[]
[]
[]
[]
[]
[]
[]
[]
[]
[]
[]
[]
[]
[]
[]
[]
[]
[]
[]
[]
[]
[]
[]
[]
[]
[]
[]
[]
[]
[]
[]
[]
[]
[]
[]
[]
[]
[]
[]
[]
[]
[]
[]
[]
[]
[]
[]
[]
[]
[]
[]
[]
[]
[]
[]
[]
[]
[]
[]
[]
[]
[]
[]
[]
[]
[]
[]
[]
[]
[]
[]
[]
[]
[]
[]
[]
[]
[]
[]
[]
[]
[]
[]
[]
[]
[]
[]
[]
[]
[]
[]
[]
[]
[]
[]
[]
[]
[]
[]
[]
[]
[]
[]
[]
[]
[]
[]
[]
[]
[]
[]
[]
[]
[]
[]
[]
[]
[]
[]
[]
[]
[]
[]
[]
[]
[]
[]
[]
[]
[]
[]
[]
[]
[]
[]
[]
[]
[]
[]
[]
[]
[]
[]
[]
[]
[]
[]
[]
[]
[]
[]
[]
[]
[]
[]
[]
[]
[]
[]
[]
[]
[]
[]
[]
[]
[]
[]
[]
[]
[]
[]
[]
[]
[]
[]
[]
[]
[]
[]
[]
[]
[]
[]
[]
[]
[]
[]
[]
[]
[]
[]
[]
[]
[]
[]
[]
[]
[]
[]
[]
[]
[]
[]
[]
[]
[]
[]
[]
[]
[]
[]
[]
[]
[]
[]
[]
[]
[]
[]
[]
[]
[]
[]
[]
[]
[]
[]
[]
[]
[]
[]
[]
[]
[]
[]
[]
[]
[]
[]
[]
[]
[]
[]
[]
[]
[]
[]
[]
[]
[]
[]
[]
[]
[]
[]
[]
[]
[]
[]
[]
[]
[]
[]
[]
[]
[]
[]
[]
[]
[]
[]
[]
[]
[]
[]
[]
[]
[]
[]
[]
[]
[]
[]
[]
[]
[]
[]
[]
[]
[]
[]
[]
[]
[]
[]
[]
[]
[]
[]
[]
[]
[]
[]
[]
[]
[]
[]
[]
[]
[]
[]
[]
[]
[]
[]
[]
[]
[]
[]
[]
[]
[]
[]
[]
[]
[]
[]
[]
[]
[]
[]
[]
[]
[]
[]
[]
[]
[]
[]
[]
[]
[]
[]
[]
[]
[]
[]
[]
[]
[]
[]
[]
[]
[]
[]
[]
[]
[]
[]
[]
[]
[]
[]
[]
[]
[]
[]
[]
[]
[]
[]
[]
[]
[]
[]
[]
[]
[]
[]
[]
[]
[]
[]
[]
[]
[]
[]
[]
[]
[]
[]
[]
[]
[]
[]
[]
[]
[]
[]
[]
[]
[]
[]
[]
[]
[]
[]
[]
[]
[]
[]
[]
[]
[]
[]
[]
[]
[]
[]
[]
[]
[]
[]
[]
[]
[]
[]
[]
[]
[]
[]
[]
[]
[]
[]
[]
[]
[]
[]
[]
[]
[]
[]
[]
[]
[]
[]
[]
[]
[]
[]
[]
[]
[]
[]
[]
[]
[]
[]
[]
[]
[]
[]
[]
[]
[]
[]
[]
[]
[]
[]
[]
[]
[]
[]
[]
[]
[]
[]
[]
[]
[]
[]
[]
[]
[]
[]
[]
[]
[]
[]
[]
[]
[]
[]
[]
[]
[]
[]
[]
[]
[]
[]
[]
[]
[]
[]
[]
[]
[]
[]
[]
[]
[]
[]
[]
[]
[]
[]
[]
[]
[]
[]
[]
[]
[]
[]
[]
[]
[]
[]
[]
[]
[]
[]
[]
[]
[]
[]
[]
[]
[]
[]
[]
[]
[]
[]
[]
[]
[]
[]
[]
[]
[]
[]
[]
[]
[]
[]
[]
[]
[]
[]
[]
[]
[]
[]
[]
[]
[]
[]
[]
[]
[]
[]
[]
[]
[]
[]
[]
[]
[]
[]
[]
[]
[]
[]
[]
[]
[]
[]
[]
[]
[]
[]
[]
[]
[]
[]
[]
[]
[]
[]
[]
[]
[]
[]
[]
[]
[]
[]
[]
[]
[]
[]
[]
[]
[]
[]
[]
[]
[]
[]
[]
[]
[]
[]
[]
[]
[]
[]
[]
[]
[]
[]
[]
[]
[]
[]
[]
[]
[]
[]
[]
[]
[]
[]
[]
[]
[]
[]
[]
[]
[]
[]
[]
[]
[]
[]
[]
[]
[]
[]
[]
[]
[]
[]
[]
[]
[]
[]
[]
[]
[]
[]
[]
[]
[]
[]
[]
[]
[]
[]
[]
[]
[]
[]
[]
[]
[]
[]
[]
[]
[]
[]
[]
[]
[]
[]
[]
[]
[]
[]
[]
[]
[]
[]
[]
[]
[]
[]
[]
[]
[]
[]
[]
[]
[]
[]
[]
[]
[]
[]
[]
[]
[]
[]
[]
[]
[]
[]
[]
[]
[]
[]
[]
[]
[]
[]
[]
[]
[]
[]
[]
[]
[]
[]
[]
[]
[]
[]
[]
[]
[]
[]
[]
[]
[]
[]
[]
[]
[]
[]
[]
[]
[]
[]
[]
[]
[]
[]
[]
[]
[]
[]
[]
[]
[]
[]
[]
[]
[]
[]
[]
[]
[]
[]
[]
[]
[]
[]
[]
[]
[]
[]
[]
[]
[]
[]
[]
[]
[]
[]
[]
[]
[]
[]
[]
[]
[]
[]
[]
[]
[]
[]
[]
[]
[]
[]
[]
[]
[]
[]
[]
[]
[]
[]
[]
[]
[]
[]
[]
[]
[]
[]
[]
[]
[]
[]
[]
[]
[]
[]
[]
[]
[]
[]
[]
[]
[]
[]
[]
[]
[]
[]
[]
[]
[]
[]
[]
[]
[]
[]
[]
[]
[]
[]
[]
[]
[]
[]
[]
[]
[]
[]
[]
[]
[]
[]
[]
[]
[]
[]
[]
[]
[]
[]
[]
[]
[]
[]
[]
[]
[]
[]
[]
[]
[]
[]
[]
[]
[]
[]
[]
[]
[]
[]
[]
[]
[]
[]
[]
[]
[]
[]
[]
[]
[]
[]
[]
[]
[]
[]
[]
[]
[]
[]
[]
[]
[]
[]
[]
[]
[]
[]
[]
[]
[]
[]
[]
[]
[]
[]
[]
[]
[]
[]
[]
[]
[]
[]
[]
[]
[]
[]
[]
[]
[]
[]
[]
[]
[]
[]
[]
[]
[]
[]
[]
[]
[]
[]
[]
[]
[]
[]
[]
[]
[]
[]
[]
[]
[]
[]
[]
[]
[]
[]
[]
[]
[]
[]
[]
[]
[]
[]
[]
[]
[]
[]
[]
[]
[]
[]
[]
[]
[]
[]
[]
[]
[]
[]
[]
[]
[]
[]
[]
[]
[]
[]
[]
[]
[]
[]
[]
[]
[]
[]
[]
[]
[]
[]
[]
[]
[]
[]
[]
[]
[]
[]
[]
[]
[]
[]
[]
[]
[]
[]
[]
[]
[]
[]
[]
[]
[]
[]
[]
[]
[]
[]
[]
[]
[]
[]
[]
[]
[]
[]
[]
[]
[]
[]
[]
[]
[]
[]
[]
[]
[]
[]
[]
[]
[]
[]
[]
[]
[]
[]
[]
[]
[]
[]
[]
[]
[]
[]
[]
[]
[]
[]
[]
[]
[]
[]
[]
[]
[]
[]
[]
[]
[]
[]
[]
[]
[]
[]
[]
[]
[]
[]
[]
[]
[]
[]
[]
[]
[]
[]
[]
[]
[]
[]
[]
[]
[]
[]
[]
[]
[]
[]
[]
[]
[]
[]
[]
[]
[]
[]
[]
[]
[]
[]
[]
[]
[]
[]
[]
[]
[]
[]
[]
[]
[]
[]
[]
[]
[]
[]
[]
[]
[]
[]
[]
[]
[]
[]
[]
[]
[]
[]
[]
[]
[]
[]
[]
[]
[]
[]
[]
[]
[]
[]
[]
[]
[]
[]
[]
[]
[]
[]
[]
[]
[]
[]
[]
[]
[]
[]
[]
[]
[]
[]
[]
[]
[]
[]
[]
[]
[]
[]
[]
[]
[]
[]
[]
[]
[]
[]
[]
[]
[]
[]
[]
[]
[]
[]
[]
[]
[]
[]
[]
[]
[]
[]
[]
[]
[]
[]
[]
[]
[]
[]
[]
[]
[]
[]
[]
[]
[]
[]
[]
[]
[]
[]
[]
[]
[]
[]
[]
[]
[]
[]
[]
[]
[]
[]
[]
[]
[]
[]
[]
[]
[]
[]
[]
[]
[]
[]
[]
[]
[]
[]
[]
[]
[]
[]
[]
[]
[]
[]
[]
[]
[]
[]
[]
[]
[]
[]
[]
[]
[]
[]
[]
[]
[]
[]
[]
[]
[]
[]
[]
[]
[]
[]
[]
[]
[]
[]
[]
[]
[]
[]
[]
[]
[]
[]
[]
[]
[]
[]
[]
[]
[]
[]
[]
[]
[]
[]
[]
[]
[]
[]
[]
[]
[]
[]
[]
[]
[]
[]
[]
[]
[]
[]
[]
[]
[]
[]
[]
[]
[]
[]
[]
[]
[]
[]
[]
[]
[]
[]
[]
[]
[]
[]
[]
[]
[]
[]
[]
[]
[]
[]
[]
[]
[]
[]
[]
[]
[]
[]
[]
[]
[]
[]
[]
[]
[]
[]
[]
[]
[]
[]
[]
[]
[]
[]
[]
[]
[]
[]
[]
[]
[]
[]
[]
[]
[]
[]
[]
[]
[]
[]
[]
[]
[]
[]
[]
[]
[]
[]
[]
[]
[]
[]
[]
[]
[]
[]
[]
[]
[]
[]
[]
[]
[]
[]
[]
[]
[]
[]
[]
[]
[]
[]
[]
[]
[]
[]
[]
[]
[]
[]
[]
[]
[]
[]
[]
[]
[]
[]
[]
[]
[]
[]
[]
[]
[]
[]
[]
[]
[]
[]
[]
[]
[]
[]
[]
[]
[]
[]
[]
[]
[]
[]
[]
[]
[]
[]
[]
[]
[]
[]
[]
[]
[]
[]
[]
[]
[]
[]
[]
[]
[]
[]
[]
[]
[]
[]
[]
[]
[]
[]
[]
[]
[]
[]
[]
[]
[]
[]
[]
[]
[]
[]
[]
[]
[]
[]
[]
[]
[]
[]
[]
[]
[]
[]
[]
[]
[]
[]
[]
[]
[]
[]
[]
[]
[]
[]
[]
[]
[]
[]
[]
[]
[]
[]
[]
[]
[]
[]
[]
[]
[]
[]
[]
[]
[]
[]
[]
[]
[]
[]
[]
[]
[]
[]
[]
[]
[]
[]
[]
[]
[]
[]
[]
[]
[]
[]
[]
[]
[]
[]
[]
[]
[]
[]
[]
[]
[]
[]
[]
[]
[]
[]
[]
[]
[]
[]
[]
[]
[]
[]
[]
[]
[]
[]
[]
[]
[]
[]
[]
[]
[]
[]
[]
[]
[]
[]
[]
[]
[]
[]
[]
[]
[]
[]
[]
[]
[]
[]
[]
[]
[]
[]
[]
[]
[]
[]
[]
[]
[]
[]
[]
[]
[]
[]
[]
[]
[]
[]
[]
[]
[]
[]
[]
[]
[]
[]
["\"-Ministerio de Hacienda, Órgano de Normalización Técnica, Edificio Mira, Zapote. 300 Oeste de Casa Presidencial-Autoria Ing. Nathalie Venegas Delgado-\""]

{"sheet":"Hidrografía","index":6,"n_rows":0,"n_cols":0,"rows_kept":0,"cut":false,"hidden":true,"merged":[]}

{"sheet":"Regularidad","index":7,"n_rows":7,"n_cols":7,"rows_kept":7,"cut":false,"hidden":true,"merged":[]}
[]
[]
[]
[]
[]
[]
[null,null,null,null,null,null,"Menor Rectangulo Circunscrito"]

{"sheet":"Servicios Públicos","index":8,"n_rows":0,"n_cols":0,"rows_kept":0,"cut":false,"hidden":true,"merged":[]}

{"sheet":"Vía","index":9,"n_rows":13,"n_cols":2,"rows_kept":13,"cut":false,"hidden":true,"merged":[[0,0,0,1],[1,0,1,1]]}
["TIPO DE VÍA                                         DESCRIPCIÓN"]
[]
["1","Ubicación: Sector más valioso y de mayor desarrollo comercial.\nMateriales: Asfalto, concreto, lastre, y otros.\nOtros: Tránsito denso, clasificación independientemente del material, estado y ancho, entre otros."]
["2","Ubicación: Zonas comerciales de menor desarrollo, zonas industriales o algunas zonas residenciales de clasificación alta.\nMateriales: Asfalto, concreto, lastre, y otros.\nOtros: Tránsito denso, clasificación  independientemente del material, estado y ancho, entre otros."]
["3","Ubicación: Zonas de transición comercial-residencial o residencial e industrial.\nMateriales: Asfalto, concreto, lastre, y otros.\nOtros: Características de menor condición que la vía 2."]
["4","Ubicación: Sectores residenciales, industriales y algunas zonas agropecuarias.\nMateriales: Asfalto, concreto y lastre.\nOtros: Permiten la circulación de too tipo de vehículos."]
["5","Ubicación: Sectores residenciales, industriales y agropecuarios. Se incluyen alamedas.\nMateriales: Arenoso y material grueso.\nOtros: Permiten  la  circulación a todo tipo de vehículos."]
["6","Ubicación: Generalmente en zonas agropecuarias.\nMateriales: Lastre, arenoso o de tierra.\nOtros: Permiten la circulación de vehículos durante todo el año."]
["7","Ubicación: Generalmente en zonas agropecuarias.\nMateriales: Grueso, tierra o arcilla.\nOtros: Permiten la circulación de vehículos solo en época seca."]
["8","Ubicación: Generalmente en zonas agropecuarias.\nMateriales: Tierra o arcilla.\nOtros: Permiten únicamente el paso de carretas, bestias y peatones."]
["9","Ubicación: Servidumbres de paso. Materiales: Tierra, arcilla, otros. Otros: Vías angostas."]
["10","Ubicación: Ríos, canales, esteros o mar.\nOtros: Vía fluvial, único acceso al inmueble."]
["11","Ubicación: Vía férrea.\nOtros: Única vía de acceso al inmueble."]

{"sheet":"Ubicación","index":10,"n_rows":20,"n_cols":3,"rows_kept":20,"cut":false,"hidden":true,"merged":[]}
[]
[]
[]
[]
[]
[]
[]
[]
[]
[]
[]
[]
[]
[]
[]
[]
[]
[]
[]
[null,null,"Calle Pública"]

{"sheet":"Uso de Suelo","index":11,"n_rows":70,"n_cols":2,"rows_kept":70,"cut":false,"hidden":true,"merged":[[37,0,67,7],[69,0,80,7],[0,0,0,1],[13,0,35,7]]}
["FERTILIDAD Y LABORABILIDAD"]
["ESTADO","CLASE"]
["Excelente","I"]
["Muy bueno óptimo","II"]
["Muy bueno regular","III"]
["Bueno","IV"]
["Regular óptimo","V"]
["Regular-regular","VI"]
["Regular malo","VII"]
["Malo","VIII"]
[]
[]
[]
["Para mayores detalles en la determinación del tipo de suelo de la finca por valorar se adjunta la siguiente información:\n\nClase I (Excelente) Dentro de ésta clase se incluyen tierras con pocas o ninguna limitación para el desarrollo de actividades agrícolas, pecuarias o forestales adaptadas ecológicamente a la zona. Ésta clase presenta pendientes de 0 a 3 %.\nLas tierras de ésta clase se encuentran en superficies planas o casi planas, con erosión sufrida nula, con suelos muy profundos, de textura media en el suelo y de moderadamente gruesa a moderadamente fina en el subsuelo, sin piedras, sin problemas de toxicidad y salinidad, drenaje bueno, sin riesgo de inundación, en zonas de vida de condición húmeda, período seco moderado y sin efectos adversos por neblina y viento. \n\nClase II (Muy bueno - Óptimo) Las tierras de esta clase presentan leves limitaciones que solas o combinadas reducen la posibilidad de elección de actividades o se incrementan los costos de producción debido a la necesidad de usar prácticas de manejo y conservación de suelos. Esta clase presenta pendientes de 3 a 8 %.\nLas  limitaciones que  pueden  presentar  son: relieve ligeramente  ondulado, erosión sufrida leve, suelos profundos, texturas moderadamente finas o moderadamente gruesas en el subsuelo. Ligeramente pedregosos, fertilidad media, toxicidad y salinidad leves, drenaje moderadamente excesivo o moderadamente lento, riesgo de inundación leve,  zonas de  vida  seca  o  muy  húmedas, con  período seco  fuerte  o  ausente y condición de neblina y viento moderada.\n\nClase III (Muy bueno - Regular) Las tierras de esta clase presentan leves limitaciones o combinadas que restringen la elección de los cultivos o incrementan los costos de producción. Esta clase presenta pendientes de 3 a 15%.\nPara desarrollar los cultivos anuales se requieren prácticas intensivas de manejo y conservación de suelos y agua.\nEntre las limitantes presentes de esta clase están: relieve moderadamente ondulado, erosión sufrida leve, suelos moderadamente profundos, texturas en el suelo y subsuelo finas  o   moderadamente  gruesas,  moderadamente  pedregosos,  fertilidad  media, toxicidad  moderada,  salinidad  leve,  drenaje  moderadamente excesivo  o moderadamente lento, riesgo de inundación moderado, zonas de vida seca o muy húmedas, con período seco fuerte o ausente, condición de neblina y viento moderado.\n"]
[]
[]
[]
[]
[]
[]
[]
[]
[]
[]
[]
[]
[]
[]
[]
[]
[]
[]
[]
[]
[]
[]
[]
["Clase IV (Bueno) Las tierras de esta clase presentan fuertes limitaciones, solas o combinadas, que restringen su uso a vegetación semi-permanente y permanente.\nLa pendiente en esta clase presenta pendientes menores de 30%. Los  cultivos anuales se  pueden desarrollar únicamente en  forma  ocasional  y  con prácticas muy intensivas de manejo y conservación de suelos y aguas excepto de climas pluviales, donde este tipo de cultivo no es recomendable.\nLas limitaciones que se pueden presentar solas o combinadas son: relieve ondulado, erosión sufrida moderada, suelos moderadamente profundos, texturas en el suelo y en el  subsuelo  muy  finas  o  moderadamente  gruesas,  pedregosos,  fertilidad  media, toxicidad moderada, salinidad leve, drenaje moderadamente lento o moderadamente excesivo,  riesgo  de  inundación  moderado,  zonas  de  vida  seca,  muy  húmedas  y pluviales, con período seco fuerte o ausente, condición de neblina y viento moderado.\n\nClase V (Regular - Óptimo) Las tierras de esta clase presentan severas limitaciones para el desarrollo de cultivos anuales, semi-permanentes, permanentes o bosque, por lo cual su uso se restringe para pastoreo o manejo de bosque natural.\nLas limitaciones que pueden ocurrir, solas o combinadas cuando la pendiente es inferior al 15% son: relieve moderadamente ondulado, erosión sufrida moderada, suelos poco profundos,  las  texturas  de  la  tierra  y  subsuelo  pueden  ser  de  finas  a  gruesas, fuertemente  pedregosas,  muy  baja  fertilidad,  toxicidad  fuerte,  salinidad  moderada, drenaje muy lento o excesivo, riesgo de inundación severo, zonas de vida seca y pluviales, con período seco fuerte o ausente, condición de neblina y viento fuerte. También podrían presentarse las siguientes limitaciones cuando la pendiente oscila entre 15% y 30%: relieve ondulado, erosión sufrida moderada, suelos poco profundos, texturas en el suelo moderadamente gruesas o finas y en el subsuelo de muy finas a gruesas,  fuertemente  pedregosos,  muy  baja  fertilidad,  toxicidad  fuerte,  salinidad moderada, drenaje muy lento o excesivo, riesgo de inundación severa, zonas de vida seca y muy húmeda excepto bosque muy húmedo tropical, con período seco fuerte o ausente, condición de neblina y viento fuerte. \n\nClase VI (Regular – Regular) Las tierras ubicadas dentro de esta clase son utilizadas para la producción forestal, así como cultivos permanentes tales como frutales y café, aunque estos últimos requieren prácticas intensivas de  manejo y  conservación de suelos y aguas. Sin embargo, algunas especies forestales como  la  teca (Tectona grandis) y melina (Gmelina arborea), en plantaciones puras no son adecuadas para las pendientes de esta clase, debido a que aceleran los procesos de erosión de suelos, por lo que se recomienda este tipo de uso sólo en relieves moderadamente ondulados a ondulados.\nLa pendiente en esta clase presenta pendientes menores de 50%. Las limitaciones que se pueden presentar, solas o combinadas son: relieve fuertemente ondulado, erosión sufrida severa, suelos moderadamente profundos, texturas en el suelo de muy finas a gruesas, en el subsuelo de muy finas a moderadamente gruesas, fuertemente pedregosos, muy baja fertilidad, toxicidad fuerte, salinidad moderada, drenaje moderadamente excesivo o moderadamente lento, riesgo de inundación moderado, zonas  de  vida  seca  y  pluviales  excepto  páramo,  período  seco  fuerte  o  ausente, condición de neblina y viento moderado.\n"]
[]
[]
[]
[]
[]
[]
[]
[]
[]
[]
[]
[]
[]
[]
[]
[]
[]
[]
[]
[]
[]
[]
[]
[]
[]
[]
[]
[]
[]
[]
[]
["Clase VII   (Regular – Malo) Las tierras de esta clase tienen severas limitaciones por lo cual se permite el manejo forestal en caso de cobertura boscosa. En aquellos casos en que el uso actual sea diferente al bosque, se procurará la restauración forestal por medio de la regeneración natural. La pendiente en esta clase presenta pendientes menores de 75 %.\nLas limitaciones que se pueden presentar solas o combinadas son: relieve escarpado, erosión sufrida severa, suelos poco profundos, texturas en el  suelo y subsuelo de muy finas a  gruesas, fuertemente pedregosas, muy  baja fertilidad, toxicidad y salinidad fuertes, drenaje excesivo o nulo, riesgo de inundación muy severo, zonas de vida seca y pluviales excepto páramo, período seco fuerte o ausente, condición de neblina y viento fuerte.\n\nClase VIII   (Malo) Estas tierras no reúnen las condiciones mínimas para actividades de producción agropecuaria o forestal alguna. Las tierras de esta clase tienen utilidad sólo como zonas de preservación de flora y fauna, protección de áreas de recarga acuífera, reserva genética y belleza escénica. Para esta clase se incluye cualquier categoría de parámetros limitantes. Para ampliar aún más el criterio para la determinación de la clase de suelo se adjunta el siguiente cuadro.\n"]

{"sheet":"Ingles-Español","index":12,"n_rows":47,"n_cols":17,"rows_kept":47,"cut":false,"hidden":true,"merged":[[40,0,40,3],[31,0,31,1],[13,6,13,7],[13,12,13,13],[15,0,15,2],[15,3,15,4],[15,5,15,7],[15,8,15,10],[15,11,15,13],[14,11,14,13],[14,0,14,2],[14,8,14,10],[14,5,14,7],[39,0,39,3],[28,6,28,16],[26,13,26,14],[43,11,43,12],[44,11,44,12],[45,11,45,12],[46,11,46,12],[43,0,43,9],[44,0,44,9],[45,0,45,9],[46,0,46,9],[32,4,32,5],[32,7,32,8],[32,9,32,10],[30,7,30,8],[30,4,30,5],[16,0,16,1],[27,13,27,14],[32,0,32,1],[34,0,34,16],[28,0,28,5],[31,4,31,5],[31,7,31,8],[31,9,31,10],[32,15,32,16],[30,15,30,16],[31,15,31,16],[29,0,29,16],[26,15,26,16],[27,15,27,16],[23,0,23,2],[19,0,19,2],[14,14,14,16],[14,3,14,4],[16,14,16,16],[0,13,0,14],[17,0,17,16],[15,14,15,16],[1,13,1,14],[0,15,0,16],[1,15,1,16],[5,0,5,16],[4,0,4,16],[11,0,11,16],[7,0,7,1],[0,4,0,11],[1,3,1,12],[13,0,13,1],[19,13,19,16],[18,7,18,9],[18,11,18,12],[39,5,39,6],[19,3,19,9],[23,9,23,12],[23,3,23,8],[22,6,22,8],[18,2,18,4],[19,10,19,12],[38,14,38,16],[33,7,33,16],[33,0,33,6],[35,7,36,16],[30,9,30,10],[30,0,30,1],[42,0,42,12],[42,13,46,16],[2,3,2,12],[41,9,41,12],[41,13,41,16],[40,7,40,16],[35,0,35,6],[36,0,36,6],[37,0,37,6],[38,0,38,6],[39,7,39,16],[8,0,8,1],[8,6,8,9],[18,0,18,1],[18,5,18,6],[24,13,24,16]]}
[null,null,null,null,"Borough of_______ Municipalidad de______",null,null,null,null,null,null,null,null,"Next Return",null,"Próx Dec"]
[null,null,null,"Estate Tax Return Declaración de Bienes Inmuebles",null,null,null,null,null,null,null,null,null,"Return N°",null,"#Declarac"]
[null,null,null,"Law 7509 and it's Reforms Ley 7509 y sus Reformas"]
[]
["Use a form for every right of the real state Utilice un formulario por derecho"]
["#1-Owner's details Datos del Propietario"]
["Full Name or Business Name",null,null,null,"Nombre o Razón Social"]
["Residence",null,"Domicilio"]
["Identity Card",null,"Identificación",null,null,null,"Contact Telephone/Email",null,null,null,"Telefono/Correo Electrónico"]
["Legal Representative (in case of companies)",null,null,null,null,null,"Representante Legal (en caso de compañias)"]
["Legal Representative's full address",null,null,null,null,"Dirección Completa del representante legal"]
["#2-Ownership details Datos del Inmueble"]
["Real State's Full Address",null,null,null,"Dirección completa (del inmueble)"]
["State",null,"Provincia",null,null,null,"County",null,"Cantón",null,null,null,"City",null,"Distrito"]
["Property's Number",null,null,"Duplicate",null,"Adjacent land lots",null,null,"#Right in Rem",null,null,"Register area",null,null,"# Co-ownership"]
["Número Finca",null,null,"Duplicado",null,"Horizontal",null,null,"# Derecho",null,null,"Área ",null,null,"#Co-propietarios"]
["Cadastre",null,"Plano Catastro",null,"Ownership percentage",null,null,null,"% Derecho",null,"Percentage per condominium",null,null,null,"% Condominio"]
["#3-Lot Features Características del terreno"]
["Site location",null,"Ubicación",null,null,"Legal zoning",null,"Zona Homogenea",null,null,"Front","Frente",null,"Regularity",null,"Regularidad"]
["Access Level (m)",null,null,"Road Type Vía",null,null,null,null,null,null,"Public services 1",null,null,"Public services 2"]
["Above ",null,"Sobre","Paved",null,"Asfalto","Access-easement ",null,null,"Servidumbre","Curb ",null,"Cordón","Water Pipe",null,null,"Cañer"]
["Even ",null,"Nivel","Ballast ",null,"Lastre","Narrow pathway",null,null,"Alameda","Street Glutter",null,"Caño","Phone",null,null,"Telef"]
["Low ",null,"Bajo","Dirt lane",null,"Tierra","Cobbled",null,null,"Adoquín","Sidewalk",null,"Acera","Electricity",null,null,"Electr"]
["Land slope Pendiente",null,null,"Land Use Uso Actual",null,null,null,null,null,"Current Status Avance Obra",null,null,null,"Public street lighting",null,null,"Al. Pub"]
["Undulating",null,"Ondu","Commercial",null,null,"Educational",null,null,"Unused",null,null,"Vacio","Registered Inscrito"]
["Steep",null,"Queb","Residential",null,null,"Recreational",null,null,"Built up",null,null,"Const","Yes",null,"No"]
["Very steep",null,"Muy Q","Industrial",null,null,"Religious",null,null,"Under construction",null,null,"En Pr","Usufruct ",null,"Usufructo"]
["Percentage",null,"%","Agricultural",null,null,"Mixed",null,null,"Construc progress",null,null,"%","Domain",null,"Dominio"]
["Land's Value ¢ Valor Terreno",null,null,null,null,null,"Land's Value(condominium) ¢ Valor Terreno Común en Condominio"]
["#4-Construction details Detalles de Construcción"]
["Typology ",null,"Age","Status","Lifespan",null,"Walls","Flooring",null,"Ceiling",null,"Roof","Baths","Floors ","Area","Value ¢"]
["Tipología",null,"Edad","Estado","Vida Útil",null,"Pared","Piso",null,"Cieloraso",null,"Techo","Baños","Pisos","Área","Valor"]
[]
["Constructions's Value ¢ Valor Construcción",null,null,null,null,null,null,"Constructions Value(condominium) ¢ Valor Construcción Común"]
["#5-Owner Tax Return Declaración del propietario"]
["Total Land's Value ¢ Valor Total Terreno",null,null,null,null,null,null,"I pronunce that the information provided in the tax form is complete accurate Declaro que la información aquí proporcionada es veráz"]
["Total Constructions Value ¢ Valor Total Construc"]
["Total ¢ Valor Total del Inmueble",null,null,null,null,null,null,"Signed in the city of",null,null,"Firmo en la ciudad de",null,null,null,"_____","_____","_____"]
["Legal's Right Value ¢ Valor del Derecho",null,null,null,null,null,null,null,null,null,null,null,null,null,"Date Fecha"]
["Tax rate Tasa del Impuesto",null,null,null,null,2.5000000000000001E-3,null,"_________________________________________"]
["Annual Property Tax ¢ ",null,null,null,"Impuesto Anual",null,null,"Owner's Signature  Firma"]
["Return Examination",null,null,"Para Fiscalizar",null,"Yes",null,"No",null,"Quarterly Property Tax ¢",null,null,null,"Impuesto Trimestral"]
["County exclusive use/Valuation process Uso Municipal/Proceso de Valoración",null,null,null,null,null,null,null,null,null,null,null,null,"Sello Municipal"]
["N° de GIS",null,null,null,null,null,null,null,null,null,"Fecha"]
["Revisó",null,null,null,null,null,null,null,null,null,"Fecha"]
["Fiscalizó",null,null,null,null,null,null,null,null,null,"Fecha"]
["Incluyo en el sistema",null,null,null,null,null,null,null,null,null,"Fecha"]

{"sheet":"Datos","index":13,"n_rows":486,"n_cols":16,"rows_kept":486,"cut":false,"hidden":true,"merged":[]}
["Provincia","Canton","Distrito",null,null,"Filtros",null,"Provincias","Cantones Match","Cantones Unicos","Cantones Ordenados","Rangos","Distritos Match","Distritos Unicos","Distritos Ordenados","Rangos"]
["1-San José","1-San José","1-Carmen",null,"Provincia",{"$f":"'Español-Ingles'!F16","v":0},null,"1-San José",{"$f":"IF(A2=F$2,B2,\"\")","v":""},{"$f":"IFERROR(INDEX(I$2:I$486,MATCH(0,COUNTIF(J$1:J1,I$2:I$486),0)),\"\")","v":""},{"$f":"IF(J$2=\"\",J3,J2)","v":0},{"$f":"IF(K2=\"\",ROW(K2),\"\")","v":""},{"$f":"IF(AND(A2=F$2,B2=F$3),C2,\"\")","v":""},{"$f":"IFERROR(INDEX(M$2:M$486,MATCH(0,COUNTIF(N$1:N1,M$2:M$486),0)),\"\")","v":""},{"$f":"IF(N$2=\"\",N3,N2)","v":0},{"$f":"IF(O2=\"\",ROW(O2),\"\")","v":""}]
["1-San José","1-San José","2-Merced",null,"Canton",{"$f":"'Español-Ingles'!O16","v":0},null,"2-Alajuela","",{"$f":"IFERROR(INDEX(I$2:I$486,MATCH(0,COUNTIF(J$1:J2,I$2:I$486),0)),\"\")","v":0},"",3,{"$f":"IF(AND(A3=F$2,B3=F$3),C3,\"\")","v":""},{"$f":"IFERROR(INDEX(M$2:M$486,MATCH(0,COUNTIF(N$1:N2,M$2:M$486),0)),\"\")","v":0},"",3]
["1-San José","1-San José","3-Hospital",null,"Distrito",{"$f":"'Español-Ingles'!AB16","v":0},null,"3-Cartago","",{"$f":"IFERROR(INDEX(I$2:I$486,MATCH(0,COUNTIF(J$1:J3,I$2:I$486),0)),\"\")","v":""},"",4,"",{"$f":"IFERROR(INDEX(M$2:M$486,MATCH(0,COUNTIF(N$1:N3,M$2:M$486),0)),\"\")","v":""},"",4]
["1-San José","1-San José","4-Catedral",null,null,null,null,"4-Heredia","",{"$f":"IFERROR(INDEX(I$2:I$486,MATCH(0,COUNTIF(J$1:J4,I$2:I$486),0)),\"\")","v":""},"",5,"",{"$f":"IFERROR(INDEX(M$2:M$486,MATCH(0,COUNTIF(N$1:N4,M$2:M$486),0)),\"\")","v":""},"",5]
["1-San José","1-San José","5-Zapote",null,null,null,null,"5-Guanacaste","",{"$f":"IFERROR(INDEX(I$2:I$486,MATCH(0,COUNTIF(J$1:J5,I$2:I$486),0)),\"\")","v":""},"",6,"",{"$f":"IFERROR(INDEX(M$2:M$486,MATCH(0,COUNTIF(N$1:N5,M$2:M$486),0)),\"\")","v":""},"",6]
["1-San José","1-San José","6-San Francisco de Dos Rios",null,null,null,null,"6-Puntarenas","",{"$f":"IFERROR(INDEX(I$2:I$486,MATCH(0,COUNTIF(J$1:J6,I$2:I$486),0)),\"\")","v":""},"",7,"",{"$f":"IFERROR(INDEX(M$2:M$486,MATCH(0,COUNTIF(N$1:N6,M$2:M$486),0)),\"\")","v":""},"",7]
["1-San José","1-San José","7-Uruca",null,null,null,null,"7-Limón","",{"$f":"IFERROR(INDEX(I$2:I$486,MATCH(0,COUNTIF(J$1:J7,I$2:I$486),0)),\"\")","v":""},"",8,"",{"$f":"IFERROR(INDEX(M$2:M$486,MATCH(0,COUNTIF(N$1:N7,M$2:M$486),0)),\"\")","v":""},"",8]
["1-San José","1-San José","8-Mata Redonda",null,null,null,null,null,"",{"$f":"IFERROR(INDEX(I$2:I$486,MATCH(0,COUNTIF(J$1:J8,I$2:I$486),0)),\"\")","v":""},"",9,"",{"$f":"IFERROR(INDEX(M$2:M$486,MATCH(0,COUNTIF(N$1:N8,M$2:M$486),0)),\"\")","v":""},"",9]
["1-San José","1-San José","9-Pavas",null,null,null,null,null,"",{"$f":"IFERROR(INDEX(I$2:I$486,MATCH(0,COUNTIF(J$1:J9,I$2:I$486),0)),\"\")","v":""},"",10,"",{"$f":"IFERROR(INDEX(M$2:M$486,MATCH(0,COUNTIF(N$1:N9,M$2:M$486),0)),\"\")","v":""},"",10]
["1-San José","1-San José","10-Hatillo",null,null,null,null,null,"",{"$f":"IFERROR(INDEX(I$2:I$486,MATCH(0,COUNTIF(J$1:J10,I$2:I$486),0)),\"\")","v":""},"",11,"",{"$f":"IFERROR(INDEX(M$2:M$486,MATCH(0,COUNTIF(N$1:N10,M$2:M$486),0)),\"\")","v":""},"",11]
["1-San José","1-San José","11-San Sebastían",null,null,null,null,null,"",{"$f":"IFERROR(INDEX(I$2:I$486,MATCH(0,COUNTIF(J$1:J11,I$2:I$486),0)),\"\")","v":""},"",12,"",{"$f":"IFERROR(INDEX(M$2:M$486,MATCH(0,COUNTIF(N$1:N11,M$2:M$486),0)),\"\")","v":""},"",12]
["1-San José","2-Escazú","1-Escazú",null,null,null,null,null,"",{"$f":"IFERROR(INDEX(I$2:I$486,MATCH(0,COUNTIF(J$1:J12,I$2:I$486),0)),\"\")","v":""},"",13,"",{"$f":"IFERROR(INDEX(M$2:M$486,MATCH(0,COUNTIF(N$1:N12,M$2:M$486),0)),\"\")","v":""},"",13]
["1-San José","2-Escazú","2-San Antonio",null,null,null,null,null,"",{"$f":"IFERROR(INDEX(I$2:I$486,MATCH(0,COUNTIF(J$1:J13,I$2:I$486),0)),\"\")","v":""},"",14,"",{"$f":"IFERROR(INDEX(M$2:M$486,MATCH(0,COUNTIF(N$1:N13,M$2:M$486),0)),\"\")","v":""},"",14]
["1-San José","2-Escazú","3-San Rafael",null,null,null,null,null,"",{"$f":"IFERROR(INDEX(I$2:I$486,MATCH(0,COUNTIF(J$1:J14,I$2:I$486),0)),\"\")","v":""},"",15,"",{"$f":"IFERROR(INDEX(M$2:M$486,MATCH(0,COUNTIF(N$1:N14,M$2:M$486),0)),\"\")","v":""},"",15]
["1-San José","3-Desamparados","1-Desamparados",null,null,null,null,null,"",{"$f":"IFERROR(INDEX(I$2:I$486,MATCH(0,COUNTIF(J$1:J15,I$2:I$486),0)),\"\")","v":""},"",16,"",{"$f":"IFERROR(INDEX(M$2:M$486,MATCH(0,COUNTIF(N$1:N15,M$2:M$486),0)),\"\")","v":""},"",16]
["1-San José","3-Desamparados","2-San Miguel",null,null,null,null,null,"",{"$f":"IFERROR(INDEX(I$2:I$486,MATCH(0,COUNTIF(J$1:J16,I$2:I$486),0)),\"\")","v":""},"",17,"",{"$f":"IFERROR(INDEX(M$2:M$486,MATCH(0,COUNTIF(N$1:N16,M$2:M$486),0)),\"\")","v":""},"",17]
["1-San José","3-Desamparados","3-San Juan de Dios",null,null,null,null,null,"",{"$f":"IFERROR(INDEX(I$2:I$486,MATCH(0,COUNTIF(J$1:J17,I$2:I$486),0)),\"\")","v":""},"",18,"",{"$f":"IFERROR(INDEX(M$2:M$486,MATCH(0,COUNTIF(N$1:N17,M$2:M$486),0)),\"\")","v":""},null,18]
["1-San José","3-Desamparados","4-San Rafael Arriba",null,null,null,null,null,"",{"$f":"IFERROR(INDEX(I$2:I$486,MATCH(0,COUNTIF(J$1:J18,I$2:I$486),0)),\"\")","v":""},"",19,"",null,null,{"$f":"\"Datos!O2:O\"&(MIN(P3:P18)-1)","v":"Datos!O2:O2"}]
["1-San José","3-Desamparados","5-San Antonio",null,null,null,null,null,"",{"$f":"IFERROR(INDEX(I$2:I$486,MATCH(0,COUNTIF(J$1:J19,I$2:I$486),0)),\"\")","v":""},"",20,""]
["1-San José","3-Desamparados","6-Frailes",null,null,null,null,null,"",{"$f":"IFERROR(INDEX(I$2:I$486,MATCH(0,COUNTIF(J$1:J20,I$2:I$486),0)),\"\")","v":""},"",21,""]
["1-San José","3-Desamparados","7-Patarrá",null,null,null,null,null,"",{"$f":"IFERROR(INDEX(I$2:I$486,MATCH(0,COUNTIF($J$1:J21,I$2:I$486),0)),\"\")","v":""},null,22,""]
["1-San José","3-Desamparados","8-San Cristóbal",null,null,null,null,null,"",null,null,{"$f":"\"Datos!K2:K\"&(MIN(L3:L22)-1)","v":"Datos!K2:K2"},""]
["1-San José","3-Desamparados","9-Rosario",null,null,null,null,null,"",null,null,null,""]
["1-San José","3-Desamparados","10-Damas",null,null,null,null,null,"",null,null,null,""]
["1-San José","3-Desamparados","11-San Rafael Abajo",null,null,null,null,null,"",null,null,null,""]
["1-San José","3-Desamparados","12-Gravilias",null,null,null,null,null,"",null,null,null,""]
["1-San José","3-Desamparados","13-Los Guido",null,null,null,null,null,"",null,null,null,""]
["1-San José","4-Puriscal","1-Santiago",null,null,null,null,null,"",null,null,null,""]
["1-San José","4-Puriscal","2-Mercedes Sur",null,null,null,null,null,"",null,null,null,""]
["1-San José","4-Puriscal","3-Barbacoas",null,null,null,null,null,"",null,null,null,""]
["1-San José","4-Puriscal","4-Grifo Alto",null,null,null,null,null,"",null,null,null,""]
["1-San José","4-Puriscal","5-San Rafael",null,null,null,null,null,"",null,null,null,""]
["1-San José","4-Puriscal","6-Candelarita",null,null,null,null,null,"",null,null,null,""]
["1-San José","4-Puriscal","7-Desamparaditos",null,null,null,null,null,"",null,null,null,""]
["1-San José","4-Puriscal","8-San Antonio",null,null,null,null,null,"",null,null,null,""]
["1-San José","4-Puriscal","9-Chires",null,null,null,null,null,"",null,null,null,""]
["1-San José","5-Tarrazú","1-San Marcos",null,null,null,null,null,"",null,null,null,""]
["1-San José","5-Tarrazú","2-San Lorenzo",null,null,null,null,null,"",null,null,null,""]
["1-San José","5-Tarrazú","3-San Carlos",null,null,null,null,null,"",null,null,null,""]
["1-San José","6-Aserrí","1-Aserrí",null,null,null,null,null,"",null,null,null,""]
["1-San José","6-Aserrí","2-Tarbaca",null,null,null,null,null,"",null,null,null,""]
["1-San José","6-Aserrí","3-Vuelta de Jorco",null,null,null,null,null,"",null,null,null,""]
["1-San José","6-Aserrí","4-San Gabriel",null,null,null,null,null,"",null,null,null,""]
["1-San José","6-Aserrí","5-Legua",null,null,null,null,null,"",null,null,null,""]
["1-San José","6-Aserrí","6-Monterrey",null,null,null,null,null,"",null,null,null,""]
["1-San José","6-Aserrí","7-Salitrillos",null,null,null,null,null,"",null,null,null,""]
["1-San José","7-Mora","1-Ciudad Colón",null,null,null,null,null,"",null,null,null,""]
["1-San José","7-Mora","2-Guayabo",null,null,null,null,null,"",null,null,null,""]
["1-San José","7-Mora","3-Tabarcia",null,null,null,null,null,"",null,null,null,""]
["1-San José","7-Mora","4-Piedras Negras",null,null,null,null,null,"",null,null,null,""]
["1-San José","7-Mora","5-Picagres",null,null,null,null,null,"",null,null,null,""]
["1-San José","7-Mora","6-Jaris",null,null,null,null,null,"",null,null,null,""]
["1-San José","7-Mora","7-Quitirrisí",null,null,null,null,null,"",null,null,null,""]
["1-San José","8-Goicoechea","1-Guadalupe",null,null,null,null,null,"",null,null,null,""]
["1-San José","8-Goicoechea","2-San Francisco",null,null,null,null,null,"",null,null,null,""]
["1-San José","8-Goicoechea","3-Calle Blancos",null,null,null,null,null,"",null,null,null,""]
["1-San José","8-Goicoechea","4-Mata de Plátano",null,null,null,null,null,"",null,null,null,""]
["1-San José","8-Goicoechea","5-Ipís",null,null,null,null,null,"",null,null,null,""]
["1-San José","8-Goicoechea","6-Rancho Redondo",null,null,null,null,null,"",null,null,null,""]
["1-San José","8-Goicoechea","7-Purral",null,null,null,null,null,"",null,null,null,""]
["1-San José","9-Santa Ana","1-Santa Ana",null,null,null,null,null,"",null,null,null,""]
["1-San José","9-Santa Ana","2-Salitral",null,null,null,null,null,"",null,null,null,""]
["1-San José","9-Santa Ana","3-Pozos",null,null,null,null,null,"",null,null,null,""]
["1-San José","9-Santa Ana","4-Uruca",null,null,null,null,null,"",null,null,null,""]
["1-San José","9-Santa Ana","5-Piedades",null,null,null,null,null,{"$f":"IF(A66=F$2,B66,\"\")","v":""},null,null,null,""]
["1-San José","9-Santa Ana","6-Brasil",null,null,null,null,null,"",null,null,null,{"$f":"IF(AND(A67=F$2,B67=F$3),C67,\"\")","v":""}]
["1-San José","10-Alajuelita","1-Alajuelita",null,null,null,null,null,"",null,null,null,""]
["1-San José","10-Alajuelita","2-San Josecito",null,null,null,null,null,"",null,null,null,""]
["1-San José","10-Alajuelita","3-San Antonio",null,null,null,null,null,"",null,null,null,""]
["1-San José","10-Alajuelita","4-Concepción",null,null,null,null,null,"",null,null,null,""]
["1-San José","10-Alajuelita","5-San Felipe",null,null,null,null,null,"",null,null,null,""]
["1-San José","11-Vásquez de Coronado     ","1-San Isidro",null,null,null,null,null,"",null,null,null,""]
["1-San José","11-Vásquez de Coronado     ","2-San Rafael",null,null,null,null,null,"",null,null,null,""]
["1-San José","11-Vásquez de Coronado     ","3-Dulce Nombre de Jesús",null,null,null,null,null,"",null,null,null,""]
["1-San José","11-Vásquez de Coronado     ","4-Patalillo",null,null,null,null,null,"",null,null,null,""]
["1-San José","11-Vásquez de Coronado     ","5-Cascajal",null,null,null,null,null,"",null,null,null,""]
["1-San José","12-Acosta","1-San Ignacio",null,null,null,null,null,"",null,null,null,""]
["1-San José","12-Acosta","2-Guaitil",null,null,null,null,null,"",null,null,null,""]
["1-San José","12-Acosta","3-Palmichal",null,null,null,null,null,"",null,null,null,""]
["1-San José","12-Acosta","4-Cangrejal",null,null,null,null,null,"",null,null,null,""]
["1-San José","12-Acosta","5-Sabanillas",null,null,null,null,null,"",null,null,null,""]
["1-San José","13-Tibás","1-San Juan",null,null,null,null,null,"",null,null,null,""]
["1-San José","13-Tibás","2-Cinco Esquinas",null,null,null,null,null,"",null,null,null,""]
["1-San José","13-Tibás","3-Anselmo Llorente",null,null,null,null,null,"",null,null,null,""]
["1-San José","13-Tibás","4-León XIII",null,null,null,null,null,"",null,null,null,""]
["1-San José","13-Tibás","5-Colima",null,null,null,null,null,"",null,null,null,""]
["1-San José","14-Moravia","1-San Vicente",null,null,null,null,null,"",null,null,null,""]
["1-San José","14-Moravia","2-San Jerónimo",null,null,null,null,null,"",null,null,null,""]
["1-San José","14-Moravia","3-Trinidad",null,null,null,null,null,"",null,null,null,""]
["1-San José","15-Montes de Oca","1-San Pedro",null,null,null,null,null,"",null,null,null,""]
["1-San José","15-Montes de Oca","2-Sabanilla",null,null,null,null,null,"",null,null,null,""]
["1-San José","15-Montes de Oca","3-Mercedes",null,null,null,null,null,"",null,null,null,""]
["1-San José","15-Montes de Oca","4-San Rafael",null,null,null,null,null,"",null,null,null,""]
["1-San José","16-Turrúbares","1-San Pablo",null,null,null,null,null,"",null,null,null,""]
["1-San José","16-Turrúbares","2-San Pedro",null,null,null,null,null,"",null,null,null,""]
["1-San José","16-Turrúbares","3-San Juan de Mata",null,null,null,null,null,"",null,null,null,""]
["1-San José","16-Turrúbares","4-San Luis",null,null,null,null,null,"",null,null,null,""]
["1-San José","16-Turrúbares","5-Carara",null,null,null,null,null,"",null,null,null,""]
["1-San José","17-Dota","1-Santa María",null,null,null,null,null,"",null,null,null,""]
["1-San José","17-Dota","2-Jardín",null,null,null,null,null,"",null,null,null,""]
["1-San José","17-Dota","3-Copey",null,null,null,null,null,"",null,null,null,""]
["1-San José","18-Curridabat","1-Curridabat",null,null,null,null,null,"",null,null,null,""]
["1-San José","18-Curridabat","2-Granadilla",null,null,null,null,null,"",null,null,null,""]
["1-San José","18-Curridabat","3-Sánchez",null,null,null,null,null,"",null,null,null,""]
["1-San José","18-Curridabat","4-Tirrases",null,null,null,null,null,"",null,null,null,""]
["1-San José","19-Pérez Zeledón","1-San Isidro de El General",null,null,null,null,null,"",null,null,null,""]
["1-San José","19-Pérez Zeledón","2-El General",null,null,null,null,null,"",null,null,null,""]
["1-San José","19-Pérez Zeledón","3-Daniel Flores",null,null,null,null,null,"",null,null,null,""]
["1-San José","19-Pérez Zeledón","4-Rivas",null,null,null,null,null,"",null,null,null,""]
["1-San José","19-Pérez Zeledón","5-San Pedro",null,null,null,null,null,"",null,null,null,""]
["1-San José","19-Pérez Zeledón","6-Platanares",null,null,null,null,null,"",null,null,null,""]
["1-San José","19-Pérez Zeledón","7-Pejibaye",null,null,null,null,null,"",null,null,null,""]
["1-San José","19-Pérez Zeledón","8-Cajón",null,null,null,null,null,"",null,null,null,""]
["1-San José","19-Pérez Zeledón","9-Barú",null,null,null,null,null,"",null,null,null,""]
["1-San José","19-Pérez Zeledón","10-Río Nuevo",null,null,null,null,null,"",null,null,null,""]
["1-San José","19-Pérez Zeledón","11-Páramo",null,null,null,null,null,"",null,null,null,""]
["1-San José","19-Pérez Zeledón","12-La Amistad",null,null,null,null,null,"",null,null,null,""]
["1-San José","20-León Cortés Castro","1-San Pablo",null,null,null,null,null,"",null,null,null,""]
["1-San José","20-León Cortés Castro","2-San Andrés",null,null,null,null,null,"",null,null,null,""]
["1-San José","20-León Cortés Castro","3-Llano Bonito",null,null,null,null,null,"",null,null,null,""]
["1-San José","20-León Cortés Castro","4-San Isidro",null,null,null,null,null,"",null,null,null,""]
["1-San José","20-León Cortés Castro","5-Santa Cruz",null,null,null,null,null,"",null,null,null,""]
["1-San José","20-León Cortés Castro","6-San Antonio",null,null,null,null,null,"",null,null,null,""]
["2-Alajuela","1-Alajuela","1-Alajuela",null,null,null,null,null,"",null,null,null,""]
["2-Alajuela","1-Alajuela","2-San José",null,null,null,null,null,"",null,null,null,""]
["2-Alajuela","1-Alajuela","3-Carrizal",null,null,null,null,null,"",null,null,null,""]
["2-Alajuela","1-Alajuela","4-San Antonio",null,null,null,null,null,"",null,null,null,""]
["2-Alajuela","1-Alajuela","5-Guácima",null,null,null,null,null,"",null,null,null,""]
["2-Alajuela","1-Alajuela","6-San Isidro",null,null,null,null,null,{"$f":"IF(A130=F$2,B130,\"\")","v":""},null,null,null,""]
["2-Alajuela","1-Alajuela","7-Sabanilla",null,null,null,null,null,"",null,null,null,{"$f":"IF(AND(A131=F$2,B131=F$3),C131,\"\")","v":""}]
["2-Alajuela","1-Alajuela","8-San Rafael",null,null,null,null,null,"",null,null,null,""]
["2-Alajuela","1-Alajuela","9-Río Segundo",null,null,null,null,null,"",null,null,null,""]
["2-Alajuela","1-Alajuela","10-Desamparados",null,null,null,null,null,"",null,null,null,""]
["2-Alajuela","1-Alajuela","11-Turrúcares",null,null,null,null,null,"",null,null,null,""]
["2-Alajuela","1-Alajuela","12- Tambor",null,null,null,null,null,"",null,null,null,""]
["2-Alajuela","1-Alajuela","13-Garita",null,null,null,null,null,"",null,null,null,""]
["2-Alajuela","1-Alajuela","14-Sarapiquí",null,null,null,null,null,"",null,null,null,""]
["2-Alajuela","2-San Ramón","1-San Ramón",null,null,null,null,null,"",null,null,null,""]
["2-Alajuela","2-San Ramón","2-Santiago",null,null,null,null,null,"",null,null,null,""]
["2-Alajuela","2-San Ramón","3-San Juan",null,null,null,null,null,"",null,null,null,""]
["2-Alajuela","2-San Ramón","4-Piedades Norte",null,null,null,null,null,"",null,null,null,""]
["2-Alajuela","2-San Ramón","5-Piedades Sur",null,null,null,null,null,"",null,null,null,""]
["2-Alajuela","2-San Ramón","6-San Rafael",null,null,null,null,null,"",null,null,null,""]
["2-Alajuela","2-San Ramón","7-San Isidro",null,null,null,null,null,"",null,null,null,""]
["2-Alajuela","2-San Ramón","8-Ángeles",null,null,null,null,null,"",null,null,null,""]
["2-Alajuela","2-San Ramón","9-Alfaro",null,null,null,null,null,"",null,null,null,""]
["2-Alajuela","2-San Ramón","10-Volio",null,null,null,null,null,"",null,null,null,""]
["2-Alajuela","2-San Ramón","11-Concepción",null,null,null,null,null,"",null,null,null,""]
["2-Alajuela","2-San Ramón","12-Zapotal",null,null,null,null,null,"",null,null,null,""]
["2-Alajuela","2-San Ramón","13-Peñas Blancas",null,null,null,null,null,"",null,null,null,""]
["2-Alajuela","2-San Ramón","14-San Lorenzo",null,null,null,null,null,"",null,null,null,""]
["2-Alajuela","3-Grecia","1-Grecia",null,null,null,null,null,"",null,null,null,""]
["2-Alajuela","3-Grecia","2-San Isidro",null,null,null,null,null,"",null,null,null,""]
["2-Alajuela","3-Grecia","3-San José",null,null,null,null,null,"",null,null,null,""]
["2-Alajuela","3-Grecia","4-San Roque",null,null,null,null,null,"",null,null,null,""]
["2-Alajuela","3-Grecia","5-Tacares",null,null,null,null,null,"",null,null,null,""]
["2-Alajuela","3-Grecia","6-Puente de Piedra",null,null,null,null,null,"",null,null,null,""]
["2-Alajuela","3-Grecia","7-Bolívar",null,null,null,null,null,"",null,null,null,""]
["2-Alajuela","4-San Mateo","1-San Mateo",null,null,null,null,null,"",null,null,null,""]
["2-Alajuela","4-San Mateo","2-Desmonte",null,null,null,null,null,"",null,null,null,""]
["2-Alajuela","4-San Mateo","3-Jesús María",null,null,null,null,null,"",null,null,null,""]
["2-Alajuela","4-San Mateo","4-Labrador",null,null,null,null,null,"",null,null,null,""]
["2-Alajuela","5-Atenas","1-Atenas",null,null,null,null,null,"",null,null,null,""]
["2-Alajuela","5-Atenas","2-Jesús",null,null,null,null,null,"",null,null,null,""]
["2-Alajuela","5-Atenas","3-Mercedes",null,null,null,null,null,"",null,null,null,""]
["2-Alajuela","5-Atenas","4-San Isidro",null,null,null,null,null,"",null,null,null,""]
["2-Alajuela","5-Atenas","5-Concepción",null,null,null,null,null,"",null,null,null,""]
["2-Alajuela","5-Atenas","6-San José",null,null,null,null,null,"",null,null,null,""]
["2-Alajuela","5-Atenas","7-Santa Eulalia",null,null,null,null,null,"",null,null,null,""]
["2-Alajuela","5-Atenas","8-Escobal",null,null,null,null,null,"",null,null,null,""]
["2-Alajuela","6-Naranjo","1-Naranjo",null,null,null,null,null,"",null,null,null,""]
["2-Alajuela","6-Naranjo","2-San Miguel",null,null,null,null,null,"",null,null,null,""]
["2-Alajuela","6-Naranjo","3-San José",null,null,null,null,null,"",null,null,null,""]
["2-Alajuela","6-Naranjo","4-Cirrí",null,null,null,null,null,"",null,null,null,""]
["2-Alajuela","6-Naranjo","5-San Jerónimo",null,null,null,null,null,"",null,null,null,""]
["2-Alajuela","6-Naranjo","6-San Juan",null,null,null,null,null,"",null,null,null,""]
["2-Alajuela","6-Naranjo","7-El Rosario",null,null,null,null,null,"",null,null,null,""]
["2-Alajuela","6-Naranjo","8-Palmitos",null,null,null,null,null,"",null,null,null,""]
["2-Alajuela","7-Palmares","1-Palmares",null,null,null,null,null,"",null,null,null,""]
["2-Alajuela","7-Palmares","2-Zaragoza",null,null,null,null,null,"",null,null,null,""]
["2-Alajuela","7-Palmares","3-Buenos Aires",null,null,null,null,null,"",null,null,null,""]
["2-Alajuela","7-Palmares","4-Santiago",null,null,null,null,null,"",null,null,null,""]
["2-Alajuela","7-Palmares","5-Candelaria",null,null,null,null,null,"",null,null,null,""]
["2-Alajuela","7-Palmares","6-Esquipulas",null,null,null,null,null,"",null,null,null,""]
["2-Alajuela","7-Palmares","7-La Granja",null,null,null,null,null,"",null,null,null,""]
["2-Alajuela","8-Poás","1-San Pedro",null,null,null,null,null,"",null,null,null,""]
["2-Alajuela","8-Poás","2-San Juan",null,null,null,null,null,"",null,null,null,""]
["2-Alajuela","8-Poás","3-San Rafael",null,null,null,null,null,"",null,null,null,""]
["2-Alajuela","8-Poás","4-Carrillos",null,null,null,null,null,"",null,null,null,""]
["2-Alajuela","8-Poás","5-Sabana Redonda",null,null,null,null,null,"",null,null,null,""]
["2-Alajuela","9-Orotina","1-Orotina",null,null,null,null,null,"",null,null,null,""]
["2-Alajuela","9-Orotina","2-Mastate",null,null,null,null,null,"",null,null,null,""]
["2-Alajuela","9-Orotina","3-Hacienda Vieja",null,null,null,null,null,{"$f":"IF(A194=F$2,B194,\"\")","v":""},null,null,null,""]
["2-Alajuela","9-Orotina","4-Coyolar",null,null,null,null,null,"",null,null,null,{"$f":"IF(AND(A195=F$2,B195=F$3),C195,\"\")","v":""}]
["2-Alajuela","9-Orotina","5-La Ceiba",null,null,null,null,null,"",null,null,null,""]
["2-Alajuela","10-San Carlos","1-Quesada",null,null,null,null,null,"",null,null,null,""]
["2-Alajuela","10-San Carlos","2-Florencia",null,null,null,null,null,"",null,null,null,""]
["2-Alajuela","10-San Carlos","3-Buenavista",null,null,null,null,null,"",null,null,null,""]
["2-Alajuela","10-San Carlos","4-Aguas Zarcas",null,null,null,null,null,"",null,null,null,""]
["2-Alajuela","10-San Carlos","5-Venecia",null,null,null,null,null,"",null,null,null,""]
["2-Alajuela","10-San Carlos","6-Pital",null,null,null,null,null,"",null,null,null,""]
["2-Alajuela","10-San Carlos","7-La Fortuna",null,null,null,null,null,"",null,null,null,""]
["2-Alajuela","10-San Carlos","8-La Tigra",null,null,null,null,null,"",null,null,null,""]
["2-Alajuela","10-San Carlos","9-La Palmera",null,null,null,null,null,"",null,null,null,""]
["2-Alajuela","10-San Carlos","10-Venado",null,null,null,null,null,"",null,null,null,""]
["2-Alajuela","10-San Carlos","11-Cutris",null,null,null,null,null,"",null,null,null,""]
["2-Alajuela","10-San Carlos","12-Monterrey",null,null,null,null,null,"",null,null,null,""]
["2-Alajuela","10-San Carlos","13-Pocosol",null,null,null,null,null,"",null,null,null,""]
["2-Alajuela","11-Zarcero","1-Zarcero",null,null,null,null,null,"",null,null,null,""]
["2-Alajuela","11-Zarcero","2-Laguna",null,null,null,null,null,"",null,null,null,""]
["2-Alajuela","11-Zarcero","3-Tapezco",null,null,null,null,null,"",null,null,null,""]
["2-Alajuela","11-Zarcero","4-Guadalupe",null,null,null,null,null,"",null,null,null,""]
["2-Alajuela","11-Zarcero","5-Palmira",null,null,null,null,null,"",null,null,null,""]
["2-Alajuela","11-Zarcero","6-Zapote",null,null,null,null,null,"",null,null,null,""]
["2-Alajuela","11-Zarcero","7-Brisas",null,null,null,null,null,"",null,null,null,""]
["2-Alajuela","12-Valverde Vega","1-Sarchí Norte",null,null,null,null,null,"",null,null,null,""]
["2-Alajuela","12-Valverde Vega","2-Sarchí Sur",null,null,null,null,null,"",null,null,null,""]
["2-Alajuela","12-Valverde Vega","3-Toro Amarillo",null,null,null,null,null,"",null,null,null,""]
["2-Alajuela","12-Valverde Vega","4-San Pedro",null,null,null,null,null,"",null,null,null,""]
["2-Alajuela","12-Valverde Vega","5-Rodríguez",null,null,null,null,null,"",null,null,null,""]
["2-Alajuela","13-Upala","1-Upala",null,null,null,null,null,"",null,null,null,""]
["2-Alajuela","13-Upala","2-Aguas Claras",null,null,null,null,null,"",null,null,null,""]
["2-Alajuela","13-Upala","3- San José (Pizote)",null,null,null,null,null,"",null,null,null,""]
["2-Alajuela","13-Upala","4-Bijagua",null,null,null,null,null,"",null,null,null,""]
["2-Alajuela","13-Upala","5-Delicias",null,null,null,null,null,"",null,null,null,""]
["2-Alajuela","13-Upala","6-Dos Ríos",null,null,null,null,null,"",null,null,null,""]
["2-Alajuela","13-Upala","7-Yolillal",null,null,null,null,null,"",null,null,null,""]
["2-Alajuela","13-Upala","8-Canalete",null,null,null,null,null,"",null,null,null,""]
["2-Alajuela","14-Los Chiles","1-Los Chiles",null,null,null,null,null,"",null,null,null,""]
["2-Alajuela","14-Los Chiles","2-Caño Negro",null,null,null,null,null,"",null,null,null,""]
["2-Alajuela","14-Los Chiles","3-El Amparo",null,null,null,null,null,"",null,null,null,""]
["2-Alajuela","14-Los Chiles","4-San Jorge",null,null,null,null,null,"",null,null,null,""]
["2-Alajuela","15-Guatuso","1-San Rafael",null,null,null,null,null,"",null,null,null,""]
["2-Alajuela","15-Guatuso","2-Buenavista",null,null,null,null,null,"",null,null,null,""]
["2-Alajuela","15-Guatuso","3-Cote",null,null,null,null,null,"",null,null,null,""]
["2-Alajuela","15-Guatuso","4-Katira",null,null,null,null,null,"",null,null,null,""]
["2-Alajuela","16-Río Cuarto","1-Río Cuarto",null,null,null,null,null,"",null,null,null,""]
["3-Cartago","1-Cartago","1-Oriental",null,null,null,null,null,"",null,null,null,""]
["3-Cartago","1-Cartago","2-Occidental",null,null,null,null,null,"",null,null,null,""]
["3-Cartago","1-Cartago","3-Carmen",null,null,null,null,null,"",null,null,null,""]
["3-Cartago","1-Cartago","4-San Nicolás",null,null,null,null,null,"",null,null,null,""]
["3-Cartago","1-Cartago","5-Agua Caliente (San Francisco)",null,null,null,null,null,"",null,null,null,""]
["3-Cartago","1-Cartago","6-Guadalupe (Arenilla)",null,null,null,null,null,"",null,null,null,""]
["3-Cartago","1-Cartago","7-Corralillo",null,null,null,null,null,"",null,null,null,""]
["3-Cartago","1-Cartago","8-Tierra Blanca",null,null,null,null,null,"",null,null,null,""]
["3-Cartago","1-Cartago","9-Dulce Nombre",null,null,null,null,null,"",null,null,null,""]
["3-Cartago","1-Cartago","10-Llano Grande",null,null,null,null,null,"",null,null,null,""]
["3-Cartago","1-Cartago","11-Quebradilla",null,null,null,null,null,"",null,null,null,""]
["3-Cartago","2-Paraíso","1-Paraíso",null,null,null,null,null,"",null,null,null,""]
["3-Cartago","2-Paraíso","2-Santiago de Paraíso",null,null,null,null,null,"",null,null,null,""]
["3-Cartago","2-Paraíso","3-Orosi",null,null,null,null,null,"",null,null,null,""]
["3-Cartago","2-Paraíso","4-Cachí",null,null,null,null,null,"",null,null,null,""]
["3-Cartago","2-Paraíso","5-Llanos de Santa Lucía",null,null,null,null,null,"",null,null,null,""]
["3-Cartago","3-La Unión","1-Tres Ríos",null,null,null,null,null,"",null,null,null,""]
["3-Cartago","3-La Unión","2-San Diego",null,null,null,null,null,"",null,null,null,""]
["3-Cartago","3-La Unión","3-San Juan",null,null,null,null,null,"",null,null,null,""]
["3-Cartago","3-La Unión","4-San Rafael",null,null,null,null,null,{"$f":"IF(A258=F$2,B258,\"\")","v":""},null,null,null,""]
["3-Cartago","3-La Unión","5-Concepción",null,null,null,null,null,"",null,null,null,{"$f":"IF(AND(A259=F$2,B259=F$3),C259,\"\")","v":""}]
["3-Cartago","3-La Unión","6-Dulce Nombre",null,null,null,null,null,"",null,null,null,""]
["3-Cartago","3-La Unión","7-San Ramón",null,null,null,null,null,"",null,null,null,""]
["3-Cartago","3-La Unión","8-Río Azul",null,null,null,null,null,"",null,null,null,""]
["3-Cartago","4-Jiménez","1-Juan viñas",null,null,null,null,null,"",null,null,null,""]
["3-Cartago","4-Jiménez","2-Tucurrique",null,null,null,null,null,"",null,null,null,""]
["3-Cartago","4-Jiménez","3-Pejibaye",null,null,null,null,null,"",null,null,null,""]
["3-Cartago","5-Turrialba","1-Turrialba",null,null,null,null,null,"",null,null,null,""]
["3-Cartago","5-Turrialba","2-La Suiza",null,null,null,null,null,"",null,null,null,""]
["3-Cartago","5-Turrialba","3-Peralta",null,null,null,null,null,"",null,null,null,""]
["3-Cartago","5-Turrialba","4-Santa Cruz",null,null,null,null,null,"",null,null,null,""]
["3-Cartago","5-Turrialba","5-Santa Teresita",null,null,null,null,null,"",null,null,null,""]
["3-Cartago","5-Turrialba","6-Pavones",null,null,null,null,null,"",null,null,null,""]
["3-Cartago","5-Turrialba","7-Tuis",null,null,null,null,null,"",null,null,null,""]
["3-Cartago","5-Turrialba","8-Tayutic",null,null,null,null,null,"",null,null,null,""]
["3-Cartago","5-Turrialba","9-Santa Rosa",null,null,null,null,null,"",null,null,null,""]
["3-Cartago","5-Turrialba","10-Tres Equis",null,null,null,null,null,"",null,null,null,""]
["3-Cartago","5-Turrialba","11-La Isabel",null,null,null,null,null,"",null,null,null,""]
["3-Cartago","5-Turrialba","12-Chirripó",null,null,null,null,null,"",null,null,null,""]
["3-Cartago","6-Alvarado","1-Pacayas",null,null,null,null,null,"",null,null,null,""]
["3-Cartago","6-Alvarado","2-Cervantes",null,null,null,null,null,"",null,null,null,""]
["3-Cartago","6-Alvarado","3-Capellades",null,null,null,null,null,"",null,null,null,""]
["3-Cartago","7-Oreamuno","1-San Rafael",null,null,null,null,null,"",null,null,null,""]
["3-Cartago","7-Oreamuno","2-Cot",null,null,null,null,null,"",null,null,null,""]
["3-Cartago","7-Oreamuno","3-Potrero Cerrado",null,null,null,null,null,"",null,null,null,""]
["3-Cartago","7-Oreamuno","4-Cipreses",null,null,null,null,null,"",null,null,null,""]
["3-Cartago","7-Oreamuno","5-Santa Rosa",null,null,null,null,null,"",null,null,null,""]
["3-Cartago","8-El Guarco","1-Tejar",null,null,null,null,null,"",null,null,null,""]
["3-Cartago","8-El Guarco","2-San Isidro",null,null,null,null,null,"",null,null,null,""]
["3-Cartago","8-El Guarco","3-Tobosi",null,null,null,null,null,"",null,null,null,""]
["3-Cartago","8-El Guarco","4-Patio de Agua",null,null,null,null,null,"",null,null,null,""]
["4-Heredia","1-Heredia","1-Heredia",null,null,null,null,null,"",null,null,null,""]
["4-Heredia","1-Heredia","2-Mercedes",null,null,null,null,null,"",null,null,null,""]
["4-Heredia","1-Heredia","3-San Francisco",null,null,null,null,null,"",null,null,null,""]
["4-Heredia","1-Heredia","4-Ulloa",null,null,null,null,null,"",null,null,null,""]
["4-Heredia","1-Heredia","5-Vara Blanca",null,null,null,null,null,"",null,null,null,""]
["4-Heredia","2-Barva","1-Barva",null,null,null,null,null,"",null,null,null,""]
["4-Heredia","2-Barva","2-San Pedro",null,null,null,null,null,"",null,null,null,""]
["4-Heredia","2-Barva","3-San Pablo",null,null,null,null,null,"",null,null,null,""]
["4-Heredia","2-Barva","4-San Roque",null,null,null,null,null,"",null,null,null,""]
["4-Heredia","2-Barva","5-Santa Lucía",null,null,null,null,null,"",null,null,null,""]
["4-Heredia","2-Barva","6-San José de la Montaña",null,null,null,null,null,"",null,null,null,""]
["4-Heredia","3-Santo Domingo","1-Santo Domingo",null,null,null,null,null,"",null,null,null,""]
["4-Heredia","3-Santo Domingo","2-San Vicente",null,null,null,null,null,"",null,null,null,""]
["4-Heredia","3-Santo Domingo","3- San Miguel",null,null,null,null,null,"",null,null,null,""]
["4-Heredia","3-Santo Domingo","4-Paracito",null,null,null,null,null,"",null,null,null,""]
["4-Heredia","3-Santo Domingo","5-Santo Tomás",null,null,null,null,null,"",null,null,null,""]
["4-Heredia","3-Santo Domingo","6-Santa Rosa",null,null,null,null,null,"",null,null,null,""]
["4-Heredia","3-Santo Domingo","7-Tures",null,null,null,null,null,"",null,null,null,""]
["4-Heredia","3-Santo Domingo","8-Pará",null,null,null,null,null,"",null,null,null,""]
["4-Heredia","4-Santa Barbara","1-Santa Bárbara",null,null,null,null,null,"",null,null,null,""]
["4-Heredia","4-Santa Barbara","2-San Pedro",null,null,null,null,null,"",null,null,null,""]
["4-Heredia","4-Santa Barbara","3-San Juan",null,null,null,null,null,"",null,null,null,""]
["4-Heredia","4-Santa Barbara","4-Jesús",null,null,null,null,null,"",null,null,null,""]
["4-Heredia","4-Santa Barbara","5-Santo Domingo",null,null,null,null,null,"",null,null,null,""]
["4-Heredia","4-Santa Barbara","6-Purabá",null,null,null,null,null,"",null,null,null,""]
["4-Heredia","5-San Rafael","1-San Rafael",null,null,null,null,null,"",null,null,null,""]
["4-Heredia","5-San Rafael","2-San Josecito",null,null,null,null,null,"",null,null,null,""]
["4-Heredia","5-San Rafael","3-Santiago",null,null,null,null,null,"",null,null,null,""]
["4-Heredia","5-San Rafael","4-Ángeles",null,null,null,null,null,"",null,null,null,""]
["4-Heredia","5-San Rafael","5-Concepción",null,null,null,null,null,"",null,null,null,""]
["4-Heredia","6-San Isidro","1-San Isidro",null,null,null,null,null,"",null,null,null,""]
["4-Heredia","6-San Isidro","2-San José",null,null,null,null,null,"",null,null,null,""]
["4-Heredia","6-San Isidro","3-Concepción",null,null,null,null,null,{"$f":"IF(A322=F$2,B322,\"\")","v":""},null,null,null,""]
["4-Heredia","6-San Isidro","4-San Francisco",null,null,null,null,null,"",null,null,null,{"$f":"IF(AND(A323=F$2,B323=F$3),C323,\"\")","v":""}]
["4-Heredia","7-Belén","1-San Antonio",null,null,null,null,null,"",null,null,null,""]
["4-Heredia","7-Belén","2-La Ribera",null,null,null,null,null,"",null,null,null,""]
["4-Heredia","7-Belén","3-La Asunción",null,null,null,null,null,"",null,null,null,""]
["4-Heredia","8-Flores","1-San Joaquín",null,null,null,null,null,"",null,null,null,""]
["4-Heredia","8-Flores","2-Barrantes",null,null,null,null,null,"",null,null,null,""]
["4-Heredia","8-Flores","3-Llorente",null,null,null,null,null,"",null,null,null,""]
["4-Heredia","9-San Pablo","1-San Pablo",null,null,null,null,null,"",null,null,null,""]
["4-Heredia","9-San Pablo","2-Rincón de Sabanilla",null,null,null,null,null,"",null,null,null,""]
["4-Heredia","10-Sarapiquí","1-Puerto Viejo",null,null,null,null,null,"",null,null,null,""]
["4-Heredia","10-Sarapiquí","2-La Virgen",null,null,null,null,null,"",null,null,null,""]
["4-Heredia","10-Sarapiquí","3-Horquetas",null,null,null,null,null,"",null,null,null,""]
["4-Heredia","10-Sarapiquí","4-Llanuras del Gaspar",null,null,null,null,null,"",null,null,null,""]
["4-Heredia","10-Sarapiquí","5-Cureña",null,null,null,null,null,"",null,null,null,""]
["5-Guanacaste","1-Liberia","1-Liberia",null,null,null,null,null,"",null,null,null,""]
["5-Guanacaste","1-Liberia","2-Cañas Dulces",null,null,null,null,null,"",null,null,null,""]
["5-Guanacaste","1-Liberia","3-Mayorga",null,null,null,null,null,"",null,null,null,""]
["5-Guanacaste","1-Liberia","4-Nacascolo",null,null,null,null,null,"",null,null,null,""]
["5-Guanacaste","1-Liberia","5-Curubandé",null,null,null,null,null,"",null,null,null,""]
["5-Guanacaste","2-Nicoya","1-Nicoya",null,null,null,null,null,"",null,null,null,""]
["5-Guanacaste","2-Nicoya","2-Mansión",null,null,null,null,null,"",null,null,null,""]
["5-Guanacaste","2-Nicoya","3-San Antonio",null,null,null,null,null,"",null,null,null,""]
["5-Guanacaste","2-Nicoya","4-Quebrada Honda",null,null,null,null,null,"",null,null,null,""]
["5-Guanacaste","2-Nicoya","5-Sámara",null,null,null,null,null,"",null,null,null,""]
["5-Guanacaste","2-Nicoya","6-Nosara",null,null,null,null,null,"",null,null,null,""]
["5-Guanacaste","2-Nicoya","7-Belén de Nosarita",null,null,null,null,null,"",null,null,null,""]
["5-Guanacaste","3-Santa Cruz","1-Santa Cruz",null,null,null,null,null,"",null,null,null,""]
["5-Guanacaste","3-Santa Cruz","2-Bolsón",null,null,null,null,null,"",null,null,null,""]
["5-Guanacaste","3-Santa Cruz","3-Veintisiete de Abril",null,null,null,null,null,"",null,null,null,""]
["5-Guanacaste","3-Santa Cruz","4-Tempate",null,null,null,null,null,"",null,null,null,""]
["5-Guanacaste","3-Santa Cruz","5-Cartagena",null,null,null,null,null,"",null,null,null,""]
["5-Guanacaste","3-Santa Cruz","6-Cuajiniquil",null,null,null,null,null,"",null,null,null,""]
["5-Guanacaste","3-Santa Cruz","7-Diriá",null,null,null,null,null,"",null,null,null,""]
["5-Guanacaste","3-Santa Cruz","8-Cabo Velas",null,null,null,null,null,"",null,null,null,""]
["5-Guanacaste","3-Santa Cruz","9-Tamarindo",null,null,null,null,null,"",null,null,null,""]
["5-Guanacaste","4-Bagaces","1-Bagaces",null,null,null,null,null,"",null,null,null,""]
["5-Guanacaste","4-Bagaces","2-La Fortuna",null,null,null,null,null,"",null,null,null,""]
["5-Guanacaste","4-Bagaces","3-Mogote",null,null,null,null,null,"",null,null,null,""]
["5-Guanacaste","4-Bagaces","4-Río Naranjo",null,null,null,null,null,"",null,null,null,""]
["5-Guanacaste","5-Carrillo","1-Filadelfia",null,null,null,null,null,"",null,null,null,""]
["5-Guanacaste","5-Carrillo","2-Palmira",null,null,null,null,null,"",null,null,null,""]
["5-Guanacaste","5-Carrillo","3-Sardinal",null,null,null,null,null,"",null,null,null,""]
["5-Guanacaste","5-Carrillo","4-Belén",null,null,null,null,null,"",null,null,null,""]
["5-Guanacaste","6-Cañas","1-Cañas",null,null,null,null,null,"",null,null,null,""]
["5-Guanacaste","6-Cañas","2-Palmira",null,null,null,null,null,"",null,null,null,""]
["5-Guanacaste","6-Cañas","3-San Miguel",null,null,null,null,null,"",null,null,null,""]
["5-Guanacaste","6-Cañas","4-Bebedero",null,null,null,null,null,"",null,null,null,""]
["5-Guanacaste","6-Cañas","5-Porozal",null,null,null,null,null,"",null,null,null,""]
["5-Guanacaste","7-Abangares","1-Las Juntas",null,null,null,null,null,"",null,null,null,""]
["5-Guanacaste","7-Abangares","2-Sierra",null,null,null,null,null,"",null,null,null,""]
["5-Guanacaste","7-Abangares","3-San Juan",null,null,null,null,null,"",null,null,null,""]
["5-Guanacaste","7-Abangares","4-Colorado",null,null,null,null,null,"",null,null,null,""]
["5-Guanacaste","8-Tilarán","1-Tilarán",null,null,null,null,null,"",null,null,null,""]
["5-Guanacaste","8-Tilarán","2-Quebrada Grande",null,null,null,null,null,"",null,null,null,""]
["5-Guanacaste","8-Tilarán","3-Tronadora",null,null,null,null,null,"",null,null,null,""]
["5-Guanacaste","8-Tilarán","4-Santa Rosa",null,null,null,null,null,"",null,null,null,""]
["5-Guanacaste","8-Tilarán","5-Líbano",null,null,null,null,null,"",null,null,null,""]
["5-Guanacaste","8-Tilarán","6-Tierras Morenas",null,null,null,null,null,"",null,null,null,""]
["5-Guanacaste","8-Tilarán","7-Arenal",null,null,null,null,null,"",null,null,null,""]
["5-Guanacaste","9-Nandayure","1-Carmona",null,null,null,null,null,"",null,null,null,""]
["5-Guanacaste","9-Nandayure","2-Santa Rita",null,null,null,null,null,"",null,null,null,""]
["5-Guanacaste","9-Nandayure","3-Zapotal",null,null,null,null,null,"",null,null,null,""]
["5-Guanacaste","9-Nandayure","4-San Pablo",null,null,null,null,null,"",null,null,null,""]
["5-Guanacaste","9-Nandayure","5-Porvenir",null,null,null,null,null,{"$f":"IF(A386=F$2,B386,\"\")","v":""},null,null,null,""]
["5-Guanacaste","9-Nandayure","6-Bejuco",null,null,null,null,null,"",null,null,null,{"$f":"IF(AND(A387=F$2,B387=F$3),C387,\"\")","v":""}]
["5-Guanacaste","10-La Cruz","1-La Cruz",null,null,null,null,null,"",null,null,null,""]
["5-Guanacaste","10-La Cruz","2-Santa Cecilia",null,null,null,null,null,"",null,null,null,""]
["5-Guanacaste","10-La Cruz","3-La Garita",null,null,null,null,null,"",null,null,null,""]
["5-Guanacaste","10-La Cruz","4-Santa Elena",null,null,null,null,null,"",null,null,null,""]
["5-Guanacaste","11-Hojancha","1-Hojancha",null,null,null,null,null,"",null,null,null,""]
["5-Guanacaste","11-Hojancha","2-Monte Romo",null,null,null,null,null,"",null,null,null,""]
["5-Guanacaste","11-Hojancha","3-Puerto Carrillo",null,null,null,null,null,"",null,null,null,""]
["5-Guanacaste","11-Hojancha","4-Huacas",null,null,null,null,null,"",null,null,null,""]
["5-Guanacaste","11-Hojancha","5-Matambú",null,null,null,null,null,"",null,null,null,""]
["6-Puntarenas","1-Puntarenas","1-Puntarenas",null,null,null,null,null,"",null,null,null,""]
["6-Puntarenas","1-Puntarenas","2-Pitahaya",null,null,null,null,null,"",null,null,null,""]
["6-Puntarenas","1-Puntarenas","3-Chomes",null,null,null,null,null,"",null,null,null,""]
["6-Puntarenas","1-Puntarenas","4-Lepanto",null,null,null,null,null,"",null,null,null,""]
["6-Puntarenas","1-Puntarenas","5-Paquera",null,null,null,null,null,"",null,null,null,""]
["6-Puntarenas","1-Puntarenas","6-Manzanillo",null,null,null,null,null,"",null,null,null,""]
["6-Puntarenas","1-Puntarenas","7-Guacimal",null,null,null,null,null,"",null,null,null,""]
["6-Puntarenas","1-Puntarenas","8-Barranca",null,null,null,null,null,"",null,null,null,""]
["6-Puntarenas","1-Puntarenas","9-Monteverde",null,null,null,null,null,"",null,null,null,""]
["6-Puntarenas","1-Puntarenas","10-Isla del Coco",null,null,null,null,null,"",null,null,null,""]
["6-Puntarenas","1-Puntarenas","11-Cóbano",null,null,null,null,null,"",null,null,null,""]
["6-Puntarenas","1-Puntarenas","12-Chacarita",null,null,null,null,null,"",null,null,null,""]
["6-Puntarenas","1-Puntarenas","13-Chira",null,null,null,null,null,"",null,null,null,""]
["6-Puntarenas","1-Puntarenas","14-Acapulco",null,null,null,null,null,"",null,null,null,""]
["6-Puntarenas","1-Puntarenas","15-El Roble",null,null,null,null,null,"",null,null,null,""]
["6-Puntarenas","1-Puntarenas","16-Arancibia",null,null,null,null,null,"",null,null,null,""]
["6-Puntarenas","2-Esparza","1-Espíritu Santo",null,null,null,null,null,"",null,null,null,""]
["6-Puntarenas","2-Esparza","2-San Juan Grande",null,null,null,null,null,"",null,null,null,""]
["6-Puntarenas","2-Esparza","3-Macacona",null,null,null,null,null,"",null,null,null,""]
["6-Puntarenas","2-Esparza","4-San Rafael",null,null,null,null,null,"",null,null,null,""]
["6-Puntarenas","2-Esparza","5-San Jerónimo",null,null,null,null,null,"",null,null,null,""]
["6-Puntarenas","2-Esparza","6-Caldera",null,null,null,null,null,"",null,null,null,""]
["6-Puntarenas","3-Buenos Aires","1-Buenos Aires",null,null,null,null,null,"",null,null,null,""]
["6-Puntarenas","3-Buenos Aires","2-Volcán",null,null,null,null,null,"",null,null,null,""]
["6-Puntarenas","3-Buenos Aires","3-Potrero Grande",null,null,null,null,null,"",null,null,null,""]
["6-Puntarenas","3-Buenos Aires","4-Boruca",null,null,null,null,null,"",null,null,null,""]
["6-Puntarenas","3-Buenos Aires","5-Pilas",null,null,null,null,null,"",null,null,null,""]
["6-Puntarenas","3-Buenos Aires","6-Colinas",null,null,null,null,null,"",null,null,null,""]
["6-Puntarenas","3-Buenos Aires","7-Chánguena",null,null,null,null,null,"",null,null,null,""]
["6-Puntarenas","3-Buenos Aires","8-Biolley",null,null,null,null,null,"",null,null,null,""]
["6-Puntarenas","3-Buenos Aires","9-Brunka",null,null,null,null,null,"",null,null,null,""]
["6-Puntarenas","4-Montes de Oro","1-Miramar",null,null,null,null,null,"",null,null,null,""]
["6-Puntarenas","4-Montes de Oro","2-La Unión",null,null,null,null,null,"",null,null,null,""]
["6-Puntarenas","4-Montes de Oro","3-San Isidro",null,null,null,null,null,"",null,null,null,""]
["6-Puntarenas","5-Osa","1-Cortés",null,null,null,null,null,"",null,null,null,""]
["6-Puntarenas","5-Osa","2-Palmar",null,null,null,null,null,"",null,null,null,""]
["6-Puntarenas","5-Osa","3-Sierpe",null,null,null,null,null,"",null,null,null,""]
["6-Puntarenas","5-Osa","4-Bahía Ballena",null,null,null,null,null,"",null,null,null,""]
["6-Puntarenas","5-Osa","5-Piedras Blancas",null,null,null,null,null,"",null,null,null,""]
["6-Puntarenas","5-Osa","6-Bahía Drake",null,null,null,null,null,"",null,null,null,""]
["6-Puntarenas","6-Quepos","1-Quepos",null,null,null,null,null,"",null,null,null,""]
["6-Puntarenas","6-Quepos","2-Savegre",null,null,null,null,null,"",null,null,null,""]
["6-Puntarenas","6-Quepos","3-Naranjito",null,null,null,null,null,"",null,null,null,""]
["6-Puntarenas","7-Golfito","1-Golfito",null,null,null,null,null,"",null,null,null,""]
["6-Puntarenas","7-Golfito","2-Puerto Jiménez",null,null,null,null,null,"",null,null,null,""]
["6-Puntarenas","7-Golfito","3-Guaycará",null,null,null,null,null,"",null,null,null,""]
["6-Puntarenas","7-Golfito","4-Pavón",null,null,null,null,null,"",null,null,null,""]
["6-Puntarenas","8-Coto Brus","1-San Vito",null,null,null,null,null,"",null,null,null,""]
["6-Puntarenas","8-Coto Brus","2-Sabalito",null,null,null,null,null,"",null,null,null,""]
["6-Puntarenas","8-Coto Brus","3-Aguabuena",null,null,null,null,null,"",null,null,null,""]
["6-Puntarenas","8-Coto Brus","4-Limoncito",null,null,null,null,null,"",null,null,null,""]
["6-Puntarenas","8-Coto Brus","5-Pittier",null,null,null,null,null,"",null,null,null,""]
["6-Puntarenas","8-Coto Brus","6-Gutiérrez Brown",null,null,null,null,null,"",null,null,null,""]
["6-Puntarenas","9-Parrita","1-Parrita",null,null,null,null,null,{"$f":"IF(A450=F$2,B450,\"\")","v":""},null,null,null,""]
["6-Puntarenas","10-Corredores","1-Corredor",null,null,null,null,null,"",null,null,null,{"$f":"IF(AND(A451=F$2,B451=F$3),C451,\"\")","v":""}]
["6-Puntarenas","10-Corredores","2-La Cuesta",null,null,null,null,null,"",null,null,null,""]
["6-Puntarenas","10-Corredores","3-Paso Canoas",null,null,null,null,null,"",null,null,null,""]
["6-Puntarenas","10-Corredores","4-Laurel",null,null,null,null,null,"",null,null,null,""]
["6-Puntarenas","11-Garabito","1-Jacó",null,null,null,null,null,"",null,null,null,""]
["6-Puntarenas","11-Garabito","2-Tárcoles",null,null,null,null,null,"",null,null,null,""]
["7-Limón","1-Limón","1-Limón",null,null,null,null,null,"",null,null,null,""]
["7-Limón","1-Limón","2-Valle la Estrella",null,null,null,null,null,"",null,null,null,""]
["7-Limón","1-Limón","3-Río Blanco",null,null,null,null,null,"",null,null,null,""]
["7-Limón","1-Limón","4-Matama",null,null,null,null,null,"",null,null,null,""]
["7-Limón","2-Pococí","1-Guápiles",null,null,null,null,null,"",null,null,null,""]
["7-Limón","2-Pococí","2-Jiménez",null,null,null,null,null,"",null,null,null,""]
["7-Limón","2-Pococí","3-La Rita",null,null,null,null,null,"",null,null,null,""]
["7-Limón","2-Pococí","4-Roxana",null,null,null,null,null,"",null,null,null,""]
["7-Limón","2-Pococí","5-Cariari",null,null,null,null,null,"",null,null,null,""]
["7-Limón","2-Pococí","6-Colorado",null,null,null,null,null,"",null,null,null,""]
["7-Limón","2-Pococí","7-La Colonia",null,null,null,null,null,"",null,null,null,""]
["7-Limón","3-Siquirres","1-Siquirres",null,null,null,null,null,"",null,null,null,""]
["7-Limón","3-Siquirres","2-Pacuarito",null,null,null,null,null,"",null,null,null,""]
["7-Limón","3-Siquirres","3-Florida",null,null,null,null,null,"",null,null,null,""]
["7-Limón","3-Siquirres","4-Germania",null,null,null,null,null,"",null,null,null,""]
["7-Limón","3-Siquirres","5-Cairo",null,null,null,null,null,"",null,null,null,""]
["7-Limón","3-Siquirres","6-Alegría",null,null,null,null,null,"",null,null,null,""]
["7-Limón","4-Talamanca","1-Bratsi",null,null,null,null,null,"",null,null,null,""]
["7-Limón","4-Talamanca","2-Sixaola",null,null,null,null,null,"",null,null,null,""]
["7-Limón","4-Talamanca","3-Cahuita",null,null,null,null,null,"",null,null,null,""]
["7-Limón","4-Talamanca","4-Telire",null,null,null,null,null,"",null,null,null,""]
["7-Limón","5-Matina","1-Matina",null,null,null,null,null,"",null,null,null,""]
["7-Limón","5-Matina","2-Batán",null,null,null,null,null,"",null,null,null,""]
["7-Limón","5-Matina","3-Carrandi",null,null,null,null,null,"",null,null,null,""]
["7-Limón","6-Guácimo","1-Guácimo",null,null,null,null,null,"",null,null,null,""]
["7-Limón","6-Guácimo","2-Mercedes",null,null,null,null,null,"",null,null,null,""]
["7-Limón","6-Guácimo","3-Pocora",null,null,null,null,null,"",null,null,null,""]
["7-Limón","6-Guácimo","4-Río Jiménez",null,null,null,null,null,"",null,null,null,""]
["7-Limón","6-Guácimo","5-Duacari",null,null,null,null,null,"",null,null,null,""]
[null,null,null,null,null,null,null,null,0,null,null,null,0]

{"sheet":"Provincias-Muni","index":14,"n_rows":90,"n_cols":3,"rows_kept":90,"cut":false,"hidden":true,"merged":[]}
["1-San José","1-San José"]
["1-San José","2-Escazú",{"$f":"IF(OR(Q1=\"San José\",Q1=\"Escazú\",Q1=\"Desamparados\",Q1=\"Puriscal\",Q1=\"Tarrazú\",Q1=\"Aserrí\",Q1=\"Mora\",Q1=\"Goicoechea\",Q1=\"Santa Ana\",Q1=\"Alajuelita\",Q1=\"Vásquez de Coronado\", Q1=\"Acosta\",Q1=\"Tibás\",Q1=\"Moravia\",Q1=\"Montes de Oca\",Q1=\"Turrubares\",Q1=\"Dota\",Q1=\"Curridabat\",Q1=\"Peréz Zeledón\",Q1=\"León Cortés Castro\"),\"1-San José\",\"no\")","v":"no"}]
["1-San José","3-Desamparados"]
["1-San José","4-Puriscal"]
["1-San José","5-Tarrazú"]
["1-San José","6-Aserrí"]
["1-San José","7-Mora"]
["1-San José","8-Goicoechea"]
["1-San José","9-Santa Ana"]
["1-San José","10-Alajuelita"]
["1-San José","11-Vásquez de Coronado     "]
["1-San José","12-Acosta"]
["1-San José","13-Tibás"]
["1-San José","14-Moravia"]
["1-San José","15-Montes de Oca"]
["1-San José","16-Turrubares"]
["1-San José","17-Dota"]
["1-San José","18-Curridabat"]
["1-San José","19-Pérez Zeledón"]
["1-San José","20-León Cortés Castro"]
["2-Alajuela","1-Alajuela"]
["2-Alajuela","2-San Ramón",{"$f":"IF(OR(Q1=\"San José\",Q1=\"Escazú\",Q1=\"Desamparados\",Q1=\"Puriscal\",Q1=\"Tarrazú\",Q1=\"Aserrí\",Q1=\"Mora\",Q1=\"Goicoechea\",Q1=\"Santa Ana\",Q1=\"Alajuelita\",Q1=\"Vásquez de Coronado\", Q1=\"Acosta\",Q1=\"Tibás\",Q1=\"Moravia\",Q1=\"Montes de Oca\",Q1=\"Turrubares\",Q1=\"Dota\",Q1=\"Curridabat\",Q1=\"Peréz Zeledón\",Q1=\"León Cortés Castro\"),\"1-San José\",IF(OR(Q1=\"Alajuela\",Q1=\"San Ramón\",Q1=\"Peñas Blancas\",Q1=\"Grecia\",Q1=\"San Mateo\",Q1=\"Atenas\",Q1=\"Naranjo\",Q1=\"Palmares\",Q1=\"Poás\",Q1=\"Orotina\",Q1=\"San Carlos\",Q1=\"Zarcero\",Q1=\"Valverde Vega\",Q1=\"Upala\",Q1=\"Los Chiles\",Q1=\"Guatuso\",Q1=\"Rio Cuarto\"),\"2-Alajuela\",\"no\"))","v":"no"}]
["2-Alajuela","Peñas Blancas"]
["2-Alajuela","3-Grecia"]
["2-Alajuela","4-San Mateo"]
["2-Alajuela","5-Atenas"]
["2-Alajuela","6-Naranjo"]
["2-Alajuela","7-Palmares"]
["2-Alajuela","8-Poás"]
["2-Alajuela","9-Orotina"]
["2-Alajuela","10-San Carlos"]
["2-Alajuela","11-Zarcero"]
["2-Alajuela","12-Valverde Vega"]
["2-Alajuela","13-Upala"]
["2-Alajuela","14-Los Chiles"]
["2-Alajuela","15-Guatuso"]
["2-Alajuela","16-Río Cuarto"]
["3-Cartago","1-Cartago"]
["3-Cartago","2-Paraíso",{"$f":"IF(OR(Q1=\"San José\",Q1=\"Escazú\",Q1=\"Desamparados\",Q1=\"Puriscal\",Q1=\"Tarrazú\",Q1=\"Aserrí\",Q1=\"Mora\",Q1=\"Goicoechea\",Q1=\"Santa Ana\",Q1=\"Alajuelita\",Q1=\"Vásquez de Coronado\", Q1=\"Acosta\",Q1=\"Tibás\",Q1=\"Moravia\",Q1=\"Montes de Oca\",Q1=\"Turrubares\",Q1=\"Dota\",Q1=\"Curridabat\",Q1=\"Peréz Zeledón\",Q1=\"León Cortés Castro\"),\"1-San José\",IF(OR(Q1=\"Alajuela\",Q1=\"San Ramón\",Q1=\"Peñas Blancas\",Q1=\"Grecia\",Q1=\"San Mateo\",Q1=\"Atenas\",Q1=\"Naranjo\",Q1=\"Palmares\",Q1=\"Poás\",Q1=\"Orotina\",Q1=\"San Carlos\",Q1=\"Zarcero\",Q1=\"Valverde Vega\",Q1=\"Upala\",Q1=\"Los Chiles\",Q1=\"Guatuso\",Q1=\"Rio Cuarto\"),\"2-Alajuela\",IF(OR(Q1=\"Cartago\",Q1=\"Paraíso\",Q1=\"La Unión\",Q1=\"Jimenéz\",Q1=\"Tucurrique\",Q1=\"Turrialba\",Q1=\"Alvarado\",Q1=\"Cervantes\",Q1=\"Oreamuno\",Q1=\"El Guarco\"),\"3-Cartago\",IF(OR(Q1=\"Heredia\",Q1=\"Barva\",Q1=\"Santo Domingo\",Q1=\"Santa Barbara\",Q1=\"San Rafael\", Q1=\"San Isidro\",Q1=\"Belén\",Q1=\"Flores\",Q1=\"San Pablo\",Q1=\"Sarapiqui\"),\"4-Heredia\",\"no\"))))","v":"no"}]
["3-Cartago","3-La Unión"]
["3-Cartago","4-Jiménez"]
["3-Cartago","Tucurrique"]
["3-Cartago","5-Turrialba"]
["3-Cartago","6-Alvarado"]
["3-Cartago","Cervantes"]
["3-Cartago","7-Oreamuno"]
["3-Cartago","8-El Guarco"]
["4-Heredia","1-Heredia"]
["4-Heredia","2-Barva"]
["4-Heredia","3-Santo Domingo"]
["4-Heredia","4-Santa Barbara"]
["4-Heredia","5-San Rafael"]
["4-Heredia","6-San Isidro"]
["4-Heredia","7-Belén"]
["4-Heredia","8-Flores"]
["4-Heredia","9-San Pablo"]
["4-Heredia","10-Sarapiquí"]
["5-Guanacaste","1-Liberia"]
["5-Guanacaste","2-Nicoya"]
["5-Guanacaste","3-Santa Cruz"]
["5-Guanacaste","4-Bagaces"]
["5-Guanacaste","5-Carrillo"]
["5-Guanacaste","6-Cañas"]
["5-Guanacaste","7-Abangares"]
["5-Guanacaste","Cólorado"]
["5-Guanacaste","8-Tilarán"]
["5-Guanacaste","9-Nandayure"]
["5-Guanacaste","10-La Cruz",{"$f":"IF(OR(Q1=\"San José\",Q1=\"Escazú\",Q1=\"Desamparados\",Q1=\"Puriscal\",Q1=\"Tarrazú\",Q1=\"Aserrí\",Q1=\"Mora\",Q1=\"Goicoechea\",Q1=\"Santa Ana\",Q1=\"Alajuelita\",Q1=\"Vásquez de Coronado\",Q1=\"Acosta\",Q1=\"Tibás\",Q1=\"Moravia\",Q1=\"Montes de Oca\",Q1=\"Turrubares\",Q1=\"Dota\",Q1=\"Curridabat\",Q1=\"Peréz Zeledón\",Q1=\"León Cortés Castro\"),\"1-San José\",IF(OR(Q1=\"Alajuela\",Q1=\"San Ramón\",Q1=\"Peñas Blancas\",Q1=\"Grecia\",Q1=\"San Mateo\",Q1=\"Atenas\",Q1=\"Naranjo\",Q1=\"Palmares\",Q1=\"Poás\",Q1=\"Orotina\",Q1=\"San Carlos\",Q1=\"Zarcero\",Q1=\"Valverde Vega\",Q1=\"Upala\",Q1=\"Los Chiles\",Q1=\"Guatuso\",Q1=\"Rio Cuarto\"),\"2-Alajuela\",IF(OR(Q1=\"Cartago\",Q1=\"Paraíso\",Q1=\"La Unión\",Q1=\"Jimenéz\",Q1=\"Tucurrique\",Q1=\"Turrialba\",Q1=\"Alvarado\",Q1=\"Cervantes\",Q1=\"Oreamuno\",Q1=\"El Guarco\"),\"3-Cartago\",IF(OR(Q1=\"Heredia\",Q1=\"Barva\",Q1=\"Santo Domingo\",Q1=\"Santa Barbara\",Q1=\"San Rafael\",Q1=\"San Isidro\",Q1=\"Belén\",Q1=\"Flores\",Q1=\"San Pablo\",Q1=\"Sarapiqui\"),\"4-Heredia\",IF(OR(Q1=\"Liberia\",Q1=\"Nicoya\",Q1=\"Santa Cruz\",Q1=\"Bagaces\",Q1=\"Carrillo\",Q1=\"Cañas\",Q1=\"Abangares\",Q1=\"Cólorado\",Q1=\"Tilarán\",Q1=\"Nandayure\",Q1=\"La Cruz\",Q1=\"Hojancha\"),\"5-Guanacaste\",IF(OR(Q1=\"Puntarenas\",Q1=\"Esparza\",Q1=\"Buenos Aires\",Q1=\"Montes de Oro\",Q1=\"Osa\",Q1=\"Quepos\",Q1=\"Golfito\",Q1=\"Coto Brus\",Q1=\"Parrita\",Q1=\"Corredores\",Q1=\"Garabito\",Q1=\"Lepanto\",Q1=\"Paquera\",Q1=\"Cóbano\",Q1=\"Monteverde\"),\"6-Puntarenas\",\"no\"))))))","v":"no"}]
["5-Guanacaste","11-Hojancha"]
["6-Puntarenas","1-Puntarenas"]
["6-Puntarenas","2-Esparza"]
["6-Puntarenas","3-Buenos Aires"]
["6-Puntarenas","4-Montes de Oro"]
["6-Puntarenas","5-Osa"]
["6-Puntarenas","6-Quepos"]
["6-Puntarenas","7-Golfito"]
["6-Puntarenas","8-Coto Brus"]
["6-Puntarenas","9-Parrita"]
["6-Puntarenas","10-Corredores"]
["6-Puntarenas","11-Garabito"]
["6-Puntarenas","Lepanto"]
["6-Puntarenas","Paquera"]
["6-Puntarenas","Cóbano"]
["6-Puntarenas","Monteverde"]
["7-Limón","1-Limón"]
["7-Limón","2-Pococí"]
["7-Limón","3-Siquirres",{"$f":"IF(OR(Q1=\"San José\",Q1=\"Escazú\",Q1=\"Desamparados\",Q1=\"Puriscal\",Q1=\"Tarrazú\",Q1=\"Aserrí\",Q1=\"Mora\",Q1=\"Goicoechea\",Q1=\"Santa Ana\",Q1=\"Alajuelita\",Q1=\"Vásquez de Coronado\",Q1=\"Acosta\",Q1=\"Tibás\",Q1=\"Moravia\",Q1=\"Montes de Oca\",Q1=\"Turrubares\",Q1=\"Dota\",Q1=\"Curridabat\",Q1=\"Peréz Zeledón\",Q1=\"León Cortés Castro\"),\"1-San José\",IF(OR(Q1=\"Alajuela\",Q1=\"San Ramón\",Q1=\"Peñas Blancas\",Q1=\"Grecia\",Q1=\"San Mateo\",Q1=\"Atenas\",Q1=\"Naranjo\",Q1=\"Palmares\",Q1=\"Poás\",Q1=\"Orotina\",Q1=\"San Carlos\",Q1=\"Zarcero\",Q1=\"Valverde Vega\",Q1=\"Upala\",Q1=\"Los Chiles\",Q1=\"Guatuso\",Q1=\"Rio Cuarto\"),\"2-Alajuela\",IF(OR(Q1=\"Cartago\",Q1=\"Paraíso\",Q1=\"La Unión\",Q1=\"Jimenéz\",Q1=\"Tucurrique\",Q1=\"Turrialba\",Q1=\"Alvarado\",Q1=\"Cervantes\",Q1=\"Oreamuno\",Q1=\"El Guarco\"),\"3-Cartago\",IF(OR(Q1=\"Heredia\",Q1=\"Barva\",Q1=\"Santo Domingo\",Q1=\"Santa Barbara\",Q1=\"San Rafael\",Q1=\"San Isidro\",Q1=\"Belén\",Q1=\"Flores\",Q1=\"San Pablo\",Q1=\"Sarapiqui\"),\"4-Heredia\",IF(OR(Q1=\"Liberia\",Q1=\"Nicoya\",Q1=\"Santa Cruz\",Q1=\"Bagaces\",Q1=\"Carrillo\",Q1=\"Cañas\",Q1=\"Abangares\",Q1=\"Cólorado\",Q1=\"Tilarán\",Q1=\"Nandayure\",Q1=\"La Cruz\",Q1=\"Hojancha\"),\"5-Guanacaste\",IF(OR(Q1=\"Puntarenas\",Q1=\"Esparza\",Q1=\"Buenos Aires\",Q1=\"Montes de Oro\",Q1=\"Osa\",Q1=\"Quepos\",Q1=\"Golfito\",Q1=\"Coto Brus\",Q1=\"Parrita\",Q1=\"Corredores\",Q1=\"Garabito\",Q1=\"Lepanto\",Q1=\"Paquera\",Q1=\"Cóbano\",Q1=\"Monteverde\"),\"6-Puntarenas\",\"7-Limón\"))))))","v":"7-Limón"}]
["7-Limón","4-Talamanca"]
["7-Limón","5-Matina"]
["7-Limón","6-Guácimo"]

{"sheet":"Municipalidades y Concejos de D","index":15,"n_rows":271,"n_cols":19,"rows_kept":271,"cut":false,"hidden":true,"merged":[[46,17,46,18],[18,8,18,9],[15,8,15,9],[16,8,16,9],[17,8,17,9]]}
["Abangares","SJ","1-San José",1930,"-",null,null,null,"SJ"]
["Acosta","A","2-Alajuela",1931,"A","1-Manzanero",null,"I-Excelente/Excellent","A"]
["Alajuela","C","3-Cartago",1932,"B","2-Cabecero",null,"II-Muy bueno-Óptimo/Very Good-Optimum","C"]
["Alajuelita","H","4-Heredia",1933,"C","3-Esquinero ",null,"III-Muy bueno-Regular/Very good-Regular","H"]
["Alvarado","G","5-Guanacaste",1934,"D","4-Medianero con dos frentes",null,"IV-Bueno/Good","G"]
["Aserrí","P","6-Puntarenas",1935,"F","5-Medianero",null,"V-Regular Óptimo/Regular-Optimum","P"]
["Atenas","L","7-Limón",1936,"G","6-Lateral callejón sin salida",null,"VI-Regular-regular","L"]
["Bagaces",null,null,1937,"H","7-Fondo callejón sin salida",null,"VII-Regular-Malo/Regular-Bad"]
["Barva",null,null,1938,"I","8-En servidumbre",null,"VIII-Malo/Bad"]
["Belén",null,null,1939,"J",1,"Porcentaje"]
["Buenos Aires",null,null,1940,"K",100,"Porcentaje"]
["Cañas",null,null,1941,"L",3,null,"1-Excelente/Excellent"]
["Carrillo",null,null,1942,"M",99,null,"2-Bueno/Good"]
["Cartago",null,null,1943,"O",8,null,"3-Normal"]
["Cervantes",null,null,1944,"P","Baldío-Wasteland",null,"4-Regular"]
["Cóbano",null,null,1945,"Q","Comercial-Commercial",null,"5-Malo/Bad"]
["Colorado",null,null,1946,"R","Residencial-Residential"]
["Corredores",null,null,1947,"S","Industrial-Industrial"]
["Coto Brus",null,null,1948,"T","Mixto-Mixed ( ¤ )"]
["Curridabat",null,null,1949,"U","Educacional-Educational",null,"Sin Inscribir"]
["Desamparados",null,null,1950,"V","Recreativo-Recreational",null,"Dominio"]
["Dota",null,null,1951,"W","Religioso-Religious",null,"Usufructo"]
["El Guarco",null,null,1952,"X","En Proceso-Under construction",null,"Información Posesoria"]
["Escazú",null,null,1953,"Y","Agropecuario-Agricultural (*)",null,"Parcela del INDER"]
["Esparza",null,null,1954,"Z",null,null,"Ocupación en Precario"]
["Flores",null,null,1955,null,null,null,"Zona Marítimo"]
["Garabito",null,null,1956,null,null,null,"Otro"]
["Goicoechea",null,null,1957]
["Golfito",null,null,1958]
["Grecia",null,null,1959]
["Guácimo",null,null,1960]
["Guatuso",null,null,1961,null,"Sobre/Above ","Cordón/Curb ",null,null,"Asfalto/Paved",null,"Vacio/Unused"]
["Heredia",null,null,1962,null,"A Nivel/Even ","Caño/Street Glutter",null," ","Lastre/Ballast",null,"Construido/Built up"]
["Hojancha",null,null,1963,null,"Bajo/Low","Acera/Sidewalk",null,null,"Tierra/Dirt lane",null,"En Proceso/Under construction"]
["Jimenez",null,null,1964,null,null,null,null,null,"Servidumbre/Access-easement ",null,null,null,null,null,null,null,null,"Regularidad Regularity"]
["La Cruz",null,null,1965,null,"Ondulado/Undulating","Cañería/Water Pipe",null,null,"Alameda/Narrow pathway",null,null,null,null,null,null,null,null,"Frente Front"]
["La Unión",null,null,1966,null,"Quebrado/Steep","Telefono/Phone",null,null,"Adoquín/Cobbled",null,null,null,null,null,null,null,null,"Zona Homogenea Legal Zoning"]
["León Cortés Castro",null,null,1967,null,"Muy Quebrado/Very steep","Electricidad/Electricity",null,null,null,null,null,null,null,null,null,null,null,"Ubicación Site Location"]
["Lepanto",null,null,1968,null,null,"Alumbrado Publico/Public street lighting"]
["Liberia",null,null,1969]
["Limón ",null,null,1970]
["Los Chiles",null,null,1971,null,"O","Impuesto Anual/Annual Property Tax"]
["Matina",null,null,1972,null,"MB","Impuesto Trimestral/Quarterly Property Tax"]
["Montes de Oca",null,null,1973,null,"B","Impuesto Mensual/Monthly Property Tax"]
["Montes de Oro",null,null,1974,null,"I"]
["Monteverde",null,null,1975,null,"R","•Cédula de Identidad"]
["Mora",null,null,1976,null,"D","•Cédula de Residencia"]
["Moravia",null,null,1977,null,"M","•Pasaporte"]
["Nandayure",null,null,1978,null,"MM","•Persona Jurídica"]
["Naranjo",null,null,1979,null,"DM","•Otros"]
["Nicoya",null,null,1980]
["Oreamuno",null,null,1981]
["Orotina",null,null,1982]
["Osa",null,null,1983,null,"Frutas/Fruits",null,"Acuacultura"]
["Palmares",null,null,1984,null,"Café/Coffee",null,"Zoocriaderos"]
["Paquera",null,null,1985,null,"Granos/Grain",null,"Tabaco"]
["Paraíso",null,null,1986,null,"Piña/Pineapple",null,"Palmas"]
["Parrita",null,null,1987,null,"Hortalizas/Vegetables",null,"Pastos"]
["Peñas Blancas",null,null,1988,null,"Tubercúlos/Tubercles",null,"Cultivos Energeticos"]
["Pérez Zeledón",null,null,1989,null,"Cucurbitáceas/Cucurbitaceae",null,"Áreas de Protección"]
["Poás",null,null,1990,null,"Especies/Species",null,"Apicultura"]
["Pococí",null,null,1991,null,"Cacao/Cocoa",null,"Palma Aceitera"]
["Puntarenas",null,null,1992,null,"Caña/Cane",null,"Platano/Banano"]
["Puriscal",null,null,1993,null,"Banano, Platano/Banana",null,"Café"]
["Quepos",null,null,1994,null,"Oliaginosas/Oliaginous",null,"Piña"]
["Rio Cuarto",null,null,1995,null,"Nueces, Palmas/Nuts,Palms",null,"Granos Básicos"]
["San Carlos",null,null,1996,null,"Tabaco, té/Tabacco, tea",null,"Ganadería"]
["San Isidro",null,null,1997,null,"Forrajeros/Foragers",null,"Producción Animal (Especies Menores)"]
["San José",null,null,1998,null,"Aves Corral/Bird Corral",null,"Platas Ornamentales"]
["San Mateo",null,null,1999,null,"Gand Bobina",null,"Hidroponía"]
["San Pablo",null,null,2000,null,"Prd.Acuática/Aquatic Production",null,"Horticultura"]
["San Rafael",null,null,2001,null,"Cunicultura/Cuniculture",null,"Raices y Tuberculos"]
["San Ramón",null,null,2002,null,"Caprina/Caprina",null,"Semillas y Frutos Oleaginosos"]
["Santa Ana",null,null,2003,null,"Apícola/Apiarian",null,"Plantas Medicinales"]
["Santa Bárbara",null,null,2004,null,"Huevos/Eggs",null,"Fibras Naturales"]
["Santa Cruz",null,null,2005,null,"Ovina/Sheep",null,"Caña Azucar"]
["Santo Domingo",null,null,2006,null,"Equinos/Horses",null,"Otros (**)"]
["Sarapiquí",null,null,2007,null,"Semilleros/Seedbeds"]
["Siquirres",null,null,2008,null,"Vivieros/Nurseries"]
["Talamanca",null,null,2009,null,"Flores/Flowers"]
["Tarrazú",null,null,2010,null,"Jardinería/Gardening"]
["Tibás",null,null,2011]
["Tilarán",null,null,2012]
["Tucurrique",null,null,2013]
["Turrialba",null,null,2014]
["Turrubares",null,null,2015]
["Upala",null,null,2016]
["Valverde Vega",null,null,2017]
["Vázquez de Coronado",null,null,2018]
["Zarcero",null,null,2019]
[null,null,null,2020]
[null,null,null,2021]
[null,null,null,2022]
[null,null,null,2023]
[null,null,null,2024]
[null,null,null,2025]
[null,null,null,2026]
[null,null,null,2027]
[null,null,null,2028]
[null,null,null,2029]
[null,null,null,2030]
[null,null,null,2031]
[null,null,null,2032]
[null,null,null,2033]
[null,null,null,2034]
[null,null,null,2035]
[null,null,null,2036]
[null,null,null,2037]
[null,null,null,2038]
[null,null,null,2039]
[null,null,null,2040]
[null,null,null,2041]
[null,null,null,2042]
[null,null,null,2043]
[null,null,null,2044]
[null,null,null,2045]
[null,null,null,2046]
[null,null,null,2047]
[null,null,null,2048]
[null,null,null,2049]
[null,null,null,2050]
[null,null,null,2051]
[null,null,null,2052]
[null,null,null,2053]
[null,null,null,2054]
[null,null,null,2055]
[null,null,null,2056]
[null,null,null,2057]
[null,null,null,2058]
[null,null,null,2059]
[null,null,null,2060]
[null,null,null,2061]
[null,null,null,2062]
[null,null,null,2063]
[null,null,null,2064]
[null,null,null,2065]
[null,null,null,2066]
[null,null,null,2067]
[null,null,null,2068]
[null,null,null,2069]
[null,null,null,2070]
[null,null,null,2071]
[null,null,null,2072]
[null,null,null,2073]
[null,null,null,2074]
[null,null,null,2075]
[null,null,null,2076]
[null,null,null,2077]
[null,null,null,2078]
[null,null,null,2079]
[null,null,null,2080]
[null,null,null,2081]
[null,null,null,2082]
[null,null,null,2083]
[null,null,null,2084]
[null,null,null,2085]
[null,null,null,2086]
[null,null,null,2087]
[null,null,null,2088]
[null,null,null,2089]
[null,null,null,2090]
[null,null,null,2091]
[null,null,null,2092]
[null,null,null,2093]
[null,null,null,2094]
[null,null,null,2095]
[null,null,null,2096]
[null,null,null,2097]
[null,null,null,2098]
[null,null,null,2099]
[null,null,null,2100]
[null,null,null,2101]
[null,null,null,2102]
[null,null,null,2103]
[null,null,null,2104]
[null,null,null,2105]
[null,null,null,2106]
[null,null,null,2107]
[null,null,null,2108]
[null,null,null,2109]
[null,null,null,2110]
[null,null,null,2111]
[null,null,null,2112]
[null,null,null,2113]
[null,null,null,2114]
[null,null,null,2115]
[null,null,null,2116]
[null,null,null,2117]
[null,null,null,2118]
[null,null,null,2119]
[null,null,null,2120]
[null,null,null,2121]
[null,null,null,2122]
[null,null,null,2123]
[null,null,null,2124]
[null,null,null,2125]
[null,null,null,2126]
[null,null,null,2127]
[null,null,null,2128]
[null,null,null,2129]
[null,null,null,2130]
[null,null,null,2131]
[null,null,null,2132]
[null,null,null,2133]
[null,null,null,2134]
[null,null,null,2135]
[null,null,null,2136]
[null,null,null,2137]
[null,null,null,2138]
[null,null,null,2139]
[null,null,null,2140]
[null,null,null,2141]
[null,null,null,2142]
[null,null,null,2143]
[null,null,null,2144]
[null,null,null,2145]
[null,null,null,2146]
[null,null,null,2147]
[null,null,null,2148]
[null,null,null,2149]
[null,null,null,2150]
[null,null,null,2151]
[null,null,null,2152]
[null,null,null,2153]
[null,null,null,2154]
[null,null,null,2155]
[null,null,null,2156]
[null,null,null,2157]
[null,null,null,2158]
[null,null,null,2159]
[null,null,null,2160]
[null,null,null,2161]
[null,null,null,2162]
[null,null,null,2163]
[null,null,null,2164]
[null,null,null,2165]
[null,null,null,2166]
[null,null,null,2167]
[null,null,null,2168]
[null,null,null,2169]
[null,null,null,2170]
[null,null,null,2171]
[null,null,null,2172]
[null,null,null,2173]
[null,null,null,2174]
[null,null,null,2175]
[null,null,null,2176]
[null,null,null,2177]
[null,null,null,2178]
[null,null,null,2179]
[null,null,null,2180]
[null,null,null,2181]
[null,null,null,2182]
[null,null,null,2183]
[null,null,null,2184]
[null,null,null,2185]
[null,null,null,2186]
[null,null,null,2187]
[null,null,null,2188]
[null,null,null,2189]
[null,null,null,2190]
[null,null,null,2191]
[null,null,null,2192]
[null,null,null,2193]
[null,null,null,2194]
[null,null,null,2195]
[null,null,null,2196]
[null,null,null,2197]
[null,null,null,2198]
[null,null,null,2199]
[null,null,null,2200]

{"sheet":"Nivel","index":16,"n_rows":0,"n_cols":0,"rows_kept":0,"cut":false,"hidden":true,"merged":[]}

{"sheet":"Pendiente","index":17,"n_rows":0,"n_cols":0,"rows_kept":0,"cut":false,"hidden":true,"merged":[]}